Workbook

Sheet Main
AK1: AAS | AM1: Promotion | BL1: =DATE(2013,2,28) -> 2013-02-28 | BM1: =DATE(2012,1,3) -> 2012-01-03
A2: INCOME TAX PROGRAMME FOR THE FINANCIAL YEAR -2012-2013 FOR UGC-2006 | AC2: Leaves | AF2: Not Applicable | AG2: 1 | AM2: =VLOOKUP(H7,AM3:AN6,2,FALSE) -> 1 | AN2: =AM2 -> 1 | AX2: Special Compensatory Allowance to the employees working in scheduled Areas | BC2: Not Applicable | BG2: HRA Paid | BL2: =DATE(2012,1,1) -> 2012-01-01 | BP2: AAS | BS2: Promotion | BY2: =BL3 -> 2012-02-01 | BZ2: =BL4 -> 2012-03-01
A3: Employee Personal & DDO Details | F3: EMPLOYEE PAY PARTICULARS | N3: Programme Updated on 31/01/2013 | AB3: Type | AC3: From | AD3: To | AF3: HPL | AG3: 2 | AK3: Not Applicable | AM3: Not Applicable | AN3: 1 | AX3: G.O.Ms.No.6, Finance (TA) Department, dated:12-01-2007 | BC3: SL FY -2012-13 | BE3: 15 | BF3: 0 | BG3: 0 | BH3: PHC | BL3: =DATE(YEAR(BL2),MONTH(BL2)+1,1) -> 2012-02-01 | BO3: Aprentice | BY3: =BL4 -> 2012-03-01 | BZ3: =BL5 -> 2012-04-01 | CA3: 15 | CB3: 10 | CC3: Not-Applicable | CE3: 40 | CF3: 50 | CG3: 300 | CH3: 400 | CK3: Up to 31.03.2011 | CL3: =DATE(2011,4,1) -> 2011-04-01
A4: 1 | B4: Employee Name | C4: ****************** | F4: =CONCATENATE("Basic Pay as on ",TEXT(BL2,"DD-MM-YYYY")) -> Basic Pay as on 01-01-2012 | H4: 31320 | J4: =IF(H4<S66,"Date of Pay Change"," Next Increment") -> Next Increment | L4: 2012-07-01 | M4: 2 | N4: LEAVES (HPL/EOL) | AB4: =IF(N6=$AF$2,$AG$2,IF(N6=$AF$3,$AG$3,$AG$4)) -> 1 | AC4: =IF(N6=$AF$2,I!$C$9,P6+O6-1) -> 2013-04-01 | AD4: =IF(N6=$AF$2,I!$C$9,Q6+O6-1) -> 2013-04-01 | AF4: EOL | AG4: 3 | AK4: Applicable | AM4: FR 22a(i) | AN4: 2 | AX4: =AX35 -> Not-Applicable | AY4: Non-Mandal | AZ4: Mandals | BA4: Hills/Hilltops | BB4: RPS-2005 | BC4: SL FY 2011-12 & 2012-2013 | BE4: 30 | BF4: 10 | BG4: 20 | BH4: PHC A Eligible | BJ4: 1 | BK4: =BL3 -> 2012-02-01 | BL4: =DATE(YEAR(BL3),MONTH(BL3)+1,1) -> 2012-03-01 | BM4: =BL3 -> 2012-02-01 | BN4: 1 | BO4: =IF($L$4=$BM$16,"",1) -> 1 | BP4: =MAX(L5,BM1) -> 2012-11-01 | BQ4: 1 | BS4: =MAX(L7,DATE(2012,3,1)) -> 2012-07-01 | BT4: 1 | BU4: =IF(AN10=4,L4,BL4) -> 2012-03-01 | BV4: 1951 | BW4: 1 | BX4: 1 | BY4: 2012-04-01 | BZ4: 2012-05-01 | CA4: 30 | CB4: 12.5 | CC4: 15 | CE4: 60 | CF4: 75 | CG4: 400 | CH4: 500 | CK4: 0 | CL4: 0
A5: 2 | B5: Designation | C5: Professor | F5: AAS | H5: Not Applicable | J5: AAS W.E.F | L5: 2012-11-01 | M5: 16 | N5: Leave Type | O5: Month | P5: From Day | Q5: TO Day | AB5: 1 | AC5: =IF(N7=$AF$2,I!$C$9,P7+O7-1) -> 2013-04-01 | AD5: =IF(N7=$AF$2,I!$C$9,Q7+O7-1) -> 2013-04-01 | AM5: FR 22 B Increment Date | AN5: 3 | AX5: 6040 | AY5: 300 | AZ5: 375 | BA5: 450 | BF5: 12.5 | BG5: 22 | BH5: PT Nil | BJ5: 2 | BK5: =DATE(YEAR(BK4),MONTH(BK4)+1,1) -> 2012-03-01 | BL5: =DATE(YEAR(BL4),MONTH(BL4)+1,1) -> 2012-04-01 | BM5: =DATE(YEAR(BM4),MONTH(BM4)+1,1) -> 2012-03-01 | BN5: =MIN(DAY(EOMONTH($L$5,0)),BN4+1) -> 2 | BO5: =IF($L$4=$BM$16,"",MIN(DAY(EOMONTH($L$4,0)),BO4+1)) -> 2 | BP5: =MIN(DATE(YEAR(BP4),MONTH(BP4)+1,1),$BL$1+1) -> 2012-12-01 | BQ5: =MIN(DAY(EOMONTH($BP$4,0)),BQ4+1) -> 2 | BS5: =MIN(DATE(YEAR(BS4),MONTH(BS4)+1,1),$BL$1+1) -> 2012-08-01 | BT5: =MIN(DAY(EOMONTH($BS$4,0)),BT4+1) -> 2 | BU5: =MIN(DATE(YEAR(BU4),MONTH(BU4)+1,1),DATE(2012,3,1)) -> 2012-03-01 | BV5: 1952 | BW5: =MIN(DAY(EOMONTH($G$17,0)),BW4+1) -> 2 | BX5: =MIN(DAY(EOMONTH($G$18,0)),BX4+1) -> 2 | BY5: 2012-05-01 | BZ5: 2012-06-01 | CA5: 60 | CB5: 20 | CC5: 30 | CD5: 1000 | CE5: 75 | CF5: 100 | CG5: 500 | CH5: 600 | CK5: 10 | CL5: 12
A6: 3 | B6: School/OfficeName | C6: STPM Govt IASE, Nellore | F6: Minimum Scale of Pay | H6: 18030 | J6: =IF(OR(AN10=4,H5=AK4),"Pay Bill Including Month","") ->  | L6: 2013-01-01 | N6: Not Applicable | O6: 2012-01-01 | P6: 1 | Q6: 31 | AB6: 1 | AC6: =IF(N8=$AF$2,I!$C$9,P8+O8-1) -> 2013-04-01 | AD6: =IF(N8=$AF$2,I!$C$9,Q8+O8-1) -> 2013-04-01 | AM6: FR 22 B Direct | AN6: 4 | AX6: 7770 | AY6: 375 | AZ6: 450 | BA6: 525 | BF6: 20 | BG6: 27.5 | BH6: PHC A Not Eligible | BJ6: 3 | BK6: =DATE(YEAR(BK5),MONTH(BK5)+1,1) -> 2012-04-01 | BL6: =DATE(YEAR(BL5),MONTH(BL5)+1,1) -> 2012-05-01 | BM6: 2012-04-01 | BN6: 3 | BO6: =IF($L$4=$BM$16,"",MIN(DAY(EOMONTH($L$4,0)),BO5+1)) -> 3 | BP6: =MIN(DATE(YEAR(BP5),MONTH(BP5)+1,1),$BL$1+1) -> 2013-01-01 | BQ6: =MIN(DAY(EOMONTH($BP$4,0)),BQ5+1) -> 3 | BS6: =MIN(DATE(YEAR(BS5),MONTH(BS5)+1,1),$BL$1+1) -> 2012-09-01 | BT6: =MIN(DAY(EOMONTH($BS$4,0)),BT5+1) -> 3 | BU6: =MIN(DATE(YEAR(BU5),MONTH(BU5)+1,1),DATE(2012,3,1)) -> 2012-03-01 | BV6: 1953 | BW6: 3 | BX6: 3 | BY6: 2012-06-01 | BZ6: 2012-07-01 | CA6: 120 | CB6: 30 | CC6: SL | CD6: 2000 | CE6: HM Allowance- 2005 -2010 | CG6: Reader Allowance 2005 -2010 | CK6: 12.5 | CL6: 14.5
A7: 4 | B7: District | C7: Sri Pottisreeramulu Nellore | F7: Promotion | H7: Not Applicable | J7: Date of Promotion | L7: 2012-07-01 | M7: 7 | N7: Not Applicable | O7: 2012-02-01 | P7: 1 | Q7: 1 | AB7: 1 | AC7: =IF(N9=$AF$2,I!$C$9,P9+O9-1) -> 2013-04-01 | AD7: =IF(N9=$AF$2,I!$C$9,Q9+O9-1) -> 2013-04-01 | AX7: 9775 | AY7: 450 | AZ7: 550 | BA7: 600 | BC7: Change | BF7: 30 | BG7: 36 | BJ7: 4 | BK7: 2012-05-01 | BL7: =DATE(YEAR(BL6),MONTH(BL6)+1,1) -> 2012-06-01 | BM7: 2012-05-01 | BN7: 4 | BO7: 4 | BP7: 2013-02-01 | BQ7: 4 | BS7: 2012-10-01 | BT7: 4 | BU7: 2012-03-01 | BV7: 1954 | BW7: 4 | BX7: 4 | BY7: 2012-07-01 | BZ7: 2012-08-01 | CA7: GIS | CK7: 20 | CL7: 20
A8: 5 | B8: Mandal | C8: Nellore | F8: Minimum Scale of Pay | H8: 18520 | J8: Pay Bill Including Month | L8: 2013-02-01 | N8: Not Applicable | O8: 2012-06-01 | P8: 14 | Q8: 23 | AB8: 1 | AC8: =IF(N10=$AF$2,I!$C$9,P10+O10-1) -> 2013-04-01 | AD8: =IF(N10=$AF$2,I!$C$9,Q10+O10-1) -> 2013-04-01 | AX8: 12070 | AY8: 550 | AZ8: 600 | BA8: 675 | BC8: No- Change | BJ8: 5 | BK8: 2012-06-01 | BL8: 2012-07-01 | BM8: 2012-06-01 | BN8: 5 | BO8: 5 | BP8: 2013-03-01 | BQ8: 5 | BS8: 2012-11-01 | BT8: 5 | BU8: 2012-03-01 | BV8: 1955 | BW8: 5 | BX8: 5 | BY8: 2012-08-01 | BZ8: 2012-09-01 | CA8: Financial Year | CC8: 2012-2013 | CK8: 30 | CL8: 30
A9: 6 | B9: Date Of Birth | F9: AQI + FA | J9: Reader Allowance | N9: Not Applicable | O9: 2012-06-01 | P9: 6 | Q9: 11 | AB9: 1 | AC9: =IF(N11=$AF$2,I!$C$9,P11+O11-1) -> 2013-04-01 | AD9: =IF(N11=$AF$2,I!$C$9,Q11+O11-1) -> 2013-04-01 | AX9: 16450 | AY9: 600 | AZ9: 650 | BA9: 750 | BJ9: 6 | BK9: 2012-07-01 | BL9: 2012-08-01 | BM9: 2012-07-01 | BN9: 6 | BO9: 6 | BP9: 2013-03-01 | BQ9: 6 | BS9: 2012-12-01 | BT9: 6 | BU9: 2012-03-01 | BV9: 1956 | BW9: 6 | BX9: 6 | BY9: 2012-09-01 | BZ9: 2012-10-01
A10: 7 | B10: ID No | C10: 0822916 | F10: PHC | H10: PHC A Not Eligible | J10: Post Type | L10: Vacation Post | N10: Not Applicable | O10: 2012-06-01 | P10: 4 | Q10: 8 | AM10: Aprentice | AN10: =IF(H4<S66,4,1) -> 1 | AX10: 34590 | AY10: 650 | AZ10: 700 | BA10: 825 | BJ10: 7 | BK10: 2012-08-01 | BL10: 2012-09-01 | BM10: 2012-08-01 | BN10: 7 | BO10: 7 | BP10: 2013-03-01 | BQ10: 7 | BS10: 2013-01-01 | BT10: 7 | BU10: 2012-03-01 | BV10: 1957 | BW10: 7 | BX10: 7 | BY10: 2012-10-01 | BZ10: 2012-11-01
A11: 8 | B11: PAN NO | C11: AALPI222B | F11: Surender Leave | H11: SL FY -2012-13 | J11: 2012-04-01 | K11: 15 | L11: 2012-01-01 | M11: 15 | N11: Not Applicable | O11: 2012-06-01 | P11: 6 | Q11: 10 | AX11: Special Compensatory Allowance to the employees working in scheduled Areas | BJ11: 8 | BK11: 2012-09-01 | BL11: 2012-10-01 | BM11: 2012-09-01 | BN11: 8 | BO11: 8 | BP11: 2013-03-01 | BQ11: 8 | BS11: 2013-02-01 | BT11: 8 | BU11: 2012-03-01 | BV11: 1958 | BW11: 8 | BX11: 8 | BY11: 2012-11-01 | BZ11: 2012-12-01
A12: 9 | B12: Leaving House | C12: Rented House | F12: Commutation | J12: Death-cum-retirement | N12: INCOME TAX DETAILS | AX12: G.O.Ms.No.139 Dated:28-04-2010 | BA12: 2010-04-01 | BJ12: 9 | BK12: 2012-10-01 | BL12: 2012-11-01 | BM12: 2012-10-01 | BN12: 9 | BO12: 9 | BP12: 2013-03-01 | BQ12: 9 | BS12: 2013-03-01 | BT12: 9 | BU12: 2012-03-01 | BV12: 1959 | BW12: 9 | BX12: 9 | BY12: 2012-12-01 | BZ12: 2013-01-01
A13: 10 | B13: Rent Paid Monthly | C13: =CEILING(SUM(SUM(SB!G11,SB!G13)*10%,SB!G14)/12,100) -> 9000 | F13: Medical Reimbursement | J13: Final Encashment of Earned Leave | AX13: Basic Pay | AY13: Non-Mandal | AZ13: Mandals | BA13: Hills/Hilltops | BB13: RPS-2010 | BJ13: 10 | BK13: 2012-11-01 | BL13: 2012-12-01 | BM13: 2012-11-01 | BN13: 10 | BO13: 10 | BP13: 2013-03-01 | BQ13: 10 | BS13: 2013-03-01 | BT13: 10 | BU13: 2012-03-01 | BV13: 1960 | BW13: 10 | BX13: 10 | BY13: 2013-01-01 | BZ13: 2013-02-01
A14: 11 | B14: Residencial Address | F14: Interest Deposits in Saving Account | J14: CPS Employers Contribution | L14: =IF(F22="CPS",Statement!O27,0) -> 0 | N14: Actual House Rent Receieved | P14: =SB!G19 -> 39902 | AX14: 10600 | AY14: 325 | AZ14: 400 | BA14: 475 | BJ14: 11 | BK14: 2012-12-01 | BL14: 2013-01-01 | BM14: 2012-12-01 | BN14: 11 | BO14: 11 | BP14: 2013-03-01 | BQ14: 11 | BS14: 2013-03-01 | BT14: 11 | BU14: 2012-03-01 | BV14: 1961 | BW14: 11 | BX14: 11 | BY14: 2013-02-01 | BZ14: 2013-03-01
B15: House No: | C15: _______________________ | F15: IF Change | G15: Month-Year | H15: Day | I15: HRA | J15: CCA | K15: HMA | L15: AHRA | M15: SCA | N15: Rent Paid PM | P15: =SB!E21 -> 9000 | AX15: 13660 | AY15: 400 | AZ15: 475 | BA15: 550 | BJ15: 12 | BK15: 2013-01-01 | BL15: 2013-02-01 | BM15: =DATE(YEAR(BM14),MONTH(BM14)+1,1) -> 2013-01-01 | BN15: 12 | BO15: 12 | BP15: 2013-03-01 | BQ15: 12 | BS15: 2013-03-01 | BT15: 12 | BU15: 2012-03-01 | BV15: 1962 | BW15: 12 | BX15: 12 | BZ15: 2013-04-01
B16: Road/Street | C16: ________________________ | F16: Change | G16: 2012-03-01 | H16: 1 | I16: 10 | J16: Not-Applicable | L16: Not-Applicable | M16: Not-Applicable | N16: Rent Paid Per Year | P16: =SB!F21 -> 108000 | AX16: 17050 | AY16: 475 | AZ16: 575 | BA16: 625 | BJ16: 13 | BK16: 2013-02-01 | BL16: 2013-03-01 | BM16: No Change | BN16: 13 | BO16: 13 | BP16: 2013-03-01 | BQ16: 13 | BS16: 2013-03-01 | BT16: 13 | BU16: 2012-03-01 | BV16: 1963 | BW16: 13 | BX16: 13
B17: Area/Locality | C17: ___________________________ | F17: No- Change | G17: 2012-07-01 | H17: 2 | I17: 12 | J17: Not-Applicable | L17: Not-Applicable | M17: Not-Applicable | N17: 10% of Pay+DA | P17: =SB!H21 -> 68083 | AX17: 21250 | AY17: 575 | AZ17: 625 | BA17: 700 | BJ17: 14 | BK17: 2013-03-01 | BL17: 2013-04-01 | BN17: 14 | BO17: 14 | BQ17: 14 | BT17: 14 | BV17: 1964 | BW17: 14 | BX17: 14
B18: TOWN/CITY/DISTRICT | C18: Sri Pottisreeramulu Nellore | F18: No- Change | G18: 2012-07-01 | J18: Not-Applicable | L18: Not-Applicable | M18: Not-Applicable | N18: Difference | P18: =SB!K21 -> 39917 | AX18: 28450 | AY18: 625 | AZ18: 675 | BA18: 775 | BJ18: 15 | BK18: 2013-04-01 | BN18: 15 | BO18: 15 | BQ18: 15 | BT18: 15 | BV18: 1965 | BW18: 15 | BX18: 15
B19: Mandal | C19: Nellore | F19: DA Jan-2012 | H19: 2012-08-01 | J19: DA July -2012 | L19: 2012-12-01 | N19: Gross | P19: =SB!K16 -> 720733 | AX19: 62160 | AY19: 675 | AZ19: 725 | BA19: 850 | BJ19: 16 | BK19: 2013-05-01 | BN19: 16 | BO19: 16 | BQ19: 16 | BT19: 16 | BV19: 1966 | BW19: 16 | BX19: 16
B20: Pin Code | C20: 524001 | F20: Savings for Book Adjestment | N20: Exemptions | P20: =SB!K29+SB!G32 -> 42302 | BJ20: 17 | BK20: 2013-06-01 | BN20: 17 | BO20: 17 | BQ20: 17 | BT20: 17 | BV20: 1967 | BW20: 17 | BX20: 17 | CA20: NO GPF
A21: 12 | B21: DDO Name | C21: SURYANARAYANA BHARGAVA VADLAMANI | F21: Saving Type | H21: NO | J21: Amount | K21: CHANGE Amount | L21: Change Month | N21: Income chargeable under the head 'salaries' | P21: ='16'!M39 -> 678431.00 | AX21: Additional Houserent Allowance w.EF 01/04/2010 | BJ21: 18 | BK21: 2013-07-01 | BN21: 18 | BO21: 18 | BQ21: 18 | BT21: 18 | BV21: 1968 | BW21: 18 | BX21: 18 | BZ21: =BZ25 -> Sri: ****************** | CA21: GPF | CD21: 2005
B22: Designation | C22: Principal | F22: GPF | J22: 1000 | AX22: Basic Pay % | AY22: 8 | AZ22: Maximum | BA22: 1000 | BB22: RPS-2010 | BJ22: 19 | BK22: 2013-08-01 | BN22: 19 | BO22: 19 | BQ22: 19 | BT22: 19 | BV22: 1969 | BW22: 19 | BX22: 19 | BZ22: =CONCATENATE(IF(BY26=1," Son of Sri "," Daughter of Sri "),UPPER(C24)) -> Son of Sri VENKTARAMANA VADLAMANI | CA22: ZPGPF | CD22: 2010
B23: Office Address | C23: STPM Govt IASE, Nellore | F23: APGLI | J23: 1000 | N23: 80CCE | P23: ='16'!M59+'16'!M60+'16'!M61+'16'!M63 -> 100000.00 | AY23: 8 | BA23: 500 | BB23: RPS-2005 | BJ23: 20 | BK23: 2013-09-01 | BN23: 20 | BO23: 20 | BQ23: 20 | BT23: 20 | BV23: 1970 | BW23: 20 | BX23: 20 | BZ23: Applicable | CA23: Class-IV-DTO
B24: DDO Father's Name | C24: VENKTARAMANA VADLAMANI | F24: GIS | J24: 120 | N24: Other Than 80 CCE | P24: ='16'!M70 -> 70.00 | BJ24: 21 | BK24: 2013-10-01 | BN24: 21 | BO24: 21 | BQ24: 21 | BT24: 21 | BV24: 1971 | BW24: 21 | BX24: 21 | BZ24: Not-Applicable | CA24: CPS
B25: TAN NO | C25: HYDS19660E | F25: LIC (SSS) | N25: Taxable Income | P25: ='16'!M72 -> 578,361 | AX25: Reader Allowance | AY25: RPs-2005 | AZ25: RPS-2010 | BA25: 2010-04-01 | BJ25: 22 | BK25: 2013-11-01 | BN25: 22 | BO25: 22 | BQ25: 22 | BT25: 22 | BV25: 1972 | BW25: 22 | BX25: 22 | BY25: 1 | BZ25: =CONCATENATE(IF(BY25=1,BZ27,IF(BY25=2,BZ28,BZ29)),UPPER(C4)) -> Sri: ****************** | CC25: =IF(BY25=1,"Male","Female") -> Male
F26: EWF | H26: 20 | J26: Sainik Welfare | L26: 50 | N26: Income Tax | P26: ='16'!M73 -> 45672.00 | AX26: SGT | AY26: 300 | AZ26: 400 | BJ26: 23 | BK26: 2013-12-01 | BN26: 23 | BO26: 23 | BQ26: 23 | BT26: 23 | BV26: 1973 | BW26: 23 | BX26: 23 | BY26: 1 | BZ26: =CONCATENATE(IF(BY26=1,BZ27,IF(BY26=2,BZ28,BZ29)),UPPER(C21)) -> Sri: SURYANARAYANA BHARGAVA VADLAMANI | CA26: 1
N27: Cess 3% | P27: ='16'!M74 -> 1370.00 | AX27: SA | AY27: 400 | AZ27: 500 | BJ27: 24 | BK27: 2014-01-01 | BN27: 24 | BO27: 24 | BQ27: 24 | BT27: 24 | BV27: 1974 | BW27: 24 | BX27: 24 | BZ27: Sri: | CA27: With Undertaking | CB27: Male | CC27: Vacation Post | CD27: Rented House
A28: SAVINGS | D28: Amount | F28: DEDUCTIONS | L28: =D28 -> Amount | N28: Total Tax | P28: ='16'!M75 -> 47042.00 | AX28: JL | AY28: 500 | AZ28: 600 | BJ28: 25 | BK28: 2014-02-01 | BN28: 25 | BO28: 25 | BQ28: 25 | BT28: 25 | BV28: 1975 | BW28: 25 | BX28: 25 | BZ28: Smt: | CA28: With- Out Undertaking | CB28: Female | CC28: Non-Vacation Post | CD28: Own House
A29: Tuition Fee- Two Children | D29: 56000 | F29: Medical Insurance Premium | N29: ADVANCE TAX PAID UP TO JANUARY-2013 | P29: =SB!G82 -> 0.00 | BJ29: 26 | BK29: 2014-03-01 | BN29: 26 | BO29: 26 | BQ29: 26 | BT29: 26 | BV29: 1976 | BW29: 26 | BX29: 26 | BZ29: Kum:
A30: LIC Insurance Premium- Annual | F30: Expenditure on medical treatment - 60 Years onwords | N30: TAX TO BE PAID FEBRUARY-2013 | P30: =P28-P29 -> 47042.00 | AX30: PHC w.E.F 01/04/2010 | BJ30: 27 | BN30: 27 | BO30: 27 | BQ30: 27 | BT30: 27 | BV30: 1977 | BW30: 27 | BX30: 27
A31: National Savings Certificates (NSC) | F31: Medical treatment of dependent Person with Disability | AX31: Basic Pay % | AY31: 10 | AZ31: Maximum | BA31: 900 | BB31: RPS-2010 | BJ31: 28 | BN31: 28 | BO31: 28 | BQ31: 28 | BT31: 28 | BV31: 1978 | BW31: 28 | BX31: 28
A32: Tuition Fee- Two Children | F32: Donation of Charitable Institution | AY32: 10 | BA32: 650 | BB32: RPS-2005 | BJ32: 29 | BN32: 29 | BO32: 29 | BQ32: 29 | BT32: 29 | BV32: 1979 | BW32: 29 | BX32: 29
A33: PLI | F33: HOUSE BULIDING ADVANCE U/S 24 (B) | BJ33: 30 | BN33: 30 | BO33: 30 | BQ33: 30 | BT33: 30 | BV33: 1980 | BW33: 30 | BX33: 30
A34: ULIP | AX34: CCA IN RPS-2010 w.E.F 01/02/2010 | BJ34: 31 | BN34: 30 | BO34: 31 | BQ34: 30 | BT34: 31 | BV34: 1981 | BW34: 31 | BX34: 31
A35: Others | F35: Interest on Housing Loan Advance (After 01/04/1999) | AX35: =CC3 -> Not-Applicable | AY35: Greater Hyderabad Municipal Corporation | AZ35: Greater Visakhapatnam Municipal Corporation and Vijayawada | BA35: Other Municipal Corporations | BV35: 1982
A36: contribution to certain pension funds | F36: Annual Rent Received from House Property | AX36: 8200 | AY36: 200 | AZ36: 120 | BA36: 100 | BV36: 1983
A37: Rajiv Gandhi Equity Savings Scheme (RGESS) | F37: Tax Paid Local Authorities | AX37: 13270 | AY37: 300 | AZ37: 160 | BA37: 120 | BV37: 1984
AX38: 18030 | AY38: 350 | AZ38: 220 | BA38: 130 | BV38: 1985
A39: OTHERS DESIGNATIONS | AX39: 62160 | AY39: 525 | AZ39: 350 | BA39: 140 | BV39: 1986
A40: EMPLOYEE | C40: Assistant Engineer | BV40: 1987
A41: DDO | C41: XXXXXXXXX | AX41: Profession Tax GO.21, Dtd :7.1.08 | BV41: 1988
AX42: Gross Salary | AY42: ProfessionTAX | BV42: 1989
AX43: 5000 | AY43: 0 | BV43: 1990
AX44: 6000 | AY44: 60 | BV44: 1991
AX45: 10000 | AY45: 80 | BV45: 1992
AX46: 15000 | AY46: 100 | BV46: 1993
AX47: 20000 | AY47: 150 | BV47: 1994
AX48: 10000 | AY48: 200
AX50: HRA | AY50: Greater Hyderabad Municipal Corporation | AZ50: Others
AX51: RPS-2010 | AY51: 12000 | AZ51: 8000
AX52: RPS-2005 | AY52: 6000 | AZ52: 4000
S62: 3600 | T62: 4500 | U62: SGT
S63: 4400 | T63: 5400 | U63: SA
S64: 4500 | T64: 11530 | U64: SGT
S65: 5400 | T65: 15700 | U65: SA
S66: 6700 | T66: 6900 | U66: 7100 | V66: 7300
S67: 6900 | T67: 7100 | U67: 7300 | V67: 7520
S68: 7100 | T68: 7300 | U68: 7520 | V68: 7740
S69: 7300 | T69: 7520 | U69: 7740 | V69: 7960
S70: 7520 | T70: 7740 | U70: 7960 | V70: 8200
S71: 7740 | T71: 7960 | U71: 8200 | V71: 8440
S72: 7960 | T72: 8200 | U72: 8440 | V72: 8680
S73: 8200 | T73: 8440 | U73: 8680 | V73: 8940
S74: 8440 | T74: 8680 | U74: 8940 | V74: 9200
S75: 8680 | T75: 8940 | U75: 9200 | V75: 9460
S76: 8940 | T76: 9200 | U76: 9460 | V76: 9740
S77: 9200 | T77: 9460 | U77: 9740 | V77: 10020
S78: 9460 | T78: 9740 | U78: 10020 | V78: 10300
S79: 9740 | T79: 10020 | U79: 10300 | V79: 10600
S80: 10020 | T80: 10300 | U80: 10600 | V80: 10900
S81: 10300 | T81: 10600 | U81: 10900 | V81: 11200
S82: 10600 | T82: 10900 | U82: 11200 | V82: 11530
S83: 10900 | T83: 11200 | U83: 11530 | V83: 11860
S84: 11200 | T84: 11530 | U84: 11860 | V84: 12190
S85: 11530 | T85: 11860 | U85: 12190 | V85: 12550
S86: 11860 | T86: 12190 | U86: 12550 | V86: 12910
S87: 12190 | T87: 12550 | U87: 12910 | V87: 13270
S88: 12550 | T88: 12910 | U88: 13270 | V88: 13660
S89: 12910 | T89: 13270 | U89: 13660 | V89: 14050
S90: 13270 | T90: 13660 | U90: 14050 | V90: 14440
S91: 13660 | T91: 14050 | U91: 14440 | V91: 14860
S92: 14050 | T92: 14440 | U92: 14860 | V92: 15280
S93: 14440 | T93: 14860 | U93: 15280 | V93: 15700
S94: 14860 | T94: 15280 | U94: 15700 | V94: 16150
S95: 15280 | T95: 15700 | U95: 16150 | V95: 16600
S96: 15700 | T96: 16150 | U96: 16600 | V96: 17050
S97: 16150 | T97: 16600 | U97: 17050 | V97: 17540
S98: 16600 | T98: 17050 | U98: 17540 | V98: 18030
S99: 17050 | T99: 17540 | U99: 18030 | V99: 18520
S100: 17540 | T100: 18030 | U100: 18520 | V100: 19050
S101: 18030 | T101: 18520 | U101: 19050 | V101: 19580
S102: 18520 | T102: 19050 | U102: 19580 | V102: 20110
S103: 19050 | T103: 19580 | U103: 20110 | V103: 20680
S104: 19580 | T104: 20110 | U104: 20680 | V104: 21250
S105: 20110 | T105: 20680 | U105: 21250 | V105: 21820
S106: 20680 | T106: 21250 | U106: 21820 | V106: 22430
B107: annuity plan of Life Insurance | S107: 21250 | T107: 21820 | U107: 22430 | V107: 23040
B108: contribution to certain pension funds | S108: 21820 | T108: 22430 | U108: 23040 | V108: 23650
S109: 22430 | T109: 23040 | U109: 23650 | V109: 24300
S110: 23040 | T110: 23650 | U110: 24300 | V110: 24950
S111: 23650 | T111: 24300 | U111: 24950 | V111: 25600
B112: SAVINGS | C112: Limit | D112: Section | I112: Exemptions | S112: 24300 | T112: 24950 | U112: 25600 | V112: 26300
S113: 24950 | T113: 25600 | U113: 26300 | V113: 27000
S114: 25600 | T114: 26300 | U114: 27000 | V114: 27700
B115: Tuition Fee- Two Children | C115: 100,000 | D115: 80C | G115: Medical Reimbursement | J115: 15000 | L115: 17(2)(v) | N115: =IF(H12>0,CONCATENATE(F12," U/S ",VLOOKUP(F12,$G$115:$M$122,6,FALSE)),"") ->  | O115: =IF(H12=0,0,MIN(H12,VLOOKUP(F12,$G$115:$M$122,4,FALSE))) -> 0 | Q115: =VLOOKUP(F12,$G$115:$M$122,6,FALSE) -> 10(10A)(i) | S115: 26300 | T115: 27000 | U115: 27700 | V115: 28450
B116: National Savings Certificates (NSC) | C116: 100,000 | D116: 80C | G116: Death-cum-retirement | J116: 1000000 | L116: 10(10). | N116: =IF(H13>0,CONCATENATE(F13," U/S ",VLOOKUP(F13,$G$115:$M$122,6,FALSE)),"") ->  | O116: =IF(H13=0,0,MIN(H13,VLOOKUP(F13,$G$115:$M$122,4,FALSE))) -> 0 | Q116: =VLOOKUP(F13,$G$115:$M$122,6,FALSE) -> 17(2)(v) | S116: 27000 | T116: 27700 | U116: 28450 | V116: 29200
B117: Repayment of Home Loan Principle | C117: 100,000 | D117: 80C | G117: Commutation | J117: 5000000 | L117: 10(10A)(i) | N117: =IF(L12>0,CONCATENATE(J12," U/S ",VLOOKUP(J12,$G$115:$M$122,6,FALSE)),"") ->  | O117: =IF(L12=0,0,MIN(L12,VLOOKUP(J12,$G$115:$M$122,4,FALSE))) -> 0 | Q117: =VLOOKUP(J12,$G$115:$M$122,6,FALSE) -> 10(10). | S117: 27700 | T117: 28450 | U117: 29200 | V117: 29950
B118: LIC Insurance Premium- Annual | C118: 100,000 | D118: 80C | G118: Final Encashment of Earned Leave | J118: 300000 | L118: 10(10AA)(i) | N118: =IF(L13>0,CONCATENATE(J13," U/S ",VLOOKUP(J13,$G$115:$M$122,6,FALSE)),"") ->  | O118: =IF(L13=0,0,MIN(L13,VLOOKUP(J13,$G$115:$M$122,4,FALSE))) -> 0 | Q118: =VLOOKUP(J13,$G$115:$M$122,6,FALSE) -> 10(10AA)(i) | S118: 28450 | T118: 29200 | U118: 29950 | V118: 30750
B119: Unit linked Insurance Plan | C119: 100,000 | D119: 80C | G119: Provident Fund | J119: 5000000 | L119: 10(11) | S119: 29200 | T119: 29950 | U119: 30750 | V119: 31550
B120: Public Provident Fund | C120: 100,000 | D120: 80C | G120: Leave Travel Concession | J120: 100000 | L120: 10(5) | S120: 29950 | T120: 30750 | U120: 31550 | V120: 32350
B121: ULIP | C121: 100,000 | D121: 80C | G121: Free or concessional education | J121: 2000 | L121: 17(2)(viii) | S121: 30750 | T121: 31550 | U121: 32350 | V121: 33200
B122: PLI | C122: 100,000 | D122: 80C | G122: PHCA /CCA/SCA | J122: 9600 | L122: 10(14 )(i)(ii) | N122: =CONCATENATE(G122," U/S ",L122) -> PHCA /CCA/SCA U/S 10(14 )(i)(ii) | O122: =MIN(SUM(Statement!I27,Statement!J27,Statement!M27),Main!J122) -> 0 | P122: =SUM(Statement!I27,Statement!J27,Statement!M27) -> 0 | Q122: =L122 -> 10(14 )(i)(ii) | S122: 31550 | T122: 32350 | U122: 33200 | V122: 34050
B123: Equity linked Savings Schemes (ELSS) | C123: 100,000 | D123: 80C | S123: 32350 | T123: 33200 | U123: 34050 | V123: 34900
B124: 5-Years fixed deposits with bank/post office | C124: 100,000 | D124: 80C | F124: No Change | S124: 33200 | T124: 34050 | U124: 34900 | V124: 35800
B125: Infrasture Bonds ( LIC, IDBI, IFCI,etc) | C125: 20,000 | D125: 80CCF | S125: 34050 | T125: 34900 | U125: 35800 | V125: 36700
B126: LIC / UTI etc. Pension funds | C126: 10,000 | D126: 80CCC | S126: 34900 | T126: 35800 | U126: 36700 | V126: 37600
S127: 35800 | T127: 36700 | U127: 37600 | V127: 38570
B128: DEDUCTIONS | C128: Limit | D128: Section | S128: 36700 | T128: 37600 | U128: 38570 | V128: 39540
B129: Medical Insurance Premium | C129: 15000 | D129: 80D | F129: =IF(J129=0,"",CONCATENATE(F29," U/S ",K129)) ->  | J129: =IF(L29=0,0,MIN(L29,VLOOKUP(F29,$B$129:$D$142,2,FALSE))) -> 0 | K129: =VLOOKUP(F29,$B$129:$D$142,3,FALSE) -> 80D | S129: 37600 | T129: 38570 | U129: 39540 | V129: 40510
B130: Medical Insurance Premium- 60 Years Onwords | C130: 20000 | D130: 80 D | F130: =IF(J130=0,"",CONCATENATE(F30," U/S ",K130)) ->  | J130: =IF(L30=0,0,MIN(L30,VLOOKUP(F30,$B$129:$D$142,2,FALSE))) -> 0 | K130: =VLOOKUP(F30,$B$129:$D$142,3,FALSE) -> 80 DDB | S130: 38570 | T130: 39540 | U130: 40510 | V130: 41550
B131: Expenditure on medical treatment | C131: 40000 | D131: 80DDB | F131: =IF(J131=0,"",CONCATENATE(F31," U/S ",K131)) ->  | J131: =IF(L31=0,0,MIN(L31,VLOOKUP(F31,$B$129:$D$142,2,FALSE))) -> 0 | K131: =VLOOKUP(F31,$B$129:$D$142,3,FALSE) -> 80DD | S131: 39540 | T131: 40510 | U131: 41550 | V131: 42590
B132: Expenditure on medical treatment - 60 Years onwords | C132: 60000 | D132: 80 DDB | F132: =IF(J132=0,"",CONCATENATE(F32," U/S ",K132)) ->  | J132: =IF(L32=0,0,MIN(L32,VLOOKUP(F32,$B$129:$D$143,2,FALSE))) -> 0 | K132: =VLOOKUP(F32,$B$129:$D$143,3,FALSE) -> 80G | L132: =MIN(IF(F32=B143,ROUND(J132/2,0),J132),ROUND(SB!K39*10%,0)) -> 0 | S132: 40510 | T132: 41550 | U132: 42590 | V132: 43630
B133: Medical treatment of dependent Person with Disability | C133: 50000 | D133: 80DD | S133: 41550 | T133: 42590 | U133: 43630 | V133: 44740
B134: Medical treatment of dependent Person with Severe Disability | C134: 100000 | D134: 80DD | S134: 42590 | T134: 43630 | U134: 44740 | V134: 45850
B135: Maintaince for disabled Person | C135: 50000 | D135: 80U | F135: Annual Rent receieved on House Property | I135: =L36 -> 0 | J135: =IF($I$139=0,"",CONCATENATE(F135," = Rs:",I135)) ->  | S135: 43630 | T135: 44740 | U135: 45850 | V135: 46960
B136: Maintaince for Severe disabled Person | C136: 100000 | D136: 80U | F136: Tax Paid Local Authorities | I136: =IF(I135>0,L37,0) -> 0 | J136: =IF($I$139=0,0,CONCATENATE(F136," = Rs:",I136)) -> 0 | S136: 44740 | T136: 45850 | U136: 46960 | V136: 48160
B137: Interest on Educational Loan | C137: 200000 | D137: 80E | F137: Maitance 30% | I137: =ROUND(I135*30%,0) -> 0 | J137: =IF($I$139=0,"",CONCATENATE(F137," = Rs:",I137)) ->  | S137: 45850 | T137: 46960 | U137: 48160 | V137: 49360
B138: Deduction in respect of interest on deposits in savings account | C138: 10000 | D138: 80TTA | F138: Interest on Housing Loan Property | I138: =IF(L35=0,0,MIN(L35,VLOOKUP(F35,B138:D140,2,FALSE))) -> 0 | J138: =IF($I$139=0,"",CONCATENATE(F138," = Rs:",I138)) ->  | S138: 46960 | T138: 48160 | U138: 49360 | V138: 50560
B139: Interest on Housing Loan Advance (After 01/04/1999) | C139: 150000 | D139: 24(B) | F139: Income From House Property | I139: =I135-I136-I137-I138 -> 0 | J139: =IF($I$139=0,"",CONCATENATE(F139," = Rs:",I139)) ->  | S139: 48160 | T139: 49360 | U139: 50560 | V139: 51760
B140: Interest on Housing Loan Advance ( Before 01/04/1999 ) | C140: 30000 | D140: 24(B) | S140: 49360 | T140: 50560 | U140: 51760 | V140: 53060
B141: Interest on Repair or renewal or reconstruction of the house | C141: 30000 | D141: 24(B) | S141: 50560 | T141: 51760 | U141: 53060 | V141: 54360
B142: Payments made to Electoral Trusts | C142: 100000 | D142: 80G | S142: 51760 | T142: 53060 | U142: 54360 | V142: 55660
B143: Donation of Charitable Institution | C143: 100000 | D143: 80G | S143: 53060 | T143: 54360 | U143: 55660 | V143: 56960
S144: 54360 | T144: 55660 | U144: 56960 | V144: 58260
S145: 55660 | T145: 56960 | U145: 58260 | V145: 59560
S146: 56960 | T146: 58260 | U146: 59560 | V146: 60860
S147: 58260 | T147: 59560 | U147: 60860 | V147: 62160
S148: 59560 | T148: 60860 | U148: 62160 | V148: =V147 -> 62160
S149: 60860 | T149: 62160 | U149: =U148 -> 62160 | V149: =V148 -> 62160
S150: 62160 | T150: =T149 -> 62160 | U150: =U149 -> 62160 | V150: =V149 -> 62160
B151: 27 | C151: =INDEX(BV4:BV47,B151) -> 1977
C152: Date of Birth
B153: 6 | C153: =CONCATENATE(0,B153) -> 06
B154: 1 | C154: =CONCATENATE(0,B154) -> 01
B156: =DATE(C151,B153,B154) -> 1977-06-01
C282: District | E282: Mandal | J282: =LOOKUP(C7,C283:D1404) -> 46 | L282: =LOOKUP(C18,C283:D1404) -> 46 | AJ282: First Change | AM282: Second Change | AP282: Third Change | AS282: Fourth Change | AV282: Firth Change
A283: 1 | B283: 1 | C283: Adilabad | D283: 1 | E283: Adilabad | G283: District | J283: =LOOKUP(C7,G309:H331) -> 862 | L283: =LOOKUP(C18,G309:H331) -> 862 | P283: 1 | Q283: One | R283: Advance Tax | S283: ='16'!L19 -> 47042.00 | T283: =IF(S283=0,"NIL",IF(AND(V283=0,Y283=0,AB283=0,AE283=0),AH283,IF(AND(V283=0,Y283=0,AB283=0),CONCATENATE(AF283,IF(AG283>0,"and "," "),AH283),IF(AND(V283=0,Y283=0),CONCATENATE(AC283,IF(AND(AG283=0,AE283>0),"and ", ""),AF283,IF(AG283>0,"and "," "),AH283),IF(V283=0,CONCATENATE(Z283,IF(AND(AG283=0,AE283=0,AB283>0),"and ", ""),AC283,IF(AND(AG283=0,AE283>0),"and ", ""),AF283,IF(AG283>0,"and "," "),AH283),CONCATENATE(W283,IF(AND(AG283=0,AE283=0,AB283=0,Y283>0),"and ", ""),Z283,IF(AND(AG283=0,AE283=0,AB283>0),"and ", ""),AC283,IF(AND(AG283=0,AE283>0),"and ", ""),AF283,IF(AG283>0,"and "," "),AH283)))))) -> Fourty Seven Thousand and Fourty Two | U283: =INT(S283/10000000)*10000000 -> 0 | V283: =INT(S283/10000000) -> 0 | W283: =IF(V283=1,CONCATENATE(VLOOKUP(V283,$P$283:$Q$381,2)," Crore "),IF(V283>1,CONCATENATE(VLOOKUP(V283,$P$283:$Q$381,2)," Crores "),"")) ->  | X283: =INT(S283/100000)*100000-U283 -> 0 | Y283: =INT(X283/100000) -> 0 | Z283: =IF(Y283=1,CONCATENATE(VLOOKUP(Y283,$P$283:$Q$381,2)," Lakh "),IF(Y283>1,CONCATENATE(VLOOKUP(Y283,$P$283:$Q$381,2)," Lakhs "),"")) ->  | AA283: =INT(S283/1000)*1000-U283-X283 -> 47000 | AB283: =INT(AA283/1000) -> 47 | AC283: =IF(AB283>0,CONCATENATE(VLOOKUP(AB283,$P$283:$Q$381,2)," Thousand "),"") -> Fourty Seven Thousand | AD283: =INT(S283/100)*100-U283-X283-AA283 -> 0 | AE283: =INT(AD283/100) -> 0 | AF283: =IF(AE283>0,CONCATENATE(VLOOKUP(AE283,$P$283:$Q$381,2)," Hundred "),"") ->  | AG283: =S283-U283-X283-AA283-AD283 -> 42 | AH283: =IF(AG283>0, VLOOKUP(AG283,$P$283:$Q$381,2),"") -> Fourty Two | AK283: 2005 | AL283: 2010 | AN283: 2005 | AO283: 2010 | AQ283: 2005 | AR283: 2010 | AT283: 2005 | AU283: 2010 | AW283: 2005 | AX283: 2010
A284: 2 | B284: 1 | C284: Adilabad | D284: 2 | E284: Asifabad | F284: 1 | G284: Adilabad | H284: 1 | I284: =LOOKUP(G284,$C$283:$D$1404) -> 52 | J284: =LOOKUP(C7,G284:H306) -> 817 | K284: =IF(J284>$J$283,"",VLOOKUP(J284,$A$283:$E$1404,5)) -> Allur | L284: =LOOKUP(C18,G284:H306) -> 817 | M284: =IF(L284>$L$283,"",VLOOKUP(L284,$A$283:$E$1404,5)) -> Allur | P284: 2 | Q284: Two | R284: HR Ann | S284: =SB!F21 -> 108000 | T284: =IF(S284=0,"NIL",IF(AND(V284=0,Y284=0,AB284=0,AE284=0),AH284,IF(AND(V284=0,Y284=0,AB284=0),CONCATENATE(AF284,IF(AG284>0,"and "," "),AH284),IF(AND(V284=0,Y284=0),CONCATENATE(AC284,IF(AND(AG284=0,AE284>0),"and ", ""),AF284,IF(AG284>0,"and "," "),AH284),IF(V284=0,CONCATENATE(Z284,IF(AND(AG284=0,AE284=0,AB284>0),"and ", ""),AC284,IF(AND(AG284=0,AE284>0),"and ", ""),AF284,IF(AG284>0,"and "," "),AH284),CONCATENATE(W284,IF(AND(AG284=0,AE284=0,AB284=0,Y284>0),"and ", ""),Z284,IF(AND(AG284=0,AE284=0,AB284>0),"and ", ""),AC284,IF(AND(AG284=0,AE284>0),"and ", ""),AF284,IF(AG284>0,"and "," "),AH284)))))) -> One Lakh and Eight Thousand | U284: =INT(S284/10000000)*10000000 -> 0 | V284: =INT(S284/10000000) -> 0 | W284: =IF(V284=1,CONCATENATE(VLOOKUP(V284,$P$283:$Q$381,2)," Crore "),IF(V284>1,CONCATENATE(VLOOKUP(V284,$P$283:$Q$381,2)," Crores "),"")) ->  | X284: =INT(S284/100000)*100000-U284 -> 100000 | Y284: =INT(X284/100000) -> 1 | Z284: =IF(Y284=1,CONCATENATE(VLOOKUP(Y284,$P$283:$Q$381,2)," Lakh "),IF(Y284>1,CONCATENATE(VLOOKUP(Y284,$P$283:$Q$381,2)," Lakhs "),"")) -> One Lakh | AA284: =INT(S284/1000)*1000-U284-X284 -> 8000 | AB284: =INT(AA284/1000) -> 8 | AC284: =IF(AB284>0,CONCATENATE(VLOOKUP(AB284,$P$283:$Q$381,2)," Thousand "),"") -> Eight Thousand | AD284: =INT(S284/100)*100-U284-X284-AA284 -> 0 | AE284: =INT(AD284/100) -> 0 | AF284: =IF(AE284>0,CONCATENATE(VLOOKUP(AE284,$P$283:$Q$381,2)," Hundred "),"") ->  | AG284: =S284-U284-X284-AA284-AD284 -> 0 | AH284: =IF(AG284>0, VLOOKUP(AG284,$P$283:$Q$381,2),"") ->  | AK284: 3850 | AL284: 6700 | AN284: =IF(#REF!=2005,#REF!,3850) ->  | AO284: =IF(#REF!=2010,#REF!,6700) ->  | AQ284: =IF(#REF!=0,"",IF(#REF!=2005,#REF!,3850)) ->  | AR284: =IF(#REF!=0,"",IF(#REF!=2010,#REF!,6700)) ->  | AT284: =IF(#REF!=0,"",IF(#REF!=2005,#REF!,3850)) ->  | AU284: =IF(#REF!=0,"",IF(#REF!=2010,#REF!,6700)) ->  | AW284: =IF(#REF!=0,"",IF(#REF!=2005,#REF!,3850)) ->  | AX284: =IF(#REF!=0,"",IF(#REF!=2010,#REF!,6700)) -> 
A285: 3 | B285: 1 | C285: Adilabad | D285: 3 | E285: Bazarhathnoor | F285: 2 | G285: Anantapur | H285: =I284+H284 -> 53 | I285: 63 | J285: =IF(J284=$J$283+1,$J$283+1,J284+1) -> 818 | K285: Ananthasagaram | L285: =IF(L284=$L$283+1,$L$283+1,L284+1) -> 818 | M285: Ananthasagaram | P285: 3 | Q285: Three | R285: HR Mon | S285: =SB!E21 -> 9000 | T285: Nine Thousand | U285: 0 | V285: 0 | X285: 0 | Y285: 0 | AA285: 9000 | AB285: 9 | AC285: Nine Thousand | AD285: 0 | AE285: 0 | AG285: 0 | AK285: 3950 | AL285: 6900 | AN285: =IF(AN284>=SUM(30765,5*765),"",IF(AN284>=30000,AN284+765,IF(AN284>=27000,AN284+750,IF(AN284>=22800,AN284+700,IF(AN284>=19675,AN284+625,IF(AN284>=16925,AN284+550,IF(AN284>=15025,AN284+475,IF(AN284>=13750,AN284+425,IF(AN284>=13030,AN284+360,IF(AN284>=12700,AN284+330,IF(AN284>=11125,AN284+315,IF(AN284>=10285,AN284+280,IF(AN284>=9520,AN284+255,IF(AN284>=8815,AN284+235,IF(AN284>=8170,AN284+215,IF(AN284>=7570,AN284+200,IF(AN284>=7015,AN284+185,IF(AN284>=6505,AN284+170,IF(AN284>=6040,AN284+155,IF(AN284>=5605,AN284+145,IF(AN284>=5200,AN284+135,IF(AN284>=4825,AN284+125,IF(AN284>=4480,AN284+115,IF(AN284>=4150,AN284+110,IF(AN284>=3850,AN284+100,0))))))))))))))))))))))))) ->  | AO285: =IF(AO284>=SUM(55660,5*1300),"",IF(AO284>=51760,AO284+1300,IF(AO284>=46960,AO284+1200,IF(AO284>=43630,AO284+1110,IF(AO284>=40510,AO284+1040,IF(AO284>=37600,AO284+970,IF(AO284>=34900,AO284+900,IF(AO284>=32350,AO284+850,IF(AO284>=29950,AO284+800,IF(AO284>=27700,AO284+750,IF(AO284>=25600,AO284+700,IF(AO284>=23650,AO284+650,IF(AO284>=21820,AO284+610,IF(AO284>=20110,AO284+570,IF(AO284>=18520,AO284+530,IF(AO284>=17050,AO284+490,IF(AO284>=15700,AO284+450,IF(AO284>=14440,AO284+420,IF(AO284>=13270,AO284+390,IF(AO284>=12190,AO284+360,IF(AO284>=11200,AO284+330,IF(AO284>=10300,AO284+300,IF(AO284>=9460,AO284+280,IF(AO284>=8680,AO284+260,IF(AO284>=7960,AO284+240,IF(AO284>=7300,AO284+220,IF(AO284>=6700,AO284+200,0))))))))))))))))))))))))))) ->  | AQ285: =IF(AQ284>=SUM(30765,5*765),"",IF(AQ284>=30000,AQ284+765,IF(AQ284>=27000,AQ284+750,IF(AQ284>=22800,AQ284+700,IF(AQ284>=19675,AQ284+625,IF(AQ284>=16925,AQ284+550,IF(AQ284>=15025,AQ284+475,IF(AQ284>=13750,AQ284+425,IF(AQ284>=13030,AQ284+360,IF(AQ284>=12700,AQ284+330,IF(AQ284>=11125,AQ284+315,IF(AQ284>=10285,AQ284+280,IF(AQ284>=9520,AQ284+255,IF(AQ284>=8815,AQ284+235,IF(AQ284>=8170,AQ284+215,IF(AQ284>=7570,AQ284+200,IF(AQ284>=7015,AQ284+185,IF(AQ284>=6505,AQ284+170,IF(AQ284>=6040,AQ284+155,IF(AQ284>=5605,AQ284+145,IF(AQ284>=5200,AQ284+135,IF(AQ284>=4825,AQ284+125,IF(AQ284>=4480,AQ284+115,IF(AQ284>=4150,AQ284+110,IF(AQ284>=3850,AQ284+100,0))))))))))))))))))))))))) ->  | AR285: =IF(AR284>=SUM(55660,5*1300),"",IF(AR284>=51760,AR284+1300,IF(AR284>=46960,AR284+1200,IF(AR284>=43630,AR284+1110,IF(AR284>=40510,AR284+1040,IF(AR284>=37600,AR284+970,IF(AR284>=34900,AR284+900,IF(AR284>=32350,AR284+850,IF(AR284>=29950,AR284+800,IF(AR284>=27700,AR284+750,IF(AR284>=25600,AR284+700,IF(AR284>=23650,AR284+650,IF(AR284>=21820,AR284+610,IF(AR284>=20110,AR284+570,IF(AR284>=18520,AR284+530,IF(AR284>=17050,AR284+490,IF(AR284>=15700,AR284+450,IF(AR284>=14440,AR284+420,IF(AR284>=13270,AR284+390,IF(AR284>=12190,AR284+360,IF(AR284>=11200,AR284+330,IF(AR284>=10300,AR284+300,IF(AR284>=9460,AR284+280,IF(AR284>=8680,AR284+260,IF(AR284>=7960,AR284+240,IF(AR284>=7300,AR284+220,IF(AR284>=6700,AR284+200,0))))))))))))))))))))))))))) ->  | AT285: =IF(AT284>=SUM(30765,5*765),"",IF(AT284>=30000,AT284+765,IF(AT284>=27000,AT284+750,IF(AT284>=22800,AT284+700,IF(AT284>=19675,AT284+625,IF(AT284>=16925,AT284+550,IF(AT284>=15025,AT284+475,IF(AT284>=13750,AT284+425,IF(AT284>=13030,AT284+360,IF(AT284>=12700,AT284+330,IF(AT284>=11125,AT284+315,IF(AT284>=10285,AT284+280,IF(AT284>=9520,AT284+255,IF(AT284>=8815,AT284+235,IF(AT284>=8170,AT284+215,IF(AT284>=7570,AT284+200,IF(AT284>=7015,AT284+185,IF(AT284>=6505,AT284+170,IF(AT284>=6040,AT284+155,IF(AT284>=5605,AT284+145,IF(AT284>=5200,AT284+135,IF(AT284>=4825,AT284+125,IF(AT284>=4480,AT284+115,IF(AT284>=4150,AT284+110,IF(AT284>=3850,AT284+100,0))))))))))))))))))))))))) ->  | AU285: =IF(AU284>=SUM(55660,5*1300),"",IF(AU284>=51760,AU284+1300,IF(AU284>=46960,AU284+1200,IF(AU284>=43630,AU284+1110,IF(AU284>=40510,AU284+1040,IF(AU284>=37600,AU284+970,IF(AU284>=34900,AU284+900,IF(AU284>=32350,AU284+850,IF(AU284>=29950,AU284+800,IF(AU284>=27700,AU284+750,IF(AU284>=25600,AU284+700,IF(AU284>=23650,AU284+650,IF(AU284>=21820,AU284+610,IF(AU284>=20110,AU284+570,IF(AU284>=18520,AU284+530,IF(AU284>=17050,AU284+490,IF(AU284>=15700,AU284+450,IF(AU284>=14440,AU284+420,IF(AU284>=13270,AU284+390,IF(AU284>=12190,AU284+360,IF(AU284>=11200,AU284+330,IF(AU284>=10300,AU284+300,IF(AU284>=9460,AU284+280,IF(AU284>=8680,AU284+260,IF(AU284>=7960,AU284+240,IF(AU284>=7300,AU284+220,IF(AU284>=6700,AU284+200,0))))))))))))))))))))))))))) ->  | AW285: =IF(AW284>=SUM(30765,5*765),"",IF(AW284>=30000,AW284+765,IF(AW284>=27000,AW284+750,IF(AW284>=22800,AW284+700,IF(AW284>=19675,AW284+625,IF(AW284>=16925,AW284+550,IF(AW284>=15025,AW284+475,IF(AW284>=13750,AW284+425,IF(AW284>=13030,AW284+360,IF(AW284>=12700,AW284+330,IF(AW284>=11125,AW284+315,IF(AW284>=10285,AW284+280,IF(AW284>=9520,AW284+255,IF(AW284>=8815,AW284+235,IF(AW284>=8170,AW284+215,IF(AW284>=7570,AW284+200,IF(AW284>=7015,AW284+185,IF(AW284>=6505,AW284+170,IF(AW284>=6040,AW284+155,IF(AW284>=5605,AW284+145,IF(AW284>=5200,AW284+135,IF(AW284>=4825,AW284+125,IF(AW284>=4480,AW284+115,IF(AW284>=4150,AW284+110,IF(AW284>=3850,AW284+100,0))))))))))))))))))))))))) ->  | AX285: =IF(AX284>=SUM(55660,5*1300),"",IF(AX284>=51760,AX284+1300,IF(AX284>=46960,AX284+1200,IF(AX284>=43630,AX284+1110,IF(AX284>=40510,AX284+1040,IF(AX284>=37600,AX284+970,IF(AX284>=34900,AX284+900,IF(AX284>=32350,AX284+850,IF(AX284>=29950,AX284+800,IF(AX284>=27700,AX284+750,IF(AX284>=25600,AX284+700,IF(AX284>=23650,AX284+650,IF(AX284>=21820,AX284+610,IF(AX284>=20110,AX284+570,IF(AX284>=18520,AX284+530,IF(AX284>=17050,AX284+490,IF(AX284>=15700,AX284+450,IF(AX284>=14440,AX284+420,IF(AX284>=13270,AX284+390,IF(AX284>=12190,AX284+360,IF(AX284>=11200,AX284+330,IF(AX284>=10300,AX284+300,IF(AX284>=9460,AX284+280,IF(AX284>=8680,AX284+260,IF(AX284>=7960,AX284+240,IF(AX284>=7300,AX284+220,IF(AX284>=6700,AX284+200,0))))))))))))))))))))))))))) -> 
A286: 4 | B286: 1 | C286: Adilabad | D286: 4 | E286: Bejjur | F286: 3 | G286: Chittoor | H286: =I285+H285 -> 116 | I286: 66 | J286: =IF(J285=$J$283+1,$J$283+1,J285+1) -> 819 | K286: Anumasamudrampeta | L286: =IF(L285=$L$283+1,$L$283+1,L285+1) -> 819 | M286: Anumasamudrampeta | P286: 4 | Q286: Four | R286: 0 | S286: 513 | T286: Five Hundred and Thirteen | U286: 0 | V286: 0 | X286: 0 | Y286: 0 | AA286: 0 | AB286: 0 | AD286: 500 | AE286: 5 | AF286: Five Hundred | AG286: 13 | AH286: Thirteen | AK286: 4050 | AL286: 7100 | AO286: =IF(AO285>=SUM(55660,5*1300),"",IF(AO285>=51760,AO285+1300,IF(AO285>=46960,AO285+1200,IF(AO285>=43630,AO285+1110,IF(AO285>=40510,AO285+1040,IF(AO285>=37600,AO285+970,IF(AO285>=34900,AO285+900,IF(AO285>=32350,AO285+850,IF(AO285>=29950,AO285+800,IF(AO285>=27700,AO285+750,IF(AO285>=25600,AO285+700,IF(AO285>=23650,AO285+650,IF(AO285>=21820,AO285+610,IF(AO285>=20110,AO285+570,IF(AO285>=18520,AO285+530,IF(AO285>=17050,AO285+490,IF(AO285>=15700,AO285+450,IF(AO285>=14440,AO285+420,IF(AO285>=13270,AO285+390,IF(AO285>=12190,AO285+360,IF(AO285>=11200,AO285+330,IF(AO285>=10300,AO285+300,IF(AO285>=9460,AO285+280,IF(AO285>=8680,AO285+260,IF(AO285>=7960,AO285+240,IF(AO285>=7300,AO285+220,IF(AO285>=6700,AO285+200,0))))))))))))))))))))))))))) ->  | AR286: =IF(AR285>=SUM(55660,5*1300),"",IF(AR285>=51760,AR285+1300,IF(AR285>=46960,AR285+1200,IF(AR285>=43630,AR285+1110,IF(AR285>=40510,AR285+1040,IF(AR285>=37600,AR285+970,IF(AR285>=34900,AR285+900,IF(AR285>=32350,AR285+850,IF(AR285>=29950,AR285+800,IF(AR285>=27700,AR285+750,IF(AR285>=25600,AR285+700,IF(AR285>=23650,AR285+650,IF(AR285>=21820,AR285+610,IF(AR285>=20110,AR285+570,IF(AR285>=18520,AR285+530,IF(AR285>=17050,AR285+490,IF(AR285>=15700,AR285+450,IF(AR285>=14440,AR285+420,IF(AR285>=13270,AR285+390,IF(AR285>=12190,AR285+360,IF(AR285>=11200,AR285+330,IF(AR285>=10300,AR285+300,IF(AR285>=9460,AR285+280,IF(AR285>=8680,AR285+260,IF(AR285>=7960,AR285+240,IF(AR285>=7300,AR285+220,IF(AR285>=6700,AR285+200,0))))))))))))))))))))))))))) ->  | AU286: =IF(AU285>=SUM(55660,5*1300),"",IF(AU285>=51760,AU285+1300,IF(AU285>=46960,AU285+1200,IF(AU285>=43630,AU285+1110,IF(AU285>=40510,AU285+1040,IF(AU285>=37600,AU285+970,IF(AU285>=34900,AU285+900,IF(AU285>=32350,AU285+850,IF(AU285>=29950,AU285+800,IF(AU285>=27700,AU285+750,IF(AU285>=25600,AU285+700,IF(AU285>=23650,AU285+650,IF(AU285>=21820,AU285+610,IF(AU285>=20110,AU285+570,IF(AU285>=18520,AU285+530,IF(AU285>=17050,AU285+490,IF(AU285>=15700,AU285+450,IF(AU285>=14440,AU285+420,IF(AU285>=13270,AU285+390,IF(AU285>=12190,AU285+360,IF(AU285>=11200,AU285+330,IF(AU285>=10300,AU285+300,IF(AU285>=9460,AU285+280,IF(AU285>=8680,AU285+260,IF(AU285>=7960,AU285+240,IF(AU285>=7300,AU285+220,IF(AU285>=6700,AU285+200,0))))))))))))))))))))))))))) ->  | AX286: =IF(AX285>=SUM(55660,5*1300),"",IF(AX285>=51760,AX285+1300,IF(AX285>=46960,AX285+1200,IF(AX285>=43630,AX285+1110,IF(AX285>=40510,AX285+1040,IF(AX285>=37600,AX285+970,IF(AX285>=34900,AX285+900,IF(AX285>=32350,AX285+850,IF(AX285>=29950,AX285+800,IF(AX285>=27700,AX285+750,IF(AX285>=25600,AX285+700,IF(AX285>=23650,AX285+650,IF(AX285>=21820,AX285+610,IF(AX285>=20110,AX285+570,IF(AX285>=18520,AX285+530,IF(AX285>=17050,AX285+490,IF(AX285>=15700,AX285+450,IF(AX285>=14440,AX285+420,IF(AX285>=13270,AX285+390,IF(AX285>=12190,AX285+360,IF(AX285>=11200,AX285+330,IF(AX285>=10300,AX285+300,IF(AX285>=9460,AX285+280,IF(AX285>=8680,AX285+260,IF(AX285>=7960,AX285+240,IF(AX285>=7300,AX285+220,IF(AX285>=6700,AX285+200,0))))))))))))))))))))))))))) -> 
A287: 5 | B287: 1 | C287: Adilabad | D287: 5 | E287: Bela | F287: 4 | G287: East Godavari | H287: 182 | I287: 59 | J287: 820 | K287: Atmakur | L287: 820 | M287: Atmakur | P287: 5 | Q287: Five | R287: 0 | S287: 5001 | T287: Five Thousand and One | U287: 0 | V287: 0 | X287: 0 | Y287: 0 | AA287: 5000 | AB287: 5 | AC287: Five Thousand | AD287: 0 | AE287: 0 | AG287: 1 | AH287: One | AK287: 4150 | AL287: 7300
A288: 6 | B288: 1 | C288: Adilabad | D288: 6 | E288: Bellampalle | F288: 5 | G288: Guntur | H288: 241 | I288: 57 | J288: 821 | K288: Balayapalle | L288: 821 | M288: Balayapalle | P288: 6 | Q288: Six | R288: 0 | S288: 123450000 | T288: Twelve Crores Thirty Four Lakhs and Fifty Thousand | U288: 120000000 | V288: 12 | W288: Twelve Crores | X288: 3400000 | Y288: 34 | Z288: Thirty Four Lakhs | AA288: 50000 | AB288: 50 | AC288: Fifty Thousand | AD288: 0 | AE288: 0 | AG288: 0 | AK288: 4260 | AL288: 7520
A289: 7 | B289: 1 | C289: Adilabad | D289: 7 | E289: Bhainsa | F289: 6 | G289: Hyderabad | H289: 298 | I289: 16 | J289: 822 | K289: Bogole | L289: 822 | M289: Bogole | P289: 7 | Q289: Seven | S289: 123450001 | T289: Twelve Crores Thirty Four Lakhs Fifty Thousand and One | U289: 120000000 | V289: 12 | W289: Twelve Crores | X289: 3400000 | Y289: 34 | Z289: Thirty Four Lakhs | AA289: 50000 | AB289: 50 | AC289: Fifty Thousand | AD289: 0 | AE289: 0 | AG289: 1 | AH289: One | AK289: 4370 | AL289: 7740
A290: 8 | B290: 1 | C290: Adilabad | D290: 8 | E290: Bheemini | F290: 7 | G290: Karimnagar | H290: 314 | I290: 56 | J290: 823 | K290: Butchireddipalem | L290: 823 | M290: Butchireddipalem | P290: 8 | Q290: Eight | S290: 123450002 | T290: Twelve Crores Thirty Four Lakhs Fifty Thousand and Two | U290: 120000000 | V290: 12 | W290: Twelve Crores | X290: 3400000 | Y290: 34 | Z290: Thirty Four Lakhs | AA290: 50000 | AB290: 50 | AC290: Fifty Thousand | AD290: 0 | AE290: 0 | AG290: 2 | AH290: Two | AK290: 4480 | AL290: 7960
A291: 9 | B291: 1 | C291: Adilabad | D291: 9 | E291: Boath | F291: 8 | G291: Khammam | H291: 370 | I291: 46 | J291: 824 | K291: Chejerla | L291: 824 | M291: Chejerla | P291: 9 | Q291: Nine | S291: 123450003 | T291: Twelve Crores Thirty Four Lakhs Fifty Thousand and Three | U291: 120000000 | V291: 12 | W291: Twelve Crores | X291: 3400000 | Y291: 34 | Z291: Thirty Four Lakhs | AA291: 50000 | AB291: 50 | AC291: Fifty Thousand | AD291: 0 | AE291: 0 | AG291: 3 | AH291: Three | AK291: 4595 | AL291: 8200
A292: 10 | B292: 1 | C292: Adilabad | D292: 10 | E292: Chennur | F292: 9 | G292: Krishna | H292: 416 | I292: 50 | J292: 825 | K292: Chillakur | L292: 825 | M292: Chillakur | P292: 10 | Q292: Ten | S292: 123450004 | T292: Twelve Crores Thirty Four Lakhs Fifty Thousand and Four | U292: 120000000 | V292: 12 | W292: Twelve Crores | X292: 3400000 | Y292: 34 | Z292: Thirty Four Lakhs | AA292: 50000 | AB292: 50 | AC292: Fifty Thousand | AD292: 0 | AE292: 0 | AG292: 4 | AH292: Four | AK292: 4710 | AL292: 8440
A293: 11 | B293: 1 | C293: Adilabad | D293: 11 | E293: Dahegaon | F293: 10 | G293: Kurnool | H293: 466 | I293: 54 | J293: 826 | K293: Chittamur | L293: 826 | M293: Chittamur | P293: 11 | Q293: Eleven | S293: 123450005 | T293: Twelve Crores Thirty Four Lakhs Fifty Thousand and Five | U293: 120000000 | V293: 12 | W293: Twelve Crores | X293: 3400000 | Y293: 34 | Z293: Thirty Four Lakhs | AA293: 50000 | AB293: 50 | AC293: Fifty Thousand | AD293: 0 | AE293: 0 | AG293: 5 | AH293: Five | AK293: 4825 | AL293: 8680
A294: 12 | B294: 1 | C294: Adilabad | D294: 12 | E294: Dandepalle | F294: 11 | G294: Mahabubnagar | H294: 520 | I294: 64 | J294: 827 | K294: Dagadarthi | L294: 827 | M294: Dagadarthi | P294: 12 | Q294: Twelve | S294: 123450006 | T294: Twelve Crores Thirty Four Lakhs Fifty Thousand and Six | U294: 120000000 | V294: 12 | W294: Twelve Crores | X294: 3400000 | Y294: 34 | Z294: Thirty Four Lakhs | AA294: 50000 | AB294: 50 | AC294: Fifty Thousand | AD294: 0 | AE294: 0 | AG294: 6 | AH294: Six | AK294: 4950 | AL294: 8940
A295: 13 | B295: 1 | C295: Adilabad | D295: 13 | E295: Dilawarpur | F295: 12 | G295: Medak | H295: 584 | I295: 45 | J295: 828 | K295: Dakkili | L295: 828 | M295: Dakkili | P295: 13 | Q295: Thirteen | S295: 123450007 | T295: Twelve Crores Thirty Four Lakhs Fifty Thousand and Seven | U295: 120000000 | V295: 12 | W295: Twelve Crores | X295: 3400000 | Y295: 34 | Z295: Thirty Four Lakhs | AA295: 50000 | AB295: 50 | AC295: Fifty Thousand | AD295: 0 | AE295: 0 | AG295: 7 | AH295: Seven | AK295: 5075 | AL295: 9200
A296: 14 | B296: 1 | C296: Adilabad | D296: 14 | E296: Gudihathnur | F296: 13 | G296: Nalgonda | H296: 629 | I296: 59 | J296: 829 | K296: Doravarisatram | L296: 829 | M296: Doravarisatram | P296: 14 | Q296: Fourteen | S296: 123450008 | T296: Twelve Crores Thirty Four Lakhs Fifty Thousand and Eight | U296: 120000000 | V296: 12 | W296: Twelve Crores | X296: 3400000 | Y296: 34 | Z296: Thirty Four Lakhs | AA296: 50000 | AB296: 50 | AC296: Fifty Thousand | AD296: 0 | AE296: 0 | AG296: 8 | AH296: Eight | AK296: 5200 | AL296: 9460
A297: 15 | B297: 1 | C297: Adilabad | D297: 15 | E297: Ichoda | F297: 14 | G297: Nizamabad | H297: 688 | I297: 36 | J297: 830 | K297: Duttalur | L297: 830 | M297: Duttalur | P297: 15 | Q297: Fifteen | S297: 123450009 | T297: Twelve Crores Thirty Four Lakhs Fifty Thousand and Nine | U297: 120000000 | V297: 12 | W297: Twelve Crores | X297: 3400000 | Y297: 34 | Z297: Thirty Four Lakhs | AA297: 50000 | AB297: 50 | AC297: Fifty Thousand | AD297: 0 | AE297: 0 | AG297: 9 | AH297: Nine | AK297: 5335 | AL297: 9740
A298: 16 | B298: 1 | C298: Adilabad | D298: 16 | E298: Inderavelly | F298: 15 | G298: Prakasam | H298: 724 | I298: 56 | J298: 831 | K298: Gudur | L298: 831 | M298: Gudur | P298: 16 | Q298: Sixteen | S298: 123450010 | T298: Twelve Crores Thirty Four Lakhs Fifty Thousand and Ten | U298: 120000000 | V298: 12 | W298: Twelve Crores | X298: 3400000 | Y298: 34 | Z298: Thirty Four Lakhs | AA298: 50000 | AB298: 50 | AC298: Fifty Thousand | AD298: 0 | AE298: 0 | AG298: 10 | AH298: Ten | AK298: 5470 | AL298: 10020
A299: 17 | B299: 1 | C299: Adilabad | D299: 17 | E299: Jainad | F299: 16 | G299: Ranga Reddy | H299: 780 | I299: 37 | J299: 832 | K299: Indukurpet | L299: 832 | M299: Indukurpet | P299: 17 | Q299: Seventeen | S299: 123450011 | T299: Twelve Crores Thirty Four Lakhs Fifty Thousand and Eleven | U299: 120000000 | V299: 12 | W299: Twelve Crores | X299: 3400000 | Y299: 34 | Z299: Thirty Four Lakhs | AA299: 50000 | AB299: 50 | AC299: Fifty Thousand | AD299: 0 | AE299: 0 | AG299: 11 | AH299: Eleven | AK299: 5605 | AL299: 10300
A300: 18 | B300: 1 | C300: Adilabad | D300: 18 | E300: Jainoor | F300: 17 | G300: Sri Pottisreeramulu Nellore | H300: 817 | I300: 46 | J300: 833 | K300: Jaladanki | L300: 833 | M300: Jaladanki | P300: 18 | Q300: Eighteen | S300: 123450012 | T300: Twelve Crores Thirty Four Lakhs Fifty Thousand and Twelve | U300: 120000000 | V300: 12 | W300: Twelve Crores | X300: 3400000 | Y300: 34 | Z300: Thirty Four Lakhs | AA300: 50000 | AB300: 50 | AC300: Fifty Thousand | AD300: 0 | AE300: 0 | AG300: 12 | AH300: Twelve | AK300: 5750 | AL300: 10600
A301: 19 | B301: 1 | C301: Adilabad | D301: 19 | E301: Jaipur | F301: 18 | G301: Srikakulam | H301: 863 | I301: 37 | J301: 834 | K301: Kaligiri | L301: 834 | M301: Kaligiri | P301: 19 | Q301: Ninteen | S301: 123450013 | T301: Twelve Crores Thirty Four Lakhs Fifty Thousand and Thirteen | U301: 120000000 | V301: 12 | W301: Twelve Crores | X301: 3400000 | Y301: 34 | Z301: Thirty Four Lakhs | AA301: 50000 | AB301: 50 | AC301: Fifty Thousand | AD301: 0 | AE301: 0 | AG301: 13 | AH301: Thirteen | AK301: 5895 | AL301: 10900
A302: 20 | B302: 1 | C302: Adilabad | D302: 20 | E302: Jannaram | F302: 19 | G302: Visakhapatnam | H302: 900 | I302: 43 | J302: 835 | K302: Kaluvoya | L302: 835 | M302: Kaluvoya | P302: 20 | Q302: Twenty | S302: 123450014 | T302: Twelve Crores Thirty Four Lakhs Fifty Thousand and Fourteen | U302: 120000000 | V302: 12 | W302: Twelve Crores | X302: 3400000 | Y302: 34 | Z302: Thirty Four Lakhs | AA302: 50000 | AB302: 50 | AC302: Fifty Thousand | AD302: 0 | AE302: 0 | AG302: 14 | AH302: Fourteen | AK302: 6040 | AL302: 11200
A303: 21 | B303: 1 | C303: Adilabad | D303: 21 | E303: Kaddampeddur | F303: 20 | G303: Vizianagaram | H303: 943 | I303: 34 | J303: 836 | K303: Kavali | L303: 836 | M303: Kavali | P303: 21 | Q303: Twenty One | S303: 123450015 | T303: Twelve Crores Thirty Four Lakhs Fifty Thousand and Fifteen | U303: 120000000 | V303: 12 | W303: Twelve Crores | X303: 3400000 | Y303: 34 | Z303: Thirty Four Lakhs | AA303: 50000 | AB303: 50 | AC303: Fifty Thousand | AD303: 0 | AE303: 0 | AG303: 15 | AH303: Fifteen | AK303: 6195 | AL303: 11530
A304: 22 | B304: 1 | C304: Adilabad | D304: 22 | E304: Kagaz Nagar | F304: 21 | G304: Warangal | H304: 977 | I304: 50 | J304: 837 | K304: Kodavalur | L304: 837 | M304: Kodavalur | P304: 22 | Q304: Twenty Two | S304: 123450016 | T304: Twelve Crores Thirty Four Lakhs Fifty Thousand and Sixteen | U304: 120000000 | V304: 12 | W304: Twelve Crores | X304: 3400000 | Y304: 34 | Z304: Thirty Four Lakhs | AA304: 50000 | AB304: 50 | AC304: Fifty Thousand | AD304: 0 | AE304: 0 | AG304: 16 | AH304: Sixteen | AK304: 6350 | AL304: 11860
A305: 23 | B305: 1 | C305: Adilabad | D305: 23 | E305: Kasipet | F305: 22 | G305: West Godavari | H305: 1027 | I305: 46 | J305: 838 | K305: Kondapuram | L305: 838 | M305: Kondapuram | P305: 23 | Q305: Twenty Three | S305: 123450017 | T305: Twelve Crores Thirty Four Lakhs Fifty Thousand and Seventeen | U305: 120000000 | V305: 12 | W305: Twelve Crores | X305: 3400000 | Y305: 34 | Z305: Thirty Four Lakhs | AA305: 50000 | AB305: 50 | AC305: Fifty Thousand | AD305: 0 | AE305: 0 | AG305: 17 | AH305: Seventeen | AK305: 6505 | AL305: 12190
A306: 24 | B306: 1 | C306: Adilabad | D306: 24 | E306: Kerameri | F306: 23 | G306: Y.S.R (Kaddapah) | H306: 1073 | I306: 50 | J306: 839 | K306: Kota | L306: 839 | M306: Kota | P306: 24 | Q306: Twenty Four | S306: 123450018 | T306: Twelve Crores Thirty Four Lakhs Fifty Thousand and Eighteen | U306: 120000000 | V306: 12 | W306: Twelve Crores | X306: 3400000 | Y306: 34 | Z306: Thirty Four Lakhs | AA306: 50000 | AB306: 50 | AC306: Fifty Thousand | AD306: 0 | AE306: 0 | AG306: 18 | AH306: Eighteen | AK306: 6675 | AL306: 12550
A307: 25 | B307: 1 | C307: Adilabad | D307: 25 | E307: Khanpur | J307: 840 | K307: Kovur | L307: 840 | M307: Kovur | P307: 25 | Q307: Twenty Five | S307: 123450019 | T307: Twelve Crores Thirty Four Lakhs Fifty Thousand and Ninteen | U307: 120000000 | V307: 12 | W307: Twelve Crores | X307: 3400000 | Y307: 34 | Z307: Thirty Four Lakhs | AA307: 50000 | AB307: 50 | AC307: Fifty Thousand | AD307: 0 | AE307: 0 | AG307: 19 | AH307: Ninteen | AK307: 6845 | AL307: 12910
A308: 26 | B308: 1 | C308: Adilabad | D308: 26 | E308: Kotapalle | J308: 841 | K308: Manubolu | L308: 841 | M308: Manubolu | P308: 26 | Q308: Twenty Six | S308: 123450020 | T308: Twelve Crores Thirty Four Lakhs Fifty Thousand and Twenty | U308: 120000000 | V308: 12 | W308: Twelve Crores | X308: 3400000 | Y308: 34 | Z308: Thirty Four Lakhs | AA308: 50000 | AB308: 50 | AC308: Fifty Thousand | AD308: 0 | AE308: 0 | AG308: 20 | AH308: Twenty | AK308: 7015 | AL308: 13270
A309: 27 | B309: 1 | C309: Adilabad | D309: 27 | E309: Kouthala | F309: 1 | G309: Adilabad | H309: =I309 -> 52 | I309: =LOOKUP(G309,$C$283:$D$1404) -> 52 | J309: 842 | K309: Marripadu | L309: 842 | M309: Marripadu | P309: 27 | Q309: Twenty Seven | S309: 123450021 | T309: Twelve Crores Thirty Four Lakhs Fifty Thousand and Twenty One | U309: 120000000 | V309: 12 | W309: Twelve Crores | X309: 3400000 | Y309: 34 | Z309: Thirty Four Lakhs | AA309: 50000 | AB309: 50 | AC309: Fifty Thousand | AD309: 0 | AE309: 0 | AG309: 21 | AH309: Twenty One | AK309: 7200 | AL309: 13660
A310: 28 | B310: 1 | C310: Adilabad | D310: 28 | E310: Kubeer | F310: 2 | G310: Anantapur | H310: =H309+I310 -> 115 | I310: 63 | J310: 843 | K310: Muthukur | L310: 843 | M310: Muthukur | P310: 28 | Q310: Twenty Eight | S310: 123450022 | T310: Twelve Crores Thirty Four Lakhs Fifty Thousand and Twenty Two | U310: 120000000 | V310: 12 | W310: Twelve Crores | X310: 3400000 | Y310: 34 | Z310: Thirty Four Lakhs | AA310: 50000 | AB310: 50 | AC310: Fifty Thousand | AD310: 0 | AE310: 0 | AG310: 22 | AH310: Twenty Two | AK310: 7385 | AL310: 14050
A311: 29 | B311: 1 | C311: Adilabad | D311: 29 | E311: Kuntala | F311: 3 | G311: Chittoor | H311: =H310+I311 -> 181 | I311: 66 | J311: 844 | K311: Naidupeta | L311: 844 | M311: Naidupeta | P311: 29 | Q311: Twenty Nine | S311: 123450023 | T311: Twelve Crores Thirty Four Lakhs Fifty Thousand and Twenty Three | U311: 120000000 | V311: 12 | W311: Twelve Crores | X311: 3400000 | Y311: 34 | Z311: Thirty Four Lakhs | AA311: 50000 | AB311: 50 | AC311: Fifty Thousand | AD311: 0 | AE311: 0 | AG311: 23 | AH311: Twenty Three | AK311: 7570 | AL311: 14440
A312: 30 | B312: 1 | C312: Adilabad | D312: 30 | E312: Laxmanchanda | F312: 4 | G312: East Godavari | H312: 240 | I312: 59 | J312: 845 | K312: Nellore | L312: 845 | M312: Nellore | P312: 30 | Q312: Thirty | S312: 123450024 | T312: Twelve Crores Thirty Four Lakhs Fifty Thousand and Twenty Four | U312: 120000000 | V312: 12 | W312: Twelve Crores | X312: 3400000 | Y312: 34 | Z312: Thirty Four Lakhs | AA312: 50000 | AB312: 50 | AC312: Fifty Thousand | AD312: 0 | AE312: 0 | AG312: 24 | AH312: Twenty Four | AK312: 7770 | AL312: 14860
A313: 31 | B313: 1 | C313: Adilabad | D313: 31 | E313: Lohesra | F313: 5 | G313: Guntur | H313: 297 | I313: 57 | J313: 846 | K313: Ojili | L313: 846 | M313: Ojili | P313: 31 | Q313: Thirty One | S313: 123450025 | T313: Twelve Crores Thirty Four Lakhs Fifty Thousand and Twenty Five | U313: 120000000 | V313: 12 | W313: Twelve Crores | X313: 3400000 | Y313: 34 | Z313: Thirty Four Lakhs | AA313: 50000 | AB313: 50 | AC313: Fifty Thousand | AD313: 0 | AE313: 0 | AG313: 25 | AH313: Twenty Five | AK313: 7970 | AL313: 15280
A314: 32 | B314: 1 | C314: Adilabad | D314: 32 | E314: Luxettipet | F314: 6 | G314: Hyderabad | H314: 313 | I314: 16 | J314: 847 | K314: Pellakur | L314: 847 | M314: Pellakur | P314: 32 | Q314: Thirty Two | S314: 123450026 | T314: Twelve Crores Thirty Four Lakhs Fifty Thousand and Twenty Six | U314: 120000000 | V314: 12 | W314: Twelve Crores | X314: 3400000 | Y314: 34 | Z314: Thirty Four Lakhs | AA314: 50000 | AB314: 50 | AC314: Fifty Thousand | AD314: 0 | AE314: 0 | AG314: 26 | AH314: Twenty Six | AK314: 8170 | AL314: 15700
A315: 33 | B315: 1 | C315: Adilabad | D315: 33 | E315: Mamda | F315: 7 | G315: Karimnagar | H315: 369 | I315: 56 | J315: 848 | K315: Podlakur | L315: 848 | M315: Podlakur | P315: 33 | Q315: Thirty Three | S315: 123450027 | T315: =IF(S315=0,"NIL",IF(AND(V315=0,Y315=0,AB315=0,AE315=0),AH315,IF(AND(V315=0,Y315=0,AB315=0),CONCATENATE(AF315,IF(AG315>0,"and "," "),AH315),IF(AND(V315=0,Y315=0),CONCATENATE(AC315,IF(AND(AG315=0,AE315>0),"and ", ""),AF315,IF(AG315>0,"and "," "),AH315),IF(V315=0,CONCATENATE(Z315,IF(AND(AG315=0,AE315=0,AB315>0),"and ", ""),AC315,IF(AND(AG315=0,AE315>0),"and ", ""),AF315,IF(AG315>0,"and "," "),AH315),CONCATENATE(W315,IF(AND(AG315=0,AE315=0,AB315=0,Y315>0),"and ", ""),Z315,IF(AND(AG315=0,AE315=0,AB315>0),"and ", ""),AC315,IF(AND(AG315=0,AE315>0),"and ", ""),AF315,IF(AG315>0,"and "," "),AH315)))))) -> Twelve Crores Thirty Four Lakhs Fifty Thousand and Twenty Seven | U315: =INT(S315/10000000)*10000000 -> 120000000 | V315: =INT(S315/10000000) -> 12 | W315: =IF(V315=1,CONCATENATE(VLOOKUP(V315,$P$283:$Q$381,2)," Crore "),IF(V315>1,CONCATENATE(VLOOKUP(V315,$P$283:$Q$381,2)," Crores "),"")) -> Twelve Crores | X315: =INT(S315/100000)*100000-U315 -> 3400000 | Y315: =INT(X315/100000) -> 34 | Z315: =IF(Y315=1,CONCATENATE(VLOOKUP(Y315,$P$283:$Q$381,2)," Lakh "),IF(Y315>1,CONCATENATE(VLOOKUP(Y315,$P$283:$Q$381,2)," Lakhs "),"")) -> Thirty Four Lakhs | AA315: =INT(S315/1000)*1000-U315-X315 -> 50000 | AB315: =INT(AA315/1000) -> 50 | AC315: =IF(AB315>0,CONCATENATE(VLOOKUP(AB315,$P$283:$Q$381,2)," Thousand "),"") -> Fifty Thousand | AD315: =INT(S315/100)*100-U315-X315-AA315 -> 0 | AE315: =INT(AD315/100) -> 0 | AF315: =IF(AE315>0,CONCATENATE(VLOOKUP(AE315,$P$283:$Q$381,2)," Hundred "),"") ->  | AG315: =S315-U315-X315-AA315-AD315 -> 27 | AH315: =IF(AG315>0, VLOOKUP(AG315,$P$283:$Q$381,2),"") -> Twenty Seven | AK315: 8385 | AL315: 16150
A316: 34 | B316: 1 | C316: Adilabad | D316: 34 | E316: Mancherial | F316: 8 | G316: Khammam | H316: 415 | I316: 46 | J316: 849 | K316: =IF(J316>$J$283,"",VLOOKUP(J316,$A$283:$E$1404,5)) -> Rapur | L316: 849 | M316: =IF(L316>$L$283,"",VLOOKUP(L316,$A$283:$E$1404,5)) -> Rapur | P316: 34 | Q316: Thirty Four | S316: 123450028 | T316: Twelve Crores Thirty Four Lakhs Fifty Thousand and Twenty Eight | U316: 120000000 | V316: 12 | W316: Twelve Crores | X316: 3400000 | Y316: 34 | Z316: Thirty Four Lakhs | AA316: 50000 | AB316: 50 | AC316: Fifty Thousand | AD316: 0 | AE316: 0 | AG316: 28 | AH316: Twenty Eight | AK316: 8600 | AL316: 16600
A317: 35 | B317: 1 | C317: Adilabad | D317: 35 | E317: Mandamarri | F317: 9 | G317: Krishna | H317: 465 | I317: 50 | J317: 850 | K317: Sangam | L317: 850 | M317: Sangam | P317: 35 | Q317: Thirty Five | S317: 123450029 | T317: Twelve Crores Thirty Four Lakhs Fifty Thousand and Twenty Nine | U317: 120000000 | V317: 12 | W317: Twelve Crores | X317: 3400000 | Y317: 34 | Z317: Thirty Four Lakhs | AA317: 50000 | AB317: 50 | AC317: Fifty Thousand | AD317: 0 | AE317: 0 | AG317: 29 | AH317: Twenty Nine | AK317: 8815 | AL317: 17050
A318: 36 | B318: 1 | C318: Adilabad | D318: 36 | E318: Mudhole | F318: 10 | G318: Kurnool | H318: 519 | I318: 54 | J318: 851 | K318: Seetharamapuram | L318: 851 | M318: Seetharamapuram | P318: 36 | Q318: Thirty Six | S318: 123450030 | T318: Twelve Crores Thirty Four Lakhs Fifty Thousand and Thirty | U318: 120000000 | V318: 12 | W318: Twelve Crores | X318: 3400000 | Y318: 34 | Z318: Thirty Four Lakhs | AA318: 50000 | AB318: 50 | AC318: Fifty Thousand | AD318: 0 | AE318: 0 | AG318: 30 | AH318: Thirty | AK318: 9050 | AL318: 17540
A319: 37 | B319: 1 | C319: Adilabad | D319: 37 | E319: Narnoor | F319: 11 | G319: Mahabubnagar | H319: 583 | I319: 64 | J319: 852 | K319: Sullurpeta | L319: 852 | M319: Sullurpeta | P319: 37 | Q319: Thirty Seven | S319: 123450031 | T319: Twelve Crores Thirty Four Lakhs Fifty Thousand and Thirty One | U319: 120000000 | V319: 12 | W319: Twelve Crores | X319: 3400000 | Y319: 34 | Z319: Thirty Four Lakhs | AA319: 50000 | AB319: 50 | AC319: Fifty Thousand | AD319: 0 | AE319: 0 | AG319: 31 | AH319: Thirty One | AK319: 9285 | AL319: 18030
A320: 38 | B320: 1 | C320: Adilabad | D320: 38 | E320: Nennal | F320: 12 | G320: Medak | H320: 628 | I320: 45 | J320: 853 | K320: Sydapuram | L320: 853 | M320: Sydapuram | P320: 38 | Q320: Thirty Eight | S320: 123450032 | T320: Twelve Crores Thirty Four Lakhs Fifty Thousand and Thirty Two | U320: 120000000 | V320: 12 | W320: Twelve Crores | X320: 3400000 | Y320: 34 | Z320: Thirty Four Lakhs | AA320: 50000 | AB320: 50 | AC320: Fifty Thousand | AD320: 0 | AE320: 0 | AG320: 32 | AH320: Thirty Two | AK320: 9520 | AL320: 18520
A321: 39 | B321: 1 | C321: Adilabad | D321: 39 | E321: Neradigonda | F321: 13 | G321: Nalgonda | H321: 687 | I321: 59 | J321: 854 | K321: Tada | L321: 854 | M321: Tada | P321: 39 | Q321: Thirty Nine | S321: 123450033 | T321: Twelve Crores Thirty Four Lakhs Fifty Thousand and Thirty Three | U321: 120000000 | V321: 12 | W321: Twelve Crores | X321: 3400000 | Y321: 34 | Z321: Thirty Four Lakhs | AA321: 50000 | AB321: 50 | AC321: Fifty Thousand | AD321: 0 | AE321: 0 | AG321: 33 | AH321: Thirty Three | AK321: 9775 | AL321: 19050
A322: 40 | B322: 1 | C322: Adilabad | D322: 40 | E322: Nirmal | F322: 14 | G322: Nizamabad | H322: 723 | I322: 36 | J322: 855 | K322: Thotapalligudur | L322: 855 | M322: Thotapalligudur | P322: 40 | Q322: Fourty | S322: 123450034 | T322: Twelve Crores Thirty Four Lakhs Fifty Thousand and Thirty Four | U322: 120000000 | V322: 12 | W322: Twelve Crores | X322: 3400000 | Y322: 34 | Z322: Thirty Four Lakhs | AA322: 50000 | AB322: 50 | AC322: Fifty Thousand | AD322: 0 | AE322: 0 | AG322: 34 | AH322: Thirty Four | AK322: 10030 | AL322: 19580
A323: 41 | B323: 1 | C323: Adilabad | D323: 41 | E323: Rebbana | F323: 15 | G323: Prakasam | H323: 779 | I323: 56 | J323: 856 | K323: Udayagiri | L323: 856 | M323: Udayagiri | P323: 41 | Q323: Fourty One | S323: 123450035 | T323: Twelve Crores Thirty Four Lakhs Fifty Thousand and Thirty Five | U323: 120000000 | V323: 12 | W323: Twelve Crores | X323: 3400000 | Y323: 34 | Z323: Thirty Four Lakhs | AA323: 50000 | AB323: 50 | AC323: Fifty Thousand | AD323: 0 | AE323: 0 | AG323: 35 | AH323: Thirty Five | AK323: 10285 | AL323: 20110
A324: 42 | B324: 1 | C324: Adilabad | D324: 42 | E324: Sarangapur | F324: 16 | G324: Ranga Reddy | H324: 816 | I324: 37 | J324: 857 | K324: Vakadu | L324: 857 | M324: Vakadu | P324: 42 | Q324: Fourty Two | S324: 123450036 | T324: Twelve Crores Thirty Four Lakhs Fifty Thousand and Thirty Six | U324: 120000000 | V324: 12 | W324: Twelve Crores | X324: 3400000 | Y324: 34 | Z324: Thirty Four Lakhs | AA324: 50000 | AB324: 50 | AC324: Fifty Thousand | AD324: 0 | AE324: 0 | AG324: 36 | AH324: Thirty Six | AK324: 10565 | AL324: 20680
A325: 43 | B325: 1 | C325: Adilabad | D325: 43 | E325: Sirpur (T) | F325: 17 | G325: Sri Pottisreeramulu Nellore | H325: 862 | I325: 46 | J325: 858 | K325: Varikuntapadu | L325: 858 | M325: Varikuntapadu | P325: 43 | Q325: Fourty Three | S325: 123450037 | T325: Twelve Crores Thirty Four Lakhs Fifty Thousand and Thirty Seven | U325: 120000000 | V325: 12 | W325: Twelve Crores | X325: 3400000 | Y325: 34 | Z325: Thirty Four Lakhs | AA325: 50000 | AB325: 50 | AC325: Fifty Thousand | AD325: 0 | AE325: 0 | AG325: 37 | AH325: Thirty Seven | AK325: 10845 | AL325: 21250
A326: 44 | B326: 1 | C326: Adilabad | D326: 44 | E326: Sirpur (U) | F326: 18 | G326: Srikakulam | H326: 899 | I326: 37 | J326: 859 | K326: Venkatachalam | L326: 859 | M326: Venkatachalam | P326: 44 | Q326: Fourty Four | S326: 123450038 | T326: Twelve Crores Thirty Four Lakhs Fifty Thousand and Thirty Eight | U326: 120000000 | V326: 12 | W326: Twelve Crores | X326: 3400000 | Y326: 34 | Z326: Thirty Four Lakhs | AA326: 50000 | AB326: 50 | AC326: Fifty Thousand | AD326: 0 | AE326: 0 | AG326: 38 | AH326: Thirty Eight | AK326: 11125 | AL326: 21820
A327: 45 | B327: 1 | C327: Adilabad | D327: 45 | E327: Talamadugu | F327: 19 | G327: Visakhapatnam | H327: 942 | I327: 43 | J327: 860 | K327: Venkatagiri | L327: 860 | M327: Venkatagiri | P327: 45 | Q327: Fourty Five | S327: 123450039 | T327: Twelve Crores Thirty Four Lakhs Fifty Thousand and Thirty Nine | U327: 120000000 | V327: 12 | W327: Twelve Crores | X327: 3400000 | Y327: 34 | Z327: Thirty Four Lakhs | AA327: 50000 | AB327: 50 | AC327: Fifty Thousand | AD327: 0 | AE327: 0 | AG327: 39 | AH327: Thirty Nine | AK327: 11440 | AL327: 22430
A328: 46 | B328: 1 | C328: Adilabad | D328: 46 | E328: Tamsi | F328: 20 | G328: Vizianagaram | H328: 976 | I328: 34 | J328: 861 | K328: Vidavalur | L328: 861 | M328: Vidavalur | P328: 46 | Q328: Fourty Six | S328: 123450040 | T328: Twelve Crores Thirty Four Lakhs Fifty Thousand and Fourty | U328: 120000000 | V328: 12 | W328: Twelve Crores | X328: 3400000 | Y328: 34 | Z328: Thirty Four Lakhs | AA328: 50000 | AB328: 50 | AC328: Fifty Thousand | AD328: 0 | AE328: 0 | AG328: 40 | AH328: Fourty | AK328: 11755 | AL328: 23040
A329: 47 | B329: 1 | C329: Adilabad | D329: 47 | E329: Tandur | F329: 21 | G329: Warangal | H329: 1026 | I329: 50 | J329: 862 | K329: Vinjamur | L329: 862 | M329: Vinjamur | P329: 47 | Q329: Fourty Seven | S329: 123450041 | T329: Twelve Crores Thirty Four Lakhs Fifty Thousand and Fourty One | U329: 120000000 | V329: 12 | W329: Twelve Crores | X329: 3400000 | Y329: 34 | Z329: Thirty Four Lakhs | AA329: 50000 | AB329: 50 | AC329: Fifty Thousand | AD329: 0 | AE329: 0 | AG329: 41 | AH329: Fourty One | AK329: 12070 | AL329: 23650
A330: 48 | B330: 1 | C330: Adilabad | D330: 48 | E330: Tanur | F330: 22 | G330: West Godavari | H330: 1072 | I330: 46 | J330: 863 | L330: 863 | P330: 48 | Q330: Fourty Eight | S330: 123450042 | T330: Twelve Crores Thirty Four Lakhs Fifty Thousand and Fourty Two | U330: 120000000 | V330: 12 | W330: Twelve Crores | X330: 3400000 | Y330: 34 | Z330: Thirty Four Lakhs | AA330: 50000 | AB330: 50 | AC330: Fifty Thousand | AD330: 0 | AE330: 0 | AG330: 42 | AH330: Fourty Two | AK330: 12385 | AL330: 24300
A331: 49 | B331: 1 | C331: Adilabad | D331: 49 | E331: Tiryani | F331: 23 | G331: Y.S.R (Kaddapah) | H331: 1122 | I331: 50 | J331: 863 | L331: 863 | P331: 49 | Q331: Fourty Nine | S331: 123450043 | T331: Twelve Crores Thirty Four Lakhs Fifty Thousand and Fourty Three | U331: 120000000 | V331: 12 | W331: Twelve Crores | X331: 3400000 | Y331: 34 | Z331: Thirty Four Lakhs | AA331: 50000 | AB331: 50 | AC331: Fifty Thousand | AD331: 0 | AE331: 0 | AG331: 43 | AH331: Fourty Three | AK331: 12700 | AL331: 24950
A332: 50 | B332: 1 | C332: Adilabad | D332: 50 | E332: Utnur | J332: 863 | L332: 863 | P332: 50 | Q332: Fifty | S332: 123450044 | T332: Twelve Crores Thirty Four Lakhs Fifty Thousand and Fourty Four | U332: 120000000 | V332: 12 | W332: Twelve Crores | X332: 3400000 | Y332: 34 | Z332: Thirty Four Lakhs | AA332: 50000 | AB332: 50 | AC332: Fifty Thousand | AD332: 0 | AE332: 0 | AG332: 44 | AH332: Fourty Four | AK332: 13030 | AL332: 25600
A333: 51 | B333: 1 | C333: Adilabad | D333: 51 | E333: Vemanpalle | J333: 863 | L333: 863 | P333: 51 | Q333: Fifty One | S333: 123450045 | T333: Twelve Crores Thirty Four Lakhs Fifty Thousand and Fourty Five | U333: 120000000 | V333: 12 | W333: Twelve Crores | X333: 3400000 | Y333: 34 | Z333: Thirty Four Lakhs | AA333: 50000 | AB333: 50 | AC333: Fifty Thousand | AD333: 0 | AE333: 0 | AG333: 45 | AH333: Fourty Five | AK333: 13390 | AL333: 26300
A334: 52 | B334: 1 | C334: Adilabad | D334: 52 | E334: Wankdi | F334: =C40 -> Assistant Engineer | J334: 863 | L334: 863 | P334: 52 | Q334: Fifty Two | S334: 123450046 | T334: Twelve Crores Thirty Four Lakhs Fifty Thousand and Fourty Six | U334: 120000000 | V334: 12 | W334: Twelve Crores | X334: 3400000 | Y334: 34 | Z334: Thirty Four Lakhs | AA334: 50000 | AB334: 50 | AC334: Fifty Thousand | AD334: 0 | AE334: 0 | AG334: 46 | AH334: Fourty Six | AK334: 13750 | AL334: 27000
A335: 53 | B335: 2 | C335: Anantapur | D335: 1 | E335: Agali | F335: District Educational Officer | J335: 863 | L335: 863 | P335: 53 | Q335: Fifty Three | S335: 123450047 | T335: Twelve Crores Thirty Four Lakhs Fifty Thousand and Fourty Seven | U335: 120000000 | V335: 12 | W335: Twelve Crores | X335: 3400000 | Y335: 34 | Z335: Thirty Four Lakhs | AA335: 50000 | AB335: 50 | AC335: Fifty Thousand | AD335: 0 | AE335: 0 | AG335: 47 | AH335: Fourty Seven | AK335: 14175 | AL335: 27700
A336: 54 | B336: 2 | C336: Anantapur | D336: 2 | E336: Amadagur | F336: Deputy Educational Officer | J336: 863 | L336: 863 | P336: 54 | Q336: Fifty Four | S336: 123450048 | T336: Twelve Crores Thirty Four Lakhs Fifty Thousand and Fourty Eight | U336: 120000000 | V336: 12 | W336: Twelve Crores | X336: 3400000 | Y336: 34 | Z336: Thirty Four Lakhs | AA336: 50000 | AB336: 50 | AC336: Fifty Thousand | AD336: 0 | AE336: 0 | AG336: 48 | AH336: Fourty Eight | AK336: 14600 | AL336: 28450
... 1068 more rows

Sheet Advance Tax
A1: MONTH | B1: ADVANCE TAX AMOUNT | C1: Basic Pay As per Pay Bill | D1: Book Identification Number (BIN) | H1: Receipt Numbers of original statements of TDS under sub-section (3) of section 200
D2: Tax Deposited in respefct on of the employee (Rs.) | E2: Receipt Numbers of Form No 24G | F2: DDO Sequence Number in the Book Adjustment Mini Statement | G2: Date on which tax deposited (dd/mm/yy)
A3: =Main!BZ2 -> 2012-03-01 | B3: =D3 -> 0 | C3: =I!Q149 -> 31320 | E3: 2021247 | F3: 00018 | G3: =EOMONTH(A3,1) -> 2012-04-30 | H3: DBAXCOEF
A4: =Main!BZ3 -> 2012-04-01 | B4: =D4 -> 0 | C4: =I!Q150 -> 31320 | E4: 3021248 | F4: 00049 | G4: =EOMONTH(A4,1) -> 2012-05-31
A5: =Main!BZ4 -> 2012-05-01 | B5: 0 | C5: =I!Q151 -> 31320 | E5: 4021249 | F5: 00009 | G5: 2012-06-30
A6: =Main!BZ5 -> 2012-06-01 | B6: 0 | C6: =I!Q152 -> 31320 | E6: 0021254 | F6: 00028 | G6: 2012-07-31
A7: =Main!BZ6 -> 2012-07-01 | B7: 0 | C7: =I!Q153 -> 32260 | E7: 3021250 | F7: 00003 | G7: 2012-08-31
A8: =Main!BZ7 -> 2012-08-01 | B8: 0 | C8: =I!Q154 -> 32260 | E8: 5021252 | F8: 00026 | G8: 2012-09-30
A9: =Main!BZ8 -> 2012-09-01 | B9: 0 | C9: =I!Q155 -> 32260 | E9: 6021253 | F9: 00052 | G9: 2012-10-31
A10: =Main!BZ9 -> 2012-10-01 | B10: 0 | C10: =I!Q156 -> 32260 | G10: 2012-11-30
A11: =Main!BZ10 -> 2012-11-01 | B11: 0 | C11: =I!Q157 -> 32260 | G11: 2012-12-31
A12: =Main!BZ11 -> 2012-12-01 | B12: 0 | C12: =I!Q158 -> 32260 | G12: 2013-01-31
A13: =Main!BZ12 -> 2013-01-01 | B13: 0 | C13: =I!Q159 -> 32260 | G13: 2013-02-28
A14: =Main!BZ13 -> 2013-02-01 | B14: 47042 | C14: =I!Q160 -> 32260 | D14: =IF(OR(SB!K83<0,SB!K83="NIL"),0,SB!K83) -> 47042.00 | G14: 2013-03-31
A16: BIN consists of the following:
A17: Receipt Number: Seven digit unique number generated for each Form 24G statement successfully accepted at the TIN central system.
A18: DDO Serial Number: Five digit unique number generated for each DDO record with valid TAN present in the Form 24G statement successfully accepted at the TIN central system.
A19: Date: The last date of the month and year for which TDS/TCS is reported in Form 24G.

Sheet W (hidden)
A1: Month-Year | B1: Day | C1: HRA | D1: CCA | E1: HMA | F1: AHRA | G1: SCA | H1: =Main!AX4 -> Not-Applicable | I1: Applicable | J1: Pay Bill | K1: 1 | L1: =DATE(YEAR(Main!$BZ$2),MONTH(Main!$BZ$2),1) -> 2012-03-01 | M1: =EOMONTH(Main!$BZ$13,0) -> 2013-02-28 | O1: =K1+1 -> 2 | P1: =O1+1 -> 3 | Q1: 4 | R1: 5 | S1: 6 | T1: 7 | U1: 8 | V1: 9 | W1: 10 | X1: 11 | Y1: 12 | Z1: 13 | AA1: 14 | AF1: AAS Eligible | AG1: 1 | AH1: =IF(I!B3=0,I!C9,I!B3) -> 2013-04-01 | AI1: =I!C11-1 -> 2013-04-01 | AK1: =AG1+1 -> 2 | AL1: =AK1+1 -> 3 | AM1: 4 | AN1: 5 | AO1: 6 | AP1: 7 | AQ1: 8 | AR1: 9 | AS1: 10 | AT1: 11 | AU1: 12 | AV1: 13 | AW1: 14 | AX1: =DATE(2011,5,31) -> 2011-05-31 | BA1: AAS Drawn | BB1: 1 | BC1: =AH1 -> 2013-04-01 | BD1: =AI1 -> 2013-04-01 | BF1: =BB1+1 -> 2 | BG1: =BF1+1 -> 3 | BH1: 4 | BI1: 5 | BJ1: 6 | BK1: 7 | BL1: 8 | BM1: 9 | BN1: 10 | BO1: 11 | BP1: 12 | BQ1: 13 | BR1: 14 | BY1: =IF(Main!AN10=4,"DSC Pay Fixation Arrears","Promotion Fixation Arrears") -> Promotion Fixation Arrears | BZ1: 1 | CA1: =IF(Main!AN10=4,I!B9,IF(I!B5=0,I!C9,IF(I!B4<I!B5,I!B5,I!C9))) -> 2013-04-01 | CB1: =IF(Main!AN10=4,I!C12-1,I!E11-1) -> 2013-04-01 | CD1: =BZ1+1 -> 2 | CE1: =CD1+1 -> 3 | CF1: 4 | CG1: 5 | CH1: 6 | CI1: 7 | CJ1: 8 | CK1: 9 | CL1: 10 | CM1: 11 | CN1: 12 | CO1: 13 | CP1: 14 | CQ1: =DATE(2011,5,31) -> 2011-05-31 | CT1: =BY1 -> Promotion Fixation Arrears | CU1: 1 | CV1: =CA1 -> 2013-04-01 | CW1: =IF(Main!AN10=4,I!C12-1,I!E11-1) -> 2013-04-01 | CY1: =CU1+1 -> 2 | CZ1: =CY1+1 -> 3 | DA1: 4 | DB1: 5 | DC1: 6 | DD1: 7 | DE1: 8 | DF1: 9 | DG1: 10 | DH1: 11 | DI1: 12 | DJ1: 13 | DK1: 14
A2: Place1 | B2: =IF(Main!F16=Main!$BC$7,Main!G16-1+Main!H16,I!$C$9) -> 2012-03-01 | C2: =IF(B2=I!$C$9,0,Main!I16) -> 10 | D2: =IF(B2=I!$C$9,Main!$AX$4,Main!J16) -> Not-Applicable | E2: =IF($B$2=I!$C$9,0,Main!K16) -> 0 | F2: =IF(B2=I!$C$9,Main!$AX$4,Main!L16) -> Not-Applicable | G2: =IF(B2=I!$C$9,Main!$AX$4,Main!M16) -> Not-Applicable | H2: =IF(C2=30,12000,8000) -> 8000 | I2: Not-Applicable | K2: Month | L2: From | M2: To | N2: Pay | O2: Pay | P2: AQI | Q2: DA | R2: HRA | S2: Additional HRA | T2: IR | U2: HMA | V2: PHCA | W2: CCA | X2: RA | Y2: Others | Z2: SCA | AA2: GROSS | AB2: Leave Type | AD2: =H8 -> DA | AG2: Month | AH2: From | AI2: To | AJ2: Pay | AK2: Pay | AL2: AQI | AM2: DA | AN2: HRA | AO2: Additional HRA | AP2: IR | AQ2: HMA | AR2: PHCA | AS2: CCA | AT2: RA | AU2: Others | AV2: SCA | AW2: GROSS | AX2: PF PART | AY2: PT PART | AZ2: Leave Type | BB2: Month | BC2: From | BD2: To | BE2: Pay | BF2: Pay | BG2: AQI | BH2: DA | BI2: HRA | BJ2: Additional HRA | BK2: IR | BL2: HMA | BM2: PHCA | BN2: CCA | BO2: RA | BP2: Others | BQ2: SCA | BR2: GROSS | BS2: PF PART | BT2: PT PART | BU2: Leave Type | BW2: DA RATES | BZ2: Month | CA2: From | CB2: To | CC2: Pay | CD2: Pay | CE2: AQI | CF2: DA | CG2: HRA | CH2: Additional HRA | CI2: IR | CJ2: HMA | CK2: PHCA | CL2: CCA | CM2: RA | CN2: Others | CO2: SCA | CP2: GROSS | CQ2: PF PART | CR2: PT PART | CS2: Leave Type | CU2: Month | CV2: From | CW2: To | CX2: Pay | CY2: Pay | CZ2: AQI | DA2: DA | DB2: HRA | DC2: Additional HRA | DD2: IR | DE2: HMA | DF2: PHCA | DG2: CCA | DH2: RA | DI2: Others | DJ2: SCA | DK2: GROSS | DL2: PF PART | DM2: PT PART | DN2: Leave Type
A3: Place-2 | B3: =IF(Main!F17=Main!$BC$7,Main!G17-1+Main!H17,I!$C$9) -> 2013-04-01 | C3: =IF(B3=I!$C$9,0,Main!I17) -> 0 | D3: =IF(B3=I!$C$9,Main!$AX$4,Main!J17) -> Not-Applicable | E3: =IF($B$2=I!$C$9,0,Main!K17) -> 0 | F3: =IF(B3=I!$C$9,Main!$AX$4,Main!L17) -> Not-Applicable | G3: =IF(B3=I!$C$9,Main!$AX$4,Main!M17) -> Not-Applicable | H3: =IF(C3=30,12000,8000) -> 8000 | K3: =IF(L3="","",DATE(YEAR(L3),MONTH(L3),1)) -> 2012-03-01 | L3: =L1 -> 2012-03-01 | M3: =IF(L3="","",MIN(EOMONTH(L3,0),LOOKUP(L3,$E$47:$F$53)-1,IF(L3<$B$2,$B$2-1,I!$Q$9),IF(L3<$B$3,$B$3-1,I!$Q$9),IF(L3<$B$4,$B$4-1,I!$Q$9),LOOKUP(L3,$H$47:$I$53))) -> 2012-03-31 | N3: =IF(L3="","",VLOOKUP(L3,'Advance Tax'!$A$3:$C$14,3)) -> 31320.00 | O3: =IF(L3="","",ROUND(IF(AB3=3,0,IF(AB3=2,N3/2,N3))*(DAY(M3)-DAY(L3)+1)/DAY(EOMONTH(L3,0)),0)) -> 31320 | P3: =IF(L3="","",ROUND(IF(AB3=3,0,IF(AB3=2,IF(N3=VLOOKUP(N3,I!$I$2:$J$5,1),0,Main!$H$9)/2,IF(N3=VLOOKUP(N3,I!$I$2:$J$5,1),0,Main!$H$9)))*(DAY(M3)-DAY(L3)+1)/DAY(EOMONTH(L3,0)),0)) -> 0 | Q3: =IF(L3="","",IF(N3=VLOOKUP(N3,I!$I$2:$J$5,1),0,ROUND(O3*VLOOKUP(L3,$H$9:$I$12,2)%,0))) -> 18166 | R3: =IF(L3="","",IF(OR(AB3=3,N3=VLOOKUP(N3,I!$I$2:$J$5,1)),0,ROUND(MIN(ROUND(N3*VLOOKUP(L3,$B$1:$G$4,2)%,0),VLOOKUP(L3,$B$2:$H$4,7,TRUE))*(DAY(M3)-DAY(L3)+1)/DAY(EOMONTH(L3,0)),0))) -> 3132 | S3: =IF(L3="","",IF(OR(L3<DATE(2010,4,1),$I$2=VLOOKUP(L3,$B$2:$G$4,5,TRUE),N3=VLOOKUP(N3,I!$I$2:$J$5,1)),0,ROUND(IF(AB3=3,0,IF(AB3=2,MIN(ROUND(N3*$G$13%,0),$G$14)/2,MIN(ROUND(N3*$G$13%,0),$G$14)))*(DAY(M3)-DAY(L3)+1)/DAY(EOMONTH(L3,0)),0))) -> 0 | U3: =IF(L3="","",IF(L3<DATE(2010,4,1),0,IF(OR(AB3=2,AB3=3,N3=VLOOKUP(N3,I!$I$2:$J$5,1)),0,ROUND(VLOOKUP(L3,$B$1:$G$4,4)*(DAY(M3)-DAY(L3)+1)/DAY(EOMONTH(L3,0)),0)))) -> 0 | V3: =IF(L3="","",IF(OR(AB3=2,AB3=3,L3<DATE(2010,4,1),N3=VLOOKUP(N3,I!$I$2:$J$5,1)),0,ROUND(MIN(VLOOKUP(K3,$A$27:$C$32,2,TRUE),ROUND(O3*VLOOKUP(K3,$A$27:$C$32,3,TRUE)%,0))*IF(K3=$A$36,$C$36,IF(K3=$A$37,$C$37,IF(K3=$A$38,$C$38,IF(K3=$A$39,$C$39,IF(K3=$A$40,$C$40,IF(K3=$A$41,$C$41,1))))))*(DAY(M3)-DAY(L3)+1)/DAY(EOMONTH(L3,0)),0))) -> 0 | W3: =IF(L3="","",IF(OR(AB3=3,N3=VLOOKUP(N3,I!$I$2:$J$5,1)),0,ROUND(IF(AB3=2,VLOOKUP(N3,$A$20:$E$23,IF($B$19=VLOOKUP(L3,$B$2:$G$4,3,TRUE),2,IF($C$19=VLOOKUP(L3,$B$2:$G$4,3,TRUE),3,IF($D$19=VLOOKUP(L3,$B$2:$G$4,3,TRUE),4,5))),TRUE)/2,VLOOKUP(N3,$A$20:$E$23,IF($B$19=VLOOKUP(L3,$B$2:$G$4,3,TRUE),2,IF($C$19=VLOOKUP(L3,$B$2:$G$4,3,TRUE),3,IF($D$19=VLOOKUP(L3,$B$2:$G$4,3,TRUE),4,5))),TRUE))*(DAY(M3)-DAY(L3)+1)/DAY(EOMONTH(L3,0)),0))) -> 0 | X3: =IF(L3="","",IF(OR(K3<DATE(2010,4,1),AB3=3,N3=VLOOKUP(N3,I!$I$2:$J$5,1)),0,ROUND(IF(AB3=2,Main!$L$9/2,Main!$L$9)*(DAY(M3)-DAY(L3)+1)/DAY(EOMONTH(L3,0)),0))) -> 0 | Z3: =IF(L3="","",IF(OR(AB3=3,N3=VLOOKUP(N3,I!$I$2:$J$5,1)),0,ROUND(IF(AB3=2,VLOOKUP(O3,$A$11:$E$16,IF($B$10=VLOOKUP(K3,$B$2:$G$4,6,TRUE),2,IF($B$10=VLOOKUP(K3,$B$2:$G$4,6,TRUE),3,IF($D$10=VLOOKUP(K3,$B$2:$G$4,6,TRUE),4,5))))/2,VLOOKUP(O3,$A$11:$E$16,IF($B$10=VLOOKUP(K3,$B$2:$G$4,6,TRUE),2,IF($B$10=VLOOKUP(K3,$B$2:$G$4,6,TRUE),3,IF($D$10=VLOOKUP(K3,$B$2:$G$4,6,TRUE),4,5)))))*(DAY(M3)-DAY(L3)+1)/DAY(EOMONTH(L3,0)),0))) -> 0 | AA3: =SUM(O3:Z3) -> 52618 | AB3: =IF(OR(AND(L3=$E$48,$G$48=3),AND(L3=$E$49,$G$49=3),AND(L3=$E$50,$G$50=3),AND(L3=$E$51,$G$51=3),AND(L3=$E$52,$G$52=3),AND(L3=$E$53,$G$53=3)),3,IF(OR(AND(L3=$E$48,$G$48=2),AND(L3=$E$49,$G$49=2),AND(L3=$E$50,$G$50=2),AND(L3=$E$51,$G$51=2),AND(L3=$E$52,$G$52=2),AND(L3=$E$53,$G$53=2)),2,1)) -> 1 | AD3: =H8 -> DA | AE3: RPS-2010 | AG3: =IF(AH3="","",DATE(YEAR(AH3),MONTH(AH3),1)) ->  | AH3: =IF(AH1>=I!$C$9,"",AH1) ->  | AI3: =IF(AH3="","",MIN(EOMONTH(AH3,0),VLOOKUP(AH3,I!$O$164:$P$202,2,TRUE)-1,LOOKUP(AH3,$E$47:$F$53)-1,IF(AH3<$B$2,$B$2-1,I!$Q$9),IF(AH3<$B$3,$B$3-1,I!$Q$9),IF(AH3<$B$4,$B$4-1,I!$Q$9),LOOKUP(AH3,$H$47:$I$53))) ->  | AJ3: =IF(AH3="","",VLOOKUP(AH3,I!$P$164:$R$202,2)) ->  | AK3: =IF(AH3="","",ROUND(IF(AZ3=3,0,IF(AZ3=2,AJ3/2,AJ3))*(DAY(AI3)-DAY(AH3)+1)/DAY(EOMONTH(AH3,0)),0)) ->  | AL3: =IF(AH3="","",ROUND(IF(AZ3=3,0,IF(AZ3=2,IF(AJ3=VLOOKUP(AJ3,I!$I$2:$J$5,1),0,Main!$H$9)/2,IF(AJ3=VLOOKUP(AJ3,I!$I$2:$J$5,1),0,Main!$H$9)))*(DAY(AI3)-DAY(AH3)+1)/DAY(EOMONTH(AH3,0)),0)) ->  | AM3: =IF(AH3="","",IF(AJ3=VLOOKUP(AJ3,I!$I$2:$J$5,1),0,ROUND(AK3*VLOOKUP(AH3,$AD$4:$AE$7,2)%,0))) ->  | AN3: =IF(AH3="","",IF(OR(AZ3=3,AJ3=VLOOKUP(AJ3,I!$I$2:$J$5,1)),0,ROUND(MIN(ROUND(AJ3*VLOOKUP(AH3,$B$1:$G$4,2)%,0),VLOOKUP(AH3,$B$2:$H$4,7,TRUE))*(DAY(AI3)-DAY(AH3)+1)/DAY(EOMONTH(AH3,0)),0))) ->  | AO3: =IF(AH3="","",IF(OR(AH3<DATE(2010,4,1),$I$2=VLOOKUP(AH3,$B$2:$G$4,5,TRUE),AJ3=VLOOKUP(AJ3,I!$I$2:$J$5,1)),0,ROUND(IF(AZ3=3,0,IF(AZ3=2,MIN(ROUND(AJ3*$G$13%,0),$G$14)/2,MIN(ROUND(AJ3*$G$13%,0),$G$14)))*(DAY(AI3)-DAY(AH3)+1)/DAY(EOMONTH(AH3,0)),0))) ->  | AQ3: =IF(AH3="","",IF(AH3<DATE(2010,4,1),0,IF(OR(AZ3=2,AZ3=3,AJ3=VLOOKUP(AJ3,I!$I$2:$J$5,1)),0,ROUND(VLOOKUP(AH3,$B$1:$G$4,4)*(DAY(AI3)-DAY(AH3)+1)/DAY(EOMONTH(AH3,0)),0)))) ->  | AR3: =IF(AH3="","",IF(OR(AZ3=2,AZ3=3,AH3<DATE(2010,4,1),AJ3=VLOOKUP(AJ3,I!$I$2:$J$5,1)),0,ROUND(MIN(VLOOKUP(AG3,$A$27:$C$32,2,TRUE),ROUND(AK3*VLOOKUP(AG3,$A$27:$C$32,3,TRUE)%,0))*IF(AG3=$A$36,$C$36,IF(AG3=$A$37,$C$37,IF(AG3=$A$38,$C$38,IF(AG3=$A$39,$C$39,IF(AG3=$A$40,$C$40,IF(AG3=$A$41,$C$41,1))))))*(DAY(AI3)-DAY(AH3)+1)/DAY(EOMONTH(AH3,0)),0))) ->  | AS3: =IF(AH3="","",IF(OR(AZ3=3,AJ3=VLOOKUP(AJ3,I!$I$2:$J$5,1)),0,ROUND(IF(AZ3=2,VLOOKUP(AJ3,$A$20:$E$23,IF($B$19=VLOOKUP(AH3,$B$2:$G$4,3,TRUE),2,IF($C$19=VLOOKUP(AH3,$B$2:$G$4,3,TRUE),3,IF($D$19=VLOOKUP(AH3,$B$2:$G$4,3,TRUE),4,5))),TRUE)/2,VLOOKUP(AJ3,$A$20:$E$23,IF($B$19=VLOOKUP(AH3,$B$2:$G$4,3,TRUE),2,IF($C$19=VLOOKUP(AH3,$B$2:$G$4,3,TRUE),3,IF($D$19=VLOOKUP(AH3,$B$2:$G$4,3,TRUE),4,5))),TRUE))*(DAY(AI3)-DAY(AH3)+1)/DAY(EOMONTH(AH3,0)),0))) ->  | AT3: =IF(AH3="","",IF(OR(AG3<DATE(2010,4,1),AZ3=3,AJ3=VLOOKUP(AJ3,I!$I$2:$J$5,1)),0,ROUND(IF(AZ3=2,Main!$L$9/2,Main!$L$9)*(DAY(AI3)-DAY(AH3)+1)/DAY(EOMONTH(AH3,0)),0))) ->  | AV3: =IF(AH3="","",IF(OR(AZ3=3,AJ3=VLOOKUP(AJ3,I!$I$2:$J$5,1)),0,ROUND(IF(AZ3=2,VLOOKUP(AK3,$A$11:$E$16,IF($B$10=VLOOKUP(AG3,$B$2:$G$4,6,TRUE),2,IF($B$10=VLOOKUP(AG3,$B$2:$G$4,6,TRUE),3,IF($D$10=VLOOKUP(AG3,$B$2:$G$4,6,TRUE),4,5))))/2,VLOOKUP(AK3,$A$11:$E$16,IF($B$10=VLOOKUP(AG3,$B$2:$G$4,6,TRUE),2,IF($B$10=VLOOKUP(AG3,$B$2:$G$4,6,TRUE),3,IF($D$10=VLOOKUP(AG3,$B$2:$G$4,6,TRUE),4,5)))))*(DAY(AI3)-DAY(AH3)+1)/DAY(EOMONTH(AH3,0)),0))) ->  | AW3: =SUM(AK3:AV3) -> 0 | AX3: =IF(AH3="","",IF(AH3<=$AX$1,AW3-AY3,IF(AND(Main!$F$22=Main!$CA$24,AH3>$AX$1),ROUND(SUM(AK3,AM3)*10%,0),""))) ->  | AY3: =IF(AG3="","",IF(OR(Main!$H$10=Main!$BH$4,Main!$H$10=Main!$BH$5),0,LOOKUP(AW3*DAY(EOMONTH(AH3,0))/(DAY(AI3)-DAY(AH3)+1),$H$17:$I$22))) ->  | AZ3: =IF(OR(AND(AH3=$E$48,$G$48=3),AND(AH3=$E$49,$G$49=3),AND(AH3=$E$50,$G$50=3),AND(AH3=$E$51,$G$51=3),AND(AH3=$E$52,$G$52=3),AND(AH3=$E$53,$G$53=3)),3,IF(OR(AND(AH3=$E$48,$G$48=2),AND(AH3=$E$49,$G$49=2),AND(AH3=$E$50,$G$50=2),AND(AH3=$E$51,$G$51=2),AND(AH3=$E$52,$G$52=2),AND(AH3=$E$53,$G$53=2)),2,1)) -> 1 | BB3: =IF(BC3="","",DATE(YEAR(BC3),MONTH(BC3),1)) ->  | BC3: =IF(BC1>=I!$C$9,"",BC1) ->  | BD3: =IF(BC3="","",MIN(EOMONTH(BC3,0),VLOOKUP(BC3,I!$O$164:$P$202,2,TRUE)-1,LOOKUP(BC3,$E$47:$F$53)-1,IF(BC3<$B$2,$B$2-1,I!$Q$9),IF(BC3<$B$3,$B$3-1,I!$Q$9),IF(BC3<$B$4,$B$4-1,I!$Q$9),LOOKUP(BC3,$H$47:$I$53))) ->  | BE3: =IF(BC3="","",VLOOKUP(BC3,I!$P$164:$R$202,3)) ->  | BF3: =IF(BC3="","",ROUND(IF(BU3=3,0,IF(BU3=2,BE3/2,BE3))*(DAY(BD3)-DAY(BC3)+1)/DAY(EOMONTH(BC3,0)),0)) ->  | BG3: =IF(BC3="","",ROUND(IF(BU3=3,0,IF(BU3=2,IF(BE3=VLOOKUP(BE3,I!$I$2:$J$5,1),0,Main!$H$9)/2,IF(BE3=VLOOKUP(BE3,I!$I$2:$J$5,1),0,Main!$H$9)))*(DAY(BD3)-DAY(BC3)+1)/DAY(EOMONTH(BC3,0)),0)) ->  | BH3: =IF(BC3="","",IF(BE3=VLOOKUP(BE3,I!$I$2:$J$5,1),0,ROUND(BF3*VLOOKUP(BC3,$AD$4:$AE$7,2)%,0))) ->  | BI3: =IF(BC3="","",IF(OR(BU3=3,BE3=VLOOKUP(BE3,I!$I$2:$J$5,1)),0,ROUND(MIN(ROUND(BE3*VLOOKUP(BC3,$B$1:$G$4,2)%,0),VLOOKUP(BC3,$B$2:$H$4,7,TRUE))*(DAY(BD3)-DAY(BC3)+1)/DAY(EOMONTH(BC3,0)),0))) ->  | BJ3: =IF(BC3="","",IF(OR(BC3<DATE(2010,4,1),$I$2=VLOOKUP(BC3,$B$2:$G$4,5,TRUE),BE3=VLOOKUP(BE3,I!$I$2:$J$5,1)),0,ROUND(IF(BU3=3,0,IF(BU3=2,MIN(ROUND(BE3*$G$13%,0),$G$14)/2,MIN(ROUND(BE3*$G$13%,0),$G$14)))*(DAY(BD3)-DAY(BC3)+1)/DAY(EOMONTH(BC3,0)),0))) ->  | BL3: =IF(BC3="","",IF(BC3<DATE(2010,4,1),0,IF(OR(BU3=2,BU3=3,BE3=VLOOKUP(BE3,I!$I$2:$J$5,1)),0,ROUND(VLOOKUP(BC3,$B$1:$G$4,4)*(DAY(BD3)-DAY(BC3)+1)/DAY(EOMONTH(BC3,0)),0)))) ->  | BM3: =IF(BC3="","",IF(OR(BU3=2,BU3=3,BC3<DATE(2010,4,1),BE3=VLOOKUP(BE3,I!$I$2:$J$5,1)),0,ROUND(MIN(VLOOKUP(BB3,$A$27:$C$32,2,TRUE),ROUND(BF3*VLOOKUP(BB3,$A$27:$C$32,3,TRUE)%,0))*IF(BB3=$A$36,$C$36,IF(BB3=$A$37,$C$37,IF(BB3=$A$38,$C$38,IF(BB3=$A$39,$C$39,IF(BB3=$A$40,$C$40,IF(BB3=$A$41,$C$41,1))))))*(DAY(BD3)-DAY(BC3)+1)/DAY(EOMONTH(BC3,0)),0))) ->  | BN3: =IF(BC3="","",IF(OR(BU3=3,BE3=VLOOKUP(BE3,I!$I$2:$J$5,1)),0,ROUND(IF(BU3=2,VLOOKUP(BE3,$A$20:$E$23,IF($B$19=VLOOKUP(BC3,$B$2:$G$4,3,TRUE),2,IF($C$19=VLOOKUP(BC3,$B$2:$G$4,3,TRUE),3,IF($D$19=VLOOKUP(BC3,$B$2:$G$4,3,TRUE),4,5))),TRUE)/2,VLOOKUP(BE3,$A$20:$E$23,IF($B$19=VLOOKUP(BC3,$B$2:$G$4,3,TRUE),2,IF($C$19=VLOOKUP(BC3,$B$2:$G$4,3,TRUE),3,IF($D$19=VLOOKUP(BC3,$B$2:$G$4,3,TRUE),4,5))),TRUE))*(DAY(BD3)-DAY(BC3)+1)/DAY(EOMONTH(BC3,0)),0))) ->  | BO3: =IF(BC3="","",IF(OR(BB3<DATE(2010,4,1),BU3=3,BE3=VLOOKUP(BE3,I!$I$2:$J$5,1)),0,ROUND(IF(BU3=2,Main!$L$9/2,Main!$L$9)*(DAY(BD3)-DAY(BC3)+1)/DAY(EOMONTH(BC3,0)),0))) ->  | BQ3: =IF(BC3="","",IF(OR(BU3=3,BE3=VLOOKUP(BE3,I!$I$2:$J$5,1)),0,ROUND(IF(BU3=2,VLOOKUP(BF3,$A$11:$E$16,IF($B$10=VLOOKUP(BB3,$B$2:$G$4,6,TRUE),2,IF($B$10=VLOOKUP(BB3,$B$2:$G$4,6,TRUE),3,IF($D$10=VLOOKUP(BB3,$B$2:$G$4,6,TRUE),4,5))))/2,VLOOKUP(BF3,$A$11:$E$16,IF($B$10=VLOOKUP(BB3,$B$2:$G$4,6,TRUE),2,IF($B$10=VLOOKUP(BB3,$B$2:$G$4,6,TRUE),3,IF($D$10=VLOOKUP(BB3,$B$2:$G$4,6,TRUE),4,5)))))*(DAY(BD3)-DAY(BC3)+1)/DAY(EOMONTH(BC3,0)),0))) ->  | BR3: =SUM(BF3:BQ3) -> 0 | BS3: =IF(BC3="","",IF(BC3<=$AX$1,BR3-BT3,IF(AND(Main!$F$22=Main!$CA$24,BC3>$AX$1),ROUND(SUM(BF3,BH3)*10%,0),""))) ->  | BT3: =IF(BB3="","",IF(OR(Main!$H$10=Main!$BH$4,Main!$H$10=Main!$BH$5),0,LOOKUP(BR3*DAY(EOMONTH(BC3,0))/(DAY(BD3)-DAY(BC3)+1),$H$17:$I$22))) ->  | BU3: =IF(OR(AND(BC3=$E$48,$G$48=3),AND(BC3=$E$49,$G$49=3),AND(BC3=$E$50,$G$50=3),AND(BC3=$E$51,$G$51=3),AND(BC3=$E$52,$G$52=3),AND(BC3=$E$53,$G$53=3)),3,IF(OR(AND(BC3=$E$48,$G$48=2),AND(BC3=$E$49,$G$49=2),AND(BC3=$E$50,$G$50=2),AND(BC3=$E$51,$G$51=2),AND(BC3=$E$52,$G$52=2),AND(BC3=$E$53,$G$53=2)),2,1)) -> 1 | BV3: =AW3-BR3 -> 0 | BW3: FROM | BX3: RPS-2010 | BY3: UGC-2006 | BZ3: =IF(CA3="","",DATE(YEAR(CA3),MONTH(CA3),1)) ->  | CA3: =IF(CA1>=I!$C$9,"",CA1) ->  | CB3: =IF(CA3="","",MIN(EOMONTH(CA3,0),VLOOKUP(CA3,I!$O$164:$P$202,2,TRUE)-1,LOOKUP(CA3,$E$47:$F$53)-1,IF(CA3<$B$2,$B$2-1,I!$Q$9),IF(CA3<$B$3,$B$3-1,I!$Q$9),IF(CA3<$B$4,$B$4-1,I!$Q$9),LOOKUP(CA3,$H$47:$I$53))) ->  | CC3: =IF(CA3="","",VLOOKUP(CA3,I!$P$164:$R$202,2)) ->  | CD3: =IF(CA3="","",ROUND(IF(CS3=3,0,IF(CS3=2,CC3/2,CC3))*(DAY(CB3)-DAY(CA3)+1)/DAY(EOMONTH(CA3,0)),0)) ->  | CE3: =IF(CA3="","",ROUND(IF(CS3=3,0,IF(CS3=2,IF(CC3=VLOOKUP(CC3,I!$I$2:$J$5,1),0,Main!$H$9)/2,IF(CC3=VLOOKUP(CC3,I!$I$2:$J$5,1),0,Main!$H$9)))*(DAY(CB3)-DAY(CA3)+1)/DAY(EOMONTH(CA3,0)),0)) ->  | CF3: =IF(CA3="","",IF(CC3=VLOOKUP(CC3,I!$I$2:$J$5,1),0,ROUND(CD3*VLOOKUP(CA3,$BW$4:$BX$7,2)%,0))) ->  | CG3: =IF(CA3="","",IF(OR(CS3=3,CC3=VLOOKUP(CC3,I!$I$2:$J$5,1)),0,ROUND(MIN(ROUND(CC3*VLOOKUP(CA3,$B$1:$G$4,2)%,0),VLOOKUP(CA3,$B$2:$H$4,7,TRUE))*(DAY(CB3)-DAY(CA3)+1)/DAY(EOMONTH(CA3,0)),0))) ->  | CH3: =IF(CA3="","",IF(OR(CA3<DATE(2010,4,1),$I$2=VLOOKUP(CA3,$B$2:$G$4,5,TRUE),CC3=VLOOKUP(CC3,I!$I$2:$J$5,1)),0,ROUND(IF(CS3=3,0,IF(CS3=2,MIN(ROUND(CC3*$G$13%,0),$G$14)/2,MIN(ROUND(CC3*$G$13%,0),$G$14)))*(DAY(CB3)-DAY(CA3)+1)/DAY(EOMONTH(CA3,0)),0))) ->  | CJ3: =IF(CA3="","",IF(CA3<DATE(2010,4,1),0,IF(OR(CS3=2,CS3=3,CC3=VLOOKUP(CC3,I!$I$2:$J$5,1)),0,ROUND(VLOOKUP(CA3,$B$1:$G$4,4)*(DAY(CB3)-DAY(CA3)+1)/DAY(EOMONTH(CA3,0)),0)))) ->  | CK3: =IF(CA3="","",IF(OR(CS3=2,CS3=3,CA3<DATE(2010,4,1),CC3=VLOOKUP(CC3,I!$I$2:$J$5,1)),0,ROUND(MIN(VLOOKUP(BZ3,$A$27:$C$32,2,TRUE),ROUND(CD3*VLOOKUP(BZ3,$A$27:$C$32,3,TRUE)%,0))*IF(BZ3=$A$36,$C$36,IF(BZ3=$A$37,$C$37,IF(BZ3=$A$38,$C$38,IF(BZ3=$A$39,$C$39,IF(BZ3=$A$40,$C$40,IF(BZ3=$A$41,$C$41,1))))))*(DAY(CB3)-DAY(CA3)+1)/DAY(EOMONTH(CA3,0)),0))) ->  | CL3: =IF(CA3="","",IF(OR(CS3=3,CC3=VLOOKUP(CC3,I!$I$2:$J$5,1)),0,ROUND(IF(CS3=2,VLOOKUP(CC3,$A$20:$E$23,IF($B$19=VLOOKUP(CA3,$B$2:$G$4,3,TRUE),2,IF($C$19=VLOOKUP(CA3,$B$2:$G$4,3,TRUE),3,IF($D$19=VLOOKUP(CA3,$B$2:$G$4,3,TRUE),4,5))),TRUE)/2,VLOOKUP(CC3,$A$20:$E$23,IF($B$19=VLOOKUP(CA3,$B$2:$G$4,3,TRUE),2,IF($C$19=VLOOKUP(CA3,$B$2:$G$4,3,TRUE),3,IF($D$19=VLOOKUP(CA3,$B$2:$G$4,3,TRUE),4,5))),TRUE))*(DAY(CB3)-DAY(CA3)+1)/DAY(EOMONTH(CA3,0)),0))) ->  | CM3: =IF(CA3="","",IF(OR(BZ3<DATE(2010,4,1),CS3=3,CC3=VLOOKUP(CC3,I!$I$2:$J$5,1)),0,ROUND(IF(CS3=2,Main!$L$9/2,Main!$L$9)*(DAY(CB3)-DAY(CA3)+1)/DAY(EOMONTH(CA3,0)),0))) ->  | CO3: =IF(CA3="","",IF(OR(CS3=3,CC3=VLOOKUP(CC3,I!$I$2:$J$5,1)),0,ROUND(IF(CS3=2,VLOOKUP(CD3,$A$11:$E$16,IF($B$10=VLOOKUP(BZ3,$B$2:$G$4,6,TRUE),2,IF($B$10=VLOOKUP(BZ3,$B$2:$G$4,6,TRUE),3,IF($D$10=VLOOKUP(BZ3,$B$2:$G$4,6,TRUE),4,5))))/2,VLOOKUP(CD3,$A$11:$E$16,IF($B$10=VLOOKUP(BZ3,$B$2:$G$4,6,TRUE),2,IF($B$10=VLOOKUP(BZ3,$B$2:$G$4,6,TRUE),3,IF($D$10=VLOOKUP(BZ3,$B$2:$G$4,6,TRUE),4,5)))))*(DAY(CB3)-DAY(CA3)+1)/DAY(EOMONTH(CA3,0)),0))) ->  | CP3: =SUM(CD3:CO3) -> 0 | CQ3: =IF(CA3="","",IF(Main!$F$22=Main!$CA$24,ROUND(SUM(CD3,CF3)*10%,0),"")) ->  | CR3: =IF(BZ3="","",IF(OR(Main!$H$10=Main!$BH$4,Main!$H$10=Main!$BH$5),0,LOOKUP(CP3*DAY(EOMONTH(CA3,0))/(DAY(CB3)-DAY(CA3)+1),$H$17:$I$22))) ->  | CS3: =IF(OR(AND(CA3=$E$48,$G$48=3),AND(CA3=$E$49,$G$49=3),AND(CA3=$E$50,$G$50=3),AND(CA3=$E$51,$G$51=3),AND(CA3=$E$52,$G$52=3),AND(CA3=$E$53,$G$53=3)),3,IF(OR(AND(CA3=$E$48,$G$48=2),AND(CA3=$E$49,$G$49=2),AND(CA3=$E$50,$G$50=2),AND(CA3=$E$51,$G$51=2),AND(CA3=$E$52,$G$52=2),AND(CA3=$E$53,$G$53=2)),2,1)) -> 1 | CU3: =IF(CV3="","",DATE(YEAR(CV3),MONTH(CV3),1)) ->  | CV3: =IF(CV1>=I!$C$9,"",CV1) ->  | CW3: =IF(CV3="","",MIN(EOMONTH(CV3,0),VLOOKUP(CV3,I!$O$164:$P$202,2,TRUE)-1,LOOKUP(CV3,$E$47:$F$53)-1,IF(CV3<$B$2,$B$2-1,I!$Q$9),IF(CV3<$B$3,$B$3-1,I!$Q$9),IF(CV3<$B$4,$B$4-1,I!$Q$9),LOOKUP(CV3,$H$47:$I$53))) ->  | CX3: =IF(CV3="","",VLOOKUP(CV3-1,I!$P$164:$R$202,3)) ->  | CY3: =IF(CV3="","",ROUND(IF(DN3=3,0,IF(DN3=2,CX3/2,CX3))*(DAY(CW3)-DAY(CV3)+1)/DAY(EOMONTH(CV3,0)),0)) ->  | CZ3: =IF(CV3="","",ROUND(IF(DN3=3,0,IF(DN3=2,IF(CX3=VLOOKUP(CX3,I!$I$2:$J$5,1),0,Main!$H$9)/2,IF(CX3=VLOOKUP(CX3,I!$I$2:$J$5,1),0,Main!$H$9)))*(DAY(CW3)-DAY(CV3)+1)/DAY(EOMONTH(CV3,0)),0)) ->  | DA3: =IF(CV3="","",IF(CX3=VLOOKUP(CX3,I!$I$2:$J$5,1),0,ROUND(CY3*VLOOKUP(CV3,$AD$4:$AE$7,2)%,0))) ->  | DB3: =IF(CV3="","",IF(OR(DN3=3,CX3=VLOOKUP(CX3,I!$I$2:$J$5,1)),0,ROUND(MIN(ROUND(CX3*VLOOKUP(CV3,$B$1:$G$4,2)%,0),VLOOKUP(CV3,$B$2:$H$4,7,TRUE))*(DAY(CW3)-DAY(CV3)+1)/DAY(EOMONTH(CV3,0)),0))) ->  | DC3: =IF(CV3="","",IF(OR(CV3<DATE(2010,4,1),$I$2=VLOOKUP(CV3,$B$2:$G$4,5,TRUE),CX3=VLOOKUP(CX3,I!$I$2:$J$5,1)),0,ROUND(IF(DN3=3,0,IF(DN3=2,MIN(ROUND(CX3*$G$13%,0),$G$14)/2,MIN(ROUND(CX3*$G$13%,0),$G$14)))*(DAY(CW3)-DAY(CV3)+1)/DAY(EOMONTH(CV3,0)),0))) ->  | DE3: =IF(CV3="","",IF(CV3<DATE(2010,4,1),0,IF(OR(DN3=2,DN3=3,CX3=VLOOKUP(CX3,I!$I$2:$J$5,1)),0,ROUND(VLOOKUP(CV3,$B$1:$G$4,4)*(DAY(CW3)-DAY(CV3)+1)/DAY(EOMONTH(CV3,0)),0)))) ->  | DF3: =IF(CV3="","",IF(OR(DN3=2,DN3=3,CV3<DATE(2010,4,1),CX3=VLOOKUP(CX3,I!$I$2:$J$5,1)),0,ROUND(MIN(VLOOKUP(CU3,$A$27:$C$32,2,TRUE),ROUND(CY3*VLOOKUP(CU3,$A$27:$C$32,3,TRUE)%,0))*IF(CU3=$A$36,$C$36,IF(CU3=$A$37,$C$37,IF(CU3=$A$38,$C$38,IF(CU3=$A$39,$C$39,IF(CU3=$A$40,$C$40,IF(CU3=$A$41,$C$41,1))))))*(DAY(CW3)-DAY(CV3)+1)/DAY(EOMONTH(CV3,0)),0))) ->  | DG3: =IF(CV3="","",IF(OR(DN3=3,CX3=VLOOKUP(CX3,I!$I$2:$J$5,1)),0,ROUND(IF(DN3=2,VLOOKUP(CX3,$A$20:$E$23,IF($B$19=VLOOKUP(CV3,$B$2:$G$4,3,TRUE),2,IF($C$19=VLOOKUP(CV3,$B$2:$G$4,3,TRUE),3,IF($D$19=VLOOKUP(CV3,$B$2:$G$4,3,TRUE),4,5))),TRUE)/2,VLOOKUP(CX3,$A$20:$E$23,IF($B$19=VLOOKUP(CV3,$B$2:$G$4,3,TRUE),2,IF($C$19=VLOOKUP(CV3,$B$2:$G$4,3,TRUE),3,IF($D$19=VLOOKUP(CV3,$B$2:$G$4,3,TRUE),4,5))),TRUE))*(DAY(CW3)-DAY(CV3)+1)/DAY(EOMONTH(CV3,0)),0))) ->  | DH3: =IF(CV3="","",IF(OR(CU3<DATE(2010,4,1),DN3=3,CX3=VLOOKUP(CX3,I!$I$2:$J$5,1)),0,ROUND(IF(DN3=2,Main!$L$9/2,Main!$L$9)*(DAY(CW3)-DAY(CV3)+1)/DAY(EOMONTH(CV3,0)),0))) ->  | DJ3: =IF(CV3="","",IF(OR(DN3=3,CX3=VLOOKUP(CX3,I!$I$2:$J$5,1)),0,ROUND(IF(DN3=2,VLOOKUP(CY3,$A$11:$E$16,IF($B$10=VLOOKUP(CU3,$B$2:$G$4,6,TRUE),2,IF($B$10=VLOOKUP(CU3,$B$2:$G$4,6,TRUE),3,IF($D$10=VLOOKUP(CU3,$B$2:$G$4,6,TRUE),4,5))))/2,VLOOKUP(CY3,$A$11:$E$16,IF($B$10=VLOOKUP(CU3,$B$2:$G$4,6,TRUE),2,IF($B$10=VLOOKUP(CU3,$B$2:$G$4,6,TRUE),3,IF($D$10=VLOOKUP(CU3,$B$2:$G$4,6,TRUE),4,5)))))*(DAY(CW3)-DAY(CV3)+1)/DAY(EOMONTH(CV3,0)),0))) ->  | DK3: =SUM(CY3:DJ3) -> 0 | DL3: =IF(CV3="","",IF(CX3=VLOOKUP(CX3,I!$I$2:$J$5,1),"",IF(Main!$F$22=Main!$CA$24,ROUND(SUM(CY3,DA3)*10%,0),""))) ->  | DM3: =IF(CU3="","",IF(OR(Main!$H$10=Main!$BH$4,Main!$H$10=Main!$BH$5),0,LOOKUP(DK3*DAY(EOMONTH(CV3,0))/(DAY(CW3)-DAY(CV3)+1),$H$17:$I$22))) ->  | DN3: =IF(OR(AND(CV3=$E$48,$G$48=3),AND(CV3=$E$49,$G$49=3),AND(CV3=$E$50,$G$50=3),AND(CV3=$E$51,$G$51=3),AND(CV3=$E$52,$G$52=3),AND(CV3=$E$53,$G$53=3)),3,IF(OR(AND(CV3=$E$48,$G$48=2),AND(CV3=$E$49,$G$49=2),AND(CV3=$E$50,$G$50=2),AND(CV3=$E$51,$G$51=2),AND(CV3=$E$52,$G$52=2),AND(CV3=$E$53,$G$53=2)),2,1)) -> 1
A4: Place-3 | B4: =IF(Main!F18=Main!$BC$7,Main!G18-1+Main!H18,I!$C$9) -> 2013-04-01 | C4: =IF(B4=I!$C$9,0,Main!I18) -> 0 | D4: =IF(B4=I!$C$9,Main!$AX$4,Main!J18) -> Not-Applicable | E4: =IF($B$2=I!$C$9,0,Main!K18) -> 0 | F4: =IF(B4=I!$C$9,Main!$AX$4,Main!L18) -> Not-Applicable | G4: =IF(B4=I!$C$9,Main!$AX$4,Main!M18) -> Not-Applicable | H4: =IF(C4=30,12000,8000) -> 8000 | K4: =IF(L4="","",DATE(YEAR(L4),MONTH(L4),1)) -> 2012-04-01 | L4: =IF(L3="","",IF($M$1<=M3,"",M3+1)) -> 2012-04-01 | M4: =IF(L4="","",MIN(EOMONTH(L4,0),VLOOKUP(L4,I!$O$164:$P$202,2,TRUE)-1,LOOKUP(L4,$E$47:$F$53)-1,IF(L4<$B$2,$B$2-1,I!$Q$9),IF(L4<$B$3,$B$3-1,I!$Q$9),IF(L4<$B$4,$B$4-1,I!$Q$9),LOOKUP(L4,$H$47:$I$53))) -> 2012-04-30 | N4: =IF(L4="","",VLOOKUP(L4,'Advance Tax'!$A$3:$C$14,3)) -> 31320.00 | O4: 31320 | P4: =IF(L4="","",ROUND(IF(AB4=3,0,IF(AB4=2,IF(N4=VLOOKUP(N4,I!$I$2:$J$5,1),0,Main!$H$9)/2,IF(N4=VLOOKUP(N4,I!$I$2:$J$5,1),0,Main!$H$9)))*(DAY(M4)-DAY(L4)+1)/DAY(EOMONTH(L4,0)),0)) -> 0 | Q4: =IF(L4="","",IF(N4=VLOOKUP(N4,I!$I$2:$J$5,1),0,ROUND(O4*VLOOKUP(L4,$H$9:$I$12,2)%,0))) -> 18166 | R4: =IF(L4="","",IF(OR(AB4=3,N4=VLOOKUP(N4,I!$I$2:$J$5,1)),0,ROUND(MIN(ROUND(N4*VLOOKUP(L4,$B$1:$G$4,2)%,0),VLOOKUP(L4,$B$2:$H$4,7,TRUE))*(DAY(M4)-DAY(L4)+1)/DAY(EOMONTH(L4,0)),0))) -> 3132 | S4: =IF(L4="","",IF(OR(L4<DATE(2010,4,1),$I$2=VLOOKUP(L4,$B$2:$G$4,5,TRUE),N4=VLOOKUP(N4,I!$I$2:$J$5,1)),0,ROUND(IF(AB4=3,0,IF(AB4=2,MIN(ROUND(N4*$G$13%,0),$G$14)/2,MIN(ROUND(N4*$G$13%,0),$G$14)))*(DAY(M4)-DAY(L4)+1)/DAY(EOMONTH(L4,0)),0))) -> 0 | U4: =IF(L4="","",IF(L4<DATE(2010,4,1),0,IF(OR(AB4=2,AB4=3,N4=VLOOKUP(N4,I!$I$2:$J$5,1)),0,ROUND(VLOOKUP(L4,$B$1:$G$4,4)*(DAY(M4)-DAY(L4)+1)/DAY(EOMONTH(L4,0)),0)))) -> 0 | V4: =IF(L4="","",IF(OR(AB4=2,AB4=3,L4<DATE(2010,4,1),N4=VLOOKUP(N4,I!$I$2:$J$5,1)),0,ROUND(MIN(VLOOKUP(K4,$A$27:$C$32,2,TRUE),ROUND(O4*VLOOKUP(K4,$A$27:$C$32,3,TRUE)%,0))*IF(K4=$A$36,$C$36,IF(K4=$A$37,$C$37,IF(K4=$A$38,$C$38,IF(K4=$A$39,$C$39,IF(K4=$A$40,$C$40,IF(K4=$A$41,$C$41,1))))))*(DAY(M4)-DAY(L4)+1)/DAY(EOMONTH(L4,0)),0))) -> 0 | W4: =IF(L4="","",IF(OR(AB4=3,N4=VLOOKUP(N4,I!$I$2:$J$5,1)),0,ROUND(IF(AB4=2,VLOOKUP(N4,$A$20:$E$23,IF($B$19=VLOOKUP(L4,$B$2:$G$4,3,TRUE),2,IF($C$19=VLOOKUP(L4,$B$2:$G$4,3,TRUE),3,IF($D$19=VLOOKUP(L4,$B$2:$G$4,3,TRUE),4,5))),TRUE)/2,VLOOKUP(N4,$A$20:$E$23,IF($B$19=VLOOKUP(L4,$B$2:$G$4,3,TRUE),2,IF($C$19=VLOOKUP(L4,$B$2:$G$4,3,TRUE),3,IF($D$19=VLOOKUP(L4,$B$2:$G$4,3,TRUE),4,5))),TRUE))*(DAY(M4)-DAY(L4)+1)/DAY(EOMONTH(L4,0)),0))) -> 0 | X4: =IF(L4="","",IF(OR(K4<DATE(2010,4,1),AB4=3,N4=VLOOKUP(N4,I!$I$2:$J$5,1)),0,ROUND(IF(AB4=2,Main!$L$9/2,Main!$L$9)*(DAY(M4)-DAY(L4)+1)/DAY(EOMONTH(L4,0)),0))) -> 0 | Z4: =IF(L4="","",IF(OR(AB4=3,N4=VLOOKUP(N4,I!$I$2:$J$5,1)),0,ROUND(IF(AB4=2,VLOOKUP(O4,$A$11:$E$16,IF($B$10=VLOOKUP(K4,$B$2:$G$4,6,TRUE),2,IF($B$10=VLOOKUP(K4,$B$2:$G$4,6,TRUE),3,IF($D$10=VLOOKUP(K4,$B$2:$G$4,6,TRUE),4,5))))/2,VLOOKUP(O4,$A$11:$E$16,IF($B$10=VLOOKUP(K4,$B$2:$G$4,6,TRUE),2,IF($B$10=VLOOKUP(K4,$B$2:$G$4,6,TRUE),3,IF($D$10=VLOOKUP(K4,$B$2:$G$4,6,TRUE),4,5)))))*(DAY(M4)-DAY(L4)+1)/DAY(EOMONTH(L4,0)),0))) -> 0 | AA4: =SUM(O4:Z4) -> 52618 | AB4: =IF(OR(AND(L4=$E$48,$G$48=3),AND(L4=$E$49,$G$49=3),AND(L4=$E$50,$G$50=3),AND(L4=$E$51,$G$51=3),AND(L4=$E$52,$G$52=3),AND(L4=$E$53,$G$53=3)),3,IF(OR(AND(L4=$E$48,$G$48=2),AND(L4=$E$49,$G$49=2),AND(L4=$E$50,$G$50=2),AND(L4=$E$51,$G$51=2),AND(L4=$E$52,$G$52=2),AND(L4=$E$53,$G$53=2)),2,1)) -> 1 | AD4: 2011-01-01 | AE4: 51 | AH4: =IF(AH3="","",IF($AI$1<=AI3,"",AI3+1)) ->  | AI4: =IF(AH4="","",MIN(EOMONTH(AH4,0),VLOOKUP(AH4,I!$O$164:$P$202,2,TRUE)-1,LOOKUP(AH4,$E$47:$F$53)-1,IF(AH4<$B$2,$B$2-1,I!$Q$9),IF(AH4<$B$3,$B$3-1,I!$Q$9),IF(AH4<$B$4,$B$4-1,I!$Q$9),LOOKUP(AH4,$H$47:$I$53))) ->  | AJ4: =IF(AH4="","",VLOOKUP(AH4,I!$P$164:$R$202,2)) ->  | AK4: =IF(AH4="","",ROUND(IF(AZ4=3,0,IF(AZ4=2,AJ4/2,AJ4))*(DAY(AI4)-DAY(AH4)+1)/DAY(EOMONTH(AH4,0)),0)) ->  | AL4: =IF(AH4="","",ROUND(IF(AZ4=3,0,IF(AZ4=2,IF(AJ4=VLOOKUP(AJ4,I!$I$2:$J$5,1),0,Main!$H$9)/2,IF(AJ4=VLOOKUP(AJ4,I!$I$2:$J$5,1),0,Main!$H$9)))*(DAY(AI4)-DAY(AH4)+1)/DAY(EOMONTH(AH4,0)),0)) ->  | AM4: =IF(AH4="","",IF(AJ4=VLOOKUP(AJ4,I!$I$2:$J$5,1),0,ROUND(AK4*VLOOKUP(AH4,$AD$4:$AE$7,2)%,0))) ->  | AN4: =IF(AH4="","",IF(OR(AZ4=3,AJ4=VLOOKUP(AJ4,I!$I$2:$J$5,1)),0,ROUND(MIN(ROUND(AJ4*VLOOKUP(AH4,$B$1:$G$4,2)%,0),VLOOKUP(AH4,$B$2:$H$4,7,TRUE))*(DAY(AI4)-DAY(AH4)+1)/DAY(EOMONTH(AH4,0)),0))) ->  | AO4: =IF(AH4="","",IF(OR(AH4<DATE(2010,4,1),$I$2=VLOOKUP(AH4,$B$2:$G$4,5,TRUE),AJ4=VLOOKUP(AJ4,I!$I$2:$J$5,1)),0,ROUND(IF(AZ4=3,0,IF(AZ4=2,MIN(ROUND(AJ4*$G$13%,0),$G$14)/2,MIN(ROUND(AJ4*$G$13%,0),$G$14)))*(DAY(AI4)-DAY(AH4)+1)/DAY(EOMONTH(AH4,0)),0))) ->  | AQ4: =IF(AH4="","",IF(AH4<DATE(2010,4,1),0,IF(OR(AZ4=2,AZ4=3,AJ4=VLOOKUP(AJ4,I!$I$2:$J$5,1)),0,ROUND(VLOOKUP(AH4,$B$1:$G$4,4)*(DAY(AI4)-DAY(AH4)+1)/DAY(EOMONTH(AH4,0)),0)))) ->  | AR4: =IF(AH4="","",IF(OR(AZ4=2,AZ4=3,AH4<DATE(2010,4,1),AJ4=VLOOKUP(AJ4,I!$I$2:$J$5,1)),0,ROUND(MIN(VLOOKUP(AG4,$A$27:$C$32,2,TRUE),ROUND(AK4*VLOOKUP(AG4,$A$27:$C$32,3,TRUE)%,0))*IF(AG4=$A$36,$C$36,IF(AG4=$A$37,$C$37,IF(AG4=$A$38,$C$38,IF(AG4=$A$39,$C$39,IF(AG4=$A$40,$C$40,IF(AG4=$A$41,$C$41,1))))))*(DAY(AI4)-DAY(AH4)+1)/DAY(EOMONTH(AH4,0)),0))) ->  | AS4: =IF(AH4="","",IF(OR(AZ4=3,AJ4=VLOOKUP(AJ4,I!$I$2:$J$5,1)),0,ROUND(IF(AZ4=2,VLOOKUP(AJ4,$A$20:$E$23,IF($B$19=VLOOKUP(AH4,$B$2:$G$4,3,TRUE),2,IF($C$19=VLOOKUP(AH4,$B$2:$G$4,3,TRUE),3,IF($D$19=VLOOKUP(AH4,$B$2:$G$4,3,TRUE),4,5))),TRUE)/2,VLOOKUP(AJ4,$A$20:$E$23,IF($B$19=VLOOKUP(AH4,$B$2:$G$4,3,TRUE),2,IF($C$19=VLOOKUP(AH4,$B$2:$G$4,3,TRUE),3,IF($D$19=VLOOKUP(AH4,$B$2:$G$4,3,TRUE),4,5))),TRUE))*(DAY(AI4)-DAY(AH4)+1)/DAY(EOMONTH(AH4,0)),0))) ->  | AT4: =IF(AH4="","",IF(OR(AG4<DATE(2010,4,1),AZ4=3,AJ4=VLOOKUP(AJ4,I!$I$2:$J$5,1)),0,ROUND(IF(AZ4=2,Main!$L$9/2,Main!$L$9)*(DAY(AI4)-DAY(AH4)+1)/DAY(EOMONTH(AH4,0)),0))) ->  | AV4: =IF(AH4="","",IF(OR(AZ4=3,AJ4=VLOOKUP(AJ4,I!$I$2:$J$5,1)),0,ROUND(IF(AZ4=2,VLOOKUP(AK4,$A$11:$E$16,IF($B$10=VLOOKUP(AG4,$B$2:$G$4,6,TRUE),2,IF($B$10=VLOOKUP(AG4,$B$2:$G$4,6,TRUE),3,IF($D$10=VLOOKUP(AG4,$B$2:$G$4,6,TRUE),4,5))))/2,VLOOKUP(AK4,$A$11:$E$16,IF($B$10=VLOOKUP(AG4,$B$2:$G$4,6,TRUE),2,IF($B$10=VLOOKUP(AG4,$B$2:$G$4,6,TRUE),3,IF($D$10=VLOOKUP(AG4,$B$2:$G$4,6,TRUE),4,5)))))*(DAY(AI4)-DAY(AH4)+1)/DAY(EOMONTH(AH4,0)),0))) ->  | AW4: =SUM(AK4:AV4) -> 0 | AX4: =IF(AH4="","",IF(AH4<=$AX$1,AW4-AY4,IF(AND(Main!$F$22=Main!$CA$24,AH4>$AX$1),ROUND(SUM(AK4,AM4)*10%,0),""))) ->  | AY4: =IF(AG4="","",IF(OR(Main!$H$10=Main!$BH$4,Main!$H$10=Main!$BH$5),0,LOOKUP(AW4*DAY(EOMONTH(AH4,0))/(DAY(AI4)-DAY(AH4)+1),$H$17:$I$22))) ->  | AZ4: =IF(OR(AND(AH4=$E$48,$G$48=3),AND(AH4=$E$49,$G$49=3),AND(AH4=$E$50,$G$50=3),AND(AH4=$E$51,$G$51=3),AND(AH4=$E$52,$G$52=3),AND(AH4=$E$53,$G$53=3)),3,IF(OR(AND(AH4=$E$48,$G$48=2),AND(AH4=$E$49,$G$49=2),AND(AH4=$E$50,$G$50=2),AND(AH4=$E$51,$G$51=2),AND(AH4=$E$52,$G$52=2),AND(AH4=$E$53,$G$53=2)),2,1)) -> 1 | BC4: =IF(BC3="","",IF($BD$1<=BD3,"",BD3+1)) ->  | BD4: =IF(BC4="","",MIN(EOMONTH(BC4,0),VLOOKUP(BC4,I!$O$164:$P$202,2,TRUE)-1,LOOKUP(BC4,$E$47:$F$53)-1,IF(BC4<$B$2,$B$2-1,I!$Q$9),IF(BC4<$B$3,$B$3-1,I!$Q$9),IF(BC4<$B$4,$B$4-1,I!$Q$9),LOOKUP(BC4,$H$47:$I$53))) ->  | BE4: =IF(BC4="","",VLOOKUP(BC4,I!$P$164:$R$202,3)) ->  | BG4: =IF(BC4="","",ROUND(IF(BU4=3,0,IF(BU4=2,IF(BE4=VLOOKUP(BE4,I!$I$2:$J$5,1),0,Main!$H$9)/2,IF(BE4=VLOOKUP(BE4,I!$I$2:$J$5,1),0,Main!$H$9)))*(DAY(BD4)-DAY(BC4)+1)/DAY(EOMONTH(BC4,0)),0)) ->  | BH4: =IF(BC4="","",IF(BE4=VLOOKUP(BE4,I!$I$2:$J$5,1),0,ROUND(BF4*VLOOKUP(BC4,$AD$4:$AE$7,2)%,0))) ->  | BI4: =IF(BC4="","",IF(OR(BU4=3,BE4=VLOOKUP(BE4,I!$I$2:$J$5,1)),0,ROUND(MIN(ROUND(BE4*VLOOKUP(BC4,$B$1:$G$4,2)%,0),VLOOKUP(BC4,$B$2:$H$4,7,TRUE))*(DAY(BD4)-DAY(BC4)+1)/DAY(EOMONTH(BC4,0)),0))) ->  | BJ4: =IF(BC4="","",IF(OR(BC4<DATE(2010,4,1),$I$2=VLOOKUP(BC4,$B$2:$G$4,5,TRUE),BE4=VLOOKUP(BE4,I!$I$2:$J$5,1)),0,ROUND(IF(BU4=3,0,IF(BU4=2,MIN(ROUND(BE4*$G$13%,0),$G$14)/2,MIN(ROUND(BE4*$G$13%,0),$G$14)))*(DAY(BD4)-DAY(BC4)+1)/DAY(EOMONTH(BC4,0)),0))) ->  | BL4: =IF(BC4="","",IF(BC4<DATE(2010,4,1),0,IF(OR(BU4=2,BU4=3,BE4=VLOOKUP(BE4,I!$I$2:$J$5,1)),0,ROUND(VLOOKUP(BC4,$B$1:$G$4,4)*(DAY(BD4)-DAY(BC4)+1)/DAY(EOMONTH(BC4,0)),0)))) ->  | BM4: =IF(BC4="","",IF(OR(BU4=2,BU4=3,BC4<DATE(2010,4,1),BE4=VLOOKUP(BE4,I!$I$2:$J$5,1)),0,ROUND(MIN(VLOOKUP(BB4,$A$27:$C$32,2,TRUE),ROUND(BF4*VLOOKUP(BB4,$A$27:$C$32,3,TRUE)%,0))*IF(BB4=$A$36,$C$36,IF(BB4=$A$37,$C$37,IF(BB4=$A$38,$C$38,IF(BB4=$A$39,$C$39,IF(BB4=$A$40,$C$40,IF(BB4=$A$41,$C$41,1))))))*(DAY(BD4)-DAY(BC4)+1)/DAY(EOMONTH(BC4,0)),0))) ->  | BN4: =IF(BC4="","",IF(OR(BU4=3,BE4=VLOOKUP(BE4,I!$I$2:$J$5,1)),0,ROUND(IF(BU4=2,VLOOKUP(BE4,$A$20:$E$23,IF($B$19=VLOOKUP(BC4,$B$2:$G$4,3,TRUE),2,IF($C$19=VLOOKUP(BC4,$B$2:$G$4,3,TRUE),3,IF($D$19=VLOOKUP(BC4,$B$2:$G$4,3,TRUE),4,5))),TRUE)/2,VLOOKUP(BE4,$A$20:$E$23,IF($B$19=VLOOKUP(BC4,$B$2:$G$4,3,TRUE),2,IF($C$19=VLOOKUP(BC4,$B$2:$G$4,3,TRUE),3,IF($D$19=VLOOKUP(BC4,$B$2:$G$4,3,TRUE),4,5))),TRUE))*(DAY(BD4)-DAY(BC4)+1)/DAY(EOMONTH(BC4,0)),0))) ->  | BO4: =IF(BC4="","",IF(OR(BB4<DATE(2010,4,1),BU4=3,BE4=VLOOKUP(BE4,I!$I$2:$J$5,1)),0,ROUND(IF(BU4=2,Main!$L$9/2,Main!$L$9)*(DAY(BD4)-DAY(BC4)+1)/DAY(EOMONTH(BC4,0)),0))) ->  | BQ4: =IF(BC4="","",IF(OR(BU4=3,BE4=VLOOKUP(BE4,I!$I$2:$J$5,1)),0,ROUND(IF(BU4=2,VLOOKUP(BF4,$A$11:$E$16,IF($B$10=VLOOKUP(BB4,$B$2:$G$4,6,TRUE),2,IF($B$10=VLOOKUP(BB4,$B$2:$G$4,6,TRUE),3,IF($D$10=VLOOKUP(BB4,$B$2:$G$4,6,TRUE),4,5))))/2,VLOOKUP(BF4,$A$11:$E$16,IF($B$10=VLOOKUP(BB4,$B$2:$G$4,6,TRUE),2,IF($B$10=VLOOKUP(BB4,$B$2:$G$4,6,TRUE),3,IF($D$10=VLOOKUP(BB4,$B$2:$G$4,6,TRUE),4,5)))))*(DAY(BD4)-DAY(BC4)+1)/DAY(EOMONTH(BC4,0)),0))) ->  | BR4: =SUM(BF4:BQ4) -> 0 | BS4: =IF(BC4="","",IF(BC4<=$AX$1,BR4-BT4,IF(AND(Main!$F$22=Main!$CA$24,BC4>$AX$1),ROUND(SUM(BF4,BH4)*10%,0),""))) ->  | BT4: =IF(BB4="","",IF(OR(Main!$H$10=Main!$BH$4,Main!$H$10=Main!$BH$5),0,LOOKUP(BR4*DAY(EOMONTH(BC4,0))/(DAY(BD4)-DAY(BC4)+1),$H$17:$I$22))) ->  | BU4: =IF(OR(AND(BC4=$E$48,$G$48=3),AND(BC4=$E$49,$G$49=3),AND(BC4=$E$50,$G$50=3),AND(BC4=$E$51,$G$51=3),AND(BC4=$E$52,$G$52=3),AND(BC4=$E$53,$G$53=3)),3,IF(OR(AND(BC4=$E$48,$G$48=2),AND(BC4=$E$49,$G$49=2),AND(BC4=$E$50,$G$50=2),AND(BC4=$E$51,$G$51=2),AND(BC4=$E$52,$G$52=2),AND(BC4=$E$53,$G$53=2)),2,1)) -> 1 | BV4: =AW4-BR4 -> 0 | BW4: =H9 -> 2011-01-01 | BX4: 51.0000 | BY4: 51.00 | CA4: =IF(CA3="","",IF($CB$1<=CB3,"",CB3+1)) ->  | CB4: =IF(CA4="","",MIN(EOMONTH(CA4,0),VLOOKUP(CA4,I!$O$164:$P$202,2,TRUE)-1,LOOKUP(CA4,$E$47:$F$53)-1,IF(CA4<$B$2,$B$2-1,I!$Q$9),IF(CA4<$B$3,$B$3-1,I!$Q$9),IF(CA4<$B$4,$B$4-1,I!$Q$9),LOOKUP(CA4,$H$47:$I$53))) ->  | CC4: =IF(CA4="","",VLOOKUP(CA4,I!$P$164:$R$202,2)) ->  | CD4: =IF(CA4="","",ROUND(IF(CS4=3,0,IF(CS4=2,CC4/2,CC4))*(DAY(CB4)-DAY(CA4)+1)/DAY(EOMONTH(CA4,0)),0)) ->  | CE4: =IF(CA4="","",ROUND(IF(CS4=3,0,IF(CS4=2,IF(CC4=VLOOKUP(CC4,I!$I$2:$J$5,1),0,Main!$H$9)/2,IF(CC4=VLOOKUP(CC4,I!$I$2:$J$5,1),0,Main!$H$9)))*(DAY(CB4)-DAY(CA4)+1)/DAY(EOMONTH(CA4,0)),0)) ->  | CF4: =IF(CA4="","",IF(CC4=VLOOKUP(CC4,I!$I$2:$J$5,1),0,ROUND(CD4*VLOOKUP(CA4,$BW$4:$BX$7,2)%,0))) ->  | CG4: =IF(CA4="","",IF(OR(CS4=3,CC4=VLOOKUP(CC4,I!$I$2:$J$5,1)),0,ROUND(MIN(ROUND(CC4*VLOOKUP(CA4,$B$1:$G$4,2)%,0),VLOOKUP(CA4,$B$2:$H$4,7,TRUE))*(DAY(CB4)-DAY(CA4)+1)/DAY(EOMONTH(CA4,0)),0))) ->  | CH4: =IF(CA4="","",IF(OR(CA4<DATE(2010,4,1),$I$2=VLOOKUP(CA4,$B$2:$G$4,5,TRUE),CC4=VLOOKUP(CC4,I!$I$2:$J$5,1)),0,ROUND(IF(CS4=3,0,IF(CS4=2,MIN(ROUND(CC4*$G$13%,0),$G$14)/2,MIN(ROUND(CC4*$G$13%,0),$G$14)))*(DAY(CB4)-DAY(CA4)+1)/DAY(EOMONTH(CA4,0)),0))) ->  | CJ4: =IF(CA4="","",IF(CA4<DATE(2010,4,1),0,IF(OR(CS4=2,CS4=3,CC4=VLOOKUP(CC4,I!$I$2:$J$5,1)),0,ROUND(VLOOKUP(CA4,$B$1:$G$4,4)*(DAY(CB4)-DAY(CA4)+1)/DAY(EOMONTH(CA4,0)),0)))) ->  | CK4: =IF(CA4="","",IF(OR(CS4=2,CS4=3,CA4<DATE(2010,4,1),CC4=VLOOKUP(CC4,I!$I$2:$J$5,1)),0,ROUND(MIN(VLOOKUP(BZ4,$A$27:$C$32,2,TRUE),ROUND(CD4*VLOOKUP(BZ4,$A$27:$C$32,3,TRUE)%,0))*IF(BZ4=$A$36,$C$36,IF(BZ4=$A$37,$C$37,IF(BZ4=$A$38,$C$38,IF(BZ4=$A$39,$C$39,IF(BZ4=$A$40,$C$40,IF(BZ4=$A$41,$C$41,1))))))*(DAY(CB4)-DAY(CA4)+1)/DAY(EOMONTH(CA4,0)),0))) ->  | CL4: =IF(CA4="","",IF(OR(CS4=3,CC4=VLOOKUP(CC4,I!$I$2:$J$5,1)),0,ROUND(IF(CS4=2,VLOOKUP(CC4,$A$20:$E$23,IF($B$19=VLOOKUP(CA4,$B$2:$G$4,3,TRUE),2,IF($C$19=VLOOKUP(CA4,$B$2:$G$4,3,TRUE),3,IF($D$19=VLOOKUP(CA4,$B$2:$G$4,3,TRUE),4,5))),TRUE)/2,VLOOKUP(CC4,$A$20:$E$23,IF($B$19=VLOOKUP(CA4,$B$2:$G$4,3,TRUE),2,IF($C$19=VLOOKUP(CA4,$B$2:$G$4,3,TRUE),3,IF($D$19=VLOOKUP(CA4,$B$2:$G$4,3,TRUE),4,5))),TRUE))*(DAY(CB4)-DAY(CA4)+1)/DAY(EOMONTH(CA4,0)),0))) ->  | CM4: =IF(CA4="","",IF(OR(BZ4<DATE(2010,4,1),CS4=3,CC4=VLOOKUP(CC4,I!$I$2:$J$5,1)),0,ROUND(IF(CS4=2,Main!$L$9/2,Main!$L$9)*(DAY(CB4)-DAY(CA4)+1)/DAY(EOMONTH(CA4,0)),0))) ->  | CO4: =IF(CA4="","",IF(OR(CS4=3,CC4=VLOOKUP(CC4,I!$I$2:$J$5,1)),0,ROUND(IF(CS4=2,VLOOKUP(CD4,$A$11:$E$16,IF($B$10=VLOOKUP(BZ4,$B$2:$G$4,6,TRUE),2,IF($B$10=VLOOKUP(BZ4,$B$2:$G$4,6,TRUE),3,IF($D$10=VLOOKUP(BZ4,$B$2:$G$4,6,TRUE),4,5))))/2,VLOOKUP(CD4,$A$11:$E$16,IF($B$10=VLOOKUP(BZ4,$B$2:$G$4,6,TRUE),2,IF($B$10=VLOOKUP(BZ4,$B$2:$G$4,6,TRUE),3,IF($D$10=VLOOKUP(BZ4,$B$2:$G$4,6,TRUE),4,5)))))*(DAY(CB4)-DAY(CA4)+1)/DAY(EOMONTH(CA4,0)),0))) ->  | CP4: =SUM(CD4:CO4) -> 0 | CQ4: =IF(CA4="","",IF(Main!$F$22=Main!$CA$24,ROUND(SUM(CD4,CF4)*10%,0),"")) ->  | CR4: =IF(BZ4="","",IF(OR(Main!$H$10=Main!$BH$4,Main!$H$10=Main!$BH$5),0,LOOKUP(CP4*DAY(EOMONTH(CA4,0))/(DAY(CB4)-DAY(CA4)+1),$H$17:$I$22))) ->  | CS4: =IF(OR(AND(CA4=$E$48,$G$48=3),AND(CA4=$E$49,$G$49=3),AND(CA4=$E$50,$G$50=3),AND(CA4=$E$51,$G$51=3),AND(CA4=$E$52,$G$52=3),AND(CA4=$E$53,$G$53=3)),3,IF(OR(AND(CA4=$E$48,$G$48=2),AND(CA4=$E$49,$G$49=2),AND(CA4=$E$50,$G$50=2),AND(CA4=$E$51,$G$51=2),AND(CA4=$E$52,$G$52=2),AND(CA4=$E$53,$G$53=2)),2,1)) -> 1 | CV4: =IF(CV3="","",IF($CB$1<=CW3,"",CW3+1)) ->  | CW4: =IF(CV4="","",MIN(EOMONTH(CV4,0),VLOOKUP(CV4,I!$O$164:$P$202,2,TRUE)-1,LOOKUP(CV4,$E$47:$F$53)-1,IF(CV4<$B$2,$B$2-1,I!$Q$9),IF(CV4<$B$3,$B$3-1,I!$Q$9),IF(CV4<$B$4,$B$4-1,I!$Q$9),LOOKUP(CV4,$H$47:$I$53))) ->  | CX4: =IF(CV4="","",VLOOKUP(CV4,I!$P$164:$R$202,3)) ->  | CZ4: =IF(CV4="","",ROUND(IF(DN4=3,0,IF(DN4=2,IF(CX4=VLOOKUP(CX4,I!$I$2:$J$5,1),0,Main!$H$9)/2,IF(CX4=VLOOKUP(CX4,I!$I$2:$J$5,1),0,Main!$H$9)))*(DAY(CW4)-DAY(CV4)+1)/DAY(EOMONTH(CV4,0)),0)) ->  | DA4: =IF(CV4="","",IF(CX4=VLOOKUP(CX4,I!$I$2:$J$5,1),0,ROUND(CY4*VLOOKUP(CV4,$AD$4:$AE$7,2)%,0))) ->  | DB4: =IF(CV4="","",IF(OR(DN4=3,CX4=VLOOKUP(CX4,I!$I$2:$J$5,1)),0,ROUND(MIN(ROUND(CX4*VLOOKUP(CV4,$B$1:$G$4,2)%,0),VLOOKUP(CV4,$B$2:$H$4,7,TRUE))*(DAY(CW4)-DAY(CV4)+1)/DAY(EOMONTH(CV4,0)),0))) ->  | DC4: =IF(CV4="","",IF(OR(CV4<DATE(2010,4,1),$I$2=VLOOKUP(CV4,$B$2:$G$4,5,TRUE),CX4=VLOOKUP(CX4,I!$I$2:$J$5,1)),0,ROUND(IF(DN4=3,0,IF(DN4=2,MIN(ROUND(CX4*$G$13%,0),$G$14)/2,MIN(ROUND(CX4*$G$13%,0),$G$14)))*(DAY(CW4)-DAY(CV4)+1)/DAY(EOMONTH(CV4,0)),0))) ->  | DE4: =IF(CV4="","",IF(CV4<DATE(2010,4,1),0,IF(OR(DN4=2,DN4=3,CX4=VLOOKUP(CX4,I!$I$2:$J$5,1)),0,ROUND(VLOOKUP(CV4,$B$1:$G$4,4)*(DAY(CW4)-DAY(CV4)+1)/DAY(EOMONTH(CV4,0)),0)))) ->  | DF4: =IF(CV4="","",IF(OR(DN4=2,DN4=3,CV4<DATE(2010,4,1),CX4=VLOOKUP(CX4,I!$I$2:$J$5,1)),0,ROUND(MIN(VLOOKUP(CU4,$A$27:$C$32,2,TRUE),ROUND(CY4*VLOOKUP(CU4,$A$27:$C$32,3,TRUE)%,0))*IF(CU4=$A$36,$C$36,IF(CU4=$A$37,$C$37,IF(CU4=$A$38,$C$38,IF(CU4=$A$39,$C$39,IF(CU4=$A$40,$C$40,IF(CU4=$A$41,$C$41,1))))))*(DAY(CW4)-DAY(CV4)+1)/DAY(EOMONTH(CV4,0)),0))) ->  | DG4: =IF(CV4="","",IF(OR(DN4=3,CX4=VLOOKUP(CX4,I!$I$2:$J$5,1)),0,ROUND(IF(DN4=2,VLOOKUP(CX4,$A$20:$E$23,IF($B$19=VLOOKUP(CV4,$B$2:$G$4,3,TRUE),2,IF($C$19=VLOOKUP(CV4,$B$2:$G$4,3,TRUE),3,IF($D$19=VLOOKUP(CV4,$B$2:$G$4,3,TRUE),4,5))),TRUE)/2,VLOOKUP(CX4,$A$20:$E$23,IF($B$19=VLOOKUP(CV4,$B$2:$G$4,3,TRUE),2,IF($C$19=VLOOKUP(CV4,$B$2:$G$4,3,TRUE),3,IF($D$19=VLOOKUP(CV4,$B$2:$G$4,3,TRUE),4,5))),TRUE))*(DAY(CW4)-DAY(CV4)+1)/DAY(EOMONTH(CV4,0)),0))) ->  | DH4: =IF(CV4="","",IF(OR(CU4<DATE(2010,4,1),DN4=3,CX4=VLOOKUP(CX4,I!$I$2:$J$5,1)),0,ROUND(IF(DN4=2,Main!$L$9/2,Main!$L$9)*(DAY(CW4)-DAY(CV4)+1)/DAY(EOMONTH(CV4,0)),0))) ->  | DJ4: =IF(CV4="","",IF(OR(DN4=3,CX4=VLOOKUP(CX4,I!$I$2:$J$5,1)),0,ROUND(IF(DN4=2,VLOOKUP(CY4,$A$11:$E$16,IF($B$10=VLOOKUP(CU4,$B$2:$G$4,6,TRUE),2,IF($B$10=VLOOKUP(CU4,$B$2:$G$4,6,TRUE),3,IF($D$10=VLOOKUP(CU4,$B$2:$G$4,6,TRUE),4,5))))/2,VLOOKUP(CY4,$A$11:$E$16,IF($B$10=VLOOKUP(CU4,$B$2:$G$4,6,TRUE),2,IF($B$10=VLOOKUP(CU4,$B$2:$G$4,6,TRUE),3,IF($D$10=VLOOKUP(CU4,$B$2:$G$4,6,TRUE),4,5)))))*(DAY(CW4)-DAY(CV4)+1)/DAY(EOMONTH(CV4,0)),0))) ->  | DK4: =SUM(CY4:DJ4) -> 0 | DL4: =IF(CV4="","",IF(CX4=VLOOKUP(CX4,I!$I$2:$J$5,1),"",IF(Main!$F$22=Main!$CA$24,ROUND(SUM(CY4,DA4)*10%,0),""))) ->  | DM4: =IF(CU4="","",IF(OR(Main!$H$10=Main!$BH$4,Main!$H$10=Main!$BH$5),0,LOOKUP(DK4*DAY(EOMONTH(CV4,0))/(DAY(CW4)-DAY(CV4)+1),$H$17:$I$22))) ->  | DN4: =IF(OR(AND(CV4=$E$48,$G$48=3),AND(CV4=$E$49,$G$49=3),AND(CV4=$E$50,$G$50=3),AND(CV4=$E$51,$G$51=3),AND(CV4=$E$52,$G$52=3),AND(CV4=$E$53,$G$53=3)),3,IF(OR(AND(CV4=$E$48,$G$48=2),AND(CV4=$E$49,$G$49=2),AND(CV4=$E$50,$G$50=2),AND(CV4=$E$51,$G$51=2),AND(CV4=$E$52,$G$52=2),AND(CV4=$E$53,$G$53=2)),2,1)) -> 1
K5: 2012-05-01 | L5: =IF(L4="","",IF($M$1<=M4,"",M4+1)) -> 2012-05-01 | M5: =IF(L5="","",MIN(EOMONTH(L5,0),VLOOKUP(L5,I!$O$164:$P$202,2,TRUE)-1,LOOKUP(L5,$E$47:$F$53)-1,IF(L5<$B$2,$B$2-1,I!$Q$9),IF(L5<$B$3,$B$3-1,I!$Q$9),IF(L5<$B$4,$B$4-1,I!$Q$9),LOOKUP(L5,$H$47:$I$53))) -> 2012-05-31 | N5: =IF(L5="","",VLOOKUP(L5,'Advance Tax'!$A$3:$C$14,3)) -> 31320.00 | O5: 31320 | P5: =IF(L5="","",ROUND(IF(AB5=3,0,IF(AB5=2,IF(N5=VLOOKUP(N5,I!$I$2:$J$5,1),0,Main!$H$9)/2,IF(N5=VLOOKUP(N5,I!$I$2:$J$5,1),0,Main!$H$9)))*(DAY(M5)-DAY(L5)+1)/DAY(EOMONTH(L5,0)),0)) -> 0 | Q5: =IF(L5="","",IF(N5=VLOOKUP(N5,I!$I$2:$J$5,1),0,ROUND(O5*VLOOKUP(L5,$H$9:$I$12,2)%,0))) -> 18166 | R5: =IF(L5="","",IF(OR(AB5=3,N5=VLOOKUP(N5,I!$I$2:$J$5,1)),0,ROUND(MIN(ROUND(N5*VLOOKUP(L5,$B$1:$G$4,2)%,0),VLOOKUP(L5,$B$2:$H$4,7,TRUE))*(DAY(M5)-DAY(L5)+1)/DAY(EOMONTH(L5,0)),0))) -> 3132 | S5: =IF(L5="","",IF(OR(L5<DATE(2010,4,1),$I$2=VLOOKUP(L5,$B$2:$G$4,5,TRUE),N5=VLOOKUP(N5,I!$I$2:$J$5,1)),0,ROUND(IF(AB5=3,0,IF(AB5=2,MIN(ROUND(N5*$G$13%,0),$G$14)/2,MIN(ROUND(N5*$G$13%,0),$G$14)))*(DAY(M5)-DAY(L5)+1)/DAY(EOMONTH(L5,0)),0))) -> 0 | U5: =IF(L5="","",IF(L5<DATE(2010,4,1),0,IF(OR(AB5=2,AB5=3,N5=VLOOKUP(N5,I!$I$2:$J$5,1)),0,ROUND(VLOOKUP(L5,$B$1:$G$4,4)*(DAY(M5)-DAY(L5)+1)/DAY(EOMONTH(L5,0)),0)))) -> 0 | V5: =IF(L5="","",IF(OR(AB5=2,AB5=3,L5<DATE(2010,4,1),N5=VLOOKUP(N5,I!$I$2:$J$5,1)),0,ROUND(MIN(VLOOKUP(K5,$A$27:$C$32,2,TRUE),ROUND(O5*VLOOKUP(K5,$A$27:$C$32,3,TRUE)%,0))*IF(K5=$A$36,$C$36,IF(K5=$A$37,$C$37,IF(K5=$A$38,$C$38,IF(K5=$A$39,$C$39,IF(K5=$A$40,$C$40,IF(K5=$A$41,$C$41,1))))))*(DAY(M5)-DAY(L5)+1)/DAY(EOMONTH(L5,0)),0))) -> 0 | W5: =IF(L5="","",IF(OR(AB5=3,N5=VLOOKUP(N5,I!$I$2:$J$5,1)),0,ROUND(IF(AB5=2,VLOOKUP(N5,$A$20:$E$23,IF($B$19=VLOOKUP(L5,$B$2:$G$4,3,TRUE),2,IF($C$19=VLOOKUP(L5,$B$2:$G$4,3,TRUE),3,IF($D$19=VLOOKUP(L5,$B$2:$G$4,3,TRUE),4,5))),TRUE)/2,VLOOKUP(N5,$A$20:$E$23,IF($B$19=VLOOKUP(L5,$B$2:$G$4,3,TRUE),2,IF($C$19=VLOOKUP(L5,$B$2:$G$4,3,TRUE),3,IF($D$19=VLOOKUP(L5,$B$2:$G$4,3,TRUE),4,5))),TRUE))*(DAY(M5)-DAY(L5)+1)/DAY(EOMONTH(L5,0)),0))) -> 0 | X5: =IF(L5="","",IF(OR(K5<DATE(2010,4,1),AB5=3,N5=VLOOKUP(N5,I!$I$2:$J$5,1)),0,ROUND(IF(AB5=2,Main!$L$9/2,Main!$L$9)*(DAY(M5)-DAY(L5)+1)/DAY(EOMONTH(L5,0)),0))) -> 0 | Z5: =IF(L5="","",IF(OR(AB5=3,N5=VLOOKUP(N5,I!$I$2:$J$5,1)),0,ROUND(IF(AB5=2,VLOOKUP(O5,$A$11:$E$16,IF($B$10=VLOOKUP(K5,$B$2:$G$4,6,TRUE),2,IF($B$10=VLOOKUP(K5,$B$2:$G$4,6,TRUE),3,IF($D$10=VLOOKUP(K5,$B$2:$G$4,6,TRUE),4,5))))/2,VLOOKUP(O5,$A$11:$E$16,IF($B$10=VLOOKUP(K5,$B$2:$G$4,6,TRUE),2,IF($B$10=VLOOKUP(K5,$B$2:$G$4,6,TRUE),3,IF($D$10=VLOOKUP(K5,$B$2:$G$4,6,TRUE),4,5)))))*(DAY(M5)-DAY(L5)+1)/DAY(EOMONTH(L5,0)),0))) -> 0 | AA5: =SUM(O5:Z5) -> 52618 | AB5: =IF(OR(AND(L5=$E$48,$G$48=3),AND(L5=$E$49,$G$49=3),AND(L5=$E$50,$G$50=3),AND(L5=$E$51,$G$51=3),AND(L5=$E$52,$G$52=3),AND(L5=$E$53,$G$53=3)),3,IF(OR(AND(L5=$E$48,$G$48=2),AND(L5=$E$49,$G$49=2),AND(L5=$E$50,$G$50=2),AND(L5=$E$51,$G$51=2),AND(L5=$E$52,$G$52=2),AND(L5=$E$53,$G$53=2)),2,1)) -> 1 | AD5: 2011-07-01 | AE5: 58 | AH5: =IF(AH4="","",IF($AI$1<=AI4,"",AI4+1)) ->  | AI5: =IF(AH5="","",MIN(EOMONTH(AH5,0),VLOOKUP(AH5,I!$O$164:$P$202,2,TRUE)-1,LOOKUP(AH5,$E$47:$F$53)-1,IF(AH5<$B$2,$B$2-1,I!$Q$9),IF(AH5<$B$3,$B$3-1,I!$Q$9),IF(AH5<$B$4,$B$4-1,I!$Q$9),LOOKUP(AH5,$H$47:$I$53))) ->  | AJ5: =IF(AH5="","",VLOOKUP(AH5,I!$P$164:$R$202,2)) ->  | AK5: =IF(AH5="","",ROUND(IF(AZ5=3,0,IF(AZ5=2,AJ5/2,AJ5))*(DAY(AI5)-DAY(AH5)+1)/DAY(EOMONTH(AH5,0)),0)) ->  | AL5: =IF(AH5="","",ROUND(IF(AZ5=3,0,IF(AZ5=2,IF(AJ5=VLOOKUP(AJ5,I!$I$2:$J$5,1),0,Main!$H$9)/2,IF(AJ5=VLOOKUP(AJ5,I!$I$2:$J$5,1),0,Main!$H$9)))*(DAY(AI5)-DAY(AH5)+1)/DAY(EOMONTH(AH5,0)),0)) ->  | AM5: =IF(AH5="","",IF(AJ5=VLOOKUP(AJ5,I!$I$2:$J$5,1),0,ROUND(AK5*VLOOKUP(AH5,$AD$4:$AE$7,2)%,0))) ->  | AN5: =IF(AH5="","",IF(OR(AZ5=3,AJ5=VLOOKUP(AJ5,I!$I$2:$J$5,1)),0,ROUND(MIN(ROUND(AJ5*VLOOKUP(AH5,$B$1:$G$4,2)%,0),VLOOKUP(AH5,$B$2:$H$4,7,TRUE))*(DAY(AI5)-DAY(AH5)+1)/DAY(EOMONTH(AH5,0)),0))) ->  | AO5: =IF(AH5="","",IF(OR(AH5<DATE(2010,4,1),$I$2=VLOOKUP(AH5,$B$2:$G$4,5,TRUE),AJ5=VLOOKUP(AJ5,I!$I$2:$J$5,1)),0,ROUND(IF(AZ5=3,0,IF(AZ5=2,MIN(ROUND(AJ5*$G$13%,0),$G$14)/2,MIN(ROUND(AJ5*$G$13%,0),$G$14)))*(DAY(AI5)-DAY(AH5)+1)/DAY(EOMONTH(AH5,0)),0))) ->  | AQ5: =IF(AH5="","",IF(AH5<DATE(2010,4,1),0,IF(OR(AZ5=2,AZ5=3,AJ5=VLOOKUP(AJ5,I!$I$2:$J$5,1)),0,ROUND(VLOOKUP(AH5,$B$1:$G$4,4)*(DAY(AI5)-DAY(AH5)+1)/DAY(EOMONTH(AH5,0)),0)))) ->  | AR5: =IF(AH5="","",IF(OR(AZ5=2,AZ5=3,AH5<DATE(2010,4,1),AJ5=VLOOKUP(AJ5,I!$I$2:$J$5,1)),0,ROUND(MIN(VLOOKUP(AG5,$A$27:$C$32,2,TRUE),ROUND(AK5*VLOOKUP(AG5,$A$27:$C$32,3,TRUE)%,0))*IF(AG5=$A$36,$C$36,IF(AG5=$A$37,$C$37,IF(AG5=$A$38,$C$38,IF(AG5=$A$39,$C$39,IF(AG5=$A$40,$C$40,IF(AG5=$A$41,$C$41,1))))))*(DAY(AI5)-DAY(AH5)+1)/DAY(EOMONTH(AH5,0)),0))) ->  | AS5: =IF(AH5="","",IF(OR(AZ5=3,AJ5=VLOOKUP(AJ5,I!$I$2:$J$5,1)),0,ROUND(IF(AZ5=2,VLOOKUP(AJ5,$A$20:$E$23,IF($B$19=VLOOKUP(AH5,$B$2:$G$4,3,TRUE),2,IF($C$19=VLOOKUP(AH5,$B$2:$G$4,3,TRUE),3,IF($D$19=VLOOKUP(AH5,$B$2:$G$4,3,TRUE),4,5))),TRUE)/2,VLOOKUP(AJ5,$A$20:$E$23,IF($B$19=VLOOKUP(AH5,$B$2:$G$4,3,TRUE),2,IF($C$19=VLOOKUP(AH5,$B$2:$G$4,3,TRUE),3,IF($D$19=VLOOKUP(AH5,$B$2:$G$4,3,TRUE),4,5))),TRUE))*(DAY(AI5)-DAY(AH5)+1)/DAY(EOMONTH(AH5,0)),0))) ->  | AT5: =IF(AH5="","",IF(OR(AG5<DATE(2010,4,1),AZ5=3,AJ5=VLOOKUP(AJ5,I!$I$2:$J$5,1)),0,ROUND(IF(AZ5=2,Main!$L$9/2,Main!$L$9)*(DAY(AI5)-DAY(AH5)+1)/DAY(EOMONTH(AH5,0)),0))) ->  | AV5: =IF(AH5="","",IF(OR(AZ5=3,AJ5=VLOOKUP(AJ5,I!$I$2:$J$5,1)),0,ROUND(IF(AZ5=2,VLOOKUP(AK5,$A$11:$E$16,IF($B$10=VLOOKUP(AG5,$B$2:$G$4,6,TRUE),2,IF($B$10=VLOOKUP(AG5,$B$2:$G$4,6,TRUE),3,IF($D$10=VLOOKUP(AG5,$B$2:$G$4,6,TRUE),4,5))))/2,VLOOKUP(AK5,$A$11:$E$16,IF($B$10=VLOOKUP(AG5,$B$2:$G$4,6,TRUE),2,IF($B$10=VLOOKUP(AG5,$B$2:$G$4,6,TRUE),3,IF($D$10=VLOOKUP(AG5,$B$2:$G$4,6,TRUE),4,5)))))*(DAY(AI5)-DAY(AH5)+1)/DAY(EOMONTH(AH5,0)),0))) ->  | AW5: =SUM(AK5:AV5) -> 0 | AX5: =IF(AH5="","",IF(AH5<=$AX$1,AW5-AY5,IF(AND(Main!$F$22=Main!$CA$24,AH5>$AX$1),ROUND(SUM(AK5,AM5)*10%,0),""))) ->  | AY5: =IF(AG5="","",IF(OR(Main!$H$10=Main!$BH$4,Main!$H$10=Main!$BH$5),0,LOOKUP(AW5*DAY(EOMONTH(AH5,0))/(DAY(AI5)-DAY(AH5)+1),$H$17:$I$22))) ->  | AZ5: =IF(OR(AND(AH5=$E$48,$G$48=3),AND(AH5=$E$49,$G$49=3),AND(AH5=$E$50,$G$50=3),AND(AH5=$E$51,$G$51=3),AND(AH5=$E$52,$G$52=3),AND(AH5=$E$53,$G$53=3)),3,IF(OR(AND(AH5=$E$48,$G$48=2),AND(AH5=$E$49,$G$49=2),AND(AH5=$E$50,$G$50=2),AND(AH5=$E$51,$G$51=2),AND(AH5=$E$52,$G$52=2),AND(AH5=$E$53,$G$53=2)),2,1)) -> 1 | BC5: =IF(BC4="","",IF($BD$1<=BD4,"",BD4+1)) ->  | BD5: =IF(BC5="","",MIN(EOMONTH(BC5,0),VLOOKUP(BC5,I!$O$164:$P$202,2,TRUE)-1,LOOKUP(BC5,$E$47:$F$53)-1,IF(BC5<$B$2,$B$2-1,I!$Q$9),IF(BC5<$B$3,$B$3-1,I!$Q$9),IF(BC5<$B$4,$B$4-1,I!$Q$9),LOOKUP(BC5,$H$47:$I$53))) ->  | BE5: =IF(BC5="","",VLOOKUP(BC5,I!$P$164:$R$202,3)) ->  | BG5: =IF(BC5="","",ROUND(IF(BU5=3,0,IF(BU5=2,IF(BE5=VLOOKUP(BE5,I!$I$2:$J$5,1),0,Main!$H$9)/2,IF(BE5=VLOOKUP(BE5,I!$I$2:$J$5,1),0,Main!$H$9)))*(DAY(BD5)-DAY(BC5)+1)/DAY(EOMONTH(BC5,0)),0)) ->  | BH5: =IF(BC5="","",IF(BE5=VLOOKUP(BE5,I!$I$2:$J$5,1),0,ROUND(BF5*VLOOKUP(BC5,$AD$4:$AE$7,2)%,0))) ->  | BI5: =IF(BC5="","",IF(OR(BU5=3,BE5=VLOOKUP(BE5,I!$I$2:$J$5,1)),0,ROUND(MIN(ROUND(BE5*VLOOKUP(BC5,$B$1:$G$4,2)%,0),VLOOKUP(BC5,$B$2:$H$4,7,TRUE))*(DAY(BD5)-DAY(BC5)+1)/DAY(EOMONTH(BC5,0)),0))) ->  | BJ5: =IF(BC5="","",IF(OR(BC5<DATE(2010,4,1),$I$2=VLOOKUP(BC5,$B$2:$G$4,5,TRUE),BE5=VLOOKUP(BE5,I!$I$2:$J$5,1)),0,ROUND(IF(BU5=3,0,IF(BU5=2,MIN(ROUND(BE5*$G$13%,0),$G$14)/2,MIN(ROUND(BE5*$G$13%,0),$G$14)))*(DAY(BD5)-DAY(BC5)+1)/DAY(EOMONTH(BC5,0)),0))) ->  | BL5: =IF(BC5="","",IF(BC5<DATE(2010,4,1),0,IF(OR(BU5=2,BU5=3,BE5=VLOOKUP(BE5,I!$I$2:$J$5,1)),0,ROUND(VLOOKUP(BC5,$B$1:$G$4,4)*(DAY(BD5)-DAY(BC5)+1)/DAY(EOMONTH(BC5,0)),0)))) ->  | BM5: =IF(BC5="","",IF(OR(BU5=2,BU5=3,BC5<DATE(2010,4,1),BE5=VLOOKUP(BE5,I!$I$2:$J$5,1)),0,ROUND(MIN(VLOOKUP(BB5,$A$27:$C$32,2,TRUE),ROUND(BF5*VLOOKUP(BB5,$A$27:$C$32,3,TRUE)%,0))*IF(BB5=$A$36,$C$36,IF(BB5=$A$37,$C$37,IF(BB5=$A$38,$C$38,IF(BB5=$A$39,$C$39,IF(BB5=$A$40,$C$40,IF(BB5=$A$41,$C$41,1))))))*(DAY(BD5)-DAY(BC5)+1)/DAY(EOMONTH(BC5,0)),0))) ->  | BN5: =IF(BC5="","",IF(OR(BU5=3,BE5=VLOOKUP(BE5,I!$I$2:$J$5,1)),0,ROUND(IF(BU5=2,VLOOKUP(BE5,$A$20:$E$23,IF($B$19=VLOOKUP(BC5,$B$2:$G$4,3,TRUE),2,IF($C$19=VLOOKUP(BC5,$B$2:$G$4,3,TRUE),3,IF($D$19=VLOOKUP(BC5,$B$2:$G$4,3,TRUE),4,5))),TRUE)/2,VLOOKUP(BE5,$A$20:$E$23,IF($B$19=VLOOKUP(BC5,$B$2:$G$4,3,TRUE),2,IF($C$19=VLOOKUP(BC5,$B$2:$G$4,3,TRUE),3,IF($D$19=VLOOKUP(BC5,$B$2:$G$4,3,TRUE),4,5))),TRUE))*(DAY(BD5)-DAY(BC5)+1)/DAY(EOMONTH(BC5,0)),0))) ->  | BO5: =IF(BC5="","",IF(OR(BB5<DATE(2010,4,1),BU5=3,BE5=VLOOKUP(BE5,I!$I$2:$J$5,1)),0,ROUND(IF(BU5=2,Main!$L$9/2,Main!$L$9)*(DAY(BD5)-DAY(BC5)+1)/DAY(EOMONTH(BC5,0)),0))) ->  | BQ5: =IF(BC5="","",IF(OR(BU5=3,BE5=VLOOKUP(BE5,I!$I$2:$J$5,1)),0,ROUND(IF(BU5=2,VLOOKUP(BF5,$A$11:$E$16,IF($B$10=VLOOKUP(BB5,$B$2:$G$4,6,TRUE),2,IF($B$10=VLOOKUP(BB5,$B$2:$G$4,6,TRUE),3,IF($D$10=VLOOKUP(BB5,$B$2:$G$4,6,TRUE),4,5))))/2,VLOOKUP(BF5,$A$11:$E$16,IF($B$10=VLOOKUP(BB5,$B$2:$G$4,6,TRUE),2,IF($B$10=VLOOKUP(BB5,$B$2:$G$4,6,TRUE),3,IF($D$10=VLOOKUP(BB5,$B$2:$G$4,6,TRUE),4,5)))))*(DAY(BD5)-DAY(BC5)+1)/DAY(EOMONTH(BC5,0)),0))) ->  | BR5: 0 | BS5: =IF(BC5="","",IF(BC5<=$AX$1,BR5-BT5,IF(AND(Main!$F$22=Main!$CA$24,BC5>$AX$1),ROUND(SUM(BF5,BH5)*10%,0),""))) ->  | BT5: =IF(BB5="","",IF(OR(Main!$H$10=Main!$BH$4,Main!$H$10=Main!$BH$5),0,LOOKUP(BR5*DAY(EOMONTH(BC5,0))/(DAY(BD5)-DAY(BC5)+1),$H$17:$I$22))) ->  | BU5: 1 | BV5: 0 | BW5: 2011-07-01 | BX5: 58.0000 | BY5: 58.00 | CA5: =IF(CA4="","",IF($CB$1<=CB4,"",CB4+1)) ->  | CB5: =IF(CA5="","",MIN(EOMONTH(CA5,0),VLOOKUP(CA5,I!$O$164:$P$202,2,TRUE)-1,LOOKUP(CA5,$E$47:$F$53)-1,IF(CA5<$B$2,$B$2-1,I!$Q$9),IF(CA5<$B$3,$B$3-1,I!$Q$9),IF(CA5<$B$4,$B$4-1,I!$Q$9),LOOKUP(CA5,$H$47:$I$53))) ->  | CC5: =IF(CA5="","",VLOOKUP(CA5,I!$P$164:$R$202,2)) ->  | CD5: =IF(CA5="","",ROUND(IF(CS5=3,0,IF(CS5=2,CC5/2,CC5))*(DAY(CB5)-DAY(CA5)+1)/DAY(EOMONTH(CA5,0)),0)) ->  | CE5: =IF(CA5="","",ROUND(IF(CS5=3,0,IF(CS5=2,IF(CC5=VLOOKUP(CC5,I!$I$2:$J$5,1),0,Main!$H$9)/2,IF(CC5=VLOOKUP(CC5,I!$I$2:$J$5,1),0,Main!$H$9)))*(DAY(CB5)-DAY(CA5)+1)/DAY(EOMONTH(CA5,0)),0)) ->  | CF5: =IF(CA5="","",IF(CC5=VLOOKUP(CC5,I!$I$2:$J$5,1),0,ROUND(CD5*VLOOKUP(CA5,$BW$4:$BX$7,2)%,0))) ->  | CG5: =IF(CA5="","",IF(OR(CS5=3,CC5=VLOOKUP(CC5,I!$I$2:$J$5,1)),0,ROUND(MIN(ROUND(CC5*VLOOKUP(CA5,$B$1:$G$4,2)%,0),VLOOKUP(CA5,$B$2:$H$4,7,TRUE))*(DAY(CB5)-DAY(CA5)+1)/DAY(EOMONTH(CA5,0)),0))) ->  | CH5: =IF(CA5="","",IF(OR(CA5<DATE(2010,4,1),$I$2=VLOOKUP(CA5,$B$2:$G$4,5,TRUE),CC5=VLOOKUP(CC5,I!$I$2:$J$5,1)),0,ROUND(IF(CS5=3,0,IF(CS5=2,MIN(ROUND(CC5*$G$13%,0),$G$14)/2,MIN(ROUND(CC5*$G$13%,0),$G$14)))*(DAY(CB5)-DAY(CA5)+1)/DAY(EOMONTH(CA5,0)),0))) ->  | CJ5: =IF(CA5="","",IF(CA5<DATE(2010,4,1),0,IF(OR(CS5=2,CS5=3,CC5=VLOOKUP(CC5,I!$I$2:$J$5,1)),0,ROUND(VLOOKUP(CA5,$B$1:$G$4,4)*(DAY(CB5)-DAY(CA5)+1)/DAY(EOMONTH(CA5,0)),0)))) ->  | CK5: =IF(CA5="","",IF(OR(CS5=2,CS5=3,CA5<DATE(2010,4,1),CC5=VLOOKUP(CC5,I!$I$2:$J$5,1)),0,ROUND(MIN(VLOOKUP(BZ5,$A$27:$C$32,2,TRUE),ROUND(CD5*VLOOKUP(BZ5,$A$27:$C$32,3,TRUE)%,0))*IF(BZ5=$A$36,$C$36,IF(BZ5=$A$37,$C$37,IF(BZ5=$A$38,$C$38,IF(BZ5=$A$39,$C$39,IF(BZ5=$A$40,$C$40,IF(BZ5=$A$41,$C$41,1))))))*(DAY(CB5)-DAY(CA5)+1)/DAY(EOMONTH(CA5,0)),0))) ->  | CL5: =IF(CA5="","",IF(OR(CS5=3,CC5=VLOOKUP(CC5,I!$I$2:$J$5,1)),0,ROUND(IF(CS5=2,VLOOKUP(CC5,$A$20:$E$23,IF($B$19=VLOOKUP(CA5,$B$2:$G$4,3,TRUE),2,IF($C$19=VLOOKUP(CA5,$B$2:$G$4,3,TRUE),3,IF($D$19=VLOOKUP(CA5,$B$2:$G$4,3,TRUE),4,5))),TRUE)/2,VLOOKUP(CC5,$A$20:$E$23,IF($B$19=VLOOKUP(CA5,$B$2:$G$4,3,TRUE),2,IF($C$19=VLOOKUP(CA5,$B$2:$G$4,3,TRUE),3,IF($D$19=VLOOKUP(CA5,$B$2:$G$4,3,TRUE),4,5))),TRUE))*(DAY(CB5)-DAY(CA5)+1)/DAY(EOMONTH(CA5,0)),0))) ->  | CM5: =IF(CA5="","",IF(OR(BZ5<DATE(2010,4,1),CS5=3,CC5=VLOOKUP(CC5,I!$I$2:$J$5,1)),0,ROUND(IF(CS5=2,Main!$L$9/2,Main!$L$9)*(DAY(CB5)-DAY(CA5)+1)/DAY(EOMONTH(CA5,0)),0))) ->  | CO5: =IF(CA5="","",IF(OR(CS5=3,CC5=VLOOKUP(CC5,I!$I$2:$J$5,1)),0,ROUND(IF(CS5=2,VLOOKUP(CD5,$A$11:$E$16,IF($B$10=VLOOKUP(BZ5,$B$2:$G$4,6,TRUE),2,IF($B$10=VLOOKUP(BZ5,$B$2:$G$4,6,TRUE),3,IF($D$10=VLOOKUP(BZ5,$B$2:$G$4,6,TRUE),4,5))))/2,VLOOKUP(CD5,$A$11:$E$16,IF($B$10=VLOOKUP(BZ5,$B$2:$G$4,6,TRUE),2,IF($B$10=VLOOKUP(BZ5,$B$2:$G$4,6,TRUE),3,IF($D$10=VLOOKUP(BZ5,$B$2:$G$4,6,TRUE),4,5)))))*(DAY(CB5)-DAY(CA5)+1)/DAY(EOMONTH(CA5,0)),0))) ->  | CP5: 0 | CQ5: =IF(CA5="","",IF(Main!$F$22=Main!$CA$24,ROUND(SUM(CD5,CF5)*10%,0),"")) ->  | CR5: =IF(BZ5="","",IF(OR(Main!$H$10=Main!$BH$4,Main!$H$10=Main!$BH$5),0,LOOKUP(CP5*DAY(EOMONTH(CA5,0))/(DAY(CB5)-DAY(CA5)+1),$H$17:$I$22))) ->  | CS5: =IF(OR(AND(CA5=$E$48,$G$48=3),AND(CA5=$E$49,$G$49=3),AND(CA5=$E$50,$G$50=3),AND(CA5=$E$51,$G$51=3),AND(CA5=$E$52,$G$52=3),AND(CA5=$E$53,$G$53=3)),3,IF(OR(AND(CA5=$E$48,$G$48=2),AND(CA5=$E$49,$G$49=2),AND(CA5=$E$50,$G$50=2),AND(CA5=$E$51,$G$51=2),AND(CA5=$E$52,$G$52=2),AND(CA5=$E$53,$G$53=2)),2,1)) -> 1 | CV5: =IF(CV4="","",IF($CB$1<=CW4,"",CW4+1)) ->  | CW5: =IF(CV5="","",MIN(EOMONTH(CV5,0),VLOOKUP(CV5,I!$O$164:$P$202,2,TRUE)-1,LOOKUP(CV5,$E$47:$F$53)-1,IF(CV5<$B$2,$B$2-1,I!$Q$9),IF(CV5<$B$3,$B$3-1,I!$Q$9),IF(CV5<$B$4,$B$4-1,I!$Q$9),LOOKUP(CV5,$H$47:$I$53))) ->  | CX5: =IF(CV5="","",VLOOKUP(CV5,I!$P$164:$R$202,3)) ->  | CZ5: =IF(CV5="","",ROUND(IF(DN5=3,0,IF(DN5=2,IF(CX5=VLOOKUP(CX5,I!$I$2:$J$5,1),0,Main!$H$9)/2,IF(CX5=VLOOKUP(CX5,I!$I$2:$J$5,1),0,Main!$H$9)))*(DAY(CW5)-DAY(CV5)+1)/DAY(EOMONTH(CV5,0)),0)) ->  | DA5: =IF(CV5="","",IF(CX5=VLOOKUP(CX5,I!$I$2:$J$5,1),0,ROUND(CY5*VLOOKUP(CV5,$AD$4:$AE$7,2)%,0))) ->  | DB5: =IF(CV5="","",IF(OR(DN5=3,CX5=VLOOKUP(CX5,I!$I$2:$J$5,1)),0,ROUND(MIN(ROUND(CX5*VLOOKUP(CV5,$B$1:$G$4,2)%,0),VLOOKUP(CV5,$B$2:$H$4,7,TRUE))*(DAY(CW5)-DAY(CV5)+1)/DAY(EOMONTH(CV5,0)),0))) ->  | DC5: =IF(CV5="","",IF(OR(CV5<DATE(2010,4,1),$I$2=VLOOKUP(CV5,$B$2:$G$4,5,TRUE),CX5=VLOOKUP(CX5,I!$I$2:$J$5,1)),0,ROUND(IF(DN5=3,0,IF(DN5=2,MIN(ROUND(CX5*$G$13%,0),$G$14)/2,MIN(ROUND(CX5*$G$13%,0),$G$14)))*(DAY(CW5)-DAY(CV5)+1)/DAY(EOMONTH(CV5,0)),0))) ->  | DE5: =IF(CV5="","",IF(CV5<DATE(2010,4,1),0,IF(OR(DN5=2,DN5=3,CX5=VLOOKUP(CX5,I!$I$2:$J$5,1)),0,ROUND(VLOOKUP(CV5,$B$1:$G$4,4)*(DAY(CW5)-DAY(CV5)+1)/DAY(EOMONTH(CV5,0)),0)))) ->  | DF5: =IF(CV5="","",IF(OR(DN5=2,DN5=3,CV5<DATE(2010,4,1),CX5=VLOOKUP(CX5,I!$I$2:$J$5,1)),0,ROUND(MIN(VLOOKUP(CU5,$A$27:$C$32,2,TRUE),ROUND(CY5*VLOOKUP(CU5,$A$27:$C$32,3,TRUE)%,0))*IF(CU5=$A$36,$C$36,IF(CU5=$A$37,$C$37,IF(CU5=$A$38,$C$38,IF(CU5=$A$39,$C$39,IF(CU5=$A$40,$C$40,IF(CU5=$A$41,$C$41,1))))))*(DAY(CW5)-DAY(CV5)+1)/DAY(EOMONTH(CV5,0)),0))) ->  | DG5: =IF(CV5="","",IF(OR(DN5=3,CX5=VLOOKUP(CX5,I!$I$2:$J$5,1)),0,ROUND(IF(DN5=2,VLOOKUP(CX5,$A$20:$E$23,IF($B$19=VLOOKUP(CV5,$B$2:$G$4,3,TRUE),2,IF($C$19=VLOOKUP(CV5,$B$2:$G$4,3,TRUE),3,IF($D$19=VLOOKUP(CV5,$B$2:$G$4,3,TRUE),4,5))),TRUE)/2,VLOOKUP(CX5,$A$20:$E$23,IF($B$19=VLOOKUP(CV5,$B$2:$G$4,3,TRUE),2,IF($C$19=VLOOKUP(CV5,$B$2:$G$4,3,TRUE),3,IF($D$19=VLOOKUP(CV5,$B$2:$G$4,3,TRUE),4,5))),TRUE))*(DAY(CW5)-DAY(CV5)+1)/DAY(EOMONTH(CV5,0)),0))) ->  | DH5: =IF(CV5="","",IF(OR(CU5<DATE(2010,4,1),DN5=3,CX5=VLOOKUP(CX5,I!$I$2:$J$5,1)),0,ROUND(IF(DN5=2,Main!$L$9/2,Main!$L$9)*(DAY(CW5)-DAY(CV5)+1)/DAY(EOMONTH(CV5,0)),0))) ->  | DJ5: =IF(CV5="","",IF(OR(DN5=3,CX5=VLOOKUP(CX5,I!$I$2:$J$5,1)),0,ROUND(IF(DN5=2,VLOOKUP(CY5,$A$11:$E$16,IF($B$10=VLOOKUP(CU5,$B$2:$G$4,6,TRUE),2,IF($B$10=VLOOKUP(CU5,$B$2:$G$4,6,TRUE),3,IF($D$10=VLOOKUP(CU5,$B$2:$G$4,6,TRUE),4,5))))/2,VLOOKUP(CY5,$A$11:$E$16,IF($B$10=VLOOKUP(CU5,$B$2:$G$4,6,TRUE),2,IF($B$10=VLOOKUP(CU5,$B$2:$G$4,6,TRUE),3,IF($D$10=VLOOKUP(CU5,$B$2:$G$4,6,TRUE),4,5)))))*(DAY(CW5)-DAY(CV5)+1)/DAY(EOMONTH(CV5,0)),0))) ->  | DK5: 0 | DL5: =IF(CV5="","",IF(CX5=VLOOKUP(CX5,I!$I$2:$J$5,1),"",IF(Main!$F$22=Main!$CA$24,ROUND(SUM(CY5,DA5)*10%,0),""))) ->  | DM5: =IF(CU5="","",IF(OR(Main!$H$10=Main!$BH$4,Main!$H$10=Main!$BH$5),0,LOOKUP(DK5*DAY(EOMONTH(CV5,0))/(DAY(CW5)-DAY(CV5)+1),$H$17:$I$22))) ->  | DN5: 1
K6: 2012-06-01 | L6: 2012-06-01 | M6: =IF(L6="","",MIN(EOMONTH(L6,0),VLOOKUP(L6,I!$O$164:$P$202,2,TRUE)-1,LOOKUP(L6,$E$47:$F$53)-1,IF(L6<$B$2,$B$2-1,I!$Q$9),IF(L6<$B$3,$B$3-1,I!$Q$9),IF(L6<$B$4,$B$4-1,I!$Q$9),LOOKUP(L6,$H$47:$I$53))) -> 2012-06-30 | N6: =IF(L6="","",VLOOKUP(L6,'Advance Tax'!$A$3:$C$14,3)) -> 31320.00 | O6: 31320 | P6: =IF(L6="","",ROUND(IF(AB6=3,0,IF(AB6=2,IF(N6=VLOOKUP(N6,I!$I$2:$J$5,1),0,Main!$H$9)/2,IF(N6=VLOOKUP(N6,I!$I$2:$J$5,1),0,Main!$H$9)))*(DAY(M6)-DAY(L6)+1)/DAY(EOMONTH(L6,0)),0)) -> 0 | Q6: =IF(L6="","",IF(N6=VLOOKUP(N6,I!$I$2:$J$5,1),0,ROUND(O6*VLOOKUP(L6,$H$9:$I$12,2)%,0))) -> 18166 | R6: =IF(L6="","",IF(OR(AB6=3,N6=VLOOKUP(N6,I!$I$2:$J$5,1)),0,ROUND(MIN(ROUND(N6*VLOOKUP(L6,$B$1:$G$4,2)%,0),VLOOKUP(L6,$B$2:$H$4,7,TRUE))*(DAY(M6)-DAY(L6)+1)/DAY(EOMONTH(L6,0)),0))) -> 3132 | S6: =IF(L6="","",IF(OR(L6<DATE(2010,4,1),$I$2=VLOOKUP(L6,$B$2:$G$4,5,TRUE),N6=VLOOKUP(N6,I!$I$2:$J$5,1)),0,ROUND(IF(AB6=3,0,IF(AB6=2,MIN(ROUND(N6*$G$13%,0),$G$14)/2,MIN(ROUND(N6*$G$13%,0),$G$14)))*(DAY(M6)-DAY(L6)+1)/DAY(EOMONTH(L6,0)),0))) -> 0 | U6: =IF(L6="","",IF(L6<DATE(2010,4,1),0,IF(OR(AB6=2,AB6=3,N6=VLOOKUP(N6,I!$I$2:$J$5,1)),0,ROUND(VLOOKUP(L6,$B$1:$G$4,4)*(DAY(M6)-DAY(L6)+1)/DAY(EOMONTH(L6,0)),0)))) -> 0 | V6: =IF(L6="","",IF(OR(AB6=2,AB6=3,L6<DATE(2010,4,1),N6=VLOOKUP(N6,I!$I$2:$J$5,1)),0,ROUND(MIN(VLOOKUP(K6,$A$27:$C$32,2,TRUE),ROUND(O6*VLOOKUP(K6,$A$27:$C$32,3,TRUE)%,0))*IF(K6=$A$36,$C$36,IF(K6=$A$37,$C$37,IF(K6=$A$38,$C$38,IF(K6=$A$39,$C$39,IF(K6=$A$40,$C$40,IF(K6=$A$41,$C$41,1))))))*(DAY(M6)-DAY(L6)+1)/DAY(EOMONTH(L6,0)),0))) -> 0 | W6: =IF(L6="","",IF(OR(AB6=3,N6=VLOOKUP(N6,I!$I$2:$J$5,1)),0,ROUND(IF(AB6=2,VLOOKUP(N6,$A$20:$E$23,IF($B$19=VLOOKUP(L6,$B$2:$G$4,3,TRUE),2,IF($C$19=VLOOKUP(L6,$B$2:$G$4,3,TRUE),3,IF($D$19=VLOOKUP(L6,$B$2:$G$4,3,TRUE),4,5))),TRUE)/2,VLOOKUP(N6,$A$20:$E$23,IF($B$19=VLOOKUP(L6,$B$2:$G$4,3,TRUE),2,IF($C$19=VLOOKUP(L6,$B$2:$G$4,3,TRUE),3,IF($D$19=VLOOKUP(L6,$B$2:$G$4,3,TRUE),4,5))),TRUE))*(DAY(M6)-DAY(L6)+1)/DAY(EOMONTH(L6,0)),0))) -> 0 | X6: =IF(L6="","",IF(OR(K6<DATE(2010,4,1),AB6=3,N6=VLOOKUP(N6,I!$I$2:$J$5,1)),0,ROUND(IF(AB6=2,Main!$L$9/2,Main!$L$9)*(DAY(M6)-DAY(L6)+1)/DAY(EOMONTH(L6,0)),0))) -> 0 | Z6: =IF(L6="","",IF(OR(AB6=3,N6=VLOOKUP(N6,I!$I$2:$J$5,1)),0,ROUND(IF(AB6=2,VLOOKUP(O6,$A$11:$E$16,IF($B$10=VLOOKUP(K6,$B$2:$G$4,6,TRUE),2,IF($B$10=VLOOKUP(K6,$B$2:$G$4,6,TRUE),3,IF($D$10=VLOOKUP(K6,$B$2:$G$4,6,TRUE),4,5))))/2,VLOOKUP(O6,$A$11:$E$16,IF($B$10=VLOOKUP(K6,$B$2:$G$4,6,TRUE),2,IF($B$10=VLOOKUP(K6,$B$2:$G$4,6,TRUE),3,IF($D$10=VLOOKUP(K6,$B$2:$G$4,6,TRUE),4,5)))))*(DAY(M6)-DAY(L6)+1)/DAY(EOMONTH(L6,0)),0))) -> 0 | AA6: 52618 | AB6: 1 | AD6: =IF($H$12<AI1,DATE(2012,1,1),$H$12) -> 2012-01-01 | AE6: 65 | AI6: =IF(AH6="","",MIN(EOMONTH(AH6,0),VLOOKUP(AH6,I!$O$164:$P$202,2,TRUE)-1,LOOKUP(AH6,$E$47:$F$53)-1,IF(AH6<$B$2,$B$2-1,I!$Q$9),IF(AH6<$B$3,$B$3-1,I!$Q$9),IF(AH6<$B$4,$B$4-1,I!$Q$9),LOOKUP(AH6,$H$47:$I$53))) ->  | AJ6: =IF(AH6="","",VLOOKUP(AH6,I!$P$164:$R$202,2)) ->  | AL6: =IF(AH6="","",ROUND(IF(AZ6=3,0,IF(AZ6=2,IF(AJ6=VLOOKUP(AJ6,I!$I$2:$J$5,1),0,Main!$H$9)/2,IF(AJ6=VLOOKUP(AJ6,I!$I$2:$J$5,1),0,Main!$H$9)))*(DAY(AI6)-DAY(AH6)+1)/DAY(EOMONTH(AH6,0)),0)) ->  | AM6: =IF(AH6="","",IF(AJ6=VLOOKUP(AJ6,I!$I$2:$J$5,1),0,ROUND(AK6*VLOOKUP(AH6,$AD$4:$AE$7,2)%,0))) ->  | AN6: =IF(AH6="","",IF(OR(AZ6=3,AJ6=VLOOKUP(AJ6,I!$I$2:$J$5,1)),0,ROUND(MIN(ROUND(AJ6*VLOOKUP(AH6,$B$1:$G$4,2)%,0),VLOOKUP(AH6,$B$2:$H$4,7,TRUE))*(DAY(AI6)-DAY(AH6)+1)/DAY(EOMONTH(AH6,0)),0))) ->  | AO6: =IF(AH6="","",IF(OR(AH6<DATE(2010,4,1),$I$2=VLOOKUP(AH6,$B$2:$G$4,5,TRUE),AJ6=VLOOKUP(AJ6,I!$I$2:$J$5,1)),0,ROUND(IF(AZ6=3,0,IF(AZ6=2,MIN(ROUND(AJ6*$G$13%,0),$G$14)/2,MIN(ROUND(AJ6*$G$13%,0),$G$14)))*(DAY(AI6)-DAY(AH6)+1)/DAY(EOMONTH(AH6,0)),0))) ->  | AQ6: =IF(AH6="","",IF(AH6<DATE(2010,4,1),0,IF(OR(AZ6=2,AZ6=3,AJ6=VLOOKUP(AJ6,I!$I$2:$J$5,1)),0,ROUND(VLOOKUP(AH6,$B$1:$G$4,4)*(DAY(AI6)-DAY(AH6)+1)/DAY(EOMONTH(AH6,0)),0)))) ->  | AR6: =IF(AH6="","",IF(OR(AZ6=2,AZ6=3,AH6<DATE(2010,4,1),AJ6=VLOOKUP(AJ6,I!$I$2:$J$5,1)),0,ROUND(MIN(VLOOKUP(AG6,$A$27:$C$32,2,TRUE),ROUND(AK6*VLOOKUP(AG6,$A$27:$C$32,3,TRUE)%,0))*IF(AG6=$A$36,$C$36,IF(AG6=$A$37,$C$37,IF(AG6=$A$38,$C$38,IF(AG6=$A$39,$C$39,IF(AG6=$A$40,$C$40,IF(AG6=$A$41,$C$41,1))))))*(DAY(AI6)-DAY(AH6)+1)/DAY(EOMONTH(AH6,0)),0))) ->  | AS6: =IF(AH6="","",IF(OR(AZ6=3,AJ6=VLOOKUP(AJ6,I!$I$2:$J$5,1)),0,ROUND(IF(AZ6=2,VLOOKUP(AJ6,$A$20:$E$23,IF($B$19=VLOOKUP(AH6,$B$2:$G$4,3,TRUE),2,IF($C$19=VLOOKUP(AH6,$B$2:$G$4,3,TRUE),3,IF($D$19=VLOOKUP(AH6,$B$2:$G$4,3,TRUE),4,5))),TRUE)/2,VLOOKUP(AJ6,$A$20:$E$23,IF($B$19=VLOOKUP(AH6,$B$2:$G$4,3,TRUE),2,IF($C$19=VLOOKUP(AH6,$B$2:$G$4,3,TRUE),3,IF($D$19=VLOOKUP(AH6,$B$2:$G$4,3,TRUE),4,5))),TRUE))*(DAY(AI6)-DAY(AH6)+1)/DAY(EOMONTH(AH6,0)),0))) ->  | AT6: =IF(AH6="","",IF(OR(AG6<DATE(2010,4,1),AZ6=3,AJ6=VLOOKUP(AJ6,I!$I$2:$J$5,1)),0,ROUND(IF(AZ6=2,Main!$L$9/2,Main!$L$9)*(DAY(AI6)-DAY(AH6)+1)/DAY(EOMONTH(AH6,0)),0))) ->  | AV6: =IF(AH6="","",IF(OR(AZ6=3,AJ6=VLOOKUP(AJ6,I!$I$2:$J$5,1)),0,ROUND(IF(AZ6=2,VLOOKUP(AK6,$A$11:$E$16,IF($B$10=VLOOKUP(AG6,$B$2:$G$4,6,TRUE),2,IF($B$10=VLOOKUP(AG6,$B$2:$G$4,6,TRUE),3,IF($D$10=VLOOKUP(AG6,$B$2:$G$4,6,TRUE),4,5))))/2,VLOOKUP(AK6,$A$11:$E$16,IF($B$10=VLOOKUP(AG6,$B$2:$G$4,6,TRUE),2,IF($B$10=VLOOKUP(AG6,$B$2:$G$4,6,TRUE),3,IF($D$10=VLOOKUP(AG6,$B$2:$G$4,6,TRUE),4,5)))))*(DAY(AI6)-DAY(AH6)+1)/DAY(EOMONTH(AH6,0)),0))) ->  | AW6: 0 | AX6: =IF(AH6="","",IF(AH6<=$AX$1,AW6-AY6,IF(AND(Main!$F$22=Main!$CA$24,AH6>$AX$1),ROUND(SUM(AK6,AM6)*10%,0),""))) ->  | AY6: =IF(AG6="","",IF(OR(Main!$H$10=Main!$BH$4,Main!$H$10=Main!$BH$5),0,LOOKUP(AW6*DAY(EOMONTH(AH6,0))/(DAY(AI6)-DAY(AH6)+1),$H$17:$I$22))) ->  | AZ6: 1 | BD6: =IF(BC6="","",MIN(EOMONTH(BC6,0),VLOOKUP(BC6,I!$O$164:$P$202,2,TRUE)-1,LOOKUP(BC6,$E$47:$F$53)-1,IF(BC6<$B$2,$B$2-1,I!$Q$9),IF(BC6<$B$3,$B$3-1,I!$Q$9),IF(BC6<$B$4,$B$4-1,I!$Q$9),LOOKUP(BC6,$H$47:$I$53))) ->  | BE6: =IF(BC6="","",VLOOKUP(BC6,I!$P$164:$R$202,3)) ->  | BG6: =IF(BC6="","",ROUND(IF(BU6=3,0,IF(BU6=2,IF(BE6=VLOOKUP(BE6,I!$I$2:$J$5,1),0,Main!$H$9)/2,IF(BE6=VLOOKUP(BE6,I!$I$2:$J$5,1),0,Main!$H$9)))*(DAY(BD6)-DAY(BC6)+1)/DAY(EOMONTH(BC6,0)),0)) ->  | BH6: =IF(BC6="","",IF(BE6=VLOOKUP(BE6,I!$I$2:$J$5,1),0,ROUND(BF6*VLOOKUP(BC6,$AD$4:$AE$7,2)%,0))) ->  | BI6: =IF(BC6="","",IF(OR(BU6=3,BE6=VLOOKUP(BE6,I!$I$2:$J$5,1)),0,ROUND(MIN(ROUND(BE6*VLOOKUP(BC6,$B$1:$G$4,2)%,0),VLOOKUP(BC6,$B$2:$H$4,7,TRUE))*(DAY(BD6)-DAY(BC6)+1)/DAY(EOMONTH(BC6,0)),0))) ->  | BJ6: =IF(BC6="","",IF(OR(BC6<DATE(2010,4,1),$I$2=VLOOKUP(BC6,$B$2:$G$4,5,TRUE),BE6=VLOOKUP(BE6,I!$I$2:$J$5,1)),0,ROUND(IF(BU6=3,0,IF(BU6=2,MIN(ROUND(BE6*$G$13%,0),$G$14)/2,MIN(ROUND(BE6*$G$13%,0),$G$14)))*(DAY(BD6)-DAY(BC6)+1)/DAY(EOMONTH(BC6,0)),0))) ->  | BL6: =IF(BC6="","",IF(BC6<DATE(2010,4,1),0,IF(OR(BU6=2,BU6=3,BE6=VLOOKUP(BE6,I!$I$2:$J$5,1)),0,ROUND(VLOOKUP(BC6,$B$1:$G$4,4)*(DAY(BD6)-DAY(BC6)+1)/DAY(EOMONTH(BC6,0)),0)))) ->  | BM6: =IF(BC6="","",IF(OR(BU6=2,BU6=3,BC6<DATE(2010,4,1),BE6=VLOOKUP(BE6,I!$I$2:$J$5,1)),0,ROUND(MIN(VLOOKUP(BB6,$A$27:$C$32,2,TRUE),ROUND(BF6*VLOOKUP(BB6,$A$27:$C$32,3,TRUE)%,0))*IF(BB6=$A$36,$C$36,IF(BB6=$A$37,$C$37,IF(BB6=$A$38,$C$38,IF(BB6=$A$39,$C$39,IF(BB6=$A$40,$C$40,IF(BB6=$A$41,$C$41,1))))))*(DAY(BD6)-DAY(BC6)+1)/DAY(EOMONTH(BC6,0)),0))) ->  | BN6: =IF(BC6="","",IF(OR(BU6=3,BE6=VLOOKUP(BE6,I!$I$2:$J$5,1)),0,ROUND(IF(BU6=2,VLOOKUP(BE6,$A$20:$E$23,IF($B$19=VLOOKUP(BC6,$B$2:$G$4,3,TRUE),2,IF($C$19=VLOOKUP(BC6,$B$2:$G$4,3,TRUE),3,IF($D$19=VLOOKUP(BC6,$B$2:$G$4,3,TRUE),4,5))),TRUE)/2,VLOOKUP(BE6,$A$20:$E$23,IF($B$19=VLOOKUP(BC6,$B$2:$G$4,3,TRUE),2,IF($C$19=VLOOKUP(BC6,$B$2:$G$4,3,TRUE),3,IF($D$19=VLOOKUP(BC6,$B$2:$G$4,3,TRUE),4,5))),TRUE))*(DAY(BD6)-DAY(BC6)+1)/DAY(EOMONTH(BC6,0)),0))) ->  | BO6: =IF(BC6="","",IF(OR(BB6<DATE(2010,4,1),BU6=3,BE6=VLOOKUP(BE6,I!$I$2:$J$5,1)),0,ROUND(IF(BU6=2,Main!$L$9/2,Main!$L$9)*(DAY(BD6)-DAY(BC6)+1)/DAY(EOMONTH(BC6,0)),0))) ->  | BQ6: =IF(BC6="","",IF(OR(BU6=3,BE6=VLOOKUP(BE6,I!$I$2:$J$5,1)),0,ROUND(IF(BU6=2,VLOOKUP(BF6,$A$11:$E$16,IF($B$10=VLOOKUP(BB6,$B$2:$G$4,6,TRUE),2,IF($B$10=VLOOKUP(BB6,$B$2:$G$4,6,TRUE),3,IF($D$10=VLOOKUP(BB6,$B$2:$G$4,6,TRUE),4,5))))/2,VLOOKUP(BF6,$A$11:$E$16,IF($B$10=VLOOKUP(BB6,$B$2:$G$4,6,TRUE),2,IF($B$10=VLOOKUP(BB6,$B$2:$G$4,6,TRUE),3,IF($D$10=VLOOKUP(BB6,$B$2:$G$4,6,TRUE),4,5)))))*(DAY(BD6)-DAY(BC6)+1)/DAY(EOMONTH(BC6,0)),0))) ->  | BR6: 0 | BS6: =IF(BC6="","",IF(BC6<=$AX$1,BR6-BT6,IF(AND(Main!$F$22=Main!$CA$24,BC6>$AX$1),ROUND(SUM(BF6,BH6)*10%,0),""))) ->  | BT6: =IF(BB6="","",IF(OR(Main!$H$10=Main!$BH$4,Main!$H$10=Main!$BH$5),0,LOOKUP(BR6*DAY(EOMONTH(BC6,0))/(DAY(BD6)-DAY(BC6)+1),$H$17:$I$22))) ->  | BU6: 1 | BV6: 0 | BW6: =IF($H$12<CB1,DATE(2012,1,1),$H$12) -> 2012-01-01 | BX6: 65.0000 | BY6: 65.00 | CB6: =IF(CA6="","",MIN(EOMONTH(CA6,0),VLOOKUP(CA6,I!$O$164:$P$202,2,TRUE)-1,LOOKUP(CA6,$E$47:$F$53)-1,IF(CA6<$B$2,$B$2-1,I!$Q$9),IF(CA6<$B$3,$B$3-1,I!$Q$9),IF(CA6<$B$4,$B$4-1,I!$Q$9),LOOKUP(CA6,$H$47:$I$53))) ->  | CC6: =IF(CA6="","",VLOOKUP(CA6,I!$P$164:$R$202,2)) ->  | CE6: =IF(CA6="","",ROUND(IF(CS6=3,0,IF(CS6=2,IF(CC6=VLOOKUP(CC6,I!$I$2:$J$5,1),0,Main!$H$9)/2,IF(CC6=VLOOKUP(CC6,I!$I$2:$J$5,1),0,Main!$H$9)))*(DAY(CB6)-DAY(CA6)+1)/DAY(EOMONTH(CA6,0)),0)) ->  | CF6: =IF(CA6="","",IF(CC6=VLOOKUP(CC6,I!$I$2:$J$5,1),0,ROUND(CD6*VLOOKUP(CA6,$BW$4:$BX$7,2)%,0))) ->  | CG6: =IF(CA6="","",IF(OR(CS6=3,CC6=VLOOKUP(CC6,I!$I$2:$J$5,1)),0,ROUND(MIN(ROUND(CC6*VLOOKUP(CA6,$B$1:$G$4,2)%,0),VLOOKUP(CA6,$B$2:$H$4,7,TRUE))*(DAY(CB6)-DAY(CA6)+1)/DAY(EOMONTH(CA6,0)),0))) ->  | CH6: =IF(CA6="","",IF(OR(CA6<DATE(2010,4,1),$I$2=VLOOKUP(CA6,$B$2:$G$4,5,TRUE),CC6=VLOOKUP(CC6,I!$I$2:$J$5,1)),0,ROUND(IF(CS6=3,0,IF(CS6=2,MIN(ROUND(CC6*$G$13%,0),$G$14)/2,MIN(ROUND(CC6*$G$13%,0),$G$14)))*(DAY(CB6)-DAY(CA6)+1)/DAY(EOMONTH(CA6,0)),0))) ->  | CJ6: =IF(CA6="","",IF(CA6<DATE(2010,4,1),0,IF(OR(CS6=2,CS6=3,CC6=VLOOKUP(CC6,I!$I$2:$J$5,1)),0,ROUND(VLOOKUP(CA6,$B$1:$G$4,4)*(DAY(CB6)-DAY(CA6)+1)/DAY(EOMONTH(CA6,0)),0)))) ->  | CK6: =IF(CA6="","",IF(OR(CS6=2,CS6=3,CA6<DATE(2010,4,1),CC6=VLOOKUP(CC6,I!$I$2:$J$5,1)),0,ROUND(MIN(VLOOKUP(BZ6,$A$27:$C$32,2,TRUE),ROUND(CD6*VLOOKUP(BZ6,$A$27:$C$32,3,TRUE)%,0))*IF(BZ6=$A$36,$C$36,IF(BZ6=$A$37,$C$37,IF(BZ6=$A$38,$C$38,IF(BZ6=$A$39,$C$39,IF(BZ6=$A$40,$C$40,IF(BZ6=$A$41,$C$41,1))))))*(DAY(CB6)-DAY(CA6)+1)/DAY(EOMONTH(CA6,0)),0))) ->  | CL6: =IF(CA6="","",IF(OR(CS6=3,CC6=VLOOKUP(CC6,I!$I$2:$J$5,1)),0,ROUND(IF(CS6=2,VLOOKUP(CC6,$A$20:$E$23,IF($B$19=VLOOKUP(CA6,$B$2:$G$4,3,TRUE),2,IF($C$19=VLOOKUP(CA6,$B$2:$G$4,3,TRUE),3,IF($D$19=VLOOKUP(CA6,$B$2:$G$4,3,TRUE),4,5))),TRUE)/2,VLOOKUP(CC6,$A$20:$E$23,IF($B$19=VLOOKUP(CA6,$B$2:$G$4,3,TRUE),2,IF($C$19=VLOOKUP(CA6,$B$2:$G$4,3,TRUE),3,IF($D$19=VLOOKUP(CA6,$B$2:$G$4,3,TRUE),4,5))),TRUE))*(DAY(CB6)-DAY(CA6)+1)/DAY(EOMONTH(CA6,0)),0))) ->  | CM6: =IF(CA6="","",IF(OR(BZ6<DATE(2010,4,1),CS6=3,CC6=VLOOKUP(CC6,I!$I$2:$J$5,1)),0,ROUND(IF(CS6=2,Main!$L$9/2,Main!$L$9)*(DAY(CB6)-DAY(CA6)+1)/DAY(EOMONTH(CA6,0)),0))) ->  | CO6: =IF(CA6="","",IF(OR(CS6=3,CC6=VLOOKUP(CC6,I!$I$2:$J$5,1)),0,ROUND(IF(CS6=2,VLOOKUP(CD6,$A$11:$E$16,IF($B$10=VLOOKUP(BZ6,$B$2:$G$4,6,TRUE),2,IF($B$10=VLOOKUP(BZ6,$B$2:$G$4,6,TRUE),3,IF($D$10=VLOOKUP(BZ6,$B$2:$G$4,6,TRUE),4,5))))/2,VLOOKUP(CD6,$A$11:$E$16,IF($B$10=VLOOKUP(BZ6,$B$2:$G$4,6,TRUE),2,IF($B$10=VLOOKUP(BZ6,$B$2:$G$4,6,TRUE),3,IF($D$10=VLOOKUP(BZ6,$B$2:$G$4,6,TRUE),4,5)))))*(DAY(CB6)-DAY(CA6)+1)/DAY(EOMONTH(CA6,0)),0))) ->  | CP6: 0 | CQ6: =IF(CA6="","",IF(Main!$F$22=Main!$CA$24,ROUND(SUM(CD6,CF6)*10%,0),"")) ->  | CR6: =IF(BZ6="","",IF(OR(Main!$H$10=Main!$BH$4,Main!$H$10=Main!$BH$5),0,LOOKUP(CP6*DAY(EOMONTH(CA6,0))/(DAY(CB6)-DAY(CA6)+1),$H$17:$I$22))) ->  | CS6: 1 | CW6: =IF(CV6="","",MIN(EOMONTH(CV6,0),VLOOKUP(CV6,I!$O$164:$P$202,2,TRUE)-1,LOOKUP(CV6,$E$47:$F$53)-1,IF(CV6<$B$2,$B$2-1,I!$Q$9),IF(CV6<$B$3,$B$3-1,I!$Q$9),IF(CV6<$B$4,$B$4-1,I!$Q$9),LOOKUP(CV6,$H$47:$I$53))) ->  | CX6: =IF(CV6="","",VLOOKUP(CV6,I!$P$164:$R$202,3)) ->  | CZ6: =IF(CV6="","",ROUND(IF(DN6=3,0,IF(DN6=2,IF(CX6=VLOOKUP(CX6,I!$I$2:$J$5,1),0,Main!$H$9)/2,IF(CX6=VLOOKUP(CX6,I!$I$2:$J$5,1),0,Main!$H$9)))*(DAY(CW6)-DAY(CV6)+1)/DAY(EOMONTH(CV6,0)),0)) ->  | DA6: =IF(CV6="","",IF(CX6=VLOOKUP(CX6,I!$I$2:$J$5,1),0,ROUND(CY6*VLOOKUP(CV6,$AD$4:$AE$7,2)%,0))) ->  | DB6: =IF(CV6="","",IF(OR(DN6=3,CX6=VLOOKUP(CX6,I!$I$2:$J$5,1)),0,ROUND(MIN(ROUND(CX6*VLOOKUP(CV6,$B$1:$G$4,2)%,0),VLOOKUP(CV6,$B$2:$H$4,7,TRUE))*(DAY(CW6)-DAY(CV6)+1)/DAY(EOMONTH(CV6,0)),0))) ->  | DC6: =IF(CV6="","",IF(OR(CV6<DATE(2010,4,1),$I$2=VLOOKUP(CV6,$B$2:$G$4,5,TRUE),CX6=VLOOKUP(CX6,I!$I$2:$J$5,1)),0,ROUND(IF(DN6=3,0,IF(DN6=2,MIN(ROUND(CX6*$G$13%,0),$G$14)/2,MIN(ROUND(CX6*$G$13%,0),$G$14)))*(DAY(CW6)-DAY(CV6)+1)/DAY(EOMONTH(CV6,0)),0))) ->  | DE6: =IF(CV6="","",IF(CV6<DATE(2010,4,1),0,IF(OR(DN6=2,DN6=3,CX6=VLOOKUP(CX6,I!$I$2:$J$5,1)),0,ROUND(VLOOKUP(CV6,$B$1:$G$4,4)*(DAY(CW6)-DAY(CV6)+1)/DAY(EOMONTH(CV6,0)),0)))) ->  | DF6: =IF(CV6="","",IF(OR(DN6=2,DN6=3,CV6<DATE(2010,4,1),CX6=VLOOKUP(CX6,I!$I$2:$J$5,1)),0,ROUND(MIN(VLOOKUP(CU6,$A$27:$C$32,2,TRUE),ROUND(CY6*VLOOKUP(CU6,$A$27:$C$32,3,TRUE)%,0))*IF(CU6=$A$36,$C$36,IF(CU6=$A$37,$C$37,IF(CU6=$A$38,$C$38,IF(CU6=$A$39,$C$39,IF(CU6=$A$40,$C$40,IF(CU6=$A$41,$C$41,1))))))*(DAY(CW6)-DAY(CV6)+1)/DAY(EOMONTH(CV6,0)),0))) ->  | DG6: =IF(CV6="","",IF(OR(DN6=3,CX6=VLOOKUP(CX6,I!$I$2:$J$5,1)),0,ROUND(IF(DN6=2,VLOOKUP(CX6,$A$20:$E$23,IF($B$19=VLOOKUP(CV6,$B$2:$G$4,3,TRUE),2,IF($C$19=VLOOKUP(CV6,$B$2:$G$4,3,TRUE),3,IF($D$19=VLOOKUP(CV6,$B$2:$G$4,3,TRUE),4,5))),TRUE)/2,VLOOKUP(CX6,$A$20:$E$23,IF($B$19=VLOOKUP(CV6,$B$2:$G$4,3,TRUE),2,IF($C$19=VLOOKUP(CV6,$B$2:$G$4,3,TRUE),3,IF($D$19=VLOOKUP(CV6,$B$2:$G$4,3,TRUE),4,5))),TRUE))*(DAY(CW6)-DAY(CV6)+1)/DAY(EOMONTH(CV6,0)),0))) ->  | DH6: =IF(CV6="","",IF(OR(CU6<DATE(2010,4,1),DN6=3,CX6=VLOOKUP(CX6,I!$I$2:$J$5,1)),0,ROUND(IF(DN6=2,Main!$L$9/2,Main!$L$9)*(DAY(CW6)-DAY(CV6)+1)/DAY(EOMONTH(CV6,0)),0))) ->  | DJ6: =IF(CV6="","",IF(OR(DN6=3,CX6=VLOOKUP(CX6,I!$I$2:$J$5,1)),0,ROUND(IF(DN6=2,VLOOKUP(CY6,$A$11:$E$16,IF($B$10=VLOOKUP(CU6,$B$2:$G$4,6,TRUE),2,IF($B$10=VLOOKUP(CU6,$B$2:$G$4,6,TRUE),3,IF($D$10=VLOOKUP(CU6,$B$2:$G$4,6,TRUE),4,5))))/2,VLOOKUP(CY6,$A$11:$E$16,IF($B$10=VLOOKUP(CU6,$B$2:$G$4,6,TRUE),2,IF($B$10=VLOOKUP(CU6,$B$2:$G$4,6,TRUE),3,IF($D$10=VLOOKUP(CU6,$B$2:$G$4,6,TRUE),4,5)))))*(DAY(CW6)-DAY(CV6)+1)/DAY(EOMONTH(CV6,0)),0))) ->  | DK6: 0 | DL6: =IF(CV6="","",IF(CX6=VLOOKUP(CX6,I!$I$2:$J$5,1),"",IF(Main!$F$22=Main!$CA$24,ROUND(SUM(CY6,DA6)*10%,0),""))) ->  | DM6: =IF(CU6="","",IF(OR(Main!$H$10=Main!$BH$4,Main!$H$10=Main!$BH$5),0,LOOKUP(DK6*DAY(EOMONTH(CV6,0))/(DAY(CW6)-DAY(CV6)+1),$H$17:$I$22))) ->  | DN6: 1
K7: 2012-07-01 | L7: 2012-07-01 | M7: =IF(L7="","",MIN(EOMONTH(L7,0),VLOOKUP(L7,I!$O$164:$P$202,2,TRUE)-1,LOOKUP(L7,$E$47:$F$53)-1,IF(L7<$B$2,$B$2-1,I!$Q$9),IF(L7<$B$3,$B$3-1,I!$Q$9),IF(L7<$B$4,$B$4-1,I!$Q$9),LOOKUP(L7,$H$47:$I$53))) -> 2012-07-31 | N7: =IF(L7="","",VLOOKUP(L7,'Advance Tax'!$A$3:$C$14,3)) -> 32260.00 | O7: 32260 | P7: =IF(L7="","",ROUND(IF(AB7=3,0,IF(AB7=2,IF(N7=VLOOKUP(N7,I!$I$2:$J$5,1),0,Main!$H$9)/2,IF(N7=VLOOKUP(N7,I!$I$2:$J$5,1),0,Main!$H$9)))*(DAY(M7)-DAY(L7)+1)/DAY(EOMONTH(L7,0)),0)) -> 0 | Q7: =IF(L7="","",IF(N7=VLOOKUP(N7,I!$I$2:$J$5,1),0,ROUND(O7*VLOOKUP(L7,$H$9:$I$12,2)%,0))) -> 18711 | R7: =IF(L7="","",IF(OR(AB7=3,N7=VLOOKUP(N7,I!$I$2:$J$5,1)),0,ROUND(MIN(ROUND(N7*VLOOKUP(L7,$B$1:$G$4,2)%,0),VLOOKUP(L7,$B$2:$H$4,7,TRUE))*(DAY(M7)-DAY(L7)+1)/DAY(EOMONTH(L7,0)),0))) -> 3226 | S7: =IF(L7="","",IF(OR(L7<DATE(2010,4,1),$I$2=VLOOKUP(L7,$B$2:$G$4,5,TRUE),N7=VLOOKUP(N7,I!$I$2:$J$5,1)),0,ROUND(IF(AB7=3,0,IF(AB7=2,MIN(ROUND(N7*$G$13%,0),$G$14)/2,MIN(ROUND(N7*$G$13%,0),$G$14)))*(DAY(M7)-DAY(L7)+1)/DAY(EOMONTH(L7,0)),0))) -> 0 | U7: =IF(L7="","",IF(L7<DATE(2010,4,1),0,IF(OR(AB7=2,AB7=3,N7=VLOOKUP(N7,I!$I$2:$J$5,1)),0,ROUND(VLOOKUP(L7,$B$1:$G$4,4)*(DAY(M7)-DAY(L7)+1)/DAY(EOMONTH(L7,0)),0)))) -> 0 | V7: =IF(L7="","",IF(OR(AB7=2,AB7=3,L7<DATE(2010,4,1),N7=VLOOKUP(N7,I!$I$2:$J$5,1)),0,ROUND(MIN(VLOOKUP(K7,$A$27:$C$32,2,TRUE),ROUND(O7*VLOOKUP(K7,$A$27:$C$32,3,TRUE)%,0))*IF(K7=$A$36,$C$36,IF(K7=$A$37,$C$37,IF(K7=$A$38,$C$38,IF(K7=$A$39,$C$39,IF(K7=$A$40,$C$40,IF(K7=$A$41,$C$41,1))))))*(DAY(M7)-DAY(L7)+1)/DAY(EOMONTH(L7,0)),0))) -> 0 | W7: =IF(L7="","",IF(OR(AB7=3,N7=VLOOKUP(N7,I!$I$2:$J$5,1)),0,ROUND(IF(AB7=2,VLOOKUP(N7,$A$20:$E$23,IF($B$19=VLOOKUP(L7,$B$2:$G$4,3,TRUE),2,IF($C$19=VLOOKUP(L7,$B$2:$G$4,3,TRUE),3,IF($D$19=VLOOKUP(L7,$B$2:$G$4,3,TRUE),4,5))),TRUE)/2,VLOOKUP(N7,$A$20:$E$23,IF($B$19=VLOOKUP(L7,$B$2:$G$4,3,TRUE),2,IF($C$19=VLOOKUP(L7,$B$2:$G$4,3,TRUE),3,IF($D$19=VLOOKUP(L7,$B$2:$G$4,3,TRUE),4,5))),TRUE))*(DAY(M7)-DAY(L7)+1)/DAY(EOMONTH(L7,0)),0))) -> 0 | X7: =IF(L7="","",IF(OR(K7<DATE(2010,4,1),AB7=3,N7=VLOOKUP(N7,I!$I$2:$J$5,1)),0,ROUND(IF(AB7=2,Main!$L$9/2,Main!$L$9)*(DAY(M7)-DAY(L7)+1)/DAY(EOMONTH(L7,0)),0))) -> 0 | Z7: =IF(L7="","",IF(OR(AB7=3,N7=VLOOKUP(N7,I!$I$2:$J$5,1)),0,ROUND(IF(AB7=2,VLOOKUP(O7,$A$11:$E$16,IF($B$10=VLOOKUP(K7,$B$2:$G$4,6,TRUE),2,IF($B$10=VLOOKUP(K7,$B$2:$G$4,6,TRUE),3,IF($D$10=VLOOKUP(K7,$B$2:$G$4,6,TRUE),4,5))))/2,VLOOKUP(O7,$A$11:$E$16,IF($B$10=VLOOKUP(K7,$B$2:$G$4,6,TRUE),2,IF($B$10=VLOOKUP(K7,$B$2:$G$4,6,TRUE),3,IF($D$10=VLOOKUP(K7,$B$2:$G$4,6,TRUE),4,5)))))*(DAY(M7)-DAY(L7)+1)/DAY(EOMONTH(L7,0)),0))) -> 0 | AA7: 54197 | AB7: 1 | AD7: =IF($H$12<AI1,DATE(2012,7,1),$H$12) -> 2012-07-01 | AE7: 72 | AI7: =IF(AH7="","",MIN(EOMONTH(AH7,0),VLOOKUP(AH7,I!$O$164:$P$202,2,TRUE)-1,LOOKUP(AH7,$E$47:$F$53)-1,IF(AH7<$B$2,$B$2-1,I!$Q$9),IF(AH7<$B$3,$B$3-1,I!$Q$9),IF(AH7<$B$4,$B$4-1,I!$Q$9),LOOKUP(AH7,$H$47:$I$53))) ->  | AJ7: =IF(AH7="","",VLOOKUP(AH7,I!$P$164:$R$202,2)) ->  | AL7: =IF(AH7="","",ROUND(IF(AZ7=3,0,IF(AZ7=2,IF(AJ7=VLOOKUP(AJ7,I!$I$2:$J$5,1),0,Main!$H$9)/2,IF(AJ7=VLOOKUP(AJ7,I!$I$2:$J$5,1),0,Main!$H$9)))*(DAY(AI7)-DAY(AH7)+1)/DAY(EOMONTH(AH7,0)),0)) ->  | AM7: =IF(AH7="","",IF(AJ7=VLOOKUP(AJ7,I!$I$2:$J$5,1),0,ROUND(AK7*VLOOKUP(AH7,$AD$4:$AE$7,2)%,0))) ->  | AN7: =IF(AH7="","",IF(OR(AZ7=3,AJ7=VLOOKUP(AJ7,I!$I$2:$J$5,1)),0,ROUND(MIN(ROUND(AJ7*VLOOKUP(AH7,$B$1:$G$4,2)%,0),VLOOKUP(AH7,$B$2:$H$4,7,TRUE))*(DAY(AI7)-DAY(AH7)+1)/DAY(EOMONTH(AH7,0)),0))) ->  | AO7: =IF(AH7="","",IF(OR(AH7<DATE(2010,4,1),$I$2=VLOOKUP(AH7,$B$2:$G$4,5,TRUE),AJ7=VLOOKUP(AJ7,I!$I$2:$J$5,1)),0,ROUND(IF(AZ7=3,0,IF(AZ7=2,MIN(ROUND(AJ7*$G$13%,0),$G$14)/2,MIN(ROUND(AJ7*$G$13%,0),$G$14)))*(DAY(AI7)-DAY(AH7)+1)/DAY(EOMONTH(AH7,0)),0))) ->  | AQ7: =IF(AH7="","",IF(AH7<DATE(2010,4,1),0,IF(OR(AZ7=2,AZ7=3,AJ7=VLOOKUP(AJ7,I!$I$2:$J$5,1)),0,ROUND(VLOOKUP(AH7,$B$1:$G$4,4)*(DAY(AI7)-DAY(AH7)+1)/DAY(EOMONTH(AH7,0)),0)))) ->  | AR7: =IF(AH7="","",IF(OR(AZ7=2,AZ7=3,AH7<DATE(2010,4,1),AJ7=VLOOKUP(AJ7,I!$I$2:$J$5,1)),0,ROUND(MIN(VLOOKUP(AG7,$A$27:$C$32,2,TRUE),ROUND(AK7*VLOOKUP(AG7,$A$27:$C$32,3,TRUE)%,0))*IF(AG7=$A$36,$C$36,IF(AG7=$A$37,$C$37,IF(AG7=$A$38,$C$38,IF(AG7=$A$39,$C$39,IF(AG7=$A$40,$C$40,IF(AG7=$A$41,$C$41,1))))))*(DAY(AI7)-DAY(AH7)+1)/DAY(EOMONTH(AH7,0)),0))) ->  | AS7: =IF(AH7="","",IF(OR(AZ7=3,AJ7=VLOOKUP(AJ7,I!$I$2:$J$5,1)),0,ROUND(IF(AZ7=2,VLOOKUP(AJ7,$A$20:$E$23,IF($B$19=VLOOKUP(AH7,$B$2:$G$4,3,TRUE),2,IF($C$19=VLOOKUP(AH7,$B$2:$G$4,3,TRUE),3,IF($D$19=VLOOKUP(AH7,$B$2:$G$4,3,TRUE),4,5))),TRUE)/2,VLOOKUP(AJ7,$A$20:$E$23,IF($B$19=VLOOKUP(AH7,$B$2:$G$4,3,TRUE),2,IF($C$19=VLOOKUP(AH7,$B$2:$G$4,3,TRUE),3,IF($D$19=VLOOKUP(AH7,$B$2:$G$4,3,TRUE),4,5))),TRUE))*(DAY(AI7)-DAY(AH7)+1)/DAY(EOMONTH(AH7,0)),0))) ->  | AT7: =IF(AH7="","",IF(OR(AG7<DATE(2010,4,1),AZ7=3,AJ7=VLOOKUP(AJ7,I!$I$2:$J$5,1)),0,ROUND(IF(AZ7=2,Main!$L$9/2,Main!$L$9)*(DAY(AI7)-DAY(AH7)+1)/DAY(EOMONTH(AH7,0)),0))) ->  | AV7: =IF(AH7="","",IF(OR(AZ7=3,AJ7=VLOOKUP(AJ7,I!$I$2:$J$5,1)),0,ROUND(IF(AZ7=2,VLOOKUP(AK7,$A$11:$E$16,IF($B$10=VLOOKUP(AG7,$B$2:$G$4,6,TRUE),2,IF($B$10=VLOOKUP(AG7,$B$2:$G$4,6,TRUE),3,IF($D$10=VLOOKUP(AG7,$B$2:$G$4,6,TRUE),4,5))))/2,VLOOKUP(AK7,$A$11:$E$16,IF($B$10=VLOOKUP(AG7,$B$2:$G$4,6,TRUE),2,IF($B$10=VLOOKUP(AG7,$B$2:$G$4,6,TRUE),3,IF($D$10=VLOOKUP(AG7,$B$2:$G$4,6,TRUE),4,5)))))*(DAY(AI7)-DAY(AH7)+1)/DAY(EOMONTH(AH7,0)),0))) ->  | AW7: 0 | AX7: =IF(AH7="","",IF(AH7<=$AX$1,AW7-AY7,IF(AND(Main!$F$22=Main!$CA$24,AH7>$AX$1),ROUND(SUM(AK7,AM7)*10%,0),""))) ->  | AY7: =IF(AG7="","",IF(OR(Main!$H$10=Main!$BH$4,Main!$H$10=Main!$BH$5),0,LOOKUP(AW7*DAY(EOMONTH(AH7,0))/(DAY(AI7)-DAY(AH7)+1),$H$17:$I$22))) ->  | AZ7: 1 | BD7: =IF(BC7="","",MIN(EOMONTH(BC7,0),VLOOKUP(BC7,I!$O$164:$P$202,2,TRUE)-1,LOOKUP(BC7,$E$47:$F$53)-1,IF(BC7<$B$2,$B$2-1,I!$Q$9),IF(BC7<$B$3,$B$3-1,I!$Q$9),IF(BC7<$B$4,$B$4-1,I!$Q$9),LOOKUP(BC7,$H$47:$I$53))) ->  | BE7: =IF(BC7="","",VLOOKUP(BC7,I!$P$164:$R$202,3)) ->  | BG7: =IF(BC7="","",ROUND(IF(BU7=3,0,IF(BU7=2,IF(BE7=VLOOKUP(BE7,I!$I$2:$J$5,1),0,Main!$H$9)/2,IF(BE7=VLOOKUP(BE7,I!$I$2:$J$5,1),0,Main!$H$9)))*(DAY(BD7)-DAY(BC7)+1)/DAY(EOMONTH(BC7,0)),0)) ->  | BH7: =IF(BC7="","",IF(BE7=VLOOKUP(BE7,I!$I$2:$J$5,1),0,ROUND(BF7*VLOOKUP(BC7,$AD$4:$AE$7,2)%,0))) ->  | BI7: =IF(BC7="","",IF(OR(BU7=3,BE7=VLOOKUP(BE7,I!$I$2:$J$5,1)),0,ROUND(MIN(ROUND(BE7*VLOOKUP(BC7,$B$1:$G$4,2)%,0),VLOOKUP(BC7,$B$2:$H$4,7,TRUE))*(DAY(BD7)-DAY(BC7)+1)/DAY(EOMONTH(BC7,0)),0))) ->  | BJ7: =IF(BC7="","",IF(OR(BC7<DATE(2010,4,1),$I$2=VLOOKUP(BC7,$B$2:$G$4,5,TRUE),BE7=VLOOKUP(BE7,I!$I$2:$J$5,1)),0,ROUND(IF(BU7=3,0,IF(BU7=2,MIN(ROUND(BE7*$G$13%,0),$G$14)/2,MIN(ROUND(BE7*$G$13%,0),$G$14)))*(DAY(BD7)-DAY(BC7)+1)/DAY(EOMONTH(BC7,0)),0))) ->  | BL7: =IF(BC7="","",IF(BC7<DATE(2010,4,1),0,IF(OR(BU7=2,BU7=3,BE7=VLOOKUP(BE7,I!$I$2:$J$5,1)),0,ROUND(VLOOKUP(BC7,$B$1:$G$4,4)*(DAY(BD7)-DAY(BC7)+1)/DAY(EOMONTH(BC7,0)),0)))) ->  | BM7: =IF(BC7="","",IF(OR(BU7=2,BU7=3,BC7<DATE(2010,4,1),BE7=VLOOKUP(BE7,I!$I$2:$J$5,1)),0,ROUND(MIN(VLOOKUP(BB7,$A$27:$C$32,2,TRUE),ROUND(BF7*VLOOKUP(BB7,$A$27:$C$32,3,TRUE)%,0))*IF(BB7=$A$36,$C$36,IF(BB7=$A$37,$C$37,IF(BB7=$A$38,$C$38,IF(BB7=$A$39,$C$39,IF(BB7=$A$40,$C$40,IF(BB7=$A$41,$C$41,1))))))*(DAY(BD7)-DAY(BC7)+1)/DAY(EOMONTH(BC7,0)),0))) ->  | BN7: =IF(BC7="","",IF(OR(BU7=3,BE7=VLOOKUP(BE7,I!$I$2:$J$5,1)),0,ROUND(IF(BU7=2,VLOOKUP(BE7,$A$20:$E$23,IF($B$19=VLOOKUP(BC7,$B$2:$G$4,3,TRUE),2,IF($C$19=VLOOKUP(BC7,$B$2:$G$4,3,TRUE),3,IF($D$19=VLOOKUP(BC7,$B$2:$G$4,3,TRUE),4,5))),TRUE)/2,VLOOKUP(BE7,$A$20:$E$23,IF($B$19=VLOOKUP(BC7,$B$2:$G$4,3,TRUE),2,IF($C$19=VLOOKUP(BC7,$B$2:$G$4,3,TRUE),3,IF($D$19=VLOOKUP(BC7,$B$2:$G$4,3,TRUE),4,5))),TRUE))*(DAY(BD7)-DAY(BC7)+1)/DAY(EOMONTH(BC7,0)),0))) ->  | BO7: =IF(BC7="","",IF(OR(BB7<DATE(2010,4,1),BU7=3,BE7=VLOOKUP(BE7,I!$I$2:$J$5,1)),0,ROUND(IF(BU7=2,Main!$L$9/2,Main!$L$9)*(DAY(BD7)-DAY(BC7)+1)/DAY(EOMONTH(BC7,0)),0))) ->  | BQ7: =IF(BC7="","",IF(OR(BU7=3,BE7=VLOOKUP(BE7,I!$I$2:$J$5,1)),0,ROUND(IF(BU7=2,VLOOKUP(BF7,$A$11:$E$16,IF($B$10=VLOOKUP(BB7,$B$2:$G$4,6,TRUE),2,IF($B$10=VLOOKUP(BB7,$B$2:$G$4,6,TRUE),3,IF($D$10=VLOOKUP(BB7,$B$2:$G$4,6,TRUE),4,5))))/2,VLOOKUP(BF7,$A$11:$E$16,IF($B$10=VLOOKUP(BB7,$B$2:$G$4,6,TRUE),2,IF($B$10=VLOOKUP(BB7,$B$2:$G$4,6,TRUE),3,IF($D$10=VLOOKUP(BB7,$B$2:$G$4,6,TRUE),4,5)))))*(DAY(BD7)-DAY(BC7)+1)/DAY(EOMONTH(BC7,0)),0))) ->  | BR7: 0 | BS7: =IF(BC7="","",IF(BC7<=$AX$1,BR7-BT7,IF(AND(Main!$F$22=Main!$CA$24,BC7>$AX$1),ROUND(SUM(BF7,BH7)*10%,0),""))) ->  | BT7: =IF(BB7="","",IF(OR(Main!$H$10=Main!$BH$4,Main!$H$10=Main!$BH$5),0,LOOKUP(BR7*DAY(EOMONTH(BC7,0))/(DAY(BD7)-DAY(BC7)+1),$H$17:$I$22))) ->  | BU7: 1 | BV7: 0 | BW7: =IF($H$12<CB1,DATE(2012,7,1),$H$12) -> 2012-07-01 | BX7: 72.0000 | BY7: 72.00 | CB7: =IF(CA7="","",MIN(EOMONTH(CA7,0),VLOOKUP(CA7,I!$O$164:$P$202,2,TRUE)-1,LOOKUP(CA7,$E$47:$F$53)-1,IF(CA7<$B$2,$B$2-1,I!$Q$9),IF(CA7<$B$3,$B$3-1,I!$Q$9),IF(CA7<$B$4,$B$4-1,I!$Q$9),LOOKUP(CA7,$H$47:$I$53))) ->  | CC7: =IF(CA7="","",VLOOKUP(CA7,I!$P$164:$R$202,2)) ->  | CE7: =IF(CA7="","",ROUND(IF(CS7=3,0,IF(CS7=2,IF(CC7=VLOOKUP(CC7,I!$I$2:$J$5,1),0,Main!$H$9)/2,IF(CC7=VLOOKUP(CC7,I!$I$2:$J$5,1),0,Main!$H$9)))*(DAY(CB7)-DAY(CA7)+1)/DAY(EOMONTH(CA7,0)),0)) ->  | CF7: =IF(CA7="","",IF(CC7=VLOOKUP(CC7,I!$I$2:$J$5,1),0,ROUND(CD7*VLOOKUP(CA7,$BW$4:$BX$7,2)%,0))) ->  | CG7: =IF(CA7="","",IF(OR(CS7=3,CC7=VLOOKUP(CC7,I!$I$2:$J$5,1)),0,ROUND(MIN(ROUND(CC7*VLOOKUP(CA7,$B$1:$G$4,2)%,0),VLOOKUP(CA7,$B$2:$H$4,7,TRUE))*(DAY(CB7)-DAY(CA7)+1)/DAY(EOMONTH(CA7,0)),0))) ->  | CH7: =IF(CA7="","",IF(OR(CA7<DATE(2010,4,1),$I$2=VLOOKUP(CA7,$B$2:$G$4,5,TRUE),CC7=VLOOKUP(CC7,I!$I$2:$J$5,1)),0,ROUND(IF(CS7=3,0,IF(CS7=2,MIN(ROUND(CC7*$G$13%,0),$G$14)/2,MIN(ROUND(CC7*$G$13%,0),$G$14)))*(DAY(CB7)-DAY(CA7)+1)/DAY(EOMONTH(CA7,0)),0))) ->  | CJ7: =IF(CA7="","",IF(CA7<DATE(2010,4,1),0,IF(OR(CS7=2,CS7=3,CC7=VLOOKUP(CC7,I!$I$2:$J$5,1)),0,ROUND(VLOOKUP(CA7,$B$1:$G$4,4)*(DAY(CB7)-DAY(CA7)+1)/DAY(EOMONTH(CA7,0)),0)))) ->  | CK7: =IF(CA7="","",IF(OR(CS7=2,CS7=3,CA7<DATE(2010,4,1),CC7=VLOOKUP(CC7,I!$I$2:$J$5,1)),0,ROUND(MIN(VLOOKUP(BZ7,$A$27:$C$32,2,TRUE),ROUND(CD7*VLOOKUP(BZ7,$A$27:$C$32,3,TRUE)%,0))*IF(BZ7=$A$36,$C$36,IF(BZ7=$A$37,$C$37,IF(BZ7=$A$38,$C$38,IF(BZ7=$A$39,$C$39,IF(BZ7=$A$40,$C$40,IF(BZ7=$A$41,$C$41,1))))))*(DAY(CB7)-DAY(CA7)+1)/DAY(EOMONTH(CA7,0)),0))) ->  | CL7: =IF(CA7="","",IF(OR(CS7=3,CC7=VLOOKUP(CC7,I!$I$2:$J$5,1)),0,ROUND(IF(CS7=2,VLOOKUP(CC7,$A$20:$E$23,IF($B$19=VLOOKUP(CA7,$B$2:$G$4,3,TRUE),2,IF($C$19=VLOOKUP(CA7,$B$2:$G$4,3,TRUE),3,IF($D$19=VLOOKUP(CA7,$B$2:$G$4,3,TRUE),4,5))),TRUE)/2,VLOOKUP(CC7,$A$20:$E$23,IF($B$19=VLOOKUP(CA7,$B$2:$G$4,3,TRUE),2,IF($C$19=VLOOKUP(CA7,$B$2:$G$4,3,TRUE),3,IF($D$19=VLOOKUP(CA7,$B$2:$G$4,3,TRUE),4,5))),TRUE))*(DAY(CB7)-DAY(CA7)+1)/DAY(EOMONTH(CA7,0)),0))) ->  | CM7: =IF(CA7="","",IF(OR(BZ7<DATE(2010,4,1),CS7=3,CC7=VLOOKUP(CC7,I!$I$2:$J$5,1)),0,ROUND(IF(CS7=2,Main!$L$9/2,Main!$L$9)*(DAY(CB7)-DAY(CA7)+1)/DAY(EOMONTH(CA7,0)),0))) ->  | CO7: =IF(CA7="","",IF(OR(CS7=3,CC7=VLOOKUP(CC7,I!$I$2:$J$5,1)),0,ROUND(IF(CS7=2,VLOOKUP(CD7,$A$11:$E$16,IF($B$10=VLOOKUP(BZ7,$B$2:$G$4,6,TRUE),2,IF($B$10=VLOOKUP(BZ7,$B$2:$G$4,6,TRUE),3,IF($D$10=VLOOKUP(BZ7,$B$2:$G$4,6,TRUE),4,5))))/2,VLOOKUP(CD7,$A$11:$E$16,IF($B$10=VLOOKUP(BZ7,$B$2:$G$4,6,TRUE),2,IF($B$10=VLOOKUP(BZ7,$B$2:$G$4,6,TRUE),3,IF($D$10=VLOOKUP(BZ7,$B$2:$G$4,6,TRUE),4,5)))))*(DAY(CB7)-DAY(CA7)+1)/DAY(EOMONTH(CA7,0)),0))) ->  | CP7: 0 | CQ7: =IF(CA7="","",IF(Main!$F$22=Main!$CA$24,ROUND(SUM(CD7,CF7)*10%,0),"")) ->  | CR7: =IF(BZ7="","",IF(OR(Main!$H$10=Main!$BH$4,Main!$H$10=Main!$BH$5),0,LOOKUP(CP7*DAY(EOMONTH(CA7,0))/(DAY(CB7)-DAY(CA7)+1),$H$17:$I$22))) ->  | CS7: 1 | CW7: =IF(CV7="","",MIN(EOMONTH(CV7,0),VLOOKUP(CV7,I!$O$164:$P$202,2,TRUE)-1,LOOKUP(CV7,$E$47:$F$53)-1,IF(CV7<$B$2,$B$2-1,I!$Q$9),IF(CV7<$B$3,$B$3-1,I!$Q$9),IF(CV7<$B$4,$B$4-1,I!$Q$9),LOOKUP(CV7,$H$47:$I$53))) ->  | CX7: =IF(CV7="","",VLOOKUP(CV7,I!$P$164:$R$202,3)) ->  | CZ7: =IF(CV7="","",ROUND(IF(DN7=3,0,IF(DN7=2,IF(CX7=VLOOKUP(CX7,I!$I$2:$J$5,1),0,Main!$H$9)/2,IF(CX7=VLOOKUP(CX7,I!$I$2:$J$5,1),0,Main!$H$9)))*(DAY(CW7)-DAY(CV7)+1)/DAY(EOMONTH(CV7,0)),0)) ->  | DA7: =IF(CV7="","",IF(CX7=VLOOKUP(CX7,I!$I$2:$J$5,1),0,ROUND(CY7*VLOOKUP(CV7,$AD$4:$AE$7,2)%,0))) ->  | DB7: =IF(CV7="","",IF(OR(DN7=3,CX7=VLOOKUP(CX7,I!$I$2:$J$5,1)),0,ROUND(MIN(ROUND(CX7*VLOOKUP(CV7,$B$1:$G$4,2)%,0),VLOOKUP(CV7,$B$2:$H$4,7,TRUE))*(DAY(CW7)-DAY(CV7)+1)/DAY(EOMONTH(CV7,0)),0))) ->  | DC7: =IF(CV7="","",IF(OR(CV7<DATE(2010,4,1),$I$2=VLOOKUP(CV7,$B$2:$G$4,5,TRUE),CX7=VLOOKUP(CX7,I!$I$2:$J$5,1)),0,ROUND(IF(DN7=3,0,IF(DN7=2,MIN(ROUND(CX7*$G$13%,0),$G$14)/2,MIN(ROUND(CX7*$G$13%,0),$G$14)))*(DAY(CW7)-DAY(CV7)+1)/DAY(EOMONTH(CV7,0)),0))) ->  | DE7: =IF(CV7="","",IF(CV7<DATE(2010,4,1),0,IF(OR(DN7=2,DN7=3,CX7=VLOOKUP(CX7,I!$I$2:$J$5,1)),0,ROUND(VLOOKUP(CV7,$B$1:$G$4,4)*(DAY(CW7)-DAY(CV7)+1)/DAY(EOMONTH(CV7,0)),0)))) ->  | DF7: =IF(CV7="","",IF(OR(DN7=2,DN7=3,CV7<DATE(2010,4,1),CX7=VLOOKUP(CX7,I!$I$2:$J$5,1)),0,ROUND(MIN(VLOOKUP(CU7,$A$27:$C$32,2,TRUE),ROUND(CY7*VLOOKUP(CU7,$A$27:$C$32,3,TRUE)%,0))*IF(CU7=$A$36,$C$36,IF(CU7=$A$37,$C$37,IF(CU7=$A$38,$C$38,IF(CU7=$A$39,$C$39,IF(CU7=$A$40,$C$40,IF(CU7=$A$41,$C$41,1))))))*(DAY(CW7)-DAY(CV7)+1)/DAY(EOMONTH(CV7,0)),0))) ->  | DG7: =IF(CV7="","",IF(OR(DN7=3,CX7=VLOOKUP(CX7,I!$I$2:$J$5,1)),0,ROUND(IF(DN7=2,VLOOKUP(CX7,$A$20:$E$23,IF($B$19=VLOOKUP(CV7,$B$2:$G$4,3,TRUE),2,IF($C$19=VLOOKUP(CV7,$B$2:$G$4,3,TRUE),3,IF($D$19=VLOOKUP(CV7,$B$2:$G$4,3,TRUE),4,5))),TRUE)/2,VLOOKUP(CX7,$A$20:$E$23,IF($B$19=VLOOKUP(CV7,$B$2:$G$4,3,TRUE),2,IF($C$19=VLOOKUP(CV7,$B$2:$G$4,3,TRUE),3,IF($D$19=VLOOKUP(CV7,$B$2:$G$4,3,TRUE),4,5))),TRUE))*(DAY(CW7)-DAY(CV7)+1)/DAY(EOMONTH(CV7,0)),0))) ->  | DH7: =IF(CV7="","",IF(OR(CU7<DATE(2010,4,1),DN7=3,CX7=VLOOKUP(CX7,I!$I$2:$J$5,1)),0,ROUND(IF(DN7=2,Main!$L$9/2,Main!$L$9)*(DAY(CW7)-DAY(CV7)+1)/DAY(EOMONTH(CV7,0)),0))) ->  | DJ7: =IF(CV7="","",IF(OR(DN7=3,CX7=VLOOKUP(CX7,I!$I$2:$J$5,1)),0,ROUND(IF(DN7=2,VLOOKUP(CY7,$A$11:$E$16,IF($B$10=VLOOKUP(CU7,$B$2:$G$4,6,TRUE),2,IF($B$10=VLOOKUP(CU7,$B$2:$G$4,6,TRUE),3,IF($D$10=VLOOKUP(CU7,$B$2:$G$4,6,TRUE),4,5))))/2,VLOOKUP(CY7,$A$11:$E$16,IF($B$10=VLOOKUP(CU7,$B$2:$G$4,6,TRUE),2,IF($B$10=VLOOKUP(CU7,$B$2:$G$4,6,TRUE),3,IF($D$10=VLOOKUP(CU7,$B$2:$G$4,6,TRUE),4,5)))))*(DAY(CW7)-DAY(CV7)+1)/DAY(EOMONTH(CV7,0)),0))) ->  | DK7: 0 | DL7: =IF(CV7="","",IF(CX7=VLOOKUP(CX7,I!$I$2:$J$5,1),"",IF(Main!$F$22=Main!$CA$24,ROUND(SUM(CY7,DA7)*10%,0),""))) ->  | DM7: =IF(CU7="","",IF(OR(Main!$H$10=Main!$BH$4,Main!$H$10=Main!$BH$5),0,LOOKUP(DK7*DAY(EOMONTH(CV7,0))/(DAY(CW7)-DAY(CV7)+1),$H$17:$I$22))) ->  | DN7: 1
A8: Special Compensatory Allowance to the employees working in scheduled Areas | H8: DA | I8: RPS-2010 | J8: UGC-2006 | K8: 2012-08-01 | L8: 2012-08-01 | M8: =IF(L8="","",MIN(EOMONTH(L8,0),VLOOKUP(L8,I!$O$164:$P$202,2,TRUE)-1,LOOKUP(L8,$E$47:$F$53)-1,IF(L8<$B$2,$B$2-1,I!$Q$9),IF(L8<$B$3,$B$3-1,I!$Q$9),IF(L8<$B$4,$B$4-1,I!$Q$9),LOOKUP(L8,$H$47:$I$53))) -> 2012-08-31 | N8: =IF(L8="","",VLOOKUP(L8,'Advance Tax'!$A$3:$C$14,3)) -> 32260.00 | O8: 32260 | P8: =IF(L8="","",ROUND(IF(AB8=3,0,IF(AB8=2,IF(N8=VLOOKUP(N8,I!$I$2:$J$5,1),0,Main!$H$9)/2,IF(N8=VLOOKUP(N8,I!$I$2:$J$5,1),0,Main!$H$9)))*(DAY(M8)-DAY(L8)+1)/DAY(EOMONTH(L8,0)),0)) -> 0 | Q8: =IF(L8="","",IF(N8=VLOOKUP(N8,I!$I$2:$J$5,1),0,ROUND(O8*VLOOKUP(L8,$H$9:$I$12,2)%,0))) -> 20969 | R8: =IF(L8="","",IF(OR(AB8=3,N8=VLOOKUP(N8,I!$I$2:$J$5,1)),0,ROUND(MIN(ROUND(N8*VLOOKUP(L8,$B$1:$G$4,2)%,0),VLOOKUP(L8,$B$2:$H$4,7,TRUE))*(DAY(M8)-DAY(L8)+1)/DAY(EOMONTH(L8,0)),0))) -> 3226 | S8: =IF(L8="","",IF(OR(L8<DATE(2010,4,1),$I$2=VLOOKUP(L8,$B$2:$G$4,5,TRUE),N8=VLOOKUP(N8,I!$I$2:$J$5,1)),0,ROUND(IF(AB8=3,0,IF(AB8=2,MIN(ROUND(N8*$G$13%,0),$G$14)/2,MIN(ROUND(N8*$G$13%,0),$G$14)))*(DAY(M8)-DAY(L8)+1)/DAY(EOMONTH(L8,0)),0))) -> 0 | U8: =IF(L8="","",IF(L8<DATE(2010,4,1),0,IF(OR(AB8=2,AB8=3,N8=VLOOKUP(N8,I!$I$2:$J$5,1)),0,ROUND(VLOOKUP(L8,$B$1:$G$4,4)*(DAY(M8)-DAY(L8)+1)/DAY(EOMONTH(L8,0)),0)))) -> 0 | V8: =IF(L8="","",IF(OR(AB8=2,AB8=3,L8<DATE(2010,4,1),N8=VLOOKUP(N8,I!$I$2:$J$5,1)),0,ROUND(MIN(VLOOKUP(K8,$A$27:$C$32,2,TRUE),ROUND(O8*VLOOKUP(K8,$A$27:$C$32,3,TRUE)%,0))*IF(K8=$A$36,$C$36,IF(K8=$A$37,$C$37,IF(K8=$A$38,$C$38,IF(K8=$A$39,$C$39,IF(K8=$A$40,$C$40,IF(K8=$A$41,$C$41,1))))))*(DAY(M8)-DAY(L8)+1)/DAY(EOMONTH(L8,0)),0))) -> 0 | W8: =IF(L8="","",IF(OR(AB8=3,N8=VLOOKUP(N8,I!$I$2:$J$5,1)),0,ROUND(IF(AB8=2,VLOOKUP(N8,$A$20:$E$23,IF($B$19=VLOOKUP(L8,$B$2:$G$4,3,TRUE),2,IF($C$19=VLOOKUP(L8,$B$2:$G$4,3,TRUE),3,IF($D$19=VLOOKUP(L8,$B$2:$G$4,3,TRUE),4,5))),TRUE)/2,VLOOKUP(N8,$A$20:$E$23,IF($B$19=VLOOKUP(L8,$B$2:$G$4,3,TRUE),2,IF($C$19=VLOOKUP(L8,$B$2:$G$4,3,TRUE),3,IF($D$19=VLOOKUP(L8,$B$2:$G$4,3,TRUE),4,5))),TRUE))*(DAY(M8)-DAY(L8)+1)/DAY(EOMONTH(L8,0)),0))) -> 0 | X8: =IF(L8="","",IF(OR(K8<DATE(2010,4,1),AB8=3,N8=VLOOKUP(N8,I!$I$2:$J$5,1)),0,ROUND(IF(AB8=2,Main!$L$9/2,Main!$L$9)*(DAY(M8)-DAY(L8)+1)/DAY(EOMONTH(L8,0)),0))) -> 0 | Z8: =IF(L8="","",IF(OR(AB8=3,N8=VLOOKUP(N8,I!$I$2:$J$5,1)),0,ROUND(IF(AB8=2,VLOOKUP(O8,$A$11:$E$16,IF($B$10=VLOOKUP(K8,$B$2:$G$4,6,TRUE),2,IF($B$10=VLOOKUP(K8,$B$2:$G$4,6,TRUE),3,IF($D$10=VLOOKUP(K8,$B$2:$G$4,6,TRUE),4,5))))/2,VLOOKUP(O8,$A$11:$E$16,IF($B$10=VLOOKUP(K8,$B$2:$G$4,6,TRUE),2,IF($B$10=VLOOKUP(K8,$B$2:$G$4,6,TRUE),3,IF($D$10=VLOOKUP(K8,$B$2:$G$4,6,TRUE),4,5)))))*(DAY(M8)-DAY(L8)+1)/DAY(EOMONTH(L8,0)),0))) -> 0 | AA8: 56455 | AB8: 1 | AI8: =IF(AH8="","",MIN(EOMONTH(AH8,0),VLOOKUP(AH8,I!$O$164:$P$202,2,TRUE)-1,LOOKUP(AH8,$E$47:$F$53)-1,IF(AH8<$B$2,$B$2-1,I!$Q$9),IF(AH8<$B$3,$B$3-1,I!$Q$9),IF(AH8<$B$4,$B$4-1,I!$Q$9),LOOKUP(AH8,$H$47:$I$53))) ->  | AJ8: =IF(AH8="","",VLOOKUP(AH8,I!$P$164:$R$202,2)) ->  | AL8: =IF(AH8="","",ROUND(IF(AZ8=3,0,IF(AZ8=2,IF(AJ8=VLOOKUP(AJ8,I!$I$2:$J$5,1),0,Main!$H$9)/2,IF(AJ8=VLOOKUP(AJ8,I!$I$2:$J$5,1),0,Main!$H$9)))*(DAY(AI8)-DAY(AH8)+1)/DAY(EOMONTH(AH8,0)),0)) ->  | AM8: =IF(AH8="","",IF(AJ8=VLOOKUP(AJ8,I!$I$2:$J$5,1),0,ROUND(AK8*VLOOKUP(AH8,$AD$4:$AE$7,2)%,0))) ->  | AN8: =IF(AH8="","",IF(OR(AZ8=3,AJ8=VLOOKUP(AJ8,I!$I$2:$J$5,1)),0,ROUND(MIN(ROUND(AJ8*VLOOKUP(AH8,$B$1:$G$4,2)%,0),VLOOKUP(AH8,$B$2:$H$4,7,TRUE))*(DAY(AI8)-DAY(AH8)+1)/DAY(EOMONTH(AH8,0)),0))) ->  | AO8: =IF(AH8="","",IF(OR(AH8<DATE(2010,4,1),$I$2=VLOOKUP(AH8,$B$2:$G$4,5,TRUE),AJ8=VLOOKUP(AJ8,I!$I$2:$J$5,1)),0,ROUND(IF(AZ8=3,0,IF(AZ8=2,MIN(ROUND(AJ8*$G$13%,0),$G$14)/2,MIN(ROUND(AJ8*$G$13%,0),$G$14)))*(DAY(AI8)-DAY(AH8)+1)/DAY(EOMONTH(AH8,0)),0))) ->  | AQ8: =IF(AH8="","",IF(AH8<DATE(2010,4,1),0,IF(OR(AZ8=2,AZ8=3,AJ8=VLOOKUP(AJ8,I!$I$2:$J$5,1)),0,ROUND(VLOOKUP(AH8,$B$1:$G$4,4)*(DAY(AI8)-DAY(AH8)+1)/DAY(EOMONTH(AH8,0)),0)))) ->  | AR8: =IF(AH8="","",IF(OR(AZ8=2,AZ8=3,AH8<DATE(2010,4,1),AJ8=VLOOKUP(AJ8,I!$I$2:$J$5,1)),0,ROUND(MIN(VLOOKUP(AG8,$A$27:$C$32,2,TRUE),ROUND(AK8*VLOOKUP(AG8,$A$27:$C$32,3,TRUE)%,0))*IF(AG8=$A$36,$C$36,IF(AG8=$A$37,$C$37,IF(AG8=$A$38,$C$38,IF(AG8=$A$39,$C$39,IF(AG8=$A$40,$C$40,IF(AG8=$A$41,$C$41,1))))))*(DAY(AI8)-DAY(AH8)+1)/DAY(EOMONTH(AH8,0)),0))) ->  | AS8: =IF(AH8="","",IF(OR(AZ8=3,AJ8=VLOOKUP(AJ8,I!$I$2:$J$5,1)),0,ROUND(IF(AZ8=2,VLOOKUP(AJ8,$A$20:$E$23,IF($B$19=VLOOKUP(AH8,$B$2:$G$4,3,TRUE),2,IF($C$19=VLOOKUP(AH8,$B$2:$G$4,3,TRUE),3,IF($D$19=VLOOKUP(AH8,$B$2:$G$4,3,TRUE),4,5))),TRUE)/2,VLOOKUP(AJ8,$A$20:$E$23,IF($B$19=VLOOKUP(AH8,$B$2:$G$4,3,TRUE),2,IF($C$19=VLOOKUP(AH8,$B$2:$G$4,3,TRUE),3,IF($D$19=VLOOKUP(AH8,$B$2:$G$4,3,TRUE),4,5))),TRUE))*(DAY(AI8)-DAY(AH8)+1)/DAY(EOMONTH(AH8,0)),0))) ->  | AT8: =IF(AH8="","",IF(OR(AG8<DATE(2010,4,1),AZ8=3,AJ8=VLOOKUP(AJ8,I!$I$2:$J$5,1)),0,ROUND(IF(AZ8=2,Main!$L$9/2,Main!$L$9)*(DAY(AI8)-DAY(AH8)+1)/DAY(EOMONTH(AH8,0)),0))) ->  | AV8: =IF(AH8="","",IF(OR(AZ8=3,AJ8=VLOOKUP(AJ8,I!$I$2:$J$5,1)),0,ROUND(IF(AZ8=2,VLOOKUP(AK8,$A$11:$E$16,IF($B$10=VLOOKUP(AG8,$B$2:$G$4,6,TRUE),2,IF($B$10=VLOOKUP(AG8,$B$2:$G$4,6,TRUE),3,IF($D$10=VLOOKUP(AG8,$B$2:$G$4,6,TRUE),4,5))))/2,VLOOKUP(AK8,$A$11:$E$16,IF($B$10=VLOOKUP(AG8,$B$2:$G$4,6,TRUE),2,IF($B$10=VLOOKUP(AG8,$B$2:$G$4,6,TRUE),3,IF($D$10=VLOOKUP(AG8,$B$2:$G$4,6,TRUE),4,5)))))*(DAY(AI8)-DAY(AH8)+1)/DAY(EOMONTH(AH8,0)),0))) ->  | AW8: =SUM(AK8:AV8) -> 0 | AX8: =IF(AH8="","",IF(AH8<=$AX$1,AW8-AY8,IF(AND(Main!$F$22=Main!$CA$24,AH8>$AX$1),ROUND(SUM(AK8,AM8)*10%,0),""))) ->  | AY8: =IF(AG8="","",IF(OR(Main!$H$10=Main!$BH$4,Main!$H$10=Main!$BH$5),0,LOOKUP(AW8*DAY(EOMONTH(AH8,0))/(DAY(AI8)-DAY(AH8)+1),$H$17:$I$22))) ->  | AZ8: 1 | BD8: =IF(BC8="","",MIN(EOMONTH(BC8,0),VLOOKUP(BC8,I!$O$164:$P$202,2,TRUE)-1,LOOKUP(BC8,$E$47:$F$53)-1,IF(BC8<$B$2,$B$2-1,I!$Q$9),IF(BC8<$B$3,$B$3-1,I!$Q$9),IF(BC8<$B$4,$B$4-1,I!$Q$9),LOOKUP(BC8,$H$47:$I$53))) ->  | BE8: =IF(BC8="","",VLOOKUP(BC8,I!$P$164:$R$202,3)) ->  | BG8: =IF(BC8="","",ROUND(IF(BU8=3,0,IF(BU8=2,IF(BE8=VLOOKUP(BE8,I!$I$2:$J$5,1),0,Main!$H$9)/2,IF(BE8=VLOOKUP(BE8,I!$I$2:$J$5,1),0,Main!$H$9)))*(DAY(BD8)-DAY(BC8)+1)/DAY(EOMONTH(BC8,0)),0)) ->  | BH8: =IF(BC8="","",IF(BE8=VLOOKUP(BE8,I!$I$2:$J$5,1),0,ROUND(BF8*VLOOKUP(BC8,$AD$4:$AE$7,2)%,0))) ->  | BI8: =IF(BC8="","",IF(OR(BU8=3,BE8=VLOOKUP(BE8,I!$I$2:$J$5,1)),0,ROUND(MIN(ROUND(BE8*VLOOKUP(BC8,$B$1:$G$4,2)%,0),VLOOKUP(BC8,$B$2:$H$4,7,TRUE))*(DAY(BD8)-DAY(BC8)+1)/DAY(EOMONTH(BC8,0)),0))) ->  | BJ8: =IF(BC8="","",IF(OR(BC8<DATE(2010,4,1),$I$2=VLOOKUP(BC8,$B$2:$G$4,5,TRUE),BE8=VLOOKUP(BE8,I!$I$2:$J$5,1)),0,ROUND(IF(BU8=3,0,IF(BU8=2,MIN(ROUND(BE8*$G$13%,0),$G$14)/2,MIN(ROUND(BE8*$G$13%,0),$G$14)))*(DAY(BD8)-DAY(BC8)+1)/DAY(EOMONTH(BC8,0)),0))) ->  | BL8: =IF(BC8="","",IF(BC8<DATE(2010,4,1),0,IF(OR(BU8=2,BU8=3,BE8=VLOOKUP(BE8,I!$I$2:$J$5,1)),0,ROUND(VLOOKUP(BC8,$B$1:$G$4,4)*(DAY(BD8)-DAY(BC8)+1)/DAY(EOMONTH(BC8,0)),0)))) ->  | BM8: =IF(BC8="","",IF(OR(BU8=2,BU8=3,BC8<DATE(2010,4,1),BE8=VLOOKUP(BE8,I!$I$2:$J$5,1)),0,ROUND(MIN(VLOOKUP(BB8,$A$27:$C$32,2,TRUE),ROUND(BF8*VLOOKUP(BB8,$A$27:$C$32,3,TRUE)%,0))*IF(BB8=$A$36,$C$36,IF(BB8=$A$37,$C$37,IF(BB8=$A$38,$C$38,IF(BB8=$A$39,$C$39,IF(BB8=$A$40,$C$40,IF(BB8=$A$41,$C$41,1))))))*(DAY(BD8)-DAY(BC8)+1)/DAY(EOMONTH(BC8,0)),0))) ->  | BN8: =IF(BC8="","",IF(OR(BU8=3,BE8=VLOOKUP(BE8,I!$I$2:$J$5,1)),0,ROUND(IF(BU8=2,VLOOKUP(BE8,$A$20:$E$23,IF($B$19=VLOOKUP(BC8,$B$2:$G$4,3,TRUE),2,IF($C$19=VLOOKUP(BC8,$B$2:$G$4,3,TRUE),3,IF($D$19=VLOOKUP(BC8,$B$2:$G$4,3,TRUE),4,5))),TRUE)/2,VLOOKUP(BE8,$A$20:$E$23,IF($B$19=VLOOKUP(BC8,$B$2:$G$4,3,TRUE),2,IF($C$19=VLOOKUP(BC8,$B$2:$G$4,3,TRUE),3,IF($D$19=VLOOKUP(BC8,$B$2:$G$4,3,TRUE),4,5))),TRUE))*(DAY(BD8)-DAY(BC8)+1)/DAY(EOMONTH(BC8,0)),0))) ->  | BO8: =IF(BC8="","",IF(OR(BB8<DATE(2010,4,1),BU8=3,BE8=VLOOKUP(BE8,I!$I$2:$J$5,1)),0,ROUND(IF(BU8=2,Main!$L$9/2,Main!$L$9)*(DAY(BD8)-DAY(BC8)+1)/DAY(EOMONTH(BC8,0)),0))) ->  | BQ8: =IF(BC8="","",IF(OR(BU8=3,BE8=VLOOKUP(BE8,I!$I$2:$J$5,1)),0,ROUND(IF(BU8=2,VLOOKUP(BF8,$A$11:$E$16,IF($B$10=VLOOKUP(BB8,$B$2:$G$4,6,TRUE),2,IF($B$10=VLOOKUP(BB8,$B$2:$G$4,6,TRUE),3,IF($D$10=VLOOKUP(BB8,$B$2:$G$4,6,TRUE),4,5))))/2,VLOOKUP(BF8,$A$11:$E$16,IF($B$10=VLOOKUP(BB8,$B$2:$G$4,6,TRUE),2,IF($B$10=VLOOKUP(BB8,$B$2:$G$4,6,TRUE),3,IF($D$10=VLOOKUP(BB8,$B$2:$G$4,6,TRUE),4,5)))))*(DAY(BD8)-DAY(BC8)+1)/DAY(EOMONTH(BC8,0)),0))) ->  | BR8: 0 | BS8: =IF(BC8="","",IF(BC8<=$AX$1,BR8-BT8,IF(AND(Main!$F$22=Main!$CA$24,BC8>$AX$1),ROUND(SUM(BF8,BH8)*10%,0),""))) ->  | BT8: =IF(BB8="","",IF(OR(Main!$H$10=Main!$BH$4,Main!$H$10=Main!$BH$5),0,LOOKUP(BR8*DAY(EOMONTH(BC8,0))/(DAY(BD8)-DAY(BC8)+1),$H$17:$I$22))) ->  | BU8: 1 | BV8: 0 | CB8: =IF(CA8="","",MIN(EOMONTH(CA8,0),VLOOKUP(CA8,I!$O$164:$P$202,2,TRUE)-1,LOOKUP(CA8,$E$47:$F$53)-1,IF(CA8<$B$2,$B$2-1,I!$Q$9),IF(CA8<$B$3,$B$3-1,I!$Q$9),IF(CA8<$B$4,$B$4-1,I!$Q$9),LOOKUP(CA8,$H$47:$I$53))) ->  | CC8: =IF(CA8="","",VLOOKUP(CA8,I!$P$164:$R$202,2)) ->  | CE8: =IF(CA8="","",ROUND(IF(CS8=3,0,IF(CS8=2,IF(CC8=VLOOKUP(CC8,I!$I$2:$J$5,1),0,Main!$H$9)/2,IF(CC8=VLOOKUP(CC8,I!$I$2:$J$5,1),0,Main!$H$9)))*(DAY(CB8)-DAY(CA8)+1)/DAY(EOMONTH(CA8,0)),0)) ->  | CF8: =IF(CA8="","",IF(CC8=VLOOKUP(CC8,I!$I$2:$J$5,1),0,ROUND(CD8*VLOOKUP(CA8,$BW$4:$BX$7,2)%,0))) ->  | CG8: =IF(CA8="","",IF(OR(CS8=3,CC8=VLOOKUP(CC8,I!$I$2:$J$5,1)),0,ROUND(MIN(ROUND(CC8*VLOOKUP(CA8,$B$1:$G$4,2)%,0),VLOOKUP(CA8,$B$2:$H$4,7,TRUE))*(DAY(CB8)-DAY(CA8)+1)/DAY(EOMONTH(CA8,0)),0))) ->  | CH8: =IF(CA8="","",IF(OR(CA8<DATE(2010,4,1),$I$2=VLOOKUP(CA8,$B$2:$G$4,5,TRUE),CC8=VLOOKUP(CC8,I!$I$2:$J$5,1)),0,ROUND(IF(CS8=3,0,IF(CS8=2,MIN(ROUND(CC8*$G$13%,0),$G$14)/2,MIN(ROUND(CC8*$G$13%,0),$G$14)))*(DAY(CB8)-DAY(CA8)+1)/DAY(EOMONTH(CA8,0)),0))) ->  | CJ8: =IF(CA8="","",IF(CA8<DATE(2010,4,1),0,IF(OR(CS8=2,CS8=3,CC8=VLOOKUP(CC8,I!$I$2:$J$5,1)),0,ROUND(VLOOKUP(CA8,$B$1:$G$4,4)*(DAY(CB8)-DAY(CA8)+1)/DAY(EOMONTH(CA8,0)),0)))) ->  | CK8: =IF(CA8="","",IF(OR(CS8=2,CS8=3,CA8<DATE(2010,4,1),CC8=VLOOKUP(CC8,I!$I$2:$J$5,1)),0,ROUND(MIN(VLOOKUP(BZ8,$A$27:$C$32,2,TRUE),ROUND(CD8*VLOOKUP(BZ8,$A$27:$C$32,3,TRUE)%,0))*IF(BZ8=$A$36,$C$36,IF(BZ8=$A$37,$C$37,IF(BZ8=$A$38,$C$38,IF(BZ8=$A$39,$C$39,IF(BZ8=$A$40,$C$40,IF(BZ8=$A$41,$C$41,1))))))*(DAY(CB8)-DAY(CA8)+1)/DAY(EOMONTH(CA8,0)),0))) ->  | CL8: =IF(CA8="","",IF(OR(CS8=3,CC8=VLOOKUP(CC8,I!$I$2:$J$5,1)),0,ROUND(IF(CS8=2,VLOOKUP(CC8,$A$20:$E$23,IF($B$19=VLOOKUP(CA8,$B$2:$G$4,3,TRUE),2,IF($C$19=VLOOKUP(CA8,$B$2:$G$4,3,TRUE),3,IF($D$19=VLOOKUP(CA8,$B$2:$G$4,3,TRUE),4,5))),TRUE)/2,VLOOKUP(CC8,$A$20:$E$23,IF($B$19=VLOOKUP(CA8,$B$2:$G$4,3,TRUE),2,IF($C$19=VLOOKUP(CA8,$B$2:$G$4,3,TRUE),3,IF($D$19=VLOOKUP(CA8,$B$2:$G$4,3,TRUE),4,5))),TRUE))*(DAY(CB8)-DAY(CA8)+1)/DAY(EOMONTH(CA8,0)),0))) ->  | CM8: =IF(CA8="","",IF(OR(BZ8<DATE(2010,4,1),CS8=3,CC8=VLOOKUP(CC8,I!$I$2:$J$5,1)),0,ROUND(IF(CS8=2,Main!$L$9/2,Main!$L$9)*(DAY(CB8)-DAY(CA8)+1)/DAY(EOMONTH(CA8,0)),0))) ->  | CO8: =IF(CA8="","",IF(OR(CS8=3,CC8=VLOOKUP(CC8,I!$I$2:$J$5,1)),0,ROUND(IF(CS8=2,VLOOKUP(CD8,$A$11:$E$16,IF($B$10=VLOOKUP(BZ8,$B$2:$G$4,6,TRUE),2,IF($B$10=VLOOKUP(BZ8,$B$2:$G$4,6,TRUE),3,IF($D$10=VLOOKUP(BZ8,$B$2:$G$4,6,TRUE),4,5))))/2,VLOOKUP(CD8,$A$11:$E$16,IF($B$10=VLOOKUP(BZ8,$B$2:$G$4,6,TRUE),2,IF($B$10=VLOOKUP(BZ8,$B$2:$G$4,6,TRUE),3,IF($D$10=VLOOKUP(BZ8,$B$2:$G$4,6,TRUE),4,5)))))*(DAY(CB8)-DAY(CA8)+1)/DAY(EOMONTH(CA8,0)),0))) ->  | CP8: 0 | CQ8: =IF(CA8="","",IF(Main!$F$22=Main!$CA$24,ROUND(SUM(CD8,CF8)*10%,0),"")) ->  | CR8: =IF(BZ8="","",IF(OR(Main!$H$10=Main!$BH$4,Main!$H$10=Main!$BH$5),0,LOOKUP(CP8*DAY(EOMONTH(CA8,0))/(DAY(CB8)-DAY(CA8)+1),$H$17:$I$22))) ->  | CS8: 1 | CW8: =IF(CV8="","",MIN(EOMONTH(CV8,0),VLOOKUP(CV8,I!$O$164:$P$202,2,TRUE)-1,LOOKUP(CV8,$E$47:$F$53)-1,IF(CV8<$B$2,$B$2-1,I!$Q$9),IF(CV8<$B$3,$B$3-1,I!$Q$9),IF(CV8<$B$4,$B$4-1,I!$Q$9),LOOKUP(CV8,$H$47:$I$53))) ->  | CX8: =IF(CV8="","",VLOOKUP(CV8,I!$P$164:$R$202,3)) ->  | CZ8: =IF(CV8="","",ROUND(IF(DN8=3,0,IF(DN8=2,IF(CX8=VLOOKUP(CX8,I!$I$2:$J$5,1),0,Main!$H$9)/2,IF(CX8=VLOOKUP(CX8,I!$I$2:$J$5,1),0,Main!$H$9)))*(DAY(CW8)-DAY(CV8)+1)/DAY(EOMONTH(CV8,0)),0)) ->  | DA8: =IF(CV8="","",IF(CX8=VLOOKUP(CX8,I!$I$2:$J$5,1),0,ROUND(CY8*VLOOKUP(CV8,$AD$4:$AE$7,2)%,0))) ->  | DB8: =IF(CV8="","",IF(OR(DN8=3,CX8=VLOOKUP(CX8,I!$I$2:$J$5,1)),0,ROUND(MIN(ROUND(CX8*VLOOKUP(CV8,$B$1:$G$4,2)%,0),VLOOKUP(CV8,$B$2:$H$4,7,TRUE))*(DAY(CW8)-DAY(CV8)+1)/DAY(EOMONTH(CV8,0)),0))) ->  | DC8: =IF(CV8="","",IF(OR(CV8<DATE(2010,4,1),$I$2=VLOOKUP(CV8,$B$2:$G$4,5,TRUE),CX8=VLOOKUP(CX8,I!$I$2:$J$5,1)),0,ROUND(IF(DN8=3,0,IF(DN8=2,MIN(ROUND(CX8*$G$13%,0),$G$14)/2,MIN(ROUND(CX8*$G$13%,0),$G$14)))*(DAY(CW8)-DAY(CV8)+1)/DAY(EOMONTH(CV8,0)),0))) ->  | DE8: =IF(CV8="","",IF(CV8<DATE(2010,4,1),0,IF(OR(DN8=2,DN8=3,CX8=VLOOKUP(CX8,I!$I$2:$J$5,1)),0,ROUND(VLOOKUP(CV8,$B$1:$G$4,4)*(DAY(CW8)-DAY(CV8)+1)/DAY(EOMONTH(CV8,0)),0)))) ->  | DF8: =IF(CV8="","",IF(OR(DN8=2,DN8=3,CV8<DATE(2010,4,1),CX8=VLOOKUP(CX8,I!$I$2:$J$5,1)),0,ROUND(MIN(VLOOKUP(CU8,$A$27:$C$32,2,TRUE),ROUND(CY8*VLOOKUP(CU8,$A$27:$C$32,3,TRUE)%,0))*IF(CU8=$A$36,$C$36,IF(CU8=$A$37,$C$37,IF(CU8=$A$38,$C$38,IF(CU8=$A$39,$C$39,IF(CU8=$A$40,$C$40,IF(CU8=$A$41,$C$41,1))))))*(DAY(CW8)-DAY(CV8)+1)/DAY(EOMONTH(CV8,0)),0))) ->  | DG8: =IF(CV8="","",IF(OR(DN8=3,CX8=VLOOKUP(CX8,I!$I$2:$J$5,1)),0,ROUND(IF(DN8=2,VLOOKUP(CX8,$A$20:$E$23,IF($B$19=VLOOKUP(CV8,$B$2:$G$4,3,TRUE),2,IF($C$19=VLOOKUP(CV8,$B$2:$G$4,3,TRUE),3,IF($D$19=VLOOKUP(CV8,$B$2:$G$4,3,TRUE),4,5))),TRUE)/2,VLOOKUP(CX8,$A$20:$E$23,IF($B$19=VLOOKUP(CV8,$B$2:$G$4,3,TRUE),2,IF($C$19=VLOOKUP(CV8,$B$2:$G$4,3,TRUE),3,IF($D$19=VLOOKUP(CV8,$B$2:$G$4,3,TRUE),4,5))),TRUE))*(DAY(CW8)-DAY(CV8)+1)/DAY(EOMONTH(CV8,0)),0))) ->  | DH8: =IF(CV8="","",IF(OR(CU8<DATE(2010,4,1),DN8=3,CX8=VLOOKUP(CX8,I!$I$2:$J$5,1)),0,ROUND(IF(DN8=2,Main!$L$9/2,Main!$L$9)*(DAY(CW8)-DAY(CV8)+1)/DAY(EOMONTH(CV8,0)),0))) ->  | DJ8: =IF(CV8="","",IF(OR(DN8=3,CX8=VLOOKUP(CX8,I!$I$2:$J$5,1)),0,ROUND(IF(DN8=2,VLOOKUP(CY8,$A$11:$E$16,IF($B$10=VLOOKUP(CU8,$B$2:$G$4,6,TRUE),2,IF($B$10=VLOOKUP(CU8,$B$2:$G$4,6,TRUE),3,IF($D$10=VLOOKUP(CU8,$B$2:$G$4,6,TRUE),4,5))))/2,VLOOKUP(CY8,$A$11:$E$16,IF($B$10=VLOOKUP(CU8,$B$2:$G$4,6,TRUE),2,IF($B$10=VLOOKUP(CU8,$B$2:$G$4,6,TRUE),3,IF($D$10=VLOOKUP(CU8,$B$2:$G$4,6,TRUE),4,5)))))*(DAY(CW8)-DAY(CV8)+1)/DAY(EOMONTH(CV8,0)),0))) ->  | DK8: 0 | DL8: =IF(CV8="","",IF(CX8=VLOOKUP(CX8,I!$I$2:$J$5,1),"",IF(Main!$F$22=Main!$CA$24,ROUND(SUM(CY8,DA8)*10%,0),""))) ->  | DM8: =IF(CU8="","",IF(OR(Main!$H$10=Main!$BH$4,Main!$H$10=Main!$BH$5),0,LOOKUP(DK8*DAY(EOMONTH(CV8,0))/(DAY(CW8)-DAY(CV8)+1),$H$17:$I$22))) ->  | DN8: 1
A9: G.O.Ms.No.139 Dated:28-04-2010 | D9: 2010-04-01 | H9: =DATE(2011,1,1) -> 2011-01-01 | I9: =J9 -> 51 | J9: 51 | K9: 2012-09-01 | L9: 2012-09-01 | M9: =IF(L9="","",MIN(EOMONTH(L9,0),VLOOKUP(L9,I!$O$164:$P$202,2,TRUE)-1,LOOKUP(L9,$E$47:$F$53)-1,IF(L9<$B$2,$B$2-1,I!$Q$9),IF(L9<$B$3,$B$3-1,I!$Q$9),IF(L9<$B$4,$B$4-1,I!$Q$9),LOOKUP(L9,$H$47:$I$53))) -> 2012-09-30 | N9: =IF(L9="","",VLOOKUP(L9,'Advance Tax'!$A$3:$C$14,3)) -> 32260.00 | O9: 32260 | P9: =IF(L9="","",ROUND(IF(AB9=3,0,IF(AB9=2,IF(N9=VLOOKUP(N9,I!$I$2:$J$5,1),0,Main!$H$9)/2,IF(N9=VLOOKUP(N9,I!$I$2:$J$5,1),0,Main!$H$9)))*(DAY(M9)-DAY(L9)+1)/DAY(EOMONTH(L9,0)),0)) -> 0 | Q9: =IF(L9="","",IF(N9=VLOOKUP(N9,I!$I$2:$J$5,1),0,ROUND(O9*VLOOKUP(L9,$H$9:$I$12,2)%,0))) -> 20969 | R9: =IF(L9="","",IF(OR(AB9=3,N9=VLOOKUP(N9,I!$I$2:$J$5,1)),0,ROUND(MIN(ROUND(N9*VLOOKUP(L9,$B$1:$G$4,2)%,0),VLOOKUP(L9,$B$2:$H$4,7,TRUE))*(DAY(M9)-DAY(L9)+1)/DAY(EOMONTH(L9,0)),0))) -> 3226 | S9: =IF(L9="","",IF(OR(L9<DATE(2010,4,1),$I$2=VLOOKUP(L9,$B$2:$G$4,5,TRUE),N9=VLOOKUP(N9,I!$I$2:$J$5,1)),0,ROUND(IF(AB9=3,0,IF(AB9=2,MIN(ROUND(N9*$G$13%,0),$G$14)/2,MIN(ROUND(N9*$G$13%,0),$G$14)))*(DAY(M9)-DAY(L9)+1)/DAY(EOMONTH(L9,0)),0))) -> 0 | U9: =IF(L9="","",IF(L9<DATE(2010,4,1),0,IF(OR(AB9=2,AB9=3,N9=VLOOKUP(N9,I!$I$2:$J$5,1)),0,ROUND(VLOOKUP(L9,$B$1:$G$4,4)*(DAY(M9)-DAY(L9)+1)/DAY(EOMONTH(L9,0)),0)))) -> 0 | V9: =IF(L9="","",IF(OR(AB9=2,AB9=3,L9<DATE(2010,4,1),N9=VLOOKUP(N9,I!$I$2:$J$5,1)),0,ROUND(MIN(VLOOKUP(K9,$A$27:$C$32,2,TRUE),ROUND(O9*VLOOKUP(K9,$A$27:$C$32,3,TRUE)%,0))*IF(K9=$A$36,$C$36,IF(K9=$A$37,$C$37,IF(K9=$A$38,$C$38,IF(K9=$A$39,$C$39,IF(K9=$A$40,$C$40,IF(K9=$A$41,$C$41,1))))))*(DAY(M9)-DAY(L9)+1)/DAY(EOMONTH(L9,0)),0))) -> 0 | W9: =IF(L9="","",IF(OR(AB9=3,N9=VLOOKUP(N9,I!$I$2:$J$5,1)),0,ROUND(IF(AB9=2,VLOOKUP(N9,$A$20:$E$23,IF($B$19=VLOOKUP(L9,$B$2:$G$4,3,TRUE),2,IF($C$19=VLOOKUP(L9,$B$2:$G$4,3,TRUE),3,IF($D$19=VLOOKUP(L9,$B$2:$G$4,3,TRUE),4,5))),TRUE)/2,VLOOKUP(N9,$A$20:$E$23,IF($B$19=VLOOKUP(L9,$B$2:$G$4,3,TRUE),2,IF($C$19=VLOOKUP(L9,$B$2:$G$4,3,TRUE),3,IF($D$19=VLOOKUP(L9,$B$2:$G$4,3,TRUE),4,5))),TRUE))*(DAY(M9)-DAY(L9)+1)/DAY(EOMONTH(L9,0)),0))) -> 0 | X9: =IF(L9="","",IF(OR(K9<DATE(2010,4,1),AB9=3,N9=VLOOKUP(N9,I!$I$2:$J$5,1)),0,ROUND(IF(AB9=2,Main!$L$9/2,Main!$L$9)*(DAY(M9)-DAY(L9)+1)/DAY(EOMONTH(L9,0)),0))) -> 0 | Z9: =IF(L9="","",IF(OR(AB9=3,N9=VLOOKUP(N9,I!$I$2:$J$5,1)),0,ROUND(IF(AB9=2,VLOOKUP(O9,$A$11:$E$16,IF($B$10=VLOOKUP(K9,$B$2:$G$4,6,TRUE),2,IF($B$10=VLOOKUP(K9,$B$2:$G$4,6,TRUE),3,IF($D$10=VLOOKUP(K9,$B$2:$G$4,6,TRUE),4,5))))/2,VLOOKUP(O9,$A$11:$E$16,IF($B$10=VLOOKUP(K9,$B$2:$G$4,6,TRUE),2,IF($B$10=VLOOKUP(K9,$B$2:$G$4,6,TRUE),3,IF($D$10=VLOOKUP(K9,$B$2:$G$4,6,TRUE),4,5)))))*(DAY(M9)-DAY(L9)+1)/DAY(EOMONTH(L9,0)),0))) -> 0 | AA9: 56455 | AB9: 1 | AI9: =IF(AH9="","",MIN(EOMONTH(AH9,0),VLOOKUP(AH9,I!$O$164:$P$202,2,TRUE)-1,LOOKUP(AH9,$E$47:$F$53)-1,IF(AH9<$B$2,$B$2-1,I!$Q$9),IF(AH9<$B$3,$B$3-1,I!$Q$9),IF(AH9<$B$4,$B$4-1,I!$Q$9),LOOKUP(AH9,$H$47:$I$53))) ->  | AJ9: =IF(AH9="","",VLOOKUP(AH9,I!$P$164:$R$202,2)) ->  | AL9: =IF(AH9="","",ROUND(IF(AZ9=3,0,IF(AZ9=2,IF(AJ9=VLOOKUP(AJ9,I!$I$2:$J$5,1),0,Main!$H$9)/2,IF(AJ9=VLOOKUP(AJ9,I!$I$2:$J$5,1),0,Main!$H$9)))*(DAY(AI9)-DAY(AH9)+1)/DAY(EOMONTH(AH9,0)),0)) ->  | AM9: =IF(AH9="","",IF(AJ9=VLOOKUP(AJ9,I!$I$2:$J$5,1),0,ROUND(AK9*VLOOKUP(AH9,$AD$4:$AE$7,2)%,0))) ->  | AN9: =IF(AH9="","",IF(OR(AZ9=3,AJ9=VLOOKUP(AJ9,I!$I$2:$J$5,1)),0,ROUND(MIN(ROUND(AJ9*VLOOKUP(AH9,$B$1:$G$4,2)%,0),VLOOKUP(AH9,$B$2:$H$4,7,TRUE))*(DAY(AI9)-DAY(AH9)+1)/DAY(EOMONTH(AH9,0)),0))) ->  | AO9: =IF(AH9="","",IF(OR(AH9<DATE(2010,4,1),$I$2=VLOOKUP(AH9,$B$2:$G$4,5,TRUE),AJ9=VLOOKUP(AJ9,I!$I$2:$J$5,1)),0,ROUND(IF(AZ9=3,0,IF(AZ9=2,MIN(ROUND(AJ9*$G$13%,0),$G$14)/2,MIN(ROUND(AJ9*$G$13%,0),$G$14)))*(DAY(AI9)-DAY(AH9)+1)/DAY(EOMONTH(AH9,0)),0))) ->  | AQ9: =IF(AH9="","",IF(AH9<DATE(2010,4,1),0,IF(OR(AZ9=2,AZ9=3,AJ9=VLOOKUP(AJ9,I!$I$2:$J$5,1)),0,ROUND(VLOOKUP(AH9,$B$1:$G$4,4)*(DAY(AI9)-DAY(AH9)+1)/DAY(EOMONTH(AH9,0)),0)))) ->  | AR9: =IF(AH9="","",IF(OR(AZ9=2,AZ9=3,AH9<DATE(2010,4,1),AJ9=VLOOKUP(AJ9,I!$I$2:$J$5,1)),0,ROUND(MIN(VLOOKUP(AG9,$A$27:$C$32,2,TRUE),ROUND(AK9*VLOOKUP(AG9,$A$27:$C$32,3,TRUE)%,0))*IF(AG9=$A$36,$C$36,IF(AG9=$A$37,$C$37,IF(AG9=$A$38,$C$38,IF(AG9=$A$39,$C$39,IF(AG9=$A$40,$C$40,IF(AG9=$A$41,$C$41,1))))))*(DAY(AI9)-DAY(AH9)+1)/DAY(EOMONTH(AH9,0)),0))) ->  | AS9: =IF(AH9="","",IF(OR(AZ9=3,AJ9=VLOOKUP(AJ9,I!$I$2:$J$5,1)),0,ROUND(IF(AZ9=2,VLOOKUP(AJ9,$A$20:$E$23,IF($B$19=VLOOKUP(AH9,$B$2:$G$4,3,TRUE),2,IF($C$19=VLOOKUP(AH9,$B$2:$G$4,3,TRUE),3,IF($D$19=VLOOKUP(AH9,$B$2:$G$4,3,TRUE),4,5))),TRUE)/2,VLOOKUP(AJ9,$A$20:$E$23,IF($B$19=VLOOKUP(AH9,$B$2:$G$4,3,TRUE),2,IF($C$19=VLOOKUP(AH9,$B$2:$G$4,3,TRUE),3,IF($D$19=VLOOKUP(AH9,$B$2:$G$4,3,TRUE),4,5))),TRUE))*(DAY(AI9)-DAY(AH9)+1)/DAY(EOMONTH(AH9,0)),0))) ->  | AT9: =IF(AH9="","",IF(OR(AG9<DATE(2010,4,1),AZ9=3,AJ9=VLOOKUP(AJ9,I!$I$2:$J$5,1)),0,ROUND(IF(AZ9=2,Main!$L$9/2,Main!$L$9)*(DAY(AI9)-DAY(AH9)+1)/DAY(EOMONTH(AH9,0)),0))) ->  | AV9: =IF(AH9="","",IF(OR(AZ9=3,AJ9=VLOOKUP(AJ9,I!$I$2:$J$5,1)),0,ROUND(IF(AZ9=2,VLOOKUP(AK9,$A$11:$E$16,IF($B$10=VLOOKUP(AG9,$B$2:$G$4,6,TRUE),2,IF($B$10=VLOOKUP(AG9,$B$2:$G$4,6,TRUE),3,IF($D$10=VLOOKUP(AG9,$B$2:$G$4,6,TRUE),4,5))))/2,VLOOKUP(AK9,$A$11:$E$16,IF($B$10=VLOOKUP(AG9,$B$2:$G$4,6,TRUE),2,IF($B$10=VLOOKUP(AG9,$B$2:$G$4,6,TRUE),3,IF($D$10=VLOOKUP(AG9,$B$2:$G$4,6,TRUE),4,5)))))*(DAY(AI9)-DAY(AH9)+1)/DAY(EOMONTH(AH9,0)),0))) ->  | AW9: 0 | AX9: =IF(AH9="","",IF(AH9<=$AX$1,AW9-AY9,IF(AND(Main!$F$22=Main!$CA$24,AH9>$AX$1),ROUND(SUM(AK9,AM9)*10%,0),""))) ->  | AY9: =IF(AG9="","",IF(OR(Main!$H$10=Main!$BH$4,Main!$H$10=Main!$BH$5),0,LOOKUP(AW9*DAY(EOMONTH(AH9,0))/(DAY(AI9)-DAY(AH9)+1),$H$17:$I$22))) ->  | AZ9: 1 | BD9: =IF(BC9="","",MIN(EOMONTH(BC9,0),VLOOKUP(BC9,I!$O$164:$P$202,2,TRUE)-1,LOOKUP(BC9,$E$47:$F$53)-1,IF(BC9<$B$2,$B$2-1,I!$Q$9),IF(BC9<$B$3,$B$3-1,I!$Q$9),IF(BC9<$B$4,$B$4-1,I!$Q$9),LOOKUP(BC9,$H$47:$I$53))) ->  | BE9: =IF(BC9="","",VLOOKUP(BC9,I!$P$164:$R$202,3)) ->  | BG9: =IF(BC9="","",ROUND(IF(BU9=3,0,IF(BU9=2,IF(BE9=VLOOKUP(BE9,I!$I$2:$J$5,1),0,Main!$H$9)/2,IF(BE9=VLOOKUP(BE9,I!$I$2:$J$5,1),0,Main!$H$9)))*(DAY(BD9)-DAY(BC9)+1)/DAY(EOMONTH(BC9,0)),0)) ->  | BH9: =IF(BC9="","",IF(BE9=VLOOKUP(BE9,I!$I$2:$J$5,1),0,ROUND(BF9*VLOOKUP(BC9,$AD$4:$AE$7,2)%,0))) ->  | BI9: =IF(BC9="","",IF(OR(BU9=3,BE9=VLOOKUP(BE9,I!$I$2:$J$5,1)),0,ROUND(MIN(ROUND(BE9*VLOOKUP(BC9,$B$1:$G$4,2)%,0),VLOOKUP(BC9,$B$2:$H$4,7,TRUE))*(DAY(BD9)-DAY(BC9)+1)/DAY(EOMONTH(BC9,0)),0))) ->  | BJ9: =IF(BC9="","",IF(OR(BC9<DATE(2010,4,1),$I$2=VLOOKUP(BC9,$B$2:$G$4,5,TRUE),BE9=VLOOKUP(BE9,I!$I$2:$J$5,1)),0,ROUND(IF(BU9=3,0,IF(BU9=2,MIN(ROUND(BE9*$G$13%,0),$G$14)/2,MIN(ROUND(BE9*$G$13%,0),$G$14)))*(DAY(BD9)-DAY(BC9)+1)/DAY(EOMONTH(BC9,0)),0))) ->  | BL9: =IF(BC9="","",IF(BC9<DATE(2010,4,1),0,IF(OR(BU9=2,BU9=3,BE9=VLOOKUP(BE9,I!$I$2:$J$5,1)),0,ROUND(VLOOKUP(BC9,$B$1:$G$4,4)*(DAY(BD9)-DAY(BC9)+1)/DAY(EOMONTH(BC9,0)),0)))) ->  | BM9: =IF(BC9="","",IF(OR(BU9=2,BU9=3,BC9<DATE(2010,4,1),BE9=VLOOKUP(BE9,I!$I$2:$J$5,1)),0,ROUND(MIN(VLOOKUP(BB9,$A$27:$C$32,2,TRUE),ROUND(BF9*VLOOKUP(BB9,$A$27:$C$32,3,TRUE)%,0))*IF(BB9=$A$36,$C$36,IF(BB9=$A$37,$C$37,IF(BB9=$A$38,$C$38,IF(BB9=$A$39,$C$39,IF(BB9=$A$40,$C$40,IF(BB9=$A$41,$C$41,1))))))*(DAY(BD9)-DAY(BC9)+1)/DAY(EOMONTH(BC9,0)),0))) ->  | BN9: =IF(BC9="","",IF(OR(BU9=3,BE9=VLOOKUP(BE9,I!$I$2:$J$5,1)),0,ROUND(IF(BU9=2,VLOOKUP(BE9,$A$20:$E$23,IF($B$19=VLOOKUP(BC9,$B$2:$G$4,3,TRUE),2,IF($C$19=VLOOKUP(BC9,$B$2:$G$4,3,TRUE),3,IF($D$19=VLOOKUP(BC9,$B$2:$G$4,3,TRUE),4,5))),TRUE)/2,VLOOKUP(BE9,$A$20:$E$23,IF($B$19=VLOOKUP(BC9,$B$2:$G$4,3,TRUE),2,IF($C$19=VLOOKUP(BC9,$B$2:$G$4,3,TRUE),3,IF($D$19=VLOOKUP(BC9,$B$2:$G$4,3,TRUE),4,5))),TRUE))*(DAY(BD9)-DAY(BC9)+1)/DAY(EOMONTH(BC9,0)),0))) ->  | BO9: =IF(BC9="","",IF(OR(BB9<DATE(2010,4,1),BU9=3,BE9=VLOOKUP(BE9,I!$I$2:$J$5,1)),0,ROUND(IF(BU9=2,Main!$L$9/2,Main!$L$9)*(DAY(BD9)-DAY(BC9)+1)/DAY(EOMONTH(BC9,0)),0))) ->  | BQ9: =IF(BC9="","",IF(OR(BU9=3,BE9=VLOOKUP(BE9,I!$I$2:$J$5,1)),0,ROUND(IF(BU9=2,VLOOKUP(BF9,$A$11:$E$16,IF($B$10=VLOOKUP(BB9,$B$2:$G$4,6,TRUE),2,IF($B$10=VLOOKUP(BB9,$B$2:$G$4,6,TRUE),3,IF($D$10=VLOOKUP(BB9,$B$2:$G$4,6,TRUE),4,5))))/2,VLOOKUP(BF9,$A$11:$E$16,IF($B$10=VLOOKUP(BB9,$B$2:$G$4,6,TRUE),2,IF($B$10=VLOOKUP(BB9,$B$2:$G$4,6,TRUE),3,IF($D$10=VLOOKUP(BB9,$B$2:$G$4,6,TRUE),4,5)))))*(DAY(BD9)-DAY(BC9)+1)/DAY(EOMONTH(BC9,0)),0))) ->  | BR9: 0 | BS9: =IF(BC9="","",IF(BC9<=$AX$1,BR9-BT9,IF(AND(Main!$F$22=Main!$CA$24,BC9>$AX$1),ROUND(SUM(BF9,BH9)*10%,0),""))) ->  | BT9: =IF(BB9="","",IF(OR(Main!$H$10=Main!$BH$4,Main!$H$10=Main!$BH$5),0,LOOKUP(BR9*DAY(EOMONTH(BC9,0))/(DAY(BD9)-DAY(BC9)+1),$H$17:$I$22))) ->  | BU9: 1 | BV9: 0 | CB9: =IF(CA9="","",MIN(EOMONTH(CA9,0),VLOOKUP(CA9,I!$O$164:$P$202,2,TRUE)-1,LOOKUP(CA9,$E$47:$F$53)-1,IF(CA9<$B$2,$B$2-1,I!$Q$9),IF(CA9<$B$3,$B$3-1,I!$Q$9),IF(CA9<$B$4,$B$4-1,I!$Q$9),LOOKUP(CA9,$H$47:$I$53))) ->  | CC9: =IF(CA9="","",VLOOKUP(CA9,I!$P$164:$R$202,2)) ->  | CE9: =IF(CA9="","",ROUND(IF(CS9=3,0,IF(CS9=2,IF(CC9=VLOOKUP(CC9,I!$I$2:$J$5,1),0,Main!$H$9)/2,IF(CC9=VLOOKUP(CC9,I!$I$2:$J$5,1),0,Main!$H$9)))*(DAY(CB9)-DAY(CA9)+1)/DAY(EOMONTH(CA9,0)),0)) ->  | CF9: =IF(CA9="","",IF(CC9=VLOOKUP(CC9,I!$I$2:$J$5,1),0,ROUND(CD9*VLOOKUP(CA9,$BW$4:$BX$7,2)%,0))) ->  | CG9: =IF(CA9="","",IF(OR(CS9=3,CC9=VLOOKUP(CC9,I!$I$2:$J$5,1)),0,ROUND(MIN(ROUND(CC9*VLOOKUP(CA9,$B$1:$G$4,2)%,0),VLOOKUP(CA9,$B$2:$H$4,7,TRUE))*(DAY(CB9)-DAY(CA9)+1)/DAY(EOMONTH(CA9,0)),0))) ->  | CH9: =IF(CA9="","",IF(OR(CA9<DATE(2010,4,1),$I$2=VLOOKUP(CA9,$B$2:$G$4,5,TRUE),CC9=VLOOKUP(CC9,I!$I$2:$J$5,1)),0,ROUND(IF(CS9=3,0,IF(CS9=2,MIN(ROUND(CC9*$G$13%,0),$G$14)/2,MIN(ROUND(CC9*$G$13%,0),$G$14)))*(DAY(CB9)-DAY(CA9)+1)/DAY(EOMONTH(CA9,0)),0))) ->  | CJ9: =IF(CA9="","",IF(CA9<DATE(2010,4,1),0,IF(OR(CS9=2,CS9=3,CC9=VLOOKUP(CC9,I!$I$2:$J$5,1)),0,ROUND(VLOOKUP(CA9,$B$1:$G$4,4)*(DAY(CB9)-DAY(CA9)+1)/DAY(EOMONTH(CA9,0)),0)))) ->  | CK9: =IF(CA9="","",IF(OR(CS9=2,CS9=3,CA9<DATE(2010,4,1),CC9=VLOOKUP(CC9,I!$I$2:$J$5,1)),0,ROUND(MIN(VLOOKUP(BZ9,$A$27:$C$32,2,TRUE),ROUND(CD9*VLOOKUP(BZ9,$A$27:$C$32,3,TRUE)%,0))*IF(BZ9=$A$36,$C$36,IF(BZ9=$A$37,$C$37,IF(BZ9=$A$38,$C$38,IF(BZ9=$A$39,$C$39,IF(BZ9=$A$40,$C$40,IF(BZ9=$A$41,$C$41,1))))))*(DAY(CB9)-DAY(CA9)+1)/DAY(EOMONTH(CA9,0)),0))) ->  | CL9: =IF(CA9="","",IF(OR(CS9=3,CC9=VLOOKUP(CC9,I!$I$2:$J$5,1)),0,ROUND(IF(CS9=2,VLOOKUP(CC9,$A$20:$E$23,IF($B$19=VLOOKUP(CA9,$B$2:$G$4,3,TRUE),2,IF($C$19=VLOOKUP(CA9,$B$2:$G$4,3,TRUE),3,IF($D$19=VLOOKUP(CA9,$B$2:$G$4,3,TRUE),4,5))),TRUE)/2,VLOOKUP(CC9,$A$20:$E$23,IF($B$19=VLOOKUP(CA9,$B$2:$G$4,3,TRUE),2,IF($C$19=VLOOKUP(CA9,$B$2:$G$4,3,TRUE),3,IF($D$19=VLOOKUP(CA9,$B$2:$G$4,3,TRUE),4,5))),TRUE))*(DAY(CB9)-DAY(CA9)+1)/DAY(EOMONTH(CA9,0)),0))) ->  | CM9: =IF(CA9="","",IF(OR(BZ9<DATE(2010,4,1),CS9=3,CC9=VLOOKUP(CC9,I!$I$2:$J$5,1)),0,ROUND(IF(CS9=2,Main!$L$9/2,Main!$L$9)*(DAY(CB9)-DAY(CA9)+1)/DAY(EOMONTH(CA9,0)),0))) ->  | CO9: =IF(CA9="","",IF(OR(CS9=3,CC9=VLOOKUP(CC9,I!$I$2:$J$5,1)),0,ROUND(IF(CS9=2,VLOOKUP(CD9,$A$11:$E$16,IF($B$10=VLOOKUP(BZ9,$B$2:$G$4,6,TRUE),2,IF($B$10=VLOOKUP(BZ9,$B$2:$G$4,6,TRUE),3,IF($D$10=VLOOKUP(BZ9,$B$2:$G$4,6,TRUE),4,5))))/2,VLOOKUP(CD9,$A$11:$E$16,IF($B$10=VLOOKUP(BZ9,$B$2:$G$4,6,TRUE),2,IF($B$10=VLOOKUP(BZ9,$B$2:$G$4,6,TRUE),3,IF($D$10=VLOOKUP(BZ9,$B$2:$G$4,6,TRUE),4,5)))))*(DAY(CB9)-DAY(CA9)+1)/DAY(EOMONTH(CA9,0)),0))) ->  | CP9: 0 | CQ9: =IF(CA9="","",IF(Main!$F$22=Main!$CA$24,ROUND(SUM(CD9,CF9)*10%,0),"")) ->  | CR9: =IF(BZ9="","",IF(OR(Main!$H$10=Main!$BH$4,Main!$H$10=Main!$BH$5),0,LOOKUP(CP9*DAY(EOMONTH(CA9,0))/(DAY(CB9)-DAY(CA9)+1),$H$17:$I$22))) ->  | CS9: 1 | CW9: =IF(CV9="","",MIN(EOMONTH(CV9,0),VLOOKUP(CV9,I!$O$164:$P$202,2,TRUE)-1,LOOKUP(CV9,$E$47:$F$53)-1,IF(CV9<$B$2,$B$2-1,I!$Q$9),IF(CV9<$B$3,$B$3-1,I!$Q$9),IF(CV9<$B$4,$B$4-1,I!$Q$9),LOOKUP(CV9,$H$47:$I$53))) ->  | CX9: =IF(CV9="","",VLOOKUP(CV9,I!$P$164:$R$202,3)) ->  | CZ9: =IF(CV9="","",ROUND(IF(DN9=3,0,IF(DN9=2,IF(CX9=VLOOKUP(CX9,I!$I$2:$J$5,1),0,Main!$H$9)/2,IF(CX9=VLOOKUP(CX9,I!$I$2:$J$5,1),0,Main!$H$9)))*(DAY(CW9)-DAY(CV9)+1)/DAY(EOMONTH(CV9,0)),0)) ->  | DA9: =IF(CV9="","",IF(CX9=VLOOKUP(CX9,I!$I$2:$J$5,1),0,ROUND(CY9*VLOOKUP(CV9,$AD$4:$AE$7,2)%,0))) ->  | DB9: =IF(CV9="","",IF(OR(DN9=3,CX9=VLOOKUP(CX9,I!$I$2:$J$5,1)),0,ROUND(MIN(ROUND(CX9*VLOOKUP(CV9,$B$1:$G$4,2)%,0),VLOOKUP(CV9,$B$2:$H$4,7,TRUE))*(DAY(CW9)-DAY(CV9)+1)/DAY(EOMONTH(CV9,0)),0))) ->  | DC9: =IF(CV9="","",IF(OR(CV9<DATE(2010,4,1),$I$2=VLOOKUP(CV9,$B$2:$G$4,5,TRUE),CX9=VLOOKUP(CX9,I!$I$2:$J$5,1)),0,ROUND(IF(DN9=3,0,IF(DN9=2,MIN(ROUND(CX9*$G$13%,0),$G$14)/2,MIN(ROUND(CX9*$G$13%,0),$G$14)))*(DAY(CW9)-DAY(CV9)+1)/DAY(EOMONTH(CV9,0)),0))) ->  | DE9: =IF(CV9="","",IF(CV9<DATE(2010,4,1),0,IF(OR(DN9=2,DN9=3,CX9=VLOOKUP(CX9,I!$I$2:$J$5,1)),0,ROUND(VLOOKUP(CV9,$B$1:$G$4,4)*(DAY(CW9)-DAY(CV9)+1)/DAY(EOMONTH(CV9,0)),0)))) ->  | DF9: =IF(CV9="","",IF(OR(DN9=2,DN9=3,CV9<DATE(2010,4,1),CX9=VLOOKUP(CX9,I!$I$2:$J$5,1)),0,ROUND(MIN(VLOOKUP(CU9,$A$27:$C$32,2,TRUE),ROUND(CY9*VLOOKUP(CU9,$A$27:$C$32,3,TRUE)%,0))*IF(CU9=$A$36,$C$36,IF(CU9=$A$37,$C$37,IF(CU9=$A$38,$C$38,IF(CU9=$A$39,$C$39,IF(CU9=$A$40,$C$40,IF(CU9=$A$41,$C$41,1))))))*(DAY(CW9)-DAY(CV9)+1)/DAY(EOMONTH(CV9,0)),0))) ->  | DG9: =IF(CV9="","",IF(OR(DN9=3,CX9=VLOOKUP(CX9,I!$I$2:$J$5,1)),0,ROUND(IF(DN9=2,VLOOKUP(CX9,$A$20:$E$23,IF($B$19=VLOOKUP(CV9,$B$2:$G$4,3,TRUE),2,IF($C$19=VLOOKUP(CV9,$B$2:$G$4,3,TRUE),3,IF($D$19=VLOOKUP(CV9,$B$2:$G$4,3,TRUE),4,5))),TRUE)/2,VLOOKUP(CX9,$A$20:$E$23,IF($B$19=VLOOKUP(CV9,$B$2:$G$4,3,TRUE),2,IF($C$19=VLOOKUP(CV9,$B$2:$G$4,3,TRUE),3,IF($D$19=VLOOKUP(CV9,$B$2:$G$4,3,TRUE),4,5))),TRUE))*(DAY(CW9)-DAY(CV9)+1)/DAY(EOMONTH(CV9,0)),0))) ->  | DH9: =IF(CV9="","",IF(OR(CU9<DATE(2010,4,1),DN9=3,CX9=VLOOKUP(CX9,I!$I$2:$J$5,1)),0,ROUND(IF(DN9=2,Main!$L$9/2,Main!$L$9)*(DAY(CW9)-DAY(CV9)+1)/DAY(EOMONTH(CV9,0)),0))) ->  | DJ9: =IF(CV9="","",IF(OR(DN9=3,CX9=VLOOKUP(CX9,I!$I$2:$J$5,1)),0,ROUND(IF(DN9=2,VLOOKUP(CY9,$A$11:$E$16,IF($B$10=VLOOKUP(CU9,$B$2:$G$4,6,TRUE),2,IF($B$10=VLOOKUP(CU9,$B$2:$G$4,6,TRUE),3,IF($D$10=VLOOKUP(CU9,$B$2:$G$4,6,TRUE),4,5))))/2,VLOOKUP(CY9,$A$11:$E$16,IF($B$10=VLOOKUP(CU9,$B$2:$G$4,6,TRUE),2,IF($B$10=VLOOKUP(CU9,$B$2:$G$4,6,TRUE),3,IF($D$10=VLOOKUP(CU9,$B$2:$G$4,6,TRUE),4,5)))))*(DAY(CW9)-DAY(CV9)+1)/DAY(EOMONTH(CV9,0)),0))) ->  | DK9: 0 | DL9: =IF(CV9="","",IF(CX9=VLOOKUP(CX9,I!$I$2:$J$5,1),"",IF(Main!$F$22=Main!$CA$24,ROUND(SUM(CY9,DA9)*10%,0),""))) ->  | DM9: =IF(CU9="","",IF(OR(Main!$H$10=Main!$BH$4,Main!$H$10=Main!$BH$5),0,LOOKUP(DK9*DAY(EOMONTH(CV9,0))/(DAY(CW9)-DAY(CV9)+1),$H$17:$I$22))) ->  | DN9: 1
A10: Basic Pay | B10: Non-Mandal | C10: Mandals | D10: Hills/Hilltops | E10: =H1 -> Not-Applicable | F10: =DATE(2010,4,1) -> 2010-04-01 | G10: AHRA | H10: =DATE(2011,7,1) -> 2011-07-01 | I10: =J10 -> 58 | J10: 58 | K10: 2012-10-01 | L10: 2012-10-01 | M10: =IF(L10="","",MIN(EOMONTH(L10,0),VLOOKUP(L10,I!$O$164:$P$202,2,TRUE)-1,LOOKUP(L10,$E$47:$F$53)-1,IF(L10<$B$2,$B$2-1,I!$Q$9),IF(L10<$B$3,$B$3-1,I!$Q$9),IF(L10<$B$4,$B$4-1,I!$Q$9),LOOKUP(L10,$H$47:$I$53))) -> 2012-10-31 | N10: =IF(L10="","",VLOOKUP(L10,'Advance Tax'!$A$3:$C$14,3)) -> 32260.00 | O10: 32260 | P10: =IF(L10="","",ROUND(IF(AB10=3,0,IF(AB10=2,IF(N10=VLOOKUP(N10,I!$I$2:$J$5,1),0,Main!$H$9)/2,IF(N10=VLOOKUP(N10,I!$I$2:$J$5,1),0,Main!$H$9)))*(DAY(M10)-DAY(L10)+1)/DAY(EOMONTH(L10,0)),0)) -> 0 | Q10: =IF(L10="","",IF(N10=VLOOKUP(N10,I!$I$2:$J$5,1),0,ROUND(O10*VLOOKUP(L10,$H$9:$I$12,2)%,0))) -> 20969 | R10: =IF(L10="","",IF(OR(AB10=3,N10=VLOOKUP(N10,I!$I$2:$J$5,1)),0,ROUND(MIN(ROUND(N10*VLOOKUP(L10,$B$1:$G$4,2)%,0),VLOOKUP(L10,$B$2:$H$4,7,TRUE))*(DAY(M10)-DAY(L10)+1)/DAY(EOMONTH(L10,0)),0))) -> 3226 | S10: =IF(L10="","",IF(OR(L10<DATE(2010,4,1),$I$2=VLOOKUP(L10,$B$2:$G$4,5,TRUE),N10=VLOOKUP(N10,I!$I$2:$J$5,1)),0,ROUND(IF(AB10=3,0,IF(AB10=2,MIN(ROUND(N10*$G$13%,0),$G$14)/2,MIN(ROUND(N10*$G$13%,0),$G$14)))*(DAY(M10)-DAY(L10)+1)/DAY(EOMONTH(L10,0)),0))) -> 0 | U10: =IF(L10="","",IF(L10<DATE(2010,4,1),0,IF(OR(AB10=2,AB10=3,N10=VLOOKUP(N10,I!$I$2:$J$5,1)),0,ROUND(VLOOKUP(L10,$B$1:$G$4,4)*(DAY(M10)-DAY(L10)+1)/DAY(EOMONTH(L10,0)),0)))) -> 0 | V10: =IF(L10="","",IF(OR(AB10=2,AB10=3,L10<DATE(2010,4,1),N10=VLOOKUP(N10,I!$I$2:$J$5,1)),0,ROUND(MIN(VLOOKUP(K10,$A$27:$C$32,2,TRUE),ROUND(O10*VLOOKUP(K10,$A$27:$C$32,3,TRUE)%,0))*IF(K10=$A$36,$C$36,IF(K10=$A$37,$C$37,IF(K10=$A$38,$C$38,IF(K10=$A$39,$C$39,IF(K10=$A$40,$C$40,IF(K10=$A$41,$C$41,1))))))*(DAY(M10)-DAY(L10)+1)/DAY(EOMONTH(L10,0)),0))) -> 0 | W10: =IF(L10="","",IF(OR(AB10=3,N10=VLOOKUP(N10,I!$I$2:$J$5,1)),0,ROUND(IF(AB10=2,VLOOKUP(N10,$A$20:$E$23,IF($B$19=VLOOKUP(L10,$B$2:$G$4,3,TRUE),2,IF($C$19=VLOOKUP(L10,$B$2:$G$4,3,TRUE),3,IF($D$19=VLOOKUP(L10,$B$2:$G$4,3,TRUE),4,5))),TRUE)/2,VLOOKUP(N10,$A$20:$E$23,IF($B$19=VLOOKUP(L10,$B$2:$G$4,3,TRUE),2,IF($C$19=VLOOKUP(L10,$B$2:$G$4,3,TRUE),3,IF($D$19=VLOOKUP(L10,$B$2:$G$4,3,TRUE),4,5))),TRUE))*(DAY(M10)-DAY(L10)+1)/DAY(EOMONTH(L10,0)),0))) -> 0 | X10: =IF(L10="","",IF(OR(K10<DATE(2010,4,1),AB10=3,N10=VLOOKUP(N10,I!$I$2:$J$5,1)),0,ROUND(IF(AB10=2,Main!$L$9/2,Main!$L$9)*(DAY(M10)-DAY(L10)+1)/DAY(EOMONTH(L10,0)),0))) -> 0 | Z10: =IF(L10="","",IF(OR(AB10=3,N10=VLOOKUP(N10,I!$I$2:$J$5,1)),0,ROUND(IF(AB10=2,VLOOKUP(O10,$A$11:$E$16,IF($B$10=VLOOKUP(K10,$B$2:$G$4,6,TRUE),2,IF($B$10=VLOOKUP(K10,$B$2:$G$4,6,TRUE),3,IF($D$10=VLOOKUP(K10,$B$2:$G$4,6,TRUE),4,5))))/2,VLOOKUP(O10,$A$11:$E$16,IF($B$10=VLOOKUP(K10,$B$2:$G$4,6,TRUE),2,IF($B$10=VLOOKUP(K10,$B$2:$G$4,6,TRUE),3,IF($D$10=VLOOKUP(K10,$B$2:$G$4,6,TRUE),4,5)))))*(DAY(M10)-DAY(L10)+1)/DAY(EOMONTH(L10,0)),0))) -> 0 | AA10: 56455 | AB10: 1 | AI10: =IF(AH10="","",MIN(EOMONTH(AH10,0),VLOOKUP(AH10,I!$O$164:$P$202,2,TRUE)-1,LOOKUP(AH10,$E$47:$F$53)-1,IF(AH10<$B$2,$B$2-1,I!$Q$9),IF(AH10<$B$3,$B$3-1,I!$Q$9),IF(AH10<$B$4,$B$4-1,I!$Q$9),LOOKUP(AH10,$H$47:$I$53))) ->  | AJ10: =IF(AH10="","",VLOOKUP(AH10,I!$P$164:$R$202,2)) ->  | AL10: =IF(AH10="","",ROUND(IF(AZ10=3,0,IF(AZ10=2,IF(AJ10=VLOOKUP(AJ10,I!$I$2:$J$5,1),0,Main!$H$9)/2,IF(AJ10=VLOOKUP(AJ10,I!$I$2:$J$5,1),0,Main!$H$9)))*(DAY(AI10)-DAY(AH10)+1)/DAY(EOMONTH(AH10,0)),0)) ->  | AM10: =IF(AH10="","",IF(AJ10=VLOOKUP(AJ10,I!$I$2:$J$5,1),0,ROUND(AK10*VLOOKUP(AH10,$AD$4:$AE$7,2)%,0))) ->  | AN10: =IF(AH10="","",IF(OR(AZ10=3,AJ10=VLOOKUP(AJ10,I!$I$2:$J$5,1)),0,ROUND(MIN(ROUND(AJ10*VLOOKUP(AH10,$B$1:$G$4,2)%,0),VLOOKUP(AH10,$B$2:$H$4,7,TRUE))*(DAY(AI10)-DAY(AH10)+1)/DAY(EOMONTH(AH10,0)),0))) ->  | AO10: =IF(AH10="","",IF(OR(AH10<DATE(2010,4,1),$I$2=VLOOKUP(AH10,$B$2:$G$4,5,TRUE),AJ10=VLOOKUP(AJ10,I!$I$2:$J$5,1)),0,ROUND(IF(AZ10=3,0,IF(AZ10=2,MIN(ROUND(AJ10*$G$13%,0),$G$14)/2,MIN(ROUND(AJ10*$G$13%,0),$G$14)))*(DAY(AI10)-DAY(AH10)+1)/DAY(EOMONTH(AH10,0)),0))) ->  | AQ10: =IF(AH10="","",IF(AH10<DATE(2010,4,1),0,IF(OR(AZ10=2,AZ10=3,AJ10=VLOOKUP(AJ10,I!$I$2:$J$5,1)),0,ROUND(VLOOKUP(AH10,$B$1:$G$4,4)*(DAY(AI10)-DAY(AH10)+1)/DAY(EOMONTH(AH10,0)),0)))) ->  | AR10: =IF(AH10="","",IF(OR(AZ10=2,AZ10=3,AH10<DATE(2010,4,1),AJ10=VLOOKUP(AJ10,I!$I$2:$J$5,1)),0,ROUND(MIN(VLOOKUP(AG10,$A$27:$C$32,2,TRUE),ROUND(AK10*VLOOKUP(AG10,$A$27:$C$32,3,TRUE)%,0))*IF(AG10=$A$36,$C$36,IF(AG10=$A$37,$C$37,IF(AG10=$A$38,$C$38,IF(AG10=$A$39,$C$39,IF(AG10=$A$40,$C$40,IF(AG10=$A$41,$C$41,1))))))*(DAY(AI10)-DAY(AH10)+1)/DAY(EOMONTH(AH10,0)),0))) ->  | AS10: =IF(AH10="","",IF(OR(AZ10=3,AJ10=VLOOKUP(AJ10,I!$I$2:$J$5,1)),0,ROUND(IF(AZ10=2,VLOOKUP(AJ10,$A$20:$E$23,IF($B$19=VLOOKUP(AH10,$B$2:$G$4,3,TRUE),2,IF($C$19=VLOOKUP(AH10,$B$2:$G$4,3,TRUE),3,IF($D$19=VLOOKUP(AH10,$B$2:$G$4,3,TRUE),4,5))),TRUE)/2,VLOOKUP(AJ10,$A$20:$E$23,IF($B$19=VLOOKUP(AH10,$B$2:$G$4,3,TRUE),2,IF($C$19=VLOOKUP(AH10,$B$2:$G$4,3,TRUE),3,IF($D$19=VLOOKUP(AH10,$B$2:$G$4,3,TRUE),4,5))),TRUE))*(DAY(AI10)-DAY(AH10)+1)/DAY(EOMONTH(AH10,0)),0))) ->  | AT10: =IF(AH10="","",IF(OR(AG10<DATE(2010,4,1),AZ10=3,AJ10=VLOOKUP(AJ10,I!$I$2:$J$5,1)),0,ROUND(IF(AZ10=2,Main!$L$9/2,Main!$L$9)*(DAY(AI10)-DAY(AH10)+1)/DAY(EOMONTH(AH10,0)),0))) ->  | AV10: =IF(AH10="","",IF(OR(AZ10=3,AJ10=VLOOKUP(AJ10,I!$I$2:$J$5,1)),0,ROUND(IF(AZ10=2,VLOOKUP(AK10,$A$11:$E$16,IF($B$10=VLOOKUP(AG10,$B$2:$G$4,6,TRUE),2,IF($B$10=VLOOKUP(AG10,$B$2:$G$4,6,TRUE),3,IF($D$10=VLOOKUP(AG10,$B$2:$G$4,6,TRUE),4,5))))/2,VLOOKUP(AK10,$A$11:$E$16,IF($B$10=VLOOKUP(AG10,$B$2:$G$4,6,TRUE),2,IF($B$10=VLOOKUP(AG10,$B$2:$G$4,6,TRUE),3,IF($D$10=VLOOKUP(AG10,$B$2:$G$4,6,TRUE),4,5)))))*(DAY(AI10)-DAY(AH10)+1)/DAY(EOMONTH(AH10,0)),0))) ->  | AW10: 0 | AX10: =IF(AH10="","",IF(AH10<=$AX$1,AW10-AY10,IF(AND(Main!$F$22=Main!$CA$24,AH10>$AX$1),ROUND(SUM(AK10,AM10)*10%,0),""))) ->  | AY10: =IF(AG10="","",IF(OR(Main!$H$10=Main!$BH$4,Main!$H$10=Main!$BH$5),0,LOOKUP(AW10*DAY(EOMONTH(AH10,0))/(DAY(AI10)-DAY(AH10)+1),$H$17:$I$22))) ->  | AZ10: 1 | BD10: =IF(BC10="","",MIN(EOMONTH(BC10,0),VLOOKUP(BC10,I!$O$164:$P$202,2,TRUE)-1,LOOKUP(BC10,$E$47:$F$53)-1,IF(BC10<$B$2,$B$2-1,I!$Q$9),IF(BC10<$B$3,$B$3-1,I!$Q$9),IF(BC10<$B$4,$B$4-1,I!$Q$9),LOOKUP(BC10,$H$47:$I$53))) ->  | BE10: =IF(BC10="","",VLOOKUP(BC10,I!$P$164:$R$202,3)) ->  | BG10: =IF(BC10="","",ROUND(IF(BU10=3,0,IF(BU10=2,IF(BE10=VLOOKUP(BE10,I!$I$2:$J$5,1),0,Main!$H$9)/2,IF(BE10=VLOOKUP(BE10,I!$I$2:$J$5,1),0,Main!$H$9)))*(DAY(BD10)-DAY(BC10)+1)/DAY(EOMONTH(BC10,0)),0)) ->  | BH10: =IF(BC10="","",IF(BE10=VLOOKUP(BE10,I!$I$2:$J$5,1),0,ROUND(BF10*VLOOKUP(BC10,$AD$4:$AE$7,2)%,0))) ->  | BI10: =IF(BC10="","",IF(OR(BU10=3,BE10=VLOOKUP(BE10,I!$I$2:$J$5,1)),0,ROUND(MIN(ROUND(BE10*VLOOKUP(BC10,$B$1:$G$4,2)%,0),VLOOKUP(BC10,$B$2:$H$4,7,TRUE))*(DAY(BD10)-DAY(BC10)+1)/DAY(EOMONTH(BC10,0)),0))) ->  | BJ10: =IF(BC10="","",IF(OR(BC10<DATE(2010,4,1),$I$2=VLOOKUP(BC10,$B$2:$G$4,5,TRUE),BE10=VLOOKUP(BE10,I!$I$2:$J$5,1)),0,ROUND(IF(BU10=3,0,IF(BU10=2,MIN(ROUND(BE10*$G$13%,0),$G$14)/2,MIN(ROUND(BE10*$G$13%,0),$G$14)))*(DAY(BD10)-DAY(BC10)+1)/DAY(EOMONTH(BC10,0)),0))) ->  | BL10: =IF(BC10="","",IF(BC10<DATE(2010,4,1),0,IF(OR(BU10=2,BU10=3,BE10=VLOOKUP(BE10,I!$I$2:$J$5,1)),0,ROUND(VLOOKUP(BC10,$B$1:$G$4,4)*(DAY(BD10)-DAY(BC10)+1)/DAY(EOMONTH(BC10,0)),0)))) ->  | BM10: =IF(BC10="","",IF(OR(BU10=2,BU10=3,BC10<DATE(2010,4,1),BE10=VLOOKUP(BE10,I!$I$2:$J$5,1)),0,ROUND(MIN(VLOOKUP(BB10,$A$27:$C$32,2,TRUE),ROUND(BF10*VLOOKUP(BB10,$A$27:$C$32,3,TRUE)%,0))*IF(BB10=$A$36,$C$36,IF(BB10=$A$37,$C$37,IF(BB10=$A$38,$C$38,IF(BB10=$A$39,$C$39,IF(BB10=$A$40,$C$40,IF(BB10=$A$41,$C$41,1))))))*(DAY(BD10)-DAY(BC10)+1)/DAY(EOMONTH(BC10,0)),0))) ->  | BN10: =IF(BC10="","",IF(OR(BU10=3,BE10=VLOOKUP(BE10,I!$I$2:$J$5,1)),0,ROUND(IF(BU10=2,VLOOKUP(BE10,$A$20:$E$23,IF($B$19=VLOOKUP(BC10,$B$2:$G$4,3,TRUE),2,IF($C$19=VLOOKUP(BC10,$B$2:$G$4,3,TRUE),3,IF($D$19=VLOOKUP(BC10,$B$2:$G$4,3,TRUE),4,5))),TRUE)/2,VLOOKUP(BE10,$A$20:$E$23,IF($B$19=VLOOKUP(BC10,$B$2:$G$4,3,TRUE),2,IF($C$19=VLOOKUP(BC10,$B$2:$G$4,3,TRUE),3,IF($D$19=VLOOKUP(BC10,$B$2:$G$4,3,TRUE),4,5))),TRUE))*(DAY(BD10)-DAY(BC10)+1)/DAY(EOMONTH(BC10,0)),0))) ->  | BO10: =IF(BC10="","",IF(OR(BB10<DATE(2010,4,1),BU10=3,BE10=VLOOKUP(BE10,I!$I$2:$J$5,1)),0,ROUND(IF(BU10=2,Main!$L$9/2,Main!$L$9)*(DAY(BD10)-DAY(BC10)+1)/DAY(EOMONTH(BC10,0)),0))) ->  | BQ10: =IF(BC10="","",IF(OR(BU10=3,BE10=VLOOKUP(BE10,I!$I$2:$J$5,1)),0,ROUND(IF(BU10=2,VLOOKUP(BF10,$A$11:$E$16,IF($B$10=VLOOKUP(BB10,$B$2:$G$4,6,TRUE),2,IF($B$10=VLOOKUP(BB10,$B$2:$G$4,6,TRUE),3,IF($D$10=VLOOKUP(BB10,$B$2:$G$4,6,TRUE),4,5))))/2,VLOOKUP(BF10,$A$11:$E$16,IF($B$10=VLOOKUP(BB10,$B$2:$G$4,6,TRUE),2,IF($B$10=VLOOKUP(BB10,$B$2:$G$4,6,TRUE),3,IF($D$10=VLOOKUP(BB10,$B$2:$G$4,6,TRUE),4,5)))))*(DAY(BD10)-DAY(BC10)+1)/DAY(EOMONTH(BC10,0)),0))) ->  | BR10: 0 | BS10: =IF(BC10="","",IF(BC10<=$AX$1,BR10-BT10,IF(AND(Main!$F$22=Main!$CA$24,BC10>$AX$1),ROUND(SUM(BF10,BH10)*10%,0),""))) ->  | BT10: =IF(BB10="","",IF(OR(Main!$H$10=Main!$BH$4,Main!$H$10=Main!$BH$5),0,LOOKUP(BR10*DAY(EOMONTH(BC10,0))/(DAY(BD10)-DAY(BC10)+1),$H$17:$I$22))) ->  | BU10: 1 | BV10: 0 | CB10: =IF(CA10="","",MIN(EOMONTH(CA10,0),VLOOKUP(CA10,I!$O$164:$P$202,2,TRUE)-1,LOOKUP(CA10,$E$47:$F$53)-1,IF(CA10<$B$2,$B$2-1,I!$Q$9),IF(CA10<$B$3,$B$3-1,I!$Q$9),IF(CA10<$B$4,$B$4-1,I!$Q$9),LOOKUP(CA10,$H$47:$I$53))) ->  | CC10: =IF(CA10="","",VLOOKUP(CA10,I!$P$164:$R$202,2)) ->  | CE10: =IF(CA10="","",ROUND(IF(CS10=3,0,IF(CS10=2,IF(CC10=VLOOKUP(CC10,I!$I$2:$J$5,1),0,Main!$H$9)/2,IF(CC10=VLOOKUP(CC10,I!$I$2:$J$5,1),0,Main!$H$9)))*(DAY(CB10)-DAY(CA10)+1)/DAY(EOMONTH(CA10,0)),0)) ->  | CF10: =IF(CA10="","",IF(CC10=VLOOKUP(CC10,I!$I$2:$J$5,1),0,ROUND(CD10*VLOOKUP(CA10,$BW$4:$BX$7,2)%,0))) ->  | CG10: =IF(CA10="","",IF(OR(CS10=3,CC10=VLOOKUP(CC10,I!$I$2:$J$5,1)),0,ROUND(MIN(ROUND(CC10*VLOOKUP(CA10,$B$1:$G$4,2)%,0),VLOOKUP(CA10,$B$2:$H$4,7,TRUE))*(DAY(CB10)-DAY(CA10)+1)/DAY(EOMONTH(CA10,0)),0))) ->  | CH10: =IF(CA10="","",IF(OR(CA10<DATE(2010,4,1),$I$2=VLOOKUP(CA10,$B$2:$G$4,5,TRUE),CC10=VLOOKUP(CC10,I!$I$2:$J$5,1)),0,ROUND(IF(CS10=3,0,IF(CS10=2,MIN(ROUND(CC10*$G$13%,0),$G$14)/2,MIN(ROUND(CC10*$G$13%,0),$G$14)))*(DAY(CB10)-DAY(CA10)+1)/DAY(EOMONTH(CA10,0)),0))) ->  | CJ10: =IF(CA10="","",IF(CA10<DATE(2010,4,1),0,IF(OR(CS10=2,CS10=3,CC10=VLOOKUP(CC10,I!$I$2:$J$5,1)),0,ROUND(VLOOKUP(CA10,$B$1:$G$4,4)*(DAY(CB10)-DAY(CA10)+1)/DAY(EOMONTH(CA10,0)),0)))) ->  | CK10: =IF(CA10="","",IF(OR(CS10=2,CS10=3,CA10<DATE(2010,4,1),CC10=VLOOKUP(CC10,I!$I$2:$J$5,1)),0,ROUND(MIN(VLOOKUP(BZ10,$A$27:$C$32,2,TRUE),ROUND(CD10*VLOOKUP(BZ10,$A$27:$C$32,3,TRUE)%,0))*IF(BZ10=$A$36,$C$36,IF(BZ10=$A$37,$C$37,IF(BZ10=$A$38,$C$38,IF(BZ10=$A$39,$C$39,IF(BZ10=$A$40,$C$40,IF(BZ10=$A$41,$C$41,1))))))*(DAY(CB10)-DAY(CA10)+1)/DAY(EOMONTH(CA10,0)),0))) ->  | CL10: =IF(CA10="","",IF(OR(CS10=3,CC10=VLOOKUP(CC10,I!$I$2:$J$5,1)),0,ROUND(IF(CS10=2,VLOOKUP(CC10,$A$20:$E$23,IF($B$19=VLOOKUP(CA10,$B$2:$G$4,3,TRUE),2,IF($C$19=VLOOKUP(CA10,$B$2:$G$4,3,TRUE),3,IF($D$19=VLOOKUP(CA10,$B$2:$G$4,3,TRUE),4,5))),TRUE)/2,VLOOKUP(CC10,$A$20:$E$23,IF($B$19=VLOOKUP(CA10,$B$2:$G$4,3,TRUE),2,IF($C$19=VLOOKUP(CA10,$B$2:$G$4,3,TRUE),3,IF($D$19=VLOOKUP(CA10,$B$2:$G$4,3,TRUE),4,5))),TRUE))*(DAY(CB10)-DAY(CA10)+1)/DAY(EOMONTH(CA10,0)),0))) ->  | CM10: =IF(CA10="","",IF(OR(BZ10<DATE(2010,4,1),CS10=3,CC10=VLOOKUP(CC10,I!$I$2:$J$5,1)),0,ROUND(IF(CS10=2,Main!$L$9/2,Main!$L$9)*(DAY(CB10)-DAY(CA10)+1)/DAY(EOMONTH(CA10,0)),0))) ->  | CO10: =IF(CA10="","",IF(OR(CS10=3,CC10=VLOOKUP(CC10,I!$I$2:$J$5,1)),0,ROUND(IF(CS10=2,VLOOKUP(CD10,$A$11:$E$16,IF($B$10=VLOOKUP(BZ10,$B$2:$G$4,6,TRUE),2,IF($B$10=VLOOKUP(BZ10,$B$2:$G$4,6,TRUE),3,IF($D$10=VLOOKUP(BZ10,$B$2:$G$4,6,TRUE),4,5))))/2,VLOOKUP(CD10,$A$11:$E$16,IF($B$10=VLOOKUP(BZ10,$B$2:$G$4,6,TRUE),2,IF($B$10=VLOOKUP(BZ10,$B$2:$G$4,6,TRUE),3,IF($D$10=VLOOKUP(BZ10,$B$2:$G$4,6,TRUE),4,5)))))*(DAY(CB10)-DAY(CA10)+1)/DAY(EOMONTH(CA10,0)),0))) ->  | CP10: 0 | CQ10: =IF(CA10="","",IF(Main!$F$22=Main!$CA$24,ROUND(SUM(CD10,CF10)*10%,0),"")) ->  | CR10: =IF(BZ10="","",IF(OR(Main!$H$10=Main!$BH$4,Main!$H$10=Main!$BH$5),0,LOOKUP(CP10*DAY(EOMONTH(CA10,0))/(DAY(CB10)-DAY(CA10)+1),$H$17:$I$22))) ->  | CS10: 1 | CW10: =IF(CV10="","",MIN(EOMONTH(CV10,0),VLOOKUP(CV10,I!$O$164:$P$202,2,TRUE)-1,LOOKUP(CV10,$E$47:$F$53)-1,IF(CV10<$B$2,$B$2-1,I!$Q$9),IF(CV10<$B$3,$B$3-1,I!$Q$9),IF(CV10<$B$4,$B$4-1,I!$Q$9),LOOKUP(CV10,$H$47:$I$53))) ->  | CX10: =IF(CV10="","",VLOOKUP(CV10,I!$P$164:$R$202,3)) ->  | CZ10: =IF(CV10="","",ROUND(IF(DN10=3,0,IF(DN10=2,IF(CX10=VLOOKUP(CX10,I!$I$2:$J$5,1),0,Main!$H$9)/2,IF(CX10=VLOOKUP(CX10,I!$I$2:$J$5,1),0,Main!$H$9)))*(DAY(CW10)-DAY(CV10)+1)/DAY(EOMONTH(CV10,0)),0)) ->  | DA10: =IF(CV10="","",IF(CX10=VLOOKUP(CX10,I!$I$2:$J$5,1),0,ROUND(CY10*VLOOKUP(CV10,$AD$4:$AE$7,2)%,0))) ->  | DB10: =IF(CV10="","",IF(OR(DN10=3,CX10=VLOOKUP(CX10,I!$I$2:$J$5,1)),0,ROUND(MIN(ROUND(CX10*VLOOKUP(CV10,$B$1:$G$4,2)%,0),VLOOKUP(CV10,$B$2:$H$4,7,TRUE))*(DAY(CW10)-DAY(CV10)+1)/DAY(EOMONTH(CV10,0)),0))) ->  | DC10: =IF(CV10="","",IF(OR(CV10<DATE(2010,4,1),$I$2=VLOOKUP(CV10,$B$2:$G$4,5,TRUE),CX10=VLOOKUP(CX10,I!$I$2:$J$5,1)),0,ROUND(IF(DN10=3,0,IF(DN10=2,MIN(ROUND(CX10*$G$13%,0),$G$14)/2,MIN(ROUND(CX10*$G$13%,0),$G$14)))*(DAY(CW10)-DAY(CV10)+1)/DAY(EOMONTH(CV10,0)),0))) ->  | DE10: =IF(CV10="","",IF(CV10<DATE(2010,4,1),0,IF(OR(DN10=2,DN10=3,CX10=VLOOKUP(CX10,I!$I$2:$J$5,1)),0,ROUND(VLOOKUP(CV10,$B$1:$G$4,4)*(DAY(CW10)-DAY(CV10)+1)/DAY(EOMONTH(CV10,0)),0)))) ->  | DF10: =IF(CV10="","",IF(OR(DN10=2,DN10=3,CV10<DATE(2010,4,1),CX10=VLOOKUP(CX10,I!$I$2:$J$5,1)),0,ROUND(MIN(VLOOKUP(CU10,$A$27:$C$32,2,TRUE),ROUND(CY10*VLOOKUP(CU10,$A$27:$C$32,3,TRUE)%,0))*IF(CU10=$A$36,$C$36,IF(CU10=$A$37,$C$37,IF(CU10=$A$38,$C$38,IF(CU10=$A$39,$C$39,IF(CU10=$A$40,$C$40,IF(CU10=$A$41,$C$41,1))))))*(DAY(CW10)-DAY(CV10)+1)/DAY(EOMONTH(CV10,0)),0))) ->  | DG10: =IF(CV10="","",IF(OR(DN10=3,CX10=VLOOKUP(CX10,I!$I$2:$J$5,1)),0,ROUND(IF(DN10=2,VLOOKUP(CX10,$A$20:$E$23,IF($B$19=VLOOKUP(CV10,$B$2:$G$4,3,TRUE),2,IF($C$19=VLOOKUP(CV10,$B$2:$G$4,3,TRUE),3,IF($D$19=VLOOKUP(CV10,$B$2:$G$4,3,TRUE),4,5))),TRUE)/2,VLOOKUP(CX10,$A$20:$E$23,IF($B$19=VLOOKUP(CV10,$B$2:$G$4,3,TRUE),2,IF($C$19=VLOOKUP(CV10,$B$2:$G$4,3,TRUE),3,IF($D$19=VLOOKUP(CV10,$B$2:$G$4,3,TRUE),4,5))),TRUE))*(DAY(CW10)-DAY(CV10)+1)/DAY(EOMONTH(CV10,0)),0))) ->  | DH10: =IF(CV10="","",IF(OR(CU10<DATE(2010,4,1),DN10=3,CX10=VLOOKUP(CX10,I!$I$2:$J$5,1)),0,ROUND(IF(DN10=2,Main!$L$9/2,Main!$L$9)*(DAY(CW10)-DAY(CV10)+1)/DAY(EOMONTH(CV10,0)),0))) ->  | DJ10: =IF(CV10="","",IF(OR(DN10=3,CX10=VLOOKUP(CX10,I!$I$2:$J$5,1)),0,ROUND(IF(DN10=2,VLOOKUP(CY10,$A$11:$E$16,IF($B$10=VLOOKUP(CU10,$B$2:$G$4,6,TRUE),2,IF($B$10=VLOOKUP(CU10,$B$2:$G$4,6,TRUE),3,IF($D$10=VLOOKUP(CU10,$B$2:$G$4,6,TRUE),4,5))))/2,VLOOKUP(CY10,$A$11:$E$16,IF($B$10=VLOOKUP(CU10,$B$2:$G$4,6,TRUE),2,IF($B$10=VLOOKUP(CU10,$B$2:$G$4,6,TRUE),3,IF($D$10=VLOOKUP(CU10,$B$2:$G$4,6,TRUE),4,5)))))*(DAY(CW10)-DAY(CV10)+1)/DAY(EOMONTH(CV10,0)),0))) ->  | DK10: 0 | DL10: =IF(CV10="","",IF(CX10=VLOOKUP(CX10,I!$I$2:$J$5,1),"",IF(Main!$F$22=Main!$CA$24,ROUND(SUM(CY10,DA10)*10%,0),""))) ->  | DM10: =IF(CU10="","",IF(OR(Main!$H$10=Main!$BH$4,Main!$H$10=Main!$BH$5),0,LOOKUP(DK10*DAY(EOMONTH(CV10,0))/(DAY(CW10)-DAY(CV10)+1),$H$17:$I$22))) ->  | DN10: 1
A11: 1 | B11: 325 | C11: 400 | D11: 475 | E11: 0 | H11: =Main!H19 -> 2012-08-01 | I11: 65 | J11: 65 | K11: 2012-11-01 | L11: 2012-11-01 | M11: =IF(L11="","",MIN(EOMONTH(L11,0),VLOOKUP(L11,I!$O$164:$P$202,2,TRUE)-1,LOOKUP(L11,$E$47:$F$53)-1,IF(L11<$B$2,$B$2-1,I!$Q$9),IF(L11<$B$3,$B$3-1,I!$Q$9),IF(L11<$B$4,$B$4-1,I!$Q$9),LOOKUP(L11,$H$47:$I$53))) -> 2012-11-30 | N11: =IF(L11="","",VLOOKUP(L11,'Advance Tax'!$A$3:$C$14,3)) -> 32260.00 | O11: 32260 | P11: =IF(L11="","",ROUND(IF(AB11=3,0,IF(AB11=2,IF(N11=VLOOKUP(N11,I!$I$2:$J$5,1),0,Main!$H$9)/2,IF(N11=VLOOKUP(N11,I!$I$2:$J$5,1),0,Main!$H$9)))*(DAY(M11)-DAY(L11)+1)/DAY(EOMONTH(L11,0)),0)) -> 0 | Q11: =IF(L11="","",IF(N11=VLOOKUP(N11,I!$I$2:$J$5,1),0,ROUND(O11*VLOOKUP(L11,$H$9:$I$12,2)%,0))) -> 20969 | R11: =IF(L11="","",IF(OR(AB11=3,N11=VLOOKUP(N11,I!$I$2:$J$5,1)),0,ROUND(MIN(ROUND(N11*VLOOKUP(L11,$B$1:$G$4,2)%,0),VLOOKUP(L11,$B$2:$H$4,7,TRUE))*(DAY(M11)-DAY(L11)+1)/DAY(EOMONTH(L11,0)),0))) -> 3226 | S11: =IF(L11="","",IF(OR(L11<DATE(2010,4,1),$I$2=VLOOKUP(L11,$B$2:$G$4,5,TRUE),N11=VLOOKUP(N11,I!$I$2:$J$5,1)),0,ROUND(IF(AB11=3,0,IF(AB11=2,MIN(ROUND(N11*$G$13%,0),$G$14)/2,MIN(ROUND(N11*$G$13%,0),$G$14)))*(DAY(M11)-DAY(L11)+1)/DAY(EOMONTH(L11,0)),0))) -> 0 | U11: =IF(L11="","",IF(L11<DATE(2010,4,1),0,IF(OR(AB11=2,AB11=3,N11=VLOOKUP(N11,I!$I$2:$J$5,1)),0,ROUND(VLOOKUP(L11,$B$1:$G$4,4)*(DAY(M11)-DAY(L11)+1)/DAY(EOMONTH(L11,0)),0)))) -> 0 | V11: =IF(L11="","",IF(OR(AB11=2,AB11=3,L11<DATE(2010,4,1),N11=VLOOKUP(N11,I!$I$2:$J$5,1)),0,ROUND(MIN(VLOOKUP(K11,$A$27:$C$32,2,TRUE),ROUND(O11*VLOOKUP(K11,$A$27:$C$32,3,TRUE)%,0))*IF(K11=$A$36,$C$36,IF(K11=$A$37,$C$37,IF(K11=$A$38,$C$38,IF(K11=$A$39,$C$39,IF(K11=$A$40,$C$40,IF(K11=$A$41,$C$41,1))))))*(DAY(M11)-DAY(L11)+1)/DAY(EOMONTH(L11,0)),0))) -> 0 | W11: =IF(L11="","",IF(OR(AB11=3,N11=VLOOKUP(N11,I!$I$2:$J$5,1)),0,ROUND(IF(AB11=2,VLOOKUP(N11,$A$20:$E$23,IF($B$19=VLOOKUP(L11,$B$2:$G$4,3,TRUE),2,IF($C$19=VLOOKUP(L11,$B$2:$G$4,3,TRUE),3,IF($D$19=VLOOKUP(L11,$B$2:$G$4,3,TRUE),4,5))),TRUE)/2,VLOOKUP(N11,$A$20:$E$23,IF($B$19=VLOOKUP(L11,$B$2:$G$4,3,TRUE),2,IF($C$19=VLOOKUP(L11,$B$2:$G$4,3,TRUE),3,IF($D$19=VLOOKUP(L11,$B$2:$G$4,3,TRUE),4,5))),TRUE))*(DAY(M11)-DAY(L11)+1)/DAY(EOMONTH(L11,0)),0))) -> 0 | X11: =IF(L11="","",IF(OR(K11<DATE(2010,4,1),AB11=3,N11=VLOOKUP(N11,I!$I$2:$J$5,1)),0,ROUND(IF(AB11=2,Main!$L$9/2,Main!$L$9)*(DAY(M11)-DAY(L11)+1)/DAY(EOMONTH(L11,0)),0))) -> 0 | Z11: =IF(L11="","",IF(OR(AB11=3,N11=VLOOKUP(N11,I!$I$2:$J$5,1)),0,ROUND(IF(AB11=2,VLOOKUP(O11,$A$11:$E$16,IF($B$10=VLOOKUP(K11,$B$2:$G$4,6,TRUE),2,IF($B$10=VLOOKUP(K11,$B$2:$G$4,6,TRUE),3,IF($D$10=VLOOKUP(K11,$B$2:$G$4,6,TRUE),4,5))))/2,VLOOKUP(O11,$A$11:$E$16,IF($B$10=VLOOKUP(K11,$B$2:$G$4,6,TRUE),2,IF($B$10=VLOOKUP(K11,$B$2:$G$4,6,TRUE),3,IF($D$10=VLOOKUP(K11,$B$2:$G$4,6,TRUE),4,5)))))*(DAY(M11)-DAY(L11)+1)/DAY(EOMONTH(L11,0)),0))) -> 0 | AA11: 56455 | AB11: 1 | AI11: =IF(AH11="","",MIN(EOMONTH(AH11,0),VLOOKUP(AH11,I!$O$164:$P$202,2,TRUE)-1,LOOKUP(AH11,$E$47:$F$53)-1,IF(AH11<$B$2,$B$2-1,I!$Q$9),IF(AH11<$B$3,$B$3-1,I!$Q$9),IF(AH11<$B$4,$B$4-1,I!$Q$9),LOOKUP(AH11,$H$47:$I$53))) ->  | AJ11: =IF(AH11="","",VLOOKUP(AH11,I!$P$164:$R$202,2)) ->  | AL11: =IF(AH11="","",ROUND(IF(AZ11=3,0,IF(AZ11=2,IF(AJ11=VLOOKUP(AJ11,I!$I$2:$J$5,1),0,Main!$H$9)/2,IF(AJ11=VLOOKUP(AJ11,I!$I$2:$J$5,1),0,Main!$H$9)))*(DAY(AI11)-DAY(AH11)+1)/DAY(EOMONTH(AH11,0)),0)) ->  | AM11: =IF(AH11="","",IF(AJ11=VLOOKUP(AJ11,I!$I$2:$J$5,1),0,ROUND(AK11*VLOOKUP(AH11,$AD$4:$AE$7,2)%,0))) ->  | AN11: =IF(AH11="","",IF(OR(AZ11=3,AJ11=VLOOKUP(AJ11,I!$I$2:$J$5,1)),0,ROUND(MIN(ROUND(AJ11*VLOOKUP(AH11,$B$1:$G$4,2)%,0),VLOOKUP(AH11,$B$2:$H$4,7,TRUE))*(DAY(AI11)-DAY(AH11)+1)/DAY(EOMONTH(AH11,0)),0))) ->  | AO11: =IF(AH11="","",IF(OR(AH11<DATE(2010,4,1),$I$2=VLOOKUP(AH11,$B$2:$G$4,5,TRUE),AJ11=VLOOKUP(AJ11,I!$I$2:$J$5,1)),0,ROUND(IF(AZ11=3,0,IF(AZ11=2,MIN(ROUND(AJ11*$G$13%,0),$G$14)/2,MIN(ROUND(AJ11*$G$13%,0),$G$14)))*(DAY(AI11)-DAY(AH11)+1)/DAY(EOMONTH(AH11,0)),0))) ->  | AQ11: =IF(AH11="","",IF(AH11<DATE(2010,4,1),0,IF(OR(AZ11=2,AZ11=3,AJ11=VLOOKUP(AJ11,I!$I$2:$J$5,1)),0,ROUND(VLOOKUP(AH11,$B$1:$G$4,4)*(DAY(AI11)-DAY(AH11)+1)/DAY(EOMONTH(AH11,0)),0)))) ->  | AR11: =IF(AH11="","",IF(OR(AZ11=2,AZ11=3,AH11<DATE(2010,4,1),AJ11=VLOOKUP(AJ11,I!$I$2:$J$5,1)),0,ROUND(MIN(VLOOKUP(AG11,$A$27:$C$32,2,TRUE),ROUND(AK11*VLOOKUP(AG11,$A$27:$C$32,3,TRUE)%,0))*IF(AG11=$A$36,$C$36,IF(AG11=$A$37,$C$37,IF(AG11=$A$38,$C$38,IF(AG11=$A$39,$C$39,IF(AG11=$A$40,$C$40,IF(AG11=$A$41,$C$41,1))))))*(DAY(AI11)-DAY(AH11)+1)/DAY(EOMONTH(AH11,0)),0))) ->  | AS11: =IF(AH11="","",IF(OR(AZ11=3,AJ11=VLOOKUP(AJ11,I!$I$2:$J$5,1)),0,ROUND(IF(AZ11=2,VLOOKUP(AJ11,$A$20:$E$23,IF($B$19=VLOOKUP(AH11,$B$2:$G$4,3,TRUE),2,IF($C$19=VLOOKUP(AH11,$B$2:$G$4,3,TRUE),3,IF($D$19=VLOOKUP(AH11,$B$2:$G$4,3,TRUE),4,5))),TRUE)/2,VLOOKUP(AJ11,$A$20:$E$23,IF($B$19=VLOOKUP(AH11,$B$2:$G$4,3,TRUE),2,IF($C$19=VLOOKUP(AH11,$B$2:$G$4,3,TRUE),3,IF($D$19=VLOOKUP(AH11,$B$2:$G$4,3,TRUE),4,5))),TRUE))*(DAY(AI11)-DAY(AH11)+1)/DAY(EOMONTH(AH11,0)),0))) ->  | AT11: =IF(AH11="","",IF(OR(AG11<DATE(2010,4,1),AZ11=3,AJ11=VLOOKUP(AJ11,I!$I$2:$J$5,1)),0,ROUND(IF(AZ11=2,Main!$L$9/2,Main!$L$9)*(DAY(AI11)-DAY(AH11)+1)/DAY(EOMONTH(AH11,0)),0))) ->  | AV11: =IF(AH11="","",IF(OR(AZ11=3,AJ11=VLOOKUP(AJ11,I!$I$2:$J$5,1)),0,ROUND(IF(AZ11=2,VLOOKUP(AK11,$A$11:$E$16,IF($B$10=VLOOKUP(AG11,$B$2:$G$4,6,TRUE),2,IF($B$10=VLOOKUP(AG11,$B$2:$G$4,6,TRUE),3,IF($D$10=VLOOKUP(AG11,$B$2:$G$4,6,TRUE),4,5))))/2,VLOOKUP(AK11,$A$11:$E$16,IF($B$10=VLOOKUP(AG11,$B$2:$G$4,6,TRUE),2,IF($B$10=VLOOKUP(AG11,$B$2:$G$4,6,TRUE),3,IF($D$10=VLOOKUP(AG11,$B$2:$G$4,6,TRUE),4,5)))))*(DAY(AI11)-DAY(AH11)+1)/DAY(EOMONTH(AH11,0)),0))) ->  | AW11: 0 | AX11: =IF(AH11="","",IF(AH11<=$AX$1,AW11-AY11,IF(AND(Main!$F$22=Main!$CA$24,AH11>$AX$1),ROUND(SUM(AK11,AM11)*10%,0),""))) ->  | AY11: =IF(AG11="","",IF(OR(Main!$H$10=Main!$BH$4,Main!$H$10=Main!$BH$5),0,LOOKUP(AW11*DAY(EOMONTH(AH11,0))/(DAY(AI11)-DAY(AH11)+1),$H$17:$I$22))) ->  | AZ11: 1 | BD11: =IF(BC11="","",MIN(EOMONTH(BC11,0),VLOOKUP(BC11,I!$O$164:$P$202,2,TRUE)-1,LOOKUP(BC11,$E$47:$F$53)-1,IF(BC11<$B$2,$B$2-1,I!$Q$9),IF(BC11<$B$3,$B$3-1,I!$Q$9),IF(BC11<$B$4,$B$4-1,I!$Q$9),LOOKUP(BC11,$H$47:$I$53))) ->  | BE11: =IF(BC11="","",VLOOKUP(BC11,I!$P$164:$R$202,3)) ->  | BG11: =IF(BC11="","",ROUND(IF(BU11=3,0,IF(BU11=2,IF(BE11=VLOOKUP(BE11,I!$I$2:$J$5,1),0,Main!$H$9)/2,IF(BE11=VLOOKUP(BE11,I!$I$2:$J$5,1),0,Main!$H$9)))*(DAY(BD11)-DAY(BC11)+1)/DAY(EOMONTH(BC11,0)),0)) ->  | BH11: =IF(BC11="","",IF(BE11=VLOOKUP(BE11,I!$I$2:$J$5,1),0,ROUND(BF11*VLOOKUP(BC11,$AD$4:$AE$7,2)%,0))) ->  | BI11: =IF(BC11="","",IF(OR(BU11=3,BE11=VLOOKUP(BE11,I!$I$2:$J$5,1)),0,ROUND(MIN(ROUND(BE11*VLOOKUP(BC11,$B$1:$G$4,2)%,0),VLOOKUP(BC11,$B$2:$H$4,7,TRUE))*(DAY(BD11)-DAY(BC11)+1)/DAY(EOMONTH(BC11,0)),0))) ->  | BJ11: =IF(BC11="","",IF(OR(BC11<DATE(2010,4,1),$I$2=VLOOKUP(BC11,$B$2:$G$4,5,TRUE),BE11=VLOOKUP(BE11,I!$I$2:$J$5,1)),0,ROUND(IF(BU11=3,0,IF(BU11=2,MIN(ROUND(BE11*$G$13%,0),$G$14)/2,MIN(ROUND(BE11*$G$13%,0),$G$14)))*(DAY(BD11)-DAY(BC11)+1)/DAY(EOMONTH(BC11,0)),0))) ->  | BL11: =IF(BC11="","",IF(BC11<DATE(2010,4,1),0,IF(OR(BU11=2,BU11=3,BE11=VLOOKUP(BE11,I!$I$2:$J$5,1)),0,ROUND(VLOOKUP(BC11,$B$1:$G$4,4)*(DAY(BD11)-DAY(BC11)+1)/DAY(EOMONTH(BC11,0)),0)))) ->  | BM11: =IF(BC11="","",IF(OR(BU11=2,BU11=3,BC11<DATE(2010,4,1),BE11=VLOOKUP(BE11,I!$I$2:$J$5,1)),0,ROUND(MIN(VLOOKUP(BB11,$A$27:$C$32,2,TRUE),ROUND(BF11*VLOOKUP(BB11,$A$27:$C$32,3,TRUE)%,0))*IF(BB11=$A$36,$C$36,IF(BB11=$A$37,$C$37,IF(BB11=$A$38,$C$38,IF(BB11=$A$39,$C$39,IF(BB11=$A$40,$C$40,IF(BB11=$A$41,$C$41,1))))))*(DAY(BD11)-DAY(BC11)+1)/DAY(EOMONTH(BC11,0)),0))) ->  | BN11: =IF(BC11="","",IF(OR(BU11=3,BE11=VLOOKUP(BE11,I!$I$2:$J$5,1)),0,ROUND(IF(BU11=2,VLOOKUP(BE11,$A$20:$E$23,IF($B$19=VLOOKUP(BC11,$B$2:$G$4,3,TRUE),2,IF($C$19=VLOOKUP(BC11,$B$2:$G$4,3,TRUE),3,IF($D$19=VLOOKUP(BC11,$B$2:$G$4,3,TRUE),4,5))),TRUE)/2,VLOOKUP(BE11,$A$20:$E$23,IF($B$19=VLOOKUP(BC11,$B$2:$G$4,3,TRUE),2,IF($C$19=VLOOKUP(BC11,$B$2:$G$4,3,TRUE),3,IF($D$19=VLOOKUP(BC11,$B$2:$G$4,3,TRUE),4,5))),TRUE))*(DAY(BD11)-DAY(BC11)+1)/DAY(EOMONTH(BC11,0)),0))) ->  | BO11: =IF(BC11="","",IF(OR(BB11<DATE(2010,4,1),BU11=3,BE11=VLOOKUP(BE11,I!$I$2:$J$5,1)),0,ROUND(IF(BU11=2,Main!$L$9/2,Main!$L$9)*(DAY(BD11)-DAY(BC11)+1)/DAY(EOMONTH(BC11,0)),0))) ->  | BQ11: =IF(BC11="","",IF(OR(BU11=3,BE11=VLOOKUP(BE11,I!$I$2:$J$5,1)),0,ROUND(IF(BU11=2,VLOOKUP(BF11,$A$11:$E$16,IF($B$10=VLOOKUP(BB11,$B$2:$G$4,6,TRUE),2,IF($B$10=VLOOKUP(BB11,$B$2:$G$4,6,TRUE),3,IF($D$10=VLOOKUP(BB11,$B$2:$G$4,6,TRUE),4,5))))/2,VLOOKUP(BF11,$A$11:$E$16,IF($B$10=VLOOKUP(BB11,$B$2:$G$4,6,TRUE),2,IF($B$10=VLOOKUP(BB11,$B$2:$G$4,6,TRUE),3,IF($D$10=VLOOKUP(BB11,$B$2:$G$4,6,TRUE),4,5)))))*(DAY(BD11)-DAY(BC11)+1)/DAY(EOMONTH(BC11,0)),0))) ->  | BR11: 0 | BS11: =IF(BC11="","",IF(BC11<=$AX$1,BR11-BT11,IF(AND(Main!$F$22=Main!$CA$24,BC11>$AX$1),ROUND(SUM(BF11,BH11)*10%,0),""))) ->  | BT11: =IF(BB11="","",IF(OR(Main!$H$10=Main!$BH$4,Main!$H$10=Main!$BH$5),0,LOOKUP(BR11*DAY(EOMONTH(BC11,0))/(DAY(BD11)-DAY(BC11)+1),$H$17:$I$22))) ->  | BU11: 1 | BV11: 0 | CB11: =IF(CA11="","",MIN(EOMONTH(CA11,0),VLOOKUP(CA11,I!$O$164:$P$202,2,TRUE)-1,LOOKUP(CA11,$E$47:$F$53)-1,IF(CA11<$B$2,$B$2-1,I!$Q$9),IF(CA11<$B$3,$B$3-1,I!$Q$9),IF(CA11<$B$4,$B$4-1,I!$Q$9),LOOKUP(CA11,$H$47:$I$53))) ->  | CC11: =IF(CA11="","",VLOOKUP(CA11,I!$P$164:$R$202,2)) ->  | CE11: =IF(CA11="","",ROUND(IF(CS11=3,0,IF(CS11=2,IF(CC11=VLOOKUP(CC11,I!$I$2:$J$5,1),0,Main!$H$9)/2,IF(CC11=VLOOKUP(CC11,I!$I$2:$J$5,1),0,Main!$H$9)))*(DAY(CB11)-DAY(CA11)+1)/DAY(EOMONTH(CA11,0)),0)) ->  | CF11: =IF(CA11="","",IF(CC11=VLOOKUP(CC11,I!$I$2:$J$5,1),0,ROUND(CD11*VLOOKUP(CA11,$BW$4:$BX$7,2)%,0))) ->  | CG11: =IF(CA11="","",IF(OR(CS11=3,CC11=VLOOKUP(CC11,I!$I$2:$J$5,1)),0,ROUND(MIN(ROUND(CC11*VLOOKUP(CA11,$B$1:$G$4,2)%,0),VLOOKUP(CA11,$B$2:$H$4,7,TRUE))*(DAY(CB11)-DAY(CA11)+1)/DAY(EOMONTH(CA11,0)),0))) ->  | CH11: =IF(CA11="","",IF(OR(CA11<DATE(2010,4,1),$I$2=VLOOKUP(CA11,$B$2:$G$4,5,TRUE),CC11=VLOOKUP(CC11,I!$I$2:$J$5,1)),0,ROUND(IF(CS11=3,0,IF(CS11=2,MIN(ROUND(CC11*$G$13%,0),$G$14)/2,MIN(ROUND(CC11*$G$13%,0),$G$14)))*(DAY(CB11)-DAY(CA11)+1)/DAY(EOMONTH(CA11,0)),0))) ->  | CJ11: =IF(CA11="","",IF(CA11<DATE(2010,4,1),0,IF(OR(CS11=2,CS11=3,CC11=VLOOKUP(CC11,I!$I$2:$J$5,1)),0,ROUND(VLOOKUP(CA11,$B$1:$G$4,4)*(DAY(CB11)-DAY(CA11)+1)/DAY(EOMONTH(CA11,0)),0)))) ->  | CK11: =IF(CA11="","",IF(OR(CS11=2,CS11=3,CA11<DATE(2010,4,1),CC11=VLOOKUP(CC11,I!$I$2:$J$5,1)),0,ROUND(MIN(VLOOKUP(BZ11,$A$27:$C$32,2,TRUE),ROUND(CD11*VLOOKUP(BZ11,$A$27:$C$32,3,TRUE)%,0))*IF(BZ11=$A$36,$C$36,IF(BZ11=$A$37,$C$37,IF(BZ11=$A$38,$C$38,IF(BZ11=$A$39,$C$39,IF(BZ11=$A$40,$C$40,IF(BZ11=$A$41,$C$41,1))))))*(DAY(CB11)-DAY(CA11)+1)/DAY(EOMONTH(CA11,0)),0))) ->  | CL11: =IF(CA11="","",IF(OR(CS11=3,CC11=VLOOKUP(CC11,I!$I$2:$J$5,1)),0,ROUND(IF(CS11=2,VLOOKUP(CC11,$A$20:$E$23,IF($B$19=VLOOKUP(CA11,$B$2:$G$4,3,TRUE),2,IF($C$19=VLOOKUP(CA11,$B$2:$G$4,3,TRUE),3,IF($D$19=VLOOKUP(CA11,$B$2:$G$4,3,TRUE),4,5))),TRUE)/2,VLOOKUP(CC11,$A$20:$E$23,IF($B$19=VLOOKUP(CA11,$B$2:$G$4,3,TRUE),2,IF($C$19=VLOOKUP(CA11,$B$2:$G$4,3,TRUE),3,IF($D$19=VLOOKUP(CA11,$B$2:$G$4,3,TRUE),4,5))),TRUE))*(DAY(CB11)-DAY(CA11)+1)/DAY(EOMONTH(CA11,0)),0))) ->  | CM11: =IF(CA11="","",IF(OR(BZ11<DATE(2010,4,1),CS11=3,CC11=VLOOKUP(CC11,I!$I$2:$J$5,1)),0,ROUND(IF(CS11=2,Main!$L$9/2,Main!$L$9)*(DAY(CB11)-DAY(CA11)+1)/DAY(EOMONTH(CA11,0)),0))) ->  | CO11: =IF(CA11="","",IF(OR(CS11=3,CC11=VLOOKUP(CC11,I!$I$2:$J$5,1)),0,ROUND(IF(CS11=2,VLOOKUP(CD11,$A$11:$E$16,IF($B$10=VLOOKUP(BZ11,$B$2:$G$4,6,TRUE),2,IF($B$10=VLOOKUP(BZ11,$B$2:$G$4,6,TRUE),3,IF($D$10=VLOOKUP(BZ11,$B$2:$G$4,6,TRUE),4,5))))/2,VLOOKUP(CD11,$A$11:$E$16,IF($B$10=VLOOKUP(BZ11,$B$2:$G$4,6,TRUE),2,IF($B$10=VLOOKUP(BZ11,$B$2:$G$4,6,TRUE),3,IF($D$10=VLOOKUP(BZ11,$B$2:$G$4,6,TRUE),4,5)))))*(DAY(CB11)-DAY(CA11)+1)/DAY(EOMONTH(CA11,0)),0))) ->  | CP11: 0 | CQ11: =IF(CA11="","",IF(Main!$F$22=Main!$CA$24,ROUND(SUM(CD11,CF11)*10%,0),"")) ->  | CR11: =IF(BZ11="","",IF(OR(Main!$H$10=Main!$BH$4,Main!$H$10=Main!$BH$5),0,LOOKUP(CP11*DAY(EOMONTH(CA11,0))/(DAY(CB11)-DAY(CA11)+1),$H$17:$I$22))) ->  | CS11: 1 | CW11: =IF(CV11="","",MIN(EOMONTH(CV11,0),VLOOKUP(CV11,I!$O$164:$P$202,2,TRUE)-1,LOOKUP(CV11,$E$47:$F$53)-1,IF(CV11<$B$2,$B$2-1,I!$Q$9),IF(CV11<$B$3,$B$3-1,I!$Q$9),IF(CV11<$B$4,$B$4-1,I!$Q$9),LOOKUP(CV11,$H$47:$I$53))) ->  | CX11: =IF(CV11="","",VLOOKUP(CV11,I!$P$164:$R$202,3)) ->  | CZ11: =IF(CV11="","",ROUND(IF(DN11=3,0,IF(DN11=2,IF(CX11=VLOOKUP(CX11,I!$I$2:$J$5,1),0,Main!$H$9)/2,IF(CX11=VLOOKUP(CX11,I!$I$2:$J$5,1),0,Main!$H$9)))*(DAY(CW11)-DAY(CV11)+1)/DAY(EOMONTH(CV11,0)),0)) ->  | DA11: =IF(CV11="","",IF(CX11=VLOOKUP(CX11,I!$I$2:$J$5,1),0,ROUND(CY11*VLOOKUP(CV11,$AD$4:$AE$7,2)%,0))) ->  | DB11: =IF(CV11="","",IF(OR(DN11=3,CX11=VLOOKUP(CX11,I!$I$2:$J$5,1)),0,ROUND(MIN(ROUND(CX11*VLOOKUP(CV11,$B$1:$G$4,2)%,0),VLOOKUP(CV11,$B$2:$H$4,7,TRUE))*(DAY(CW11)-DAY(CV11)+1)/DAY(EOMONTH(CV11,0)),0))) ->  | DC11: =IF(CV11="","",IF(OR(CV11<DATE(2010,4,1),$I$2=VLOOKUP(CV11,$B$2:$G$4,5,TRUE),CX11=VLOOKUP(CX11,I!$I$2:$J$5,1)),0,ROUND(IF(DN11=3,0,IF(DN11=2,MIN(ROUND(CX11*$G$13%,0),$G$14)/2,MIN(ROUND(CX11*$G$13%,0),$G$14)))*(DAY(CW11)-DAY(CV11)+1)/DAY(EOMONTH(CV11,0)),0))) ->  | DE11: =IF(CV11="","",IF(CV11<DATE(2010,4,1),0,IF(OR(DN11=2,DN11=3,CX11=VLOOKUP(CX11,I!$I$2:$J$5,1)),0,ROUND(VLOOKUP(CV11,$B$1:$G$4,4)*(DAY(CW11)-DAY(CV11)+1)/DAY(EOMONTH(CV11,0)),0)))) ->  | DF11: =IF(CV11="","",IF(OR(DN11=2,DN11=3,CV11<DATE(2010,4,1),CX11=VLOOKUP(CX11,I!$I$2:$J$5,1)),0,ROUND(MIN(VLOOKUP(CU11,$A$27:$C$32,2,TRUE),ROUND(CY11*VLOOKUP(CU11,$A$27:$C$32,3,TRUE)%,0))*IF(CU11=$A$36,$C$36,IF(CU11=$A$37,$C$37,IF(CU11=$A$38,$C$38,IF(CU11=$A$39,$C$39,IF(CU11=$A$40,$C$40,IF(CU11=$A$41,$C$41,1))))))*(DAY(CW11)-DAY(CV11)+1)/DAY(EOMONTH(CV11,0)),0))) ->  | DG11: =IF(CV11="","",IF(OR(DN11=3,CX11=VLOOKUP(CX11,I!$I$2:$J$5,1)),0,ROUND(IF(DN11=2,VLOOKUP(CX11,$A$20:$E$23,IF($B$19=VLOOKUP(CV11,$B$2:$G$4,3,TRUE),2,IF($C$19=VLOOKUP(CV11,$B$2:$G$4,3,TRUE),3,IF($D$19=VLOOKUP(CV11,$B$2:$G$4,3,TRUE),4,5))),TRUE)/2,VLOOKUP(CX11,$A$20:$E$23,IF($B$19=VLOOKUP(CV11,$B$2:$G$4,3,TRUE),2,IF($C$19=VLOOKUP(CV11,$B$2:$G$4,3,TRUE),3,IF($D$19=VLOOKUP(CV11,$B$2:$G$4,3,TRUE),4,5))),TRUE))*(DAY(CW11)-DAY(CV11)+1)/DAY(EOMONTH(CV11,0)),0))) ->  | DH11: =IF(CV11="","",IF(OR(CU11<DATE(2010,4,1),DN11=3,CX11=VLOOKUP(CX11,I!$I$2:$J$5,1)),0,ROUND(IF(DN11=2,Main!$L$9/2,Main!$L$9)*(DAY(CW11)-DAY(CV11)+1)/DAY(EOMONTH(CV11,0)),0))) ->  | DJ11: =IF(CV11="","",IF(OR(DN11=3,CX11=VLOOKUP(CX11,I!$I$2:$J$5,1)),0,ROUND(IF(DN11=2,VLOOKUP(CY11,$A$11:$E$16,IF($B$10=VLOOKUP(CU11,$B$2:$G$4,6,TRUE),2,IF($B$10=VLOOKUP(CU11,$B$2:$G$4,6,TRUE),3,IF($D$10=VLOOKUP(CU11,$B$2:$G$4,6,TRUE),4,5))))/2,VLOOKUP(CY11,$A$11:$E$16,IF($B$10=VLOOKUP(CU11,$B$2:$G$4,6,TRUE),2,IF($B$10=VLOOKUP(CU11,$B$2:$G$4,6,TRUE),3,IF($D$10=VLOOKUP(CU11,$B$2:$G$4,6,TRUE),4,5)))))*(DAY(CW11)-DAY(CV11)+1)/DAY(EOMONTH(CV11,0)),0))) ->  | DK11: 0 | DL11: =IF(CV11="","",IF(CX11=VLOOKUP(CX11,I!$I$2:$J$5,1),"",IF(Main!$F$22=Main!$CA$24,ROUND(SUM(CY11,DA11)*10%,0),""))) ->  | DM11: =IF(CU11="","",IF(OR(Main!$H$10=Main!$BH$4,Main!$H$10=Main!$BH$5),0,LOOKUP(DK11*DAY(EOMONTH(CV11,0))/(DAY(CW11)-DAY(CV11)+1),$H$17:$I$22))) ->  | DN11: 1
A12: 10601 | B12: 400 | C12: 475 | D12: 550 | E12: 0 | F12: 2010-HRA Max | H12: =Main!L19 -> 2012-12-01 | I12: 72 | J12: 72 | K12: 2012-12-01 | L12: 2012-12-01 | M12: =IF(L12="","",MIN(EOMONTH(L12,0),VLOOKUP(L12,I!$O$164:$P$202,2,TRUE)-1,LOOKUP(L12,$E$47:$F$53)-1,IF(L12<$B$2,$B$2-1,I!$Q$9),IF(L12<$B$3,$B$3-1,I!$Q$9),IF(L12<$B$4,$B$4-1,I!$Q$9),LOOKUP(L12,$H$47:$I$53))) -> 2012-12-31 | N12: =IF(L12="","",VLOOKUP(L12,'Advance Tax'!$A$3:$C$14,3)) -> 32260.00 | O12: 32260 | P12: =IF(L12="","",ROUND(IF(AB12=3,0,IF(AB12=2,IF(N12=VLOOKUP(N12,I!$I$2:$J$5,1),0,Main!$H$9)/2,IF(N12=VLOOKUP(N12,I!$I$2:$J$5,1),0,Main!$H$9)))*(DAY(M12)-DAY(L12)+1)/DAY(EOMONTH(L12,0)),0)) -> 0 | Q12: =IF(L12="","",IF(N12=VLOOKUP(N12,I!$I$2:$J$5,1),0,ROUND(O12*VLOOKUP(L12,$H$9:$I$12,2)%,0))) -> 23227 | R12: =IF(L12="","",IF(OR(AB12=3,N12=VLOOKUP(N12,I!$I$2:$J$5,1)),0,ROUND(MIN(ROUND(N12*VLOOKUP(L12,$B$1:$G$4,2)%,0),VLOOKUP(L12,$B$2:$H$4,7,TRUE))*(DAY(M12)-DAY(L12)+1)/DAY(EOMONTH(L12,0)),0))) -> 3226 | S12: =IF(L12="","",IF(OR(L12<DATE(2010,4,1),$I$2=VLOOKUP(L12,$B$2:$G$4,5,TRUE),N12=VLOOKUP(N12,I!$I$2:$J$5,1)),0,ROUND(IF(AB12=3,0,IF(AB12=2,MIN(ROUND(N12*$G$13%,0),$G$14)/2,MIN(ROUND(N12*$G$13%,0),$G$14)))*(DAY(M12)-DAY(L12)+1)/DAY(EOMONTH(L12,0)),0))) -> 0 | U12: =IF(L12="","",IF(L12<DATE(2010,4,1),0,IF(OR(AB12=2,AB12=3,N12=VLOOKUP(N12,I!$I$2:$J$5,1)),0,ROUND(VLOOKUP(L12,$B$1:$G$4,4)*(DAY(M12)-DAY(L12)+1)/DAY(EOMONTH(L12,0)),0)))) -> 0 | V12: =IF(L12="","",IF(OR(AB12=2,AB12=3,L12<DATE(2010,4,1),N12=VLOOKUP(N12,I!$I$2:$J$5,1)),0,ROUND(MIN(VLOOKUP(K12,$A$27:$C$32,2,TRUE),ROUND(O12*VLOOKUP(K12,$A$27:$C$32,3,TRUE)%,0))*IF(K12=$A$36,$C$36,IF(K12=$A$37,$C$37,IF(K12=$A$38,$C$38,IF(K12=$A$39,$C$39,IF(K12=$A$40,$C$40,IF(K12=$A$41,$C$41,1))))))*(DAY(M12)-DAY(L12)+1)/DAY(EOMONTH(L12,0)),0))) -> 0 | W12: =IF(L12="","",IF(OR(AB12=3,N12=VLOOKUP(N12,I!$I$2:$J$5,1)),0,ROUND(IF(AB12=2,VLOOKUP(N12,$A$20:$E$23,IF($B$19=VLOOKUP(L12,$B$2:$G$4,3,TRUE),2,IF($C$19=VLOOKUP(L12,$B$2:$G$4,3,TRUE),3,IF($D$19=VLOOKUP(L12,$B$2:$G$4,3,TRUE),4,5))),TRUE)/2,VLOOKUP(N12,$A$20:$E$23,IF($B$19=VLOOKUP(L12,$B$2:$G$4,3,TRUE),2,IF($C$19=VLOOKUP(L12,$B$2:$G$4,3,TRUE),3,IF($D$19=VLOOKUP(L12,$B$2:$G$4,3,TRUE),4,5))),TRUE))*(DAY(M12)-DAY(L12)+1)/DAY(EOMONTH(L12,0)),0))) -> 0 | X12: =IF(L12="","",IF(OR(K12<DATE(2010,4,1),AB12=3,N12=VLOOKUP(N12,I!$I$2:$J$5,1)),0,ROUND(IF(AB12=2,Main!$L$9/2,Main!$L$9)*(DAY(M12)-DAY(L12)+1)/DAY(EOMONTH(L12,0)),0))) -> 0 | Z12: =IF(L12="","",IF(OR(AB12=3,N12=VLOOKUP(N12,I!$I$2:$J$5,1)),0,ROUND(IF(AB12=2,VLOOKUP(O12,$A$11:$E$16,IF($B$10=VLOOKUP(K12,$B$2:$G$4,6,TRUE),2,IF($B$10=VLOOKUP(K12,$B$2:$G$4,6,TRUE),3,IF($D$10=VLOOKUP(K12,$B$2:$G$4,6,TRUE),4,5))))/2,VLOOKUP(O12,$A$11:$E$16,IF($B$10=VLOOKUP(K12,$B$2:$G$4,6,TRUE),2,IF($B$10=VLOOKUP(K12,$B$2:$G$4,6,TRUE),3,IF($D$10=VLOOKUP(K12,$B$2:$G$4,6,TRUE),4,5)))))*(DAY(M12)-DAY(L12)+1)/DAY(EOMONTH(L12,0)),0))) -> 0 | AA12: 58713 | AB12: 1 | AI12: =IF(AH12="","",MIN(EOMONTH(AH12,0),VLOOKUP(AH12,I!$O$164:$P$202,2,TRUE)-1,LOOKUP(AH12,$E$47:$F$53)-1,IF(AH12<$B$2,$B$2-1,I!$Q$9),IF(AH12<$B$3,$B$3-1,I!$Q$9),IF(AH12<$B$4,$B$4-1,I!$Q$9),LOOKUP(AH12,$H$47:$I$53))) ->  | AJ12: =IF(AH12="","",VLOOKUP(AH12,I!$P$164:$R$202,2)) ->  | AL12: =IF(AH12="","",ROUND(IF(AZ12=3,0,IF(AZ12=2,IF(AJ12=VLOOKUP(AJ12,I!$I$2:$J$5,1),0,Main!$H$9)/2,IF(AJ12=VLOOKUP(AJ12,I!$I$2:$J$5,1),0,Main!$H$9)))*(DAY(AI12)-DAY(AH12)+1)/DAY(EOMONTH(AH12,0)),0)) ->  | AM12: =IF(AH12="","",IF(AJ12=VLOOKUP(AJ12,I!$I$2:$J$5,1),0,ROUND(AK12*VLOOKUP(AH12,$AD$4:$AE$7,2)%,0))) ->  | AN12: =IF(AH12="","",IF(OR(AZ12=3,AJ12=VLOOKUP(AJ12,I!$I$2:$J$5,1)),0,ROUND(MIN(ROUND(AJ12*VLOOKUP(AH12,$B$1:$G$4,2)%,0),VLOOKUP(AH12,$B$2:$H$4,7,TRUE))*(DAY(AI12)-DAY(AH12)+1)/DAY(EOMONTH(AH12,0)),0))) ->  | AO12: =IF(AH12="","",IF(OR(AH12<DATE(2010,4,1),$I$2=VLOOKUP(AH12,$B$2:$G$4,5,TRUE),AJ12=VLOOKUP(AJ12,I!$I$2:$J$5,1)),0,ROUND(IF(AZ12=3,0,IF(AZ12=2,MIN(ROUND(AJ12*$G$13%,0),$G$14)/2,MIN(ROUND(AJ12*$G$13%,0),$G$14)))*(DAY(AI12)-DAY(AH12)+1)/DAY(EOMONTH(AH12,0)),0))) ->  | AQ12: =IF(AH12="","",IF(AH12<DATE(2010,4,1),0,IF(OR(AZ12=2,AZ12=3,AJ12=VLOOKUP(AJ12,I!$I$2:$J$5,1)),0,ROUND(VLOOKUP(AH12,$B$1:$G$4,4)*(DAY(AI12)-DAY(AH12)+1)/DAY(EOMONTH(AH12,0)),0)))) ->  | AR12: =IF(AH12="","",IF(OR(AZ12=2,AZ12=3,AH12<DATE(2010,4,1),AJ12=VLOOKUP(AJ12,I!$I$2:$J$5,1)),0,ROUND(MIN(VLOOKUP(AG12,$A$27:$C$32,2,TRUE),ROUND(AK12*VLOOKUP(AG12,$A$27:$C$32,3,TRUE)%,0))*IF(AG12=$A$36,$C$36,IF(AG12=$A$37,$C$37,IF(AG12=$A$38,$C$38,IF(AG12=$A$39,$C$39,IF(AG12=$A$40,$C$40,IF(AG12=$A$41,$C$41,1))))))*(DAY(AI12)-DAY(AH12)+1)/DAY(EOMONTH(AH12,0)),0))) ->  | AS12: =IF(AH12="","",IF(OR(AZ12=3,AJ12=VLOOKUP(AJ12,I!$I$2:$J$5,1)),0,ROUND(IF(AZ12=2,VLOOKUP(AJ12,$A$20:$E$23,IF($B$19=VLOOKUP(AH12,$B$2:$G$4,3,TRUE),2,IF($C$19=VLOOKUP(AH12,$B$2:$G$4,3,TRUE),3,IF($D$19=VLOOKUP(AH12,$B$2:$G$4,3,TRUE),4,5))),TRUE)/2,VLOOKUP(AJ12,$A$20:$E$23,IF($B$19=VLOOKUP(AH12,$B$2:$G$4,3,TRUE),2,IF($C$19=VLOOKUP(AH12,$B$2:$G$4,3,TRUE),3,IF($D$19=VLOOKUP(AH12,$B$2:$G$4,3,TRUE),4,5))),TRUE))*(DAY(AI12)-DAY(AH12)+1)/DAY(EOMONTH(AH12,0)),0))) ->  | AT12: =IF(AH12="","",IF(OR(AG12<DATE(2010,4,1),AZ12=3,AJ12=VLOOKUP(AJ12,I!$I$2:$J$5,1)),0,ROUND(IF(AZ12=2,Main!$L$9/2,Main!$L$9)*(DAY(AI12)-DAY(AH12)+1)/DAY(EOMONTH(AH12,0)),0))) ->  | AV12: =IF(AH12="","",IF(OR(AZ12=3,AJ12=VLOOKUP(AJ12,I!$I$2:$J$5,1)),0,ROUND(IF(AZ12=2,VLOOKUP(AK12,$A$11:$E$16,IF($B$10=VLOOKUP(AG12,$B$2:$G$4,6,TRUE),2,IF($B$10=VLOOKUP(AG12,$B$2:$G$4,6,TRUE),3,IF($D$10=VLOOKUP(AG12,$B$2:$G$4,6,TRUE),4,5))))/2,VLOOKUP(AK12,$A$11:$E$16,IF($B$10=VLOOKUP(AG12,$B$2:$G$4,6,TRUE),2,IF($B$10=VLOOKUP(AG12,$B$2:$G$4,6,TRUE),3,IF($D$10=VLOOKUP(AG12,$B$2:$G$4,6,TRUE),4,5)))))*(DAY(AI12)-DAY(AH12)+1)/DAY(EOMONTH(AH12,0)),0))) ->  | AW12: 0 | AX12: =IF(AH12="","",IF(AH12<=$AX$1,AW12-AY12,IF(AND(Main!$F$22=Main!$CA$24,AH12>$AX$1),ROUND(SUM(AK12,AM12)*10%,0),""))) ->  | AY12: =IF(AG12="","",IF(OR(Main!$H$10=Main!$BH$4,Main!$H$10=Main!$BH$5),0,LOOKUP(AW12*DAY(EOMONTH(AH12,0))/(DAY(AI12)-DAY(AH12)+1),$H$17:$I$22))) ->  | AZ12: 1 | BD12: =IF(BC12="","",MIN(EOMONTH(BC12,0),VLOOKUP(BC12,I!$O$164:$P$202,2,TRUE)-1,LOOKUP(BC12,$E$47:$F$53)-1,IF(BC12<$B$2,$B$2-1,I!$Q$9),IF(BC12<$B$3,$B$3-1,I!$Q$9),IF(BC12<$B$4,$B$4-1,I!$Q$9),LOOKUP(BC12,$H$47:$I$53))) ->  | BE12: =IF(BC12="","",VLOOKUP(BC12,I!$P$164:$R$202,3)) ->  | BG12: =IF(BC12="","",ROUND(IF(BU12=3,0,IF(BU12=2,IF(BE12=VLOOKUP(BE12,I!$I$2:$J$5,1),0,Main!$H$9)/2,IF(BE12=VLOOKUP(BE12,I!$I$2:$J$5,1),0,Main!$H$9)))*(DAY(BD12)-DAY(BC12)+1)/DAY(EOMONTH(BC12,0)),0)) ->  | BH12: =IF(BC12="","",IF(BE12=VLOOKUP(BE12,I!$I$2:$J$5,1),0,ROUND(BF12*VLOOKUP(BC12,$AD$4:$AE$7,2)%,0))) ->  | BI12: =IF(BC12="","",IF(OR(BU12=3,BE12=VLOOKUP(BE12,I!$I$2:$J$5,1)),0,ROUND(MIN(ROUND(BE12*VLOOKUP(BC12,$B$1:$G$4,2)%,0),VLOOKUP(BC12,$B$2:$H$4,7,TRUE))*(DAY(BD12)-DAY(BC12)+1)/DAY(EOMONTH(BC12,0)),0))) ->  | BJ12: =IF(BC12="","",IF(OR(BC12<DATE(2010,4,1),$I$2=VLOOKUP(BC12,$B$2:$G$4,5,TRUE),BE12=VLOOKUP(BE12,I!$I$2:$J$5,1)),0,ROUND(IF(BU12=3,0,IF(BU12=2,MIN(ROUND(BE12*$G$13%,0),$G$14)/2,MIN(ROUND(BE12*$G$13%,0),$G$14)))*(DAY(BD12)-DAY(BC12)+1)/DAY(EOMONTH(BC12,0)),0))) ->  | BL12: =IF(BC12="","",IF(BC12<DATE(2010,4,1),0,IF(OR(BU12=2,BU12=3,BE12=VLOOKUP(BE12,I!$I$2:$J$5,1)),0,ROUND(VLOOKUP(BC12,$B$1:$G$4,4)*(DAY(BD12)-DAY(BC12)+1)/DAY(EOMONTH(BC12,0)),0)))) ->  | BM12: =IF(BC12="","",IF(OR(BU12=2,BU12=3,BC12<DATE(2010,4,1),BE12=VLOOKUP(BE12,I!$I$2:$J$5,1)),0,ROUND(MIN(VLOOKUP(BB12,$A$27:$C$32,2,TRUE),ROUND(BF12*VLOOKUP(BB12,$A$27:$C$32,3,TRUE)%,0))*IF(BB12=$A$36,$C$36,IF(BB12=$A$37,$C$37,IF(BB12=$A$38,$C$38,IF(BB12=$A$39,$C$39,IF(BB12=$A$40,$C$40,IF(BB12=$A$41,$C$41,1))))))*(DAY(BD12)-DAY(BC12)+1)/DAY(EOMONTH(BC12,0)),0))) ->  | BN12: =IF(BC12="","",IF(OR(BU12=3,BE12=VLOOKUP(BE12,I!$I$2:$J$5,1)),0,ROUND(IF(BU12=2,VLOOKUP(BE12,$A$20:$E$23,IF($B$19=VLOOKUP(BC12,$B$2:$G$4,3,TRUE),2,IF($C$19=VLOOKUP(BC12,$B$2:$G$4,3,TRUE),3,IF($D$19=VLOOKUP(BC12,$B$2:$G$4,3,TRUE),4,5))),TRUE)/2,VLOOKUP(BE12,$A$20:$E$23,IF($B$19=VLOOKUP(BC12,$B$2:$G$4,3,TRUE),2,IF($C$19=VLOOKUP(BC12,$B$2:$G$4,3,TRUE),3,IF($D$19=VLOOKUP(BC12,$B$2:$G$4,3,TRUE),4,5))),TRUE))*(DAY(BD12)-DAY(BC12)+1)/DAY(EOMONTH(BC12,0)),0))) ->  | BO12: =IF(BC12="","",IF(OR(BB12<DATE(2010,4,1),BU12=3,BE12=VLOOKUP(BE12,I!$I$2:$J$5,1)),0,ROUND(IF(BU12=2,Main!$L$9/2,Main!$L$9)*(DAY(BD12)-DAY(BC12)+1)/DAY(EOMONTH(BC12,0)),0))) ->  | BQ12: =IF(BC12="","",IF(OR(BU12=3,BE12=VLOOKUP(BE12,I!$I$2:$J$5,1)),0,ROUND(IF(BU12=2,VLOOKUP(BF12,$A$11:$E$16,IF($B$10=VLOOKUP(BB12,$B$2:$G$4,6,TRUE),2,IF($B$10=VLOOKUP(BB12,$B$2:$G$4,6,TRUE),3,IF($D$10=VLOOKUP(BB12,$B$2:$G$4,6,TRUE),4,5))))/2,VLOOKUP(BF12,$A$11:$E$16,IF($B$10=VLOOKUP(BB12,$B$2:$G$4,6,TRUE),2,IF($B$10=VLOOKUP(BB12,$B$2:$G$4,6,TRUE),3,IF($D$10=VLOOKUP(BB12,$B$2:$G$4,6,TRUE),4,5)))))*(DAY(BD12)-DAY(BC12)+1)/DAY(EOMONTH(BC12,0)),0))) ->  | BR12: 0 | BS12: =IF(BC12="","",IF(BC12<=$AX$1,BR12-BT12,IF(AND(Main!$F$22=Main!$CA$24,BC12>$AX$1),ROUND(SUM(BF12,BH12)*10%,0),""))) ->  | BT12: =IF(BB12="","",IF(OR(Main!$H$10=Main!$BH$4,Main!$H$10=Main!$BH$5),0,LOOKUP(BR12*DAY(EOMONTH(BC12,0))/(DAY(BD12)-DAY(BC12)+1),$H$17:$I$22))) ->  | BU12: 1 | BV12: 0 | CB12: =IF(CA12="","",MIN(EOMONTH(CA12,0),VLOOKUP(CA12,I!$O$164:$P$202,2,TRUE)-1,LOOKUP(CA12,$E$47:$F$53)-1,IF(CA12<$B$2,$B$2-1,I!$Q$9),IF(CA12<$B$3,$B$3-1,I!$Q$9),IF(CA12<$B$4,$B$4-1,I!$Q$9),LOOKUP(CA12,$H$47:$I$53))) ->  | CC12: =IF(CA12="","",VLOOKUP(CA12,I!$P$164:$R$202,2)) ->  | CE12: =IF(CA12="","",ROUND(IF(CS12=3,0,IF(CS12=2,IF(CC12=VLOOKUP(CC12,I!$I$2:$J$5,1),0,Main!$H$9)/2,IF(CC12=VLOOKUP(CC12,I!$I$2:$J$5,1),0,Main!$H$9)))*(DAY(CB12)-DAY(CA12)+1)/DAY(EOMONTH(CA12,0)),0)) ->  | CF12: =IF(CA12="","",IF(CC12=VLOOKUP(CC12,I!$I$2:$J$5,1),0,ROUND(CD12*VLOOKUP(CA12,$BW$4:$BX$7,2)%,0))) ->  | CG12: =IF(CA12="","",IF(OR(CS12=3,CC12=VLOOKUP(CC12,I!$I$2:$J$5,1)),0,ROUND(MIN(ROUND(CC12*VLOOKUP(CA12,$B$1:$G$4,2)%,0),VLOOKUP(CA12,$B$2:$H$4,7,TRUE))*(DAY(CB12)-DAY(CA12)+1)/DAY(EOMONTH(CA12,0)),0))) ->  | CH12: =IF(CA12="","",IF(OR(CA12<DATE(2010,4,1),$I$2=VLOOKUP(CA12,$B$2:$G$4,5,TRUE),CC12=VLOOKUP(CC12,I!$I$2:$J$5,1)),0,ROUND(IF(CS12=3,0,IF(CS12=2,MIN(ROUND(CC12*$G$13%,0),$G$14)/2,MIN(ROUND(CC12*$G$13%,0),$G$14)))*(DAY(CB12)-DAY(CA12)+1)/DAY(EOMONTH(CA12,0)),0))) ->  | CJ12: =IF(CA12="","",IF(CA12<DATE(2010,4,1),0,IF(OR(CS12=2,CS12=3,CC12=VLOOKUP(CC12,I!$I$2:$J$5,1)),0,ROUND(VLOOKUP(CA12,$B$1:$G$4,4)*(DAY(CB12)-DAY(CA12)+1)/DAY(EOMONTH(CA12,0)),0)))) ->  | CK12: =IF(CA12="","",IF(OR(CS12=2,CS12=3,CA12<DATE(2010,4,1),CC12=VLOOKUP(CC12,I!$I$2:$J$5,1)),0,ROUND(MIN(VLOOKUP(BZ12,$A$27:$C$32,2,TRUE),ROUND(CD12*VLOOKUP(BZ12,$A$27:$C$32,3,TRUE)%,0))*IF(BZ12=$A$36,$C$36,IF(BZ12=$A$37,$C$37,IF(BZ12=$A$38,$C$38,IF(BZ12=$A$39,$C$39,IF(BZ12=$A$40,$C$40,IF(BZ12=$A$41,$C$41,1))))))*(DAY(CB12)-DAY(CA12)+1)/DAY(EOMONTH(CA12,0)),0))) ->  | CL12: =IF(CA12="","",IF(OR(CS12=3,CC12=VLOOKUP(CC12,I!$I$2:$J$5,1)),0,ROUND(IF(CS12=2,VLOOKUP(CC12,$A$20:$E$23,IF($B$19=VLOOKUP(CA12,$B$2:$G$4,3,TRUE),2,IF($C$19=VLOOKUP(CA12,$B$2:$G$4,3,TRUE),3,IF($D$19=VLOOKUP(CA12,$B$2:$G$4,3,TRUE),4,5))),TRUE)/2,VLOOKUP(CC12,$A$20:$E$23,IF($B$19=VLOOKUP(CA12,$B$2:$G$4,3,TRUE),2,IF($C$19=VLOOKUP(CA12,$B$2:$G$4,3,TRUE),3,IF($D$19=VLOOKUP(CA12,$B$2:$G$4,3,TRUE),4,5))),TRUE))*(DAY(CB12)-DAY(CA12)+1)/DAY(EOMONTH(CA12,0)),0))) ->  | CM12: =IF(CA12="","",IF(OR(BZ12<DATE(2010,4,1),CS12=3,CC12=VLOOKUP(CC12,I!$I$2:$J$5,1)),0,ROUND(IF(CS12=2,Main!$L$9/2,Main!$L$9)*(DAY(CB12)-DAY(CA12)+1)/DAY(EOMONTH(CA12,0)),0))) ->  | CO12: =IF(CA12="","",IF(OR(CS12=3,CC12=VLOOKUP(CC12,I!$I$2:$J$5,1)),0,ROUND(IF(CS12=2,VLOOKUP(CD12,$A$11:$E$16,IF($B$10=VLOOKUP(BZ12,$B$2:$G$4,6,TRUE),2,IF($B$10=VLOOKUP(BZ12,$B$2:$G$4,6,TRUE),3,IF($D$10=VLOOKUP(BZ12,$B$2:$G$4,6,TRUE),4,5))))/2,VLOOKUP(CD12,$A$11:$E$16,IF($B$10=VLOOKUP(BZ12,$B$2:$G$4,6,TRUE),2,IF($B$10=VLOOKUP(BZ12,$B$2:$G$4,6,TRUE),3,IF($D$10=VLOOKUP(BZ12,$B$2:$G$4,6,TRUE),4,5)))))*(DAY(CB12)-DAY(CA12)+1)/DAY(EOMONTH(CA12,0)),0))) ->  | CP12: 0 | CQ12: =IF(CA12="","",IF(Main!$F$22=Main!$CA$24,ROUND(SUM(CD12,CF12)*10%,0),"")) ->  | CR12: =IF(BZ12="","",IF(OR(Main!$H$10=Main!$BH$4,Main!$H$10=Main!$BH$5),0,LOOKUP(CP12*DAY(EOMONTH(CA12,0))/(DAY(CB12)-DAY(CA12)+1),$H$17:$I$22))) ->  | CS12: 1 | CW12: =IF(CV12="","",MIN(EOMONTH(CV12,0),VLOOKUP(CV12,I!$O$164:$P$202,2,TRUE)-1,LOOKUP(CV12,$E$47:$F$53)-1,IF(CV12<$B$2,$B$2-1,I!$Q$9),IF(CV12<$B$3,$B$3-1,I!$Q$9),IF(CV12<$B$4,$B$4-1,I!$Q$9),LOOKUP(CV12,$H$47:$I$53))) ->  | CX12: =IF(CV12="","",VLOOKUP(CV12,I!$P$164:$R$202,3)) ->  | CZ12: =IF(CV12="","",ROUND(IF(DN12=3,0,IF(DN12=2,IF(CX12=VLOOKUP(CX12,I!$I$2:$J$5,1),0,Main!$H$9)/2,IF(CX12=VLOOKUP(CX12,I!$I$2:$J$5,1),0,Main!$H$9)))*(DAY(CW12)-DAY(CV12)+1)/DAY(EOMONTH(CV12,0)),0)) ->  | DA12: =IF(CV12="","",IF(CX12=VLOOKUP(CX12,I!$I$2:$J$5,1),0,ROUND(CY12*VLOOKUP(CV12,$AD$4:$AE$7,2)%,0))) ->  | DB12: =IF(CV12="","",IF(OR(DN12=3,CX12=VLOOKUP(CX12,I!$I$2:$J$5,1)),0,ROUND(MIN(ROUND(CX12*VLOOKUP(CV12,$B$1:$G$4,2)%,0),VLOOKUP(CV12,$B$2:$H$4,7,TRUE))*(DAY(CW12)-DAY(CV12)+1)/DAY(EOMONTH(CV12,0)),0))) ->  | DC12: =IF(CV12="","",IF(OR(CV12<DATE(2010,4,1),$I$2=VLOOKUP(CV12,$B$2:$G$4,5,TRUE),CX12=VLOOKUP(CX12,I!$I$2:$J$5,1)),0,ROUND(IF(DN12=3,0,IF(DN12=2,MIN(ROUND(CX12*$G$13%,0),$G$14)/2,MIN(ROUND(CX12*$G$13%,0),$G$14)))*(DAY(CW12)-DAY(CV12)+1)/DAY(EOMONTH(CV12,0)),0))) ->  | DE12: =IF(CV12="","",IF(CV12<DATE(2010,4,1),0,IF(OR(DN12=2,DN12=3,CX12=VLOOKUP(CX12,I!$I$2:$J$5,1)),0,ROUND(VLOOKUP(CV12,$B$1:$G$4,4)*(DAY(CW12)-DAY(CV12)+1)/DAY(EOMONTH(CV12,0)),0)))) ->  | DF12: =IF(CV12="","",IF(OR(DN12=2,DN12=3,CV12<DATE(2010,4,1),CX12=VLOOKUP(CX12,I!$I$2:$J$5,1)),0,ROUND(MIN(VLOOKUP(CU12,$A$27:$C$32,2,TRUE),ROUND(CY12*VLOOKUP(CU12,$A$27:$C$32,3,TRUE)%,0))*IF(CU12=$A$36,$C$36,IF(CU12=$A$37,$C$37,IF(CU12=$A$38,$C$38,IF(CU12=$A$39,$C$39,IF(CU12=$A$40,$C$40,IF(CU12=$A$41,$C$41,1))))))*(DAY(CW12)-DAY(CV12)+1)/DAY(EOMONTH(CV12,0)),0))) ->  | DG12: =IF(CV12="","",IF(OR(DN12=3,CX12=VLOOKUP(CX12,I!$I$2:$J$5,1)),0,ROUND(IF(DN12=2,VLOOKUP(CX12,$A$20:$E$23,IF($B$19=VLOOKUP(CV12,$B$2:$G$4,3,TRUE),2,IF($C$19=VLOOKUP(CV12,$B$2:$G$4,3,TRUE),3,IF($D$19=VLOOKUP(CV12,$B$2:$G$4,3,TRUE),4,5))),TRUE)/2,VLOOKUP(CX12,$A$20:$E$23,IF($B$19=VLOOKUP(CV12,$B$2:$G$4,3,TRUE),2,IF($C$19=VLOOKUP(CV12,$B$2:$G$4,3,TRUE),3,IF($D$19=VLOOKUP(CV12,$B$2:$G$4,3,TRUE),4,5))),TRUE))*(DAY(CW12)-DAY(CV12)+1)/DAY(EOMONTH(CV12,0)),0))) ->  | DH12: =IF(CV12="","",IF(OR(CU12<DATE(2010,4,1),DN12=3,CX12=VLOOKUP(CX12,I!$I$2:$J$5,1)),0,ROUND(IF(DN12=2,Main!$L$9/2,Main!$L$9)*(DAY(CW12)-DAY(CV12)+1)/DAY(EOMONTH(CV12,0)),0))) ->  | DJ12: =IF(CV12="","",IF(OR(DN12=3,CX12=VLOOKUP(CX12,I!$I$2:$J$5,1)),0,ROUND(IF(DN12=2,VLOOKUP(CY12,$A$11:$E$16,IF($B$10=VLOOKUP(CU12,$B$2:$G$4,6,TRUE),2,IF($B$10=VLOOKUP(CU12,$B$2:$G$4,6,TRUE),3,IF($D$10=VLOOKUP(CU12,$B$2:$G$4,6,TRUE),4,5))))/2,VLOOKUP(CY12,$A$11:$E$16,IF($B$10=VLOOKUP(CU12,$B$2:$G$4,6,TRUE),2,IF($B$10=VLOOKUP(CU12,$B$2:$G$4,6,TRUE),3,IF($D$10=VLOOKUP(CU12,$B$2:$G$4,6,TRUE),4,5)))))*(DAY(CW12)-DAY(CV12)+1)/DAY(EOMONTH(CV12,0)),0))) ->  | DK12: 0 | DL12: =IF(CV12="","",IF(CX12=VLOOKUP(CX12,I!$I$2:$J$5,1),"",IF(Main!$F$22=Main!$CA$24,ROUND(SUM(CY12,DA12)*10%,0),""))) ->  | DM12: =IF(CU12="","",IF(OR(Main!$H$10=Main!$BH$4,Main!$H$10=Main!$BH$5),0,LOOKUP(DK12*DAY(EOMONTH(CV12,0))/(DAY(CW12)-DAY(CV12)+1),$H$17:$I$22))) ->  | DN12: 1
A13: 13661 | B13: 475 | C13: 575 | D13: 625 | E13: 0 | F13: =IF(D13=30,12000,8000) -> 8000 | G13: 8 | K13: 2013-01-01 | L13: 2013-01-01 | M13: =IF(L13="","",MIN(EOMONTH(L13,0),VLOOKUP(L13,I!$O$164:$P$202,2,TRUE)-1,LOOKUP(L13,$E$47:$F$53)-1,IF(L13<$B$2,$B$2-1,I!$Q$9),IF(L13<$B$3,$B$3-1,I!$Q$9),IF(L13<$B$4,$B$4-1,I!$Q$9),LOOKUP(L13,$H$47:$I$53))) -> 2013-01-31 | N13: =IF(L13="","",VLOOKUP(L13,'Advance Tax'!$A$3:$C$14,3)) -> 32260.00 | O13: 32260 | P13: =IF(L13="","",ROUND(IF(AB13=3,0,IF(AB13=2,IF(N13=VLOOKUP(N13,I!$I$2:$J$5,1),0,Main!$H$9)/2,IF(N13=VLOOKUP(N13,I!$I$2:$J$5,1),0,Main!$H$9)))*(DAY(M13)-DAY(L13)+1)/DAY(EOMONTH(L13,0)),0)) -> 0 | Q13: =IF(L13="","",IF(N13=VLOOKUP(N13,I!$I$2:$J$5,1),0,ROUND(O13*VLOOKUP(L13,$H$9:$I$12,2)%,0))) -> 23227 | R13: =IF(L13="","",IF(OR(AB13=3,N13=VLOOKUP(N13,I!$I$2:$J$5,1)),0,ROUND(MIN(ROUND(N13*VLOOKUP(L13,$B$1:$G$4,2)%,0),VLOOKUP(L13,$B$2:$H$4,7,TRUE))*(DAY(M13)-DAY(L13)+1)/DAY(EOMONTH(L13,0)),0))) -> 3226 | S13: =IF(L13="","",IF(OR(L13<DATE(2010,4,1),$I$2=VLOOKUP(L13,$B$2:$G$4,5,TRUE),N13=VLOOKUP(N13,I!$I$2:$J$5,1)),0,ROUND(IF(AB13=3,0,IF(AB13=2,MIN(ROUND(N13*$G$13%,0),$G$14)/2,MIN(ROUND(N13*$G$13%,0),$G$14)))*(DAY(M13)-DAY(L13)+1)/DAY(EOMONTH(L13,0)),0))) -> 0 | U13: =IF(L13="","",IF(L13<DATE(2010,4,1),0,IF(OR(AB13=2,AB13=3,N13=VLOOKUP(N13,I!$I$2:$J$5,1)),0,ROUND(VLOOKUP(L13,$B$1:$G$4,4)*(DAY(M13)-DAY(L13)+1)/DAY(EOMONTH(L13,0)),0)))) -> 0 | V13: =IF(L13="","",IF(OR(AB13=2,AB13=3,L13<DATE(2010,4,1),N13=VLOOKUP(N13,I!$I$2:$J$5,1)),0,ROUND(MIN(VLOOKUP(K13,$A$27:$C$32,2,TRUE),ROUND(O13*VLOOKUP(K13,$A$27:$C$32,3,TRUE)%,0))*IF(K13=$A$36,$C$36,IF(K13=$A$37,$C$37,IF(K13=$A$38,$C$38,IF(K13=$A$39,$C$39,IF(K13=$A$40,$C$40,IF(K13=$A$41,$C$41,1))))))*(DAY(M13)-DAY(L13)+1)/DAY(EOMONTH(L13,0)),0))) -> 0 | W13: =IF(L13="","",IF(OR(AB13=3,N13=VLOOKUP(N13,I!$I$2:$J$5,1)),0,ROUND(IF(AB13=2,VLOOKUP(N13,$A$20:$E$23,IF($B$19=VLOOKUP(L13,$B$2:$G$4,3,TRUE),2,IF($C$19=VLOOKUP(L13,$B$2:$G$4,3,TRUE),3,IF($D$19=VLOOKUP(L13,$B$2:$G$4,3,TRUE),4,5))),TRUE)/2,VLOOKUP(N13,$A$20:$E$23,IF($B$19=VLOOKUP(L13,$B$2:$G$4,3,TRUE),2,IF($C$19=VLOOKUP(L13,$B$2:$G$4,3,TRUE),3,IF($D$19=VLOOKUP(L13,$B$2:$G$4,3,TRUE),4,5))),TRUE))*(DAY(M13)-DAY(L13)+1)/DAY(EOMONTH(L13,0)),0))) -> 0 | X13: =IF(L13="","",IF(OR(K13<DATE(2010,4,1),AB13=3,N13=VLOOKUP(N13,I!$I$2:$J$5,1)),0,ROUND(IF(AB13=2,Main!$L$9/2,Main!$L$9)*(DAY(M13)-DAY(L13)+1)/DAY(EOMONTH(L13,0)),0))) -> 0 | Z13: =IF(L13="","",IF(OR(AB13=3,N13=VLOOKUP(N13,I!$I$2:$J$5,1)),0,ROUND(IF(AB13=2,VLOOKUP(O13,$A$11:$E$16,IF($B$10=VLOOKUP(K13,$B$2:$G$4,6,TRUE),2,IF($B$10=VLOOKUP(K13,$B$2:$G$4,6,TRUE),3,IF($D$10=VLOOKUP(K13,$B$2:$G$4,6,TRUE),4,5))))/2,VLOOKUP(O13,$A$11:$E$16,IF($B$10=VLOOKUP(K13,$B$2:$G$4,6,TRUE),2,IF($B$10=VLOOKUP(K13,$B$2:$G$4,6,TRUE),3,IF($D$10=VLOOKUP(K13,$B$2:$G$4,6,TRUE),4,5)))))*(DAY(M13)-DAY(L13)+1)/DAY(EOMONTH(L13,0)),0))) -> 0 | AA13: 58713 | AB13: 1 | AI13: =IF(AH13="","",MIN(EOMONTH(AH13,0),VLOOKUP(AH13,I!$O$164:$P$202,2,TRUE)-1,LOOKUP(AH13,$E$47:$F$53)-1,IF(AH13<$B$2,$B$2-1,I!$Q$9),IF(AH13<$B$3,$B$3-1,I!$Q$9),IF(AH13<$B$4,$B$4-1,I!$Q$9),LOOKUP(AH13,$H$47:$I$53))) ->  | AJ13: =IF(AH13="","",VLOOKUP(AH13,I!$P$164:$R$202,2)) ->  | AL13: =IF(AH13="","",ROUND(IF(AZ13=3,0,IF(AZ13=2,IF(AJ13=VLOOKUP(AJ13,I!$I$2:$J$5,1),0,Main!$H$9)/2,IF(AJ13=VLOOKUP(AJ13,I!$I$2:$J$5,1),0,Main!$H$9)))*(DAY(AI13)-DAY(AH13)+1)/DAY(EOMONTH(AH13,0)),0)) ->  | AM13: =IF(AH13="","",IF(AJ13=VLOOKUP(AJ13,I!$I$2:$J$5,1),0,ROUND(AK13*VLOOKUP(AH13,$AD$4:$AE$7,2)%,0))) ->  | AN13: =IF(AH13="","",IF(OR(AZ13=3,AJ13=VLOOKUP(AJ13,I!$I$2:$J$5,1)),0,ROUND(MIN(ROUND(AJ13*VLOOKUP(AH13,$B$1:$G$4,2)%,0),VLOOKUP(AH13,$B$2:$H$4,7,TRUE))*(DAY(AI13)-DAY(AH13)+1)/DAY(EOMONTH(AH13,0)),0))) ->  | AO13: =IF(AH13="","",IF(OR(AH13<DATE(2010,4,1),$I$2=VLOOKUP(AH13,$B$2:$G$4,5,TRUE),AJ13=VLOOKUP(AJ13,I!$I$2:$J$5,1)),0,ROUND(IF(AZ13=3,0,IF(AZ13=2,MIN(ROUND(AJ13*$G$13%,0),$G$14)/2,MIN(ROUND(AJ13*$G$13%,0),$G$14)))*(DAY(AI13)-DAY(AH13)+1)/DAY(EOMONTH(AH13,0)),0))) ->  | AQ13: =IF(AH13="","",IF(AH13<DATE(2010,4,1),0,IF(OR(AZ13=2,AZ13=3,AJ13=VLOOKUP(AJ13,I!$I$2:$J$5,1)),0,ROUND(VLOOKUP(AH13,$B$1:$G$4,4)*(DAY(AI13)-DAY(AH13)+1)/DAY(EOMONTH(AH13,0)),0)))) ->  | AR13: =IF(AH13="","",IF(OR(AZ13=2,AZ13=3,AH13<DATE(2010,4,1),AJ13=VLOOKUP(AJ13,I!$I$2:$J$5,1)),0,ROUND(MIN(VLOOKUP(AG13,$A$27:$C$32,2,TRUE),ROUND(AK13*VLOOKUP(AG13,$A$27:$C$32,3,TRUE)%,0))*IF(AG13=$A$36,$C$36,IF(AG13=$A$37,$C$37,IF(AG13=$A$38,$C$38,IF(AG13=$A$39,$C$39,IF(AG13=$A$40,$C$40,IF(AG13=$A$41,$C$41,1))))))*(DAY(AI13)-DAY(AH13)+1)/DAY(EOMONTH(AH13,0)),0))) ->  | AS13: =IF(AH13="","",IF(OR(AZ13=3,AJ13=VLOOKUP(AJ13,I!$I$2:$J$5,1)),0,ROUND(IF(AZ13=2,VLOOKUP(AJ13,$A$20:$E$23,IF($B$19=VLOOKUP(AH13,$B$2:$G$4,3,TRUE),2,IF($C$19=VLOOKUP(AH13,$B$2:$G$4,3,TRUE),3,IF($D$19=VLOOKUP(AH13,$B$2:$G$4,3,TRUE),4,5))),TRUE)/2,VLOOKUP(AJ13,$A$20:$E$23,IF($B$19=VLOOKUP(AH13,$B$2:$G$4,3,TRUE),2,IF($C$19=VLOOKUP(AH13,$B$2:$G$4,3,TRUE),3,IF($D$19=VLOOKUP(AH13,$B$2:$G$4,3,TRUE),4,5))),TRUE))*(DAY(AI13)-DAY(AH13)+1)/DAY(EOMONTH(AH13,0)),0))) ->  | AT13: =IF(AH13="","",IF(OR(AG13<DATE(2010,4,1),AZ13=3,AJ13=VLOOKUP(AJ13,I!$I$2:$J$5,1)),0,ROUND(IF(AZ13=2,Main!$L$9/2,Main!$L$9)*(DAY(AI13)-DAY(AH13)+1)/DAY(EOMONTH(AH13,0)),0))) ->  | AV13: =IF(AH13="","",IF(OR(AZ13=3,AJ13=VLOOKUP(AJ13,I!$I$2:$J$5,1)),0,ROUND(IF(AZ13=2,VLOOKUP(AK13,$A$11:$E$16,IF($B$10=VLOOKUP(AG13,$B$2:$G$4,6,TRUE),2,IF($B$10=VLOOKUP(AG13,$B$2:$G$4,6,TRUE),3,IF($D$10=VLOOKUP(AG13,$B$2:$G$4,6,TRUE),4,5))))/2,VLOOKUP(AK13,$A$11:$E$16,IF($B$10=VLOOKUP(AG13,$B$2:$G$4,6,TRUE),2,IF($B$10=VLOOKUP(AG13,$B$2:$G$4,6,TRUE),3,IF($D$10=VLOOKUP(AG13,$B$2:$G$4,6,TRUE),4,5)))))*(DAY(AI13)-DAY(AH13)+1)/DAY(EOMONTH(AH13,0)),0))) ->  | AW13: 0 | AX13: =IF(AH13="","",IF(AH13<=$AX$1,AW13-AY13,IF(AND(Main!$F$22=Main!$CA$24,AH13>$AX$1),ROUND(SUM(AK13,AM13)*10%,0),""))) ->  | AY13: =IF(AG13="","",IF(OR(Main!$H$10=Main!$BH$4,Main!$H$10=Main!$BH$5),0,LOOKUP(AW13*DAY(EOMONTH(AH13,0))/(DAY(AI13)-DAY(AH13)+1),$H$17:$I$22))) ->  | AZ13: 1 | BD13: =IF(BC13="","",MIN(EOMONTH(BC13,0),VLOOKUP(BC13,I!$O$164:$P$202,2,TRUE)-1,LOOKUP(BC13,$E$47:$F$53)-1,IF(BC13<$B$2,$B$2-1,I!$Q$9),IF(BC13<$B$3,$B$3-1,I!$Q$9),IF(BC13<$B$4,$B$4-1,I!$Q$9),LOOKUP(BC13,$H$47:$I$53))) ->  | BE13: =IF(BC13="","",VLOOKUP(BC13,I!$P$164:$R$202,3)) ->  | BG13: =IF(BC13="","",ROUND(IF(BU13=3,0,IF(BU13=2,IF(BE13=VLOOKUP(BE13,I!$I$2:$J$5,1),0,Main!$H$9)/2,IF(BE13=VLOOKUP(BE13,I!$I$2:$J$5,1),0,Main!$H$9)))*(DAY(BD13)-DAY(BC13)+1)/DAY(EOMONTH(BC13,0)),0)) ->  | BH13: =IF(BC13="","",IF(BE13=VLOOKUP(BE13,I!$I$2:$J$5,1),0,ROUND(BF13*VLOOKUP(BC13,$AD$4:$AE$7,2)%,0))) ->  | BI13: =IF(BC13="","",IF(OR(BU13=3,BE13=VLOOKUP(BE13,I!$I$2:$J$5,1)),0,ROUND(MIN(ROUND(BE13*VLOOKUP(BC13,$B$1:$G$4,2)%,0),VLOOKUP(BC13,$B$2:$H$4,7,TRUE))*(DAY(BD13)-DAY(BC13)+1)/DAY(EOMONTH(BC13,0)),0))) ->  | BJ13: =IF(BC13="","",IF(OR(BC13<DATE(2010,4,1),$I$2=VLOOKUP(BC13,$B$2:$G$4,5,TRUE),BE13=VLOOKUP(BE13,I!$I$2:$J$5,1)),0,ROUND(IF(BU13=3,0,IF(BU13=2,MIN(ROUND(BE13*$G$13%,0),$G$14)/2,MIN(ROUND(BE13*$G$13%,0),$G$14)))*(DAY(BD13)-DAY(BC13)+1)/DAY(EOMONTH(BC13,0)),0))) ->  | BL13: =IF(BC13="","",IF(BC13<DATE(2010,4,1),0,IF(OR(BU13=2,BU13=3,BE13=VLOOKUP(BE13,I!$I$2:$J$5,1)),0,ROUND(VLOOKUP(BC13,$B$1:$G$4,4)*(DAY(BD13)-DAY(BC13)+1)/DAY(EOMONTH(BC13,0)),0)))) ->  | BM13: =IF(BC13="","",IF(OR(BU13=2,BU13=3,BC13<DATE(2010,4,1),BE13=VLOOKUP(BE13,I!$I$2:$J$5,1)),0,ROUND(MIN(VLOOKUP(BB13,$A$27:$C$32,2,TRUE),ROUND(BF13*VLOOKUP(BB13,$A$27:$C$32,3,TRUE)%,0))*IF(BB13=$A$36,$C$36,IF(BB13=$A$37,$C$37,IF(BB13=$A$38,$C$38,IF(BB13=$A$39,$C$39,IF(BB13=$A$40,$C$40,IF(BB13=$A$41,$C$41,1))))))*(DAY(BD13)-DAY(BC13)+1)/DAY(EOMONTH(BC13,0)),0))) ->  | BN13: =IF(BC13="","",IF(OR(BU13=3,BE13=VLOOKUP(BE13,I!$I$2:$J$5,1)),0,ROUND(IF(BU13=2,VLOOKUP(BE13,$A$20:$E$23,IF($B$19=VLOOKUP(BC13,$B$2:$G$4,3,TRUE),2,IF($C$19=VLOOKUP(BC13,$B$2:$G$4,3,TRUE),3,IF($D$19=VLOOKUP(BC13,$B$2:$G$4,3,TRUE),4,5))),TRUE)/2,VLOOKUP(BE13,$A$20:$E$23,IF($B$19=VLOOKUP(BC13,$B$2:$G$4,3,TRUE),2,IF($C$19=VLOOKUP(BC13,$B$2:$G$4,3,TRUE),3,IF($D$19=VLOOKUP(BC13,$B$2:$G$4,3,TRUE),4,5))),TRUE))*(DAY(BD13)-DAY(BC13)+1)/DAY(EOMONTH(BC13,0)),0))) ->  | BO13: =IF(BC13="","",IF(OR(BB13<DATE(2010,4,1),BU13=3,BE13=VLOOKUP(BE13,I!$I$2:$J$5,1)),0,ROUND(IF(BU13=2,Main!$L$9/2,Main!$L$9)*(DAY(BD13)-DAY(BC13)+1)/DAY(EOMONTH(BC13,0)),0))) ->  | BQ13: =IF(BC13="","",IF(OR(BU13=3,BE13=VLOOKUP(BE13,I!$I$2:$J$5,1)),0,ROUND(IF(BU13=2,VLOOKUP(BF13,$A$11:$E$16,IF($B$10=VLOOKUP(BB13,$B$2:$G$4,6,TRUE),2,IF($B$10=VLOOKUP(BB13,$B$2:$G$4,6,TRUE),3,IF($D$10=VLOOKUP(BB13,$B$2:$G$4,6,TRUE),4,5))))/2,VLOOKUP(BF13,$A$11:$E$16,IF($B$10=VLOOKUP(BB13,$B$2:$G$4,6,TRUE),2,IF($B$10=VLOOKUP(BB13,$B$2:$G$4,6,TRUE),3,IF($D$10=VLOOKUP(BB13,$B$2:$G$4,6,TRUE),4,5)))))*(DAY(BD13)-DAY(BC13)+1)/DAY(EOMONTH(BC13,0)),0))) ->  | BR13: 0 | BS13: =IF(BC13="","",IF(BC13<=$AX$1,BR13-BT13,IF(AND(Main!$F$22=Main!$CA$24,BC13>$AX$1),ROUND(SUM(BF13,BH13)*10%,0),""))) ->  | BT13: =IF(BB13="","",IF(OR(Main!$H$10=Main!$BH$4,Main!$H$10=Main!$BH$5),0,LOOKUP(BR13*DAY(EOMONTH(BC13,0))/(DAY(BD13)-DAY(BC13)+1),$H$17:$I$22))) ->  | BU13: 1 | BV13: 0 | CB13: =IF(CA13="","",MIN(EOMONTH(CA13,0),VLOOKUP(CA13,I!$O$164:$P$202,2,TRUE)-1,LOOKUP(CA13,$E$47:$F$53)-1,IF(CA13<$B$2,$B$2-1,I!$Q$9),IF(CA13<$B$3,$B$3-1,I!$Q$9),IF(CA13<$B$4,$B$4-1,I!$Q$9),LOOKUP(CA13,$H$47:$I$53))) ->  | CC13: =IF(CA13="","",VLOOKUP(CA13,I!$P$164:$R$202,2)) ->  | CE13: =IF(CA13="","",ROUND(IF(CS13=3,0,IF(CS13=2,IF(CC13=VLOOKUP(CC13,I!$I$2:$J$5,1),0,Main!$H$9)/2,IF(CC13=VLOOKUP(CC13,I!$I$2:$J$5,1),0,Main!$H$9)))*(DAY(CB13)-DAY(CA13)+1)/DAY(EOMONTH(CA13,0)),0)) ->  | CF13: =IF(CA13="","",IF(CC13=VLOOKUP(CC13,I!$I$2:$J$5,1),0,ROUND(CD13*VLOOKUP(CA13,$BW$4:$BX$7,2)%,0))) ->  | CG13: =IF(CA13="","",IF(OR(CS13=3,CC13=VLOOKUP(CC13,I!$I$2:$J$5,1)),0,ROUND(MIN(ROUND(CC13*VLOOKUP(CA13,$B$1:$G$4,2)%,0),VLOOKUP(CA13,$B$2:$H$4,7,TRUE))*(DAY(CB13)-DAY(CA13)+1)/DAY(EOMONTH(CA13,0)),0))) ->  | CH13: =IF(CA13="","",IF(OR(CA13<DATE(2010,4,1),$I$2=VLOOKUP(CA13,$B$2:$G$4,5,TRUE),CC13=VLOOKUP(CC13,I!$I$2:$J$5,1)),0,ROUND(IF(CS13=3,0,IF(CS13=2,MIN(ROUND(CC13*$G$13%,0),$G$14)/2,MIN(ROUND(CC13*$G$13%,0),$G$14)))*(DAY(CB13)-DAY(CA13)+1)/DAY(EOMONTH(CA13,0)),0))) ->  | CJ13: =IF(CA13="","",IF(CA13<DATE(2010,4,1),0,IF(OR(CS13=2,CS13=3,CC13=VLOOKUP(CC13,I!$I$2:$J$5,1)),0,ROUND(VLOOKUP(CA13,$B$1:$G$4,4)*(DAY(CB13)-DAY(CA13)+1)/DAY(EOMONTH(CA13,0)),0)))) ->  | CK13: =IF(CA13="","",IF(OR(CS13=2,CS13=3,CA13<DATE(2010,4,1),CC13=VLOOKUP(CC13,I!$I$2:$J$5,1)),0,ROUND(MIN(VLOOKUP(BZ13,$A$27:$C$32,2,TRUE),ROUND(CD13*VLOOKUP(BZ13,$A$27:$C$32,3,TRUE)%,0))*IF(BZ13=$A$36,$C$36,IF(BZ13=$A$37,$C$37,IF(BZ13=$A$38,$C$38,IF(BZ13=$A$39,$C$39,IF(BZ13=$A$40,$C$40,IF(BZ13=$A$41,$C$41,1))))))*(DAY(CB13)-DAY(CA13)+1)/DAY(EOMONTH(CA13,0)),0))) ->  | CL13: =IF(CA13="","",IF(OR(CS13=3,CC13=VLOOKUP(CC13,I!$I$2:$J$5,1)),0,ROUND(IF(CS13=2,VLOOKUP(CC13,$A$20:$E$23,IF($B$19=VLOOKUP(CA13,$B$2:$G$4,3,TRUE),2,IF($C$19=VLOOKUP(CA13,$B$2:$G$4,3,TRUE),3,IF($D$19=VLOOKUP(CA13,$B$2:$G$4,3,TRUE),4,5))),TRUE)/2,VLOOKUP(CC13,$A$20:$E$23,IF($B$19=VLOOKUP(CA13,$B$2:$G$4,3,TRUE),2,IF($C$19=VLOOKUP(CA13,$B$2:$G$4,3,TRUE),3,IF($D$19=VLOOKUP(CA13,$B$2:$G$4,3,TRUE),4,5))),TRUE))*(DAY(CB13)-DAY(CA13)+1)/DAY(EOMONTH(CA13,0)),0))) ->  | CM13: =IF(CA13="","",IF(OR(BZ13<DATE(2010,4,1),CS13=3,CC13=VLOOKUP(CC13,I!$I$2:$J$5,1)),0,ROUND(IF(CS13=2,Main!$L$9/2,Main!$L$9)*(DAY(CB13)-DAY(CA13)+1)/DAY(EOMONTH(CA13,0)),0))) ->  | CO13: =IF(CA13="","",IF(OR(CS13=3,CC13=VLOOKUP(CC13,I!$I$2:$J$5,1)),0,ROUND(IF(CS13=2,VLOOKUP(CD13,$A$11:$E$16,IF($B$10=VLOOKUP(BZ13,$B$2:$G$4,6,TRUE),2,IF($B$10=VLOOKUP(BZ13,$B$2:$G$4,6,TRUE),3,IF($D$10=VLOOKUP(BZ13,$B$2:$G$4,6,TRUE),4,5))))/2,VLOOKUP(CD13,$A$11:$E$16,IF($B$10=VLOOKUP(BZ13,$B$2:$G$4,6,TRUE),2,IF($B$10=VLOOKUP(BZ13,$B$2:$G$4,6,TRUE),3,IF($D$10=VLOOKUP(BZ13,$B$2:$G$4,6,TRUE),4,5)))))*(DAY(CB13)-DAY(CA13)+1)/DAY(EOMONTH(CA13,0)),0))) ->  | CP13: 0 | CQ13: =IF(CA13="","",IF(Main!$F$22=Main!$CA$24,ROUND(SUM(CD13,CF13)*10%,0),"")) ->  | CR13: =IF(BZ13="","",IF(OR(Main!$H$10=Main!$BH$4,Main!$H$10=Main!$BH$5),0,LOOKUP(CP13*DAY(EOMONTH(CA13,0))/(DAY(CB13)-DAY(CA13)+1),$H$17:$I$22))) ->  | CS13: 1 | CW13: =IF(CV13="","",MIN(EOMONTH(CV13,0),VLOOKUP(CV13,I!$O$164:$P$202,2,TRUE)-1,LOOKUP(CV13,$E$47:$F$53)-1,IF(CV13<$B$2,$B$2-1,I!$Q$9),IF(CV13<$B$3,$B$3-1,I!$Q$9),IF(CV13<$B$4,$B$4-1,I!$Q$9),LOOKUP(CV13,$H$47:$I$53))) ->  | CX13: =IF(CV13="","",VLOOKUP(CV13,I!$P$164:$R$202,3)) ->  | CZ13: =IF(CV13="","",ROUND(IF(DN13=3,0,IF(DN13=2,IF(CX13=VLOOKUP(CX13,I!$I$2:$J$5,1),0,Main!$H$9)/2,IF(CX13=VLOOKUP(CX13,I!$I$2:$J$5,1),0,Main!$H$9)))*(DAY(CW13)-DAY(CV13)+1)/DAY(EOMONTH(CV13,0)),0)) ->  | DA13: =IF(CV13="","",IF(CX13=VLOOKUP(CX13,I!$I$2:$J$5,1),0,ROUND(CY13*VLOOKUP(CV13,$AD$4:$AE$7,2)%,0))) ->  | DB13: =IF(CV13="","",IF(OR(DN13=3,CX13=VLOOKUP(CX13,I!$I$2:$J$5,1)),0,ROUND(MIN(ROUND(CX13*VLOOKUP(CV13,$B$1:$G$4,2)%,0),VLOOKUP(CV13,$B$2:$H$4,7,TRUE))*(DAY(CW13)-DAY(CV13)+1)/DAY(EOMONTH(CV13,0)),0))) ->  | DC13: =IF(CV13="","",IF(OR(CV13<DATE(2010,4,1),$I$2=VLOOKUP(CV13,$B$2:$G$4,5,TRUE),CX13=VLOOKUP(CX13,I!$I$2:$J$5,1)),0,ROUND(IF(DN13=3,0,IF(DN13=2,MIN(ROUND(CX13*$G$13%,0),$G$14)/2,MIN(ROUND(CX13*$G$13%,0),$G$14)))*(DAY(CW13)-DAY(CV13)+1)/DAY(EOMONTH(CV13,0)),0))) ->  | DE13: =IF(CV13="","",IF(CV13<DATE(2010,4,1),0,IF(OR(DN13=2,DN13=3,CX13=VLOOKUP(CX13,I!$I$2:$J$5,1)),0,ROUND(VLOOKUP(CV13,$B$1:$G$4,4)*(DAY(CW13)-DAY(CV13)+1)/DAY(EOMONTH(CV13,0)),0)))) ->  | DF13: =IF(CV13="","",IF(OR(DN13=2,DN13=3,CV13<DATE(2010,4,1),CX13=VLOOKUP(CX13,I!$I$2:$J$5,1)),0,ROUND(MIN(VLOOKUP(CU13,$A$27:$C$32,2,TRUE),ROUND(CY13*VLOOKUP(CU13,$A$27:$C$32,3,TRUE)%,0))*IF(CU13=$A$36,$C$36,IF(CU13=$A$37,$C$37,IF(CU13=$A$38,$C$38,IF(CU13=$A$39,$C$39,IF(CU13=$A$40,$C$40,IF(CU13=$A$41,$C$41,1))))))*(DAY(CW13)-DAY(CV13)+1)/DAY(EOMONTH(CV13,0)),0))) ->  | DG13: =IF(CV13="","",IF(OR(DN13=3,CX13=VLOOKUP(CX13,I!$I$2:$J$5,1)),0,ROUND(IF(DN13=2,VLOOKUP(CX13,$A$20:$E$23,IF($B$19=VLOOKUP(CV13,$B$2:$G$4,3,TRUE),2,IF($C$19=VLOOKUP(CV13,$B$2:$G$4,3,TRUE),3,IF($D$19=VLOOKUP(CV13,$B$2:$G$4,3,TRUE),4,5))),TRUE)/2,VLOOKUP(CX13,$A$20:$E$23,IF($B$19=VLOOKUP(CV13,$B$2:$G$4,3,TRUE),2,IF($C$19=VLOOKUP(CV13,$B$2:$G$4,3,TRUE),3,IF($D$19=VLOOKUP(CV13,$B$2:$G$4,3,TRUE),4,5))),TRUE))*(DAY(CW13)-DAY(CV13)+1)/DAY(EOMONTH(CV13,0)),0))) ->  | DH13: =IF(CV13="","",IF(OR(CU13<DATE(2010,4,1),DN13=3,CX13=VLOOKUP(CX13,I!$I$2:$J$5,1)),0,ROUND(IF(DN13=2,Main!$L$9/2,Main!$L$9)*(DAY(CW13)-DAY(CV13)+1)/DAY(EOMONTH(CV13,0)),0))) ->  | DJ13: =IF(CV13="","",IF(OR(DN13=3,CX13=VLOOKUP(CX13,I!$I$2:$J$5,1)),0,ROUND(IF(DN13=2,VLOOKUP(CY13,$A$11:$E$16,IF($B$10=VLOOKUP(CU13,$B$2:$G$4,6,TRUE),2,IF($B$10=VLOOKUP(CU13,$B$2:$G$4,6,TRUE),3,IF($D$10=VLOOKUP(CU13,$B$2:$G$4,6,TRUE),4,5))))/2,VLOOKUP(CY13,$A$11:$E$16,IF($B$10=VLOOKUP(CU13,$B$2:$G$4,6,TRUE),2,IF($B$10=VLOOKUP(CU13,$B$2:$G$4,6,TRUE),3,IF($D$10=VLOOKUP(CU13,$B$2:$G$4,6,TRUE),4,5)))))*(DAY(CW13)-DAY(CV13)+1)/DAY(EOMONTH(CV13,0)),0))) ->  | DK13: 0 | DL13: =IF(CV13="","",IF(CX13=VLOOKUP(CX13,I!$I$2:$J$5,1),"",IF(Main!$F$22=Main!$CA$24,ROUND(SUM(CY13,DA13)*10%,0),""))) ->  | DM13: =IF(CU13="","",IF(OR(Main!$H$10=Main!$BH$4,Main!$H$10=Main!$BH$5),0,LOOKUP(DK13*DAY(EOMONTH(CV13,0))/(DAY(CW13)-DAY(CV13)+1),$H$17:$I$22))) ->  | DN13: 1
A14: 17051 | B14: 575 | C14: 625 | D14: 700 | E14: 0 | F14: =IF(D14=30,12000,8000) -> 8000 | G14: 1000 | H14: % | K14: 2013-02-01 | L14: 2013-02-01 | M14: =IF(L14="","",MIN(EOMONTH(L14,0),VLOOKUP(L14,I!$O$164:$P$202,2,TRUE)-1,LOOKUP(L14,$E$47:$F$53)-1,IF(L14<$B$2,$B$2-1,I!$Q$9),IF(L14<$B$3,$B$3-1,I!$Q$9),IF(L14<$B$4,$B$4-1,I!$Q$9),LOOKUP(L14,$H$47:$I$53))) -> 2013-02-28 | N14: =IF(L14="","",VLOOKUP(L14,'Advance Tax'!$A$3:$C$14,3)) -> 32260.00 | O14: 32260 | P14: =IF(L14="","",ROUND(IF(AB14=3,0,IF(AB14=2,IF(N14=VLOOKUP(N14,I!$I$2:$J$5,1),0,Main!$H$9)/2,IF(N14=VLOOKUP(N14,I!$I$2:$J$5,1),0,Main!$H$9)))*(DAY(M14)-DAY(L14)+1)/DAY(EOMONTH(L14,0)),0)) -> 0 | Q14: =IF(L14="","",IF(N14=VLOOKUP(N14,I!$I$2:$J$5,1),0,ROUND(O14*VLOOKUP(L14,$H$9:$I$12,2)%,0))) -> 23227 | R14: =IF(L14="","",IF(OR(AB14=3,N14=VLOOKUP(N14,I!$I$2:$J$5,1)),0,ROUND(MIN(ROUND(N14*VLOOKUP(L14,$B$1:$G$4,2)%,0),VLOOKUP(L14,$B$2:$H$4,7,TRUE))*(DAY(M14)-DAY(L14)+1)/DAY(EOMONTH(L14,0)),0))) -> 3226 | S14: =IF(L14="","",IF(OR(L14<DATE(2010,4,1),$I$2=VLOOKUP(L14,$B$2:$G$4,5,TRUE),N14=VLOOKUP(N14,I!$I$2:$J$5,1)),0,ROUND(IF(AB14=3,0,IF(AB14=2,MIN(ROUND(N14*$G$13%,0),$G$14)/2,MIN(ROUND(N14*$G$13%,0),$G$14)))*(DAY(M14)-DAY(L14)+1)/DAY(EOMONTH(L14,0)),0))) -> 0 | U14: =IF(L14="","",IF(L14<DATE(2010,4,1),0,IF(OR(AB14=2,AB14=3,N14=VLOOKUP(N14,I!$I$2:$J$5,1)),0,ROUND(VLOOKUP(L14,$B$1:$G$4,4)*(DAY(M14)-DAY(L14)+1)/DAY(EOMONTH(L14,0)),0)))) -> 0 | V14: =IF(L14="","",IF(OR(AB14=2,AB14=3,L14<DATE(2010,4,1),N14=VLOOKUP(N14,I!$I$2:$J$5,1)),0,ROUND(MIN(VLOOKUP(K14,$A$27:$C$32,2,TRUE),ROUND(O14*VLOOKUP(K14,$A$27:$C$32,3,TRUE)%,0))*IF(K14=$A$36,$C$36,IF(K14=$A$37,$C$37,IF(K14=$A$38,$C$38,IF(K14=$A$39,$C$39,IF(K14=$A$40,$C$40,IF(K14=$A$41,$C$41,1))))))*(DAY(M14)-DAY(L14)+1)/DAY(EOMONTH(L14,0)),0))) -> 0 | W14: =IF(L14="","",IF(OR(AB14=3,N14=VLOOKUP(N14,I!$I$2:$J$5,1)),0,ROUND(IF(AB14=2,VLOOKUP(N14,$A$20:$E$23,IF($B$19=VLOOKUP(L14,$B$2:$G$4,3,TRUE),2,IF($C$19=VLOOKUP(L14,$B$2:$G$4,3,TRUE),3,IF($D$19=VLOOKUP(L14,$B$2:$G$4,3,TRUE),4,5))),TRUE)/2,VLOOKUP(N14,$A$20:$E$23,IF($B$19=VLOOKUP(L14,$B$2:$G$4,3,TRUE),2,IF($C$19=VLOOKUP(L14,$B$2:$G$4,3,TRUE),3,IF($D$19=VLOOKUP(L14,$B$2:$G$4,3,TRUE),4,5))),TRUE))*(DAY(M14)-DAY(L14)+1)/DAY(EOMONTH(L14,0)),0))) -> 0 | X14: =IF(L14="","",IF(OR(K14<DATE(2010,4,1),AB14=3,N14=VLOOKUP(N14,I!$I$2:$J$5,1)),0,ROUND(IF(AB14=2,Main!$L$9/2,Main!$L$9)*(DAY(M14)-DAY(L14)+1)/DAY(EOMONTH(L14,0)),0))) -> 0 | Z14: =IF(L14="","",IF(OR(AB14=3,N14=VLOOKUP(N14,I!$I$2:$J$5,1)),0,ROUND(IF(AB14=2,VLOOKUP(O14,$A$11:$E$16,IF($B$10=VLOOKUP(K14,$B$2:$G$4,6,TRUE),2,IF($B$10=VLOOKUP(K14,$B$2:$G$4,6,TRUE),3,IF($D$10=VLOOKUP(K14,$B$2:$G$4,6,TRUE),4,5))))/2,VLOOKUP(O14,$A$11:$E$16,IF($B$10=VLOOKUP(K14,$B$2:$G$4,6,TRUE),2,IF($B$10=VLOOKUP(K14,$B$2:$G$4,6,TRUE),3,IF($D$10=VLOOKUP(K14,$B$2:$G$4,6,TRUE),4,5)))))*(DAY(M14)-DAY(L14)+1)/DAY(EOMONTH(L14,0)),0))) -> 0 | AA14: 58713 | AB14: 1 | AI14: =IF(AH14="","",MIN(EOMONTH(AH14,0),VLOOKUP(AH14,I!$O$164:$P$202,2,TRUE)-1,LOOKUP(AH14,$E$47:$F$53)-1,IF(AH14<$B$2,$B$2-1,I!$Q$9),IF(AH14<$B$3,$B$3-1,I!$Q$9),IF(AH14<$B$4,$B$4-1,I!$Q$9),LOOKUP(AH14,$H$47:$I$53))) ->  | AJ14: =IF(AH14="","",VLOOKUP(AH14,I!$P$164:$R$202,2)) ->  | AL14: =IF(AH14="","",ROUND(IF(AZ14=3,0,IF(AZ14=2,IF(AJ14=VLOOKUP(AJ14,I!$I$2:$J$5,1),0,Main!$H$9)/2,IF(AJ14=VLOOKUP(AJ14,I!$I$2:$J$5,1),0,Main!$H$9)))*(DAY(AI14)-DAY(AH14)+1)/DAY(EOMONTH(AH14,0)),0)) ->  | AM14: =IF(AH14="","",IF(AJ14=VLOOKUP(AJ14,I!$I$2:$J$5,1),0,ROUND(AK14*VLOOKUP(AH14,$AD$4:$AE$7,2)%,0))) ->  | AN14: =IF(AH14="","",IF(OR(AZ14=3,AJ14=VLOOKUP(AJ14,I!$I$2:$J$5,1)),0,ROUND(MIN(ROUND(AJ14*VLOOKUP(AH14,$B$1:$G$4,2)%,0),VLOOKUP(AH14,$B$2:$H$4,7,TRUE))*(DAY(AI14)-DAY(AH14)+1)/DAY(EOMONTH(AH14,0)),0))) ->  | AO14: =IF(AH14="","",IF(OR(AH14<DATE(2010,4,1),$I$2=VLOOKUP(AH14,$B$2:$G$4,5,TRUE),AJ14=VLOOKUP(AJ14,I!$I$2:$J$5,1)),0,ROUND(IF(AZ14=3,0,IF(AZ14=2,MIN(ROUND(AJ14*$G$13%,0),$G$14)/2,MIN(ROUND(AJ14*$G$13%,0),$G$14)))*(DAY(AI14)-DAY(AH14)+1)/DAY(EOMONTH(AH14,0)),0))) ->  | AQ14: =IF(AH14="","",IF(AH14<DATE(2010,4,1),0,IF(OR(AZ14=2,AZ14=3,AJ14=VLOOKUP(AJ14,I!$I$2:$J$5,1)),0,ROUND(VLOOKUP(AH14,$B$1:$G$4,4)*(DAY(AI14)-DAY(AH14)+1)/DAY(EOMONTH(AH14,0)),0)))) ->  | AR14: =IF(AH14="","",IF(OR(AZ14=2,AZ14=3,AH14<DATE(2010,4,1),AJ14=VLOOKUP(AJ14,I!$I$2:$J$5,1)),0,ROUND(MIN(VLOOKUP(AG14,$A$27:$C$32,2,TRUE),ROUND(AK14*VLOOKUP(AG14,$A$27:$C$32,3,TRUE)%,0))*IF(AG14=$A$36,$C$36,IF(AG14=$A$37,$C$37,IF(AG14=$A$38,$C$38,IF(AG14=$A$39,$C$39,IF(AG14=$A$40,$C$40,IF(AG14=$A$41,$C$41,1))))))*(DAY(AI14)-DAY(AH14)+1)/DAY(EOMONTH(AH14,0)),0))) ->  | AS14: =IF(AH14="","",IF(OR(AZ14=3,AJ14=VLOOKUP(AJ14,I!$I$2:$J$5,1)),0,ROUND(IF(AZ14=2,VLOOKUP(AJ14,$A$20:$E$23,IF($B$19=VLOOKUP(AH14,$B$2:$G$4,3,TRUE),2,IF($C$19=VLOOKUP(AH14,$B$2:$G$4,3,TRUE),3,IF($D$19=VLOOKUP(AH14,$B$2:$G$4,3,TRUE),4,5))),TRUE)/2,VLOOKUP(AJ14,$A$20:$E$23,IF($B$19=VLOOKUP(AH14,$B$2:$G$4,3,TRUE),2,IF($C$19=VLOOKUP(AH14,$B$2:$G$4,3,TRUE),3,IF($D$19=VLOOKUP(AH14,$B$2:$G$4,3,TRUE),4,5))),TRUE))*(DAY(AI14)-DAY(AH14)+1)/DAY(EOMONTH(AH14,0)),0))) ->  | AT14: =IF(AH14="","",IF(OR(AG14<DATE(2010,4,1),AZ14=3,AJ14=VLOOKUP(AJ14,I!$I$2:$J$5,1)),0,ROUND(IF(AZ14=2,Main!$L$9/2,Main!$L$9)*(DAY(AI14)-DAY(AH14)+1)/DAY(EOMONTH(AH14,0)),0))) ->  | AV14: =IF(AH14="","",IF(OR(AZ14=3,AJ14=VLOOKUP(AJ14,I!$I$2:$J$5,1)),0,ROUND(IF(AZ14=2,VLOOKUP(AK14,$A$11:$E$16,IF($B$10=VLOOKUP(AG14,$B$2:$G$4,6,TRUE),2,IF($B$10=VLOOKUP(AG14,$B$2:$G$4,6,TRUE),3,IF($D$10=VLOOKUP(AG14,$B$2:$G$4,6,TRUE),4,5))))/2,VLOOKUP(AK14,$A$11:$E$16,IF($B$10=VLOOKUP(AG14,$B$2:$G$4,6,TRUE),2,IF($B$10=VLOOKUP(AG14,$B$2:$G$4,6,TRUE),3,IF($D$10=VLOOKUP(AG14,$B$2:$G$4,6,TRUE),4,5)))))*(DAY(AI14)-DAY(AH14)+1)/DAY(EOMONTH(AH14,0)),0))) ->  | AW14: 0 | AX14: =IF(AH14="","",IF(AH14<=$AX$1,AW14-AY14,IF(AND(Main!$F$22=Main!$CA$24,AH14>$AX$1),ROUND(SUM(AK14,AM14)*10%,0),""))) ->  | AY14: =IF(AG14="","",IF(OR(Main!$H$10=Main!$BH$4,Main!$H$10=Main!$BH$5),0,LOOKUP(AW14*DAY(EOMONTH(AH14,0))/(DAY(AI14)-DAY(AH14)+1),$H$17:$I$22))) ->  | AZ14: 1 | BD14: =IF(BC14="","",MIN(EOMONTH(BC14,0),VLOOKUP(BC14,I!$O$164:$P$202,2,TRUE)-1,LOOKUP(BC14,$E$47:$F$53)-1,IF(BC14<$B$2,$B$2-1,I!$Q$9),IF(BC14<$B$3,$B$3-1,I!$Q$9),IF(BC14<$B$4,$B$4-1,I!$Q$9),LOOKUP(BC14,$H$47:$I$53))) ->  | BE14: =IF(BC14="","",VLOOKUP(BC14,I!$P$164:$R$202,3)) ->  | BG14: =IF(BC14="","",ROUND(IF(BU14=3,0,IF(BU14=2,IF(BE14=VLOOKUP(BE14,I!$I$2:$J$5,1),0,Main!$H$9)/2,IF(BE14=VLOOKUP(BE14,I!$I$2:$J$5,1),0,Main!$H$9)))*(DAY(BD14)-DAY(BC14)+1)/DAY(EOMONTH(BC14,0)),0)) ->  | BH14: =IF(BC14="","",IF(BE14=VLOOKUP(BE14,I!$I$2:$J$5,1),0,ROUND(BF14*VLOOKUP(BC14,$AD$4:$AE$7,2)%,0))) ->  | BI14: =IF(BC14="","",IF(OR(BU14=3,BE14=VLOOKUP(BE14,I!$I$2:$J$5,1)),0,ROUND(MIN(ROUND(BE14*VLOOKUP(BC14,$B$1:$G$4,2)%,0),VLOOKUP(BC14,$B$2:$H$4,7,TRUE))*(DAY(BD14)-DAY(BC14)+1)/DAY(EOMONTH(BC14,0)),0))) ->  | BJ14: =IF(BC14="","",IF(OR(BC14<DATE(2010,4,1),$I$2=VLOOKUP(BC14,$B$2:$G$4,5,TRUE),BE14=VLOOKUP(BE14,I!$I$2:$J$5,1)),0,ROUND(IF(BU14=3,0,IF(BU14=2,MIN(ROUND(BE14*$G$13%,0),$G$14)/2,MIN(ROUND(BE14*$G$13%,0),$G$14)))*(DAY(BD14)-DAY(BC14)+1)/DAY(EOMONTH(BC14,0)),0))) ->  | BL14: =IF(BC14="","",IF(BC14<DATE(2010,4,1),0,IF(OR(BU14=2,BU14=3,BE14=VLOOKUP(BE14,I!$I$2:$J$5,1)),0,ROUND(VLOOKUP(BC14,$B$1:$G$4,4)*(DAY(BD14)-DAY(BC14)+1)/DAY(EOMONTH(BC14,0)),0)))) ->  | BM14: =IF(BC14="","",IF(OR(BU14=2,BU14=3,BC14<DATE(2010,4,1),BE14=VLOOKUP(BE14,I!$I$2:$J$5,1)),0,ROUND(MIN(VLOOKUP(BB14,$A$27:$C$32,2,TRUE),ROUND(BF14*VLOOKUP(BB14,$A$27:$C$32,3,TRUE)%,0))*IF(BB14=$A$36,$C$36,IF(BB14=$A$37,$C$37,IF(BB14=$A$38,$C$38,IF(BB14=$A$39,$C$39,IF(BB14=$A$40,$C$40,IF(BB14=$A$41,$C$41,1))))))*(DAY(BD14)-DAY(BC14)+1)/DAY(EOMONTH(BC14,0)),0))) ->  | BN14: =IF(BC14="","",IF(OR(BU14=3,BE14=VLOOKUP(BE14,I!$I$2:$J$5,1)),0,ROUND(IF(BU14=2,VLOOKUP(BE14,$A$20:$E$23,IF($B$19=VLOOKUP(BC14,$B$2:$G$4,3,TRUE),2,IF($C$19=VLOOKUP(BC14,$B$2:$G$4,3,TRUE),3,IF($D$19=VLOOKUP(BC14,$B$2:$G$4,3,TRUE),4,5))),TRUE)/2,VLOOKUP(BE14,$A$20:$E$23,IF($B$19=VLOOKUP(BC14,$B$2:$G$4,3,TRUE),2,IF($C$19=VLOOKUP(BC14,$B$2:$G$4,3,TRUE),3,IF($D$19=VLOOKUP(BC14,$B$2:$G$4,3,TRUE),4,5))),TRUE))*(DAY(BD14)-DAY(BC14)+1)/DAY(EOMONTH(BC14,0)),0))) ->  | BO14: =IF(BC14="","",IF(OR(BB14<DATE(2010,4,1),BU14=3,BE14=VLOOKUP(BE14,I!$I$2:$J$5,1)),0,ROUND(IF(BU14=2,Main!$L$9/2,Main!$L$9)*(DAY(BD14)-DAY(BC14)+1)/DAY(EOMONTH(BC14,0)),0))) ->  | BQ14: =IF(BC14="","",IF(OR(BU14=3,BE14=VLOOKUP(BE14,I!$I$2:$J$5,1)),0,ROUND(IF(BU14=2,VLOOKUP(BF14,$A$11:$E$16,IF($B$10=VLOOKUP(BB14,$B$2:$G$4,6,TRUE),2,IF($B$10=VLOOKUP(BB14,$B$2:$G$4,6,TRUE),3,IF($D$10=VLOOKUP(BB14,$B$2:$G$4,6,TRUE),4,5))))/2,VLOOKUP(BF14,$A$11:$E$16,IF($B$10=VLOOKUP(BB14,$B$2:$G$4,6,TRUE),2,IF($B$10=VLOOKUP(BB14,$B$2:$G$4,6,TRUE),3,IF($D$10=VLOOKUP(BB14,$B$2:$G$4,6,TRUE),4,5)))))*(DAY(BD14)-DAY(BC14)+1)/DAY(EOMONTH(BC14,0)),0))) ->  | BR14: 0 | BS14: =IF(BC14="","",IF(BC14<=$AX$1,BR14-BT14,IF(AND(Main!$F$22=Main!$CA$24,BC14>$AX$1),ROUND(SUM(BF14,BH14)*10%,0),""))) ->  | BT14: =IF(BB14="","",IF(OR(Main!$H$10=Main!$BH$4,Main!$H$10=Main!$BH$5),0,LOOKUP(BR14*DAY(EOMONTH(BC14,0))/(DAY(BD14)-DAY(BC14)+1),$H$17:$I$22))) ->  | BU14: 1 | BV14: 0 | CB14: =IF(CA14="","",MIN(EOMONTH(CA14,0),VLOOKUP(CA14,I!$O$164:$P$202,2,TRUE)-1,LOOKUP(CA14,$E$47:$F$53)-1,IF(CA14<$B$2,$B$2-1,I!$Q$9),IF(CA14<$B$3,$B$3-1,I!$Q$9),IF(CA14<$B$4,$B$4-1,I!$Q$9),LOOKUP(CA14,$H$47:$I$53))) ->  | CC14: =IF(CA14="","",VLOOKUP(CA14,I!$P$164:$R$202,2)) ->  | CE14: =IF(CA14="","",ROUND(IF(CS14=3,0,IF(CS14=2,IF(CC14=VLOOKUP(CC14,I!$I$2:$J$5,1),0,Main!$H$9)/2,IF(CC14=VLOOKUP(CC14,I!$I$2:$J$5,1),0,Main!$H$9)))*(DAY(CB14)-DAY(CA14)+1)/DAY(EOMONTH(CA14,0)),0)) ->  | CF14: =IF(CA14="","",IF(CC14=VLOOKUP(CC14,I!$I$2:$J$5,1),0,ROUND(CD14*VLOOKUP(CA14,$BW$4:$BX$7,2)%,0))) ->  | CG14: =IF(CA14="","",IF(OR(CS14=3,CC14=VLOOKUP(CC14,I!$I$2:$J$5,1)),0,ROUND(MIN(ROUND(CC14*VLOOKUP(CA14,$B$1:$G$4,2)%,0),VLOOKUP(CA14,$B$2:$H$4,7,TRUE))*(DAY(CB14)-DAY(CA14)+1)/DAY(EOMONTH(CA14,0)),0))) ->  | CH14: =IF(CA14="","",IF(OR(CA14<DATE(2010,4,1),$I$2=VLOOKUP(CA14,$B$2:$G$4,5,TRUE),CC14=VLOOKUP(CC14,I!$I$2:$J$5,1)),0,ROUND(IF(CS14=3,0,IF(CS14=2,MIN(ROUND(CC14*$G$13%,0),$G$14)/2,MIN(ROUND(CC14*$G$13%,0),$G$14)))*(DAY(CB14)-DAY(CA14)+1)/DAY(EOMONTH(CA14,0)),0))) ->  | CJ14: =IF(CA14="","",IF(CA14<DATE(2010,4,1),0,IF(OR(CS14=2,CS14=3,CC14=VLOOKUP(CC14,I!$I$2:$J$5,1)),0,ROUND(VLOOKUP(CA14,$B$1:$G$4,4)*(DAY(CB14)-DAY(CA14)+1)/DAY(EOMONTH(CA14,0)),0)))) ->  | CK14: =IF(CA14="","",IF(OR(CS14=2,CS14=3,CA14<DATE(2010,4,1),CC14=VLOOKUP(CC14,I!$I$2:$J$5,1)),0,ROUND(MIN(VLOOKUP(BZ14,$A$27:$C$32,2,TRUE),ROUND(CD14*VLOOKUP(BZ14,$A$27:$C$32,3,TRUE)%,0))*IF(BZ14=$A$36,$C$36,IF(BZ14=$A$37,$C$37,IF(BZ14=$A$38,$C$38,IF(BZ14=$A$39,$C$39,IF(BZ14=$A$40,$C$40,IF(BZ14=$A$41,$C$41,1))))))*(DAY(CB14)-DAY(CA14)+1)/DAY(EOMONTH(CA14,0)),0))) ->  | CL14: =IF(CA14="","",IF(OR(CS14=3,CC14=VLOOKUP(CC14,I!$I$2:$J$5,1)),0,ROUND(IF(CS14=2,VLOOKUP(CC14,$A$20:$E$23,IF($B$19=VLOOKUP(CA14,$B$2:$G$4,3,TRUE),2,IF($C$19=VLOOKUP(CA14,$B$2:$G$4,3,TRUE),3,IF($D$19=VLOOKUP(CA14,$B$2:$G$4,3,TRUE),4,5))),TRUE)/2,VLOOKUP(CC14,$A$20:$E$23,IF($B$19=VLOOKUP(CA14,$B$2:$G$4,3,TRUE),2,IF($C$19=VLOOKUP(CA14,$B$2:$G$4,3,TRUE),3,IF($D$19=VLOOKUP(CA14,$B$2:$G$4,3,TRUE),4,5))),TRUE))*(DAY(CB14)-DAY(CA14)+1)/DAY(EOMONTH(CA14,0)),0))) ->  | CM14: =IF(CA14="","",IF(OR(BZ14<DATE(2010,4,1),CS14=3,CC14=VLOOKUP(CC14,I!$I$2:$J$5,1)),0,ROUND(IF(CS14=2,Main!$L$9/2,Main!$L$9)*(DAY(CB14)-DAY(CA14)+1)/DAY(EOMONTH(CA14,0)),0))) ->  | CO14: =IF(CA14="","",IF(OR(CS14=3,CC14=VLOOKUP(CC14,I!$I$2:$J$5,1)),0,ROUND(IF(CS14=2,VLOOKUP(CD14,$A$11:$E$16,IF($B$10=VLOOKUP(BZ14,$B$2:$G$4,6,TRUE),2,IF($B$10=VLOOKUP(BZ14,$B$2:$G$4,6,TRUE),3,IF($D$10=VLOOKUP(BZ14,$B$2:$G$4,6,TRUE),4,5))))/2,VLOOKUP(CD14,$A$11:$E$16,IF($B$10=VLOOKUP(BZ14,$B$2:$G$4,6,TRUE),2,IF($B$10=VLOOKUP(BZ14,$B$2:$G$4,6,TRUE),3,IF($D$10=VLOOKUP(BZ14,$B$2:$G$4,6,TRUE),4,5)))))*(DAY(CB14)-DAY(CA14)+1)/DAY(EOMONTH(CA14,0)),0))) ->  | CP14: 0 | CQ14: =IF(CA14="","",IF(Main!$F$22=Main!$CA$24,ROUND(SUM(CD14,CF14)*10%,0),"")) ->  | CR14: =IF(BZ14="","",IF(OR(Main!$H$10=Main!$BH$4,Main!$H$10=Main!$BH$5),0,LOOKUP(CP14*DAY(EOMONTH(CA14,0))/(DAY(CB14)-DAY(CA14)+1),$H$17:$I$22))) ->  | CS14: 1 | CW14: =IF(CV14="","",MIN(EOMONTH(CV14,0),VLOOKUP(CV14,I!$O$164:$P$202,2,TRUE)-1,LOOKUP(CV14,$E$47:$F$53)-1,IF(CV14<$B$2,$B$2-1,I!$Q$9),IF(CV14<$B$3,$B$3-1,I!$Q$9),IF(CV14<$B$4,$B$4-1,I!$Q$9),LOOKUP(CV14,$H$47:$I$53))) ->  | CX14: =IF(CV14="","",VLOOKUP(CV14,I!$P$164:$R$202,3)) ->  | CZ14: =IF(CV14="","",ROUND(IF(DN14=3,0,IF(DN14=2,IF(CX14=VLOOKUP(CX14,I!$I$2:$J$5,1),0,Main!$H$9)/2,IF(CX14=VLOOKUP(CX14,I!$I$2:$J$5,1),0,Main!$H$9)))*(DAY(CW14)-DAY(CV14)+1)/DAY(EOMONTH(CV14,0)),0)) ->  | DA14: =IF(CV14="","",IF(CX14=VLOOKUP(CX14,I!$I$2:$J$5,1),0,ROUND(CY14*VLOOKUP(CV14,$AD$4:$AE$7,2)%,0))) ->  | DB14: =IF(CV14="","",IF(OR(DN14=3,CX14=VLOOKUP(CX14,I!$I$2:$J$5,1)),0,ROUND(MIN(ROUND(CX14*VLOOKUP(CV14,$B$1:$G$4,2)%,0),VLOOKUP(CV14,$B$2:$H$4,7,TRUE))*(DAY(CW14)-DAY(CV14)+1)/DAY(EOMONTH(CV14,0)),0))) ->  | DC14: =IF(CV14="","",IF(OR(CV14<DATE(2010,4,1),$I$2=VLOOKUP(CV14,$B$2:$G$4,5,TRUE),CX14=VLOOKUP(CX14,I!$I$2:$J$5,1)),0,ROUND(IF(DN14=3,0,IF(DN14=2,MIN(ROUND(CX14*$G$13%,0),$G$14)/2,MIN(ROUND(CX14*$G$13%,0),$G$14)))*(DAY(CW14)-DAY(CV14)+1)/DAY(EOMONTH(CV14,0)),0))) ->  | DE14: =IF(CV14="","",IF(CV14<DATE(2010,4,1),0,IF(OR(DN14=2,DN14=3,CX14=VLOOKUP(CX14,I!$I$2:$J$5,1)),0,ROUND(VLOOKUP(CV14,$B$1:$G$4,4)*(DAY(CW14)-DAY(CV14)+1)/DAY(EOMONTH(CV14,0)),0)))) ->  | DF14: =IF(CV14="","",IF(OR(DN14=2,DN14=3,CV14<DATE(2010,4,1),CX14=VLOOKUP(CX14,I!$I$2:$J$5,1)),0,ROUND(MIN(VLOOKUP(CU14,$A$27:$C$32,2,TRUE),ROUND(CY14*VLOOKUP(CU14,$A$27:$C$32,3,TRUE)%,0))*IF(CU14=$A$36,$C$36,IF(CU14=$A$37,$C$37,IF(CU14=$A$38,$C$38,IF(CU14=$A$39,$C$39,IF(CU14=$A$40,$C$40,IF(CU14=$A$41,$C$41,1))))))*(DAY(CW14)-DAY(CV14)+1)/DAY(EOMONTH(CV14,0)),0))) ->  | DG14: =IF(CV14="","",IF(OR(DN14=3,CX14=VLOOKUP(CX14,I!$I$2:$J$5,1)),0,ROUND(IF(DN14=2,VLOOKUP(CX14,$A$20:$E$23,IF($B$19=VLOOKUP(CV14,$B$2:$G$4,3,TRUE),2,IF($C$19=VLOOKUP(CV14,$B$2:$G$4,3,TRUE),3,IF($D$19=VLOOKUP(CV14,$B$2:$G$4,3,TRUE),4,5))),TRUE)/2,VLOOKUP(CX14,$A$20:$E$23,IF($B$19=VLOOKUP(CV14,$B$2:$G$4,3,TRUE),2,IF($C$19=VLOOKUP(CV14,$B$2:$G$4,3,TRUE),3,IF($D$19=VLOOKUP(CV14,$B$2:$G$4,3,TRUE),4,5))),TRUE))*(DAY(CW14)-DAY(CV14)+1)/DAY(EOMONTH(CV14,0)),0))) ->  | DH14: =IF(CV14="","",IF(OR(CU14<DATE(2010,4,1),DN14=3,CX14=VLOOKUP(CX14,I!$I$2:$J$5,1)),0,ROUND(IF(DN14=2,Main!$L$9/2,Main!$L$9)*(DAY(CW14)-DAY(CV14)+1)/DAY(EOMONTH(CV14,0)),0))) ->  | DJ14: =IF(CV14="","",IF(OR(DN14=3,CX14=VLOOKUP(CX14,I!$I$2:$J$5,1)),0,ROUND(IF(DN14=2,VLOOKUP(CY14,$A$11:$E$16,IF($B$10=VLOOKUP(CU14,$B$2:$G$4,6,TRUE),2,IF($B$10=VLOOKUP(CU14,$B$2:$G$4,6,TRUE),3,IF($D$10=VLOOKUP(CU14,$B$2:$G$4,6,TRUE),4,5))))/2,VLOOKUP(CY14,$A$11:$E$16,IF($B$10=VLOOKUP(CU14,$B$2:$G$4,6,TRUE),2,IF($B$10=VLOOKUP(CU14,$B$2:$G$4,6,TRUE),3,IF($D$10=VLOOKUP(CU14,$B$2:$G$4,6,TRUE),4,5)))))*(DAY(CW14)-DAY(CV14)+1)/DAY(EOMONTH(CV14,0)),0))) ->  | DK14: 0 | DL14: =IF(CV14="","",IF(CX14=VLOOKUP(CX14,I!$I$2:$J$5,1),"",IF(Main!$F$22=Main!$CA$24,ROUND(SUM(CY14,DA14)*10%,0),""))) ->  | DM14: =IF(CU14="","",IF(OR(Main!$H$10=Main!$BH$4,Main!$H$10=Main!$BH$5),0,LOOKUP(DK14*DAY(EOMONTH(CV14,0))/(DAY(CW14)-DAY(CV14)+1),$H$17:$I$22))) ->  | DN14: 1
A15: 21251 | B15: 625 | C15: 675 | D15: 775 | E15: 0 | M15: =IF(L15="","",MIN(EOMONTH(L15,0),VLOOKUP(L15,I!$O$164:$P$202,2,TRUE)-1,LOOKUP(L15,$E$47:$F$53)-1,IF(L15<$B$2,$B$2-1,I!$Q$9),IF(L15<$B$3,$B$3-1,I!$Q$9),IF(L15<$B$4,$B$4-1,I!$Q$9),LOOKUP(L15,$H$47:$I$53))) ->  | N15: =IF(L15="","",VLOOKUP(L15,'Advance Tax'!$A$3:$C$14,3)) ->  | P15: =IF(L15="","",ROUND(IF(AB15=3,0,IF(AB15=2,IF(N15=VLOOKUP(N15,I!$I$2:$J$5,1),0,Main!$H$9)/2,IF(N15=VLOOKUP(N15,I!$I$2:$J$5,1),0,Main!$H$9)))*(DAY(M15)-DAY(L15)+1)/DAY(EOMONTH(L15,0)),0)) ->  | Q15: =IF(L15="","",IF(N15=VLOOKUP(N15,I!$I$2:$J$5,1),0,ROUND(O15*VLOOKUP(L15,$H$9:$I$12,2)%,0))) ->  | R15: =IF(L15="","",IF(OR(AB15=3,N15=VLOOKUP(N15,I!$I$2:$J$5,1)),0,ROUND(MIN(ROUND(N15*VLOOKUP(L15,$B$1:$G$4,2)%,0),VLOOKUP(L15,$B$2:$H$4,7,TRUE))*(DAY(M15)-DAY(L15)+1)/DAY(EOMONTH(L15,0)),0))) ->  | S15: =IF(L15="","",IF(OR(L15<DATE(2010,4,1),$I$2=VLOOKUP(L15,$B$2:$G$4,5,TRUE),N15=VLOOKUP(N15,I!$I$2:$J$5,1)),0,ROUND(IF(AB15=3,0,IF(AB15=2,MIN(ROUND(N15*$G$13%,0),$G$14)/2,MIN(ROUND(N15*$G$13%,0),$G$14)))*(DAY(M15)-DAY(L15)+1)/DAY(EOMONTH(L15,0)),0))) ->  | U15: =IF(L15="","",IF(L15<DATE(2010,4,1),0,IF(OR(AB15=2,AB15=3,N15=VLOOKUP(N15,I!$I$2:$J$5,1)),0,ROUND(VLOOKUP(L15,$B$1:$G$4,4)*(DAY(M15)-DAY(L15)+1)/DAY(EOMONTH(L15,0)),0)))) ->  | V15: =IF(L15="","",IF(OR(AB15=2,AB15=3,L15<DATE(2010,4,1),N15=VLOOKUP(N15,I!$I$2:$J$5,1)),0,ROUND(MIN(VLOOKUP(K15,$A$27:$C$32,2,TRUE),ROUND(O15*VLOOKUP(K15,$A$27:$C$32,3,TRUE)%,0))*IF(K15=$A$36,$C$36,IF(K15=$A$37,$C$37,IF(K15=$A$38,$C$38,IF(K15=$A$39,$C$39,IF(K15=$A$40,$C$40,IF(K15=$A$41,$C$41,1))))))*(DAY(M15)-DAY(L15)+1)/DAY(EOMONTH(L15,0)),0))) ->  | W15: =IF(L15="","",IF(OR(AB15=3,N15=VLOOKUP(N15,I!$I$2:$J$5,1)),0,ROUND(IF(AB15=2,VLOOKUP(N15,$A$20:$E$23,IF($B$19=VLOOKUP(L15,$B$2:$G$4,3,TRUE),2,IF($C$19=VLOOKUP(L15,$B$2:$G$4,3,TRUE),3,IF($D$19=VLOOKUP(L15,$B$2:$G$4,3,TRUE),4,5))),TRUE)/2,VLOOKUP(N15,$A$20:$E$23,IF($B$19=VLOOKUP(L15,$B$2:$G$4,3,TRUE),2,IF($C$19=VLOOKUP(L15,$B$2:$G$4,3,TRUE),3,IF($D$19=VLOOKUP(L15,$B$2:$G$4,3,TRUE),4,5))),TRUE))*(DAY(M15)-DAY(L15)+1)/DAY(EOMONTH(L15,0)),0))) ->  | X15: =IF(L15="","",IF(OR(K15<DATE(2010,4,1),AB15=3,N15=VLOOKUP(N15,I!$I$2:$J$5,1)),0,ROUND(IF(AB15=2,Main!$L$9/2,Main!$L$9)*(DAY(M15)-DAY(L15)+1)/DAY(EOMONTH(L15,0)),0))) ->  | Z15: =IF(L15="","",IF(OR(AB15=3,N15=VLOOKUP(N15,I!$I$2:$J$5,1)),0,ROUND(IF(AB15=2,VLOOKUP(O15,$A$11:$E$16,IF($B$10=VLOOKUP(K15,$B$2:$G$4,6,TRUE),2,IF($B$10=VLOOKUP(K15,$B$2:$G$4,6,TRUE),3,IF($D$10=VLOOKUP(K15,$B$2:$G$4,6,TRUE),4,5))))/2,VLOOKUP(O15,$A$11:$E$16,IF($B$10=VLOOKUP(K15,$B$2:$G$4,6,TRUE),2,IF($B$10=VLOOKUP(K15,$B$2:$G$4,6,TRUE),3,IF($D$10=VLOOKUP(K15,$B$2:$G$4,6,TRUE),4,5)))))*(DAY(M15)-DAY(L15)+1)/DAY(EOMONTH(L15,0)),0))) ->  | AA15: 0 | AB15: 1 | AI15: =IF(AH15="","",MIN(EOMONTH(AH15,0),VLOOKUP(AH15,I!$O$164:$P$202,2,TRUE)-1,LOOKUP(AH15,$E$47:$F$53)-1,IF(AH15<$B$2,$B$2-1,I!$Q$9),IF(AH15<$B$3,$B$3-1,I!$Q$9),IF(AH15<$B$4,$B$4-1,I!$Q$9),LOOKUP(AH15,$H$47:$I$53))) ->  | AJ15: =IF(AH15="","",VLOOKUP(AH15,I!$P$164:$R$202,2)) ->  | AL15: =IF(AH15="","",ROUND(IF(AZ15=3,0,IF(AZ15=2,IF(AJ15=VLOOKUP(AJ15,I!$I$2:$J$5,1),0,Main!$H$9)/2,IF(AJ15=VLOOKUP(AJ15,I!$I$2:$J$5,1),0,Main!$H$9)))*(DAY(AI15)-DAY(AH15)+1)/DAY(EOMONTH(AH15,0)),0)) ->  | AM15: =IF(AH15="","",IF(AJ15=VLOOKUP(AJ15,I!$I$2:$J$5,1),0,ROUND(AK15*VLOOKUP(AH15,$AD$4:$AE$7,2)%,0))) ->  | AN15: =IF(AH15="","",IF(OR(AZ15=3,AJ15=VLOOKUP(AJ15,I!$I$2:$J$5,1)),0,ROUND(MIN(ROUND(AJ15*VLOOKUP(AH15,$B$1:$G$4,2)%,0),VLOOKUP(AH15,$B$2:$H$4,7,TRUE))*(DAY(AI15)-DAY(AH15)+1)/DAY(EOMONTH(AH15,0)),0))) ->  | AO15: =IF(AH15="","",IF(OR(AH15<DATE(2010,4,1),$I$2=VLOOKUP(AH15,$B$2:$G$4,5,TRUE),AJ15=VLOOKUP(AJ15,I!$I$2:$J$5,1)),0,ROUND(IF(AZ15=3,0,IF(AZ15=2,MIN(ROUND(AJ15*$G$13%,0),$G$14)/2,MIN(ROUND(AJ15*$G$13%,0),$G$14)))*(DAY(AI15)-DAY(AH15)+1)/DAY(EOMONTH(AH15,0)),0))) ->  | AQ15: =IF(AH15="","",IF(AH15<DATE(2010,4,1),0,IF(OR(AZ15=2,AZ15=3,AJ15=VLOOKUP(AJ15,I!$I$2:$J$5,1)),0,ROUND(VLOOKUP(AH15,$B$1:$G$4,4)*(DAY(AI15)-DAY(AH15)+1)/DAY(EOMONTH(AH15,0)),0)))) ->  | AR15: =IF(AH15="","",IF(OR(AZ15=2,AZ15=3,AH15<DATE(2010,4,1),AJ15=VLOOKUP(AJ15,I!$I$2:$J$5,1)),0,ROUND(MIN(VLOOKUP(AG15,$A$27:$C$32,2,TRUE),ROUND(AK15*VLOOKUP(AG15,$A$27:$C$32,3,TRUE)%,0))*IF(AG15=$A$36,$C$36,IF(AG15=$A$37,$C$37,IF(AG15=$A$38,$C$38,IF(AG15=$A$39,$C$39,IF(AG15=$A$40,$C$40,IF(AG15=$A$41,$C$41,1))))))*(DAY(AI15)-DAY(AH15)+1)/DAY(EOMONTH(AH15,0)),0))) ->  | AS15: =IF(AH15="","",IF(OR(AZ15=3,AJ15=VLOOKUP(AJ15,I!$I$2:$J$5,1)),0,ROUND(IF(AZ15=2,VLOOKUP(AJ15,$A$20:$E$23,IF($B$19=VLOOKUP(AH15,$B$2:$G$4,3,TRUE),2,IF($C$19=VLOOKUP(AH15,$B$2:$G$4,3,TRUE),3,IF($D$19=VLOOKUP(AH15,$B$2:$G$4,3,TRUE),4,5))),TRUE)/2,VLOOKUP(AJ15,$A$20:$E$23,IF($B$19=VLOOKUP(AH15,$B$2:$G$4,3,TRUE),2,IF($C$19=VLOOKUP(AH15,$B$2:$G$4,3,TRUE),3,IF($D$19=VLOOKUP(AH15,$B$2:$G$4,3,TRUE),4,5))),TRUE))*(DAY(AI15)-DAY(AH15)+1)/DAY(EOMONTH(AH15,0)),0))) ->  | AT15: =IF(AH15="","",IF(OR(AG15<DATE(2010,4,1),AZ15=3,AJ15=VLOOKUP(AJ15,I!$I$2:$J$5,1)),0,ROUND(IF(AZ15=2,Main!$L$9/2,Main!$L$9)*(DAY(AI15)-DAY(AH15)+1)/DAY(EOMONTH(AH15,0)),0))) ->  | AV15: =IF(AH15="","",IF(OR(AZ15=3,AJ15=VLOOKUP(AJ15,I!$I$2:$J$5,1)),0,ROUND(IF(AZ15=2,VLOOKUP(AK15,$A$11:$E$16,IF($B$10=VLOOKUP(AG15,$B$2:$G$4,6,TRUE),2,IF($B$10=VLOOKUP(AG15,$B$2:$G$4,6,TRUE),3,IF($D$10=VLOOKUP(AG15,$B$2:$G$4,6,TRUE),4,5))))/2,VLOOKUP(AK15,$A$11:$E$16,IF($B$10=VLOOKUP(AG15,$B$2:$G$4,6,TRUE),2,IF($B$10=VLOOKUP(AG15,$B$2:$G$4,6,TRUE),3,IF($D$10=VLOOKUP(AG15,$B$2:$G$4,6,TRUE),4,5)))))*(DAY(AI15)-DAY(AH15)+1)/DAY(EOMONTH(AH15,0)),0))) ->  | AW15: 0 | AX15: =IF(AH15="","",IF(AH15<=$AX$1,AW15-AY15,IF(AND(Main!$F$22=Main!$CA$24,AH15>$AX$1),ROUND(SUM(AK15,AM15)*10%,0),""))) ->  | AY15: =IF(AG15="","",IF(OR(Main!$H$10=Main!$BH$4,Main!$H$10=Main!$BH$5),0,LOOKUP(AW15*DAY(EOMONTH(AH15,0))/(DAY(AI15)-DAY(AH15)+1),$H$17:$I$22))) ->  | AZ15: 1 | BD15: =IF(BC15="","",MIN(EOMONTH(BC15,0),VLOOKUP(BC15,I!$O$164:$P$202,2,TRUE)-1,LOOKUP(BC15,$E$47:$F$53)-1,IF(BC15<$B$2,$B$2-1,I!$Q$9),IF(BC15<$B$3,$B$3-1,I!$Q$9),IF(BC15<$B$4,$B$4-1,I!$Q$9),LOOKUP(BC15,$H$47:$I$53))) ->  | BE15: =IF(BC15="","",VLOOKUP(BC15,I!$P$164:$R$202,3)) ->  | BG15: =IF(BC15="","",ROUND(IF(BU15=3,0,IF(BU15=2,IF(BE15=VLOOKUP(BE15,I!$I$2:$J$5,1),0,Main!$H$9)/2,IF(BE15=VLOOKUP(BE15,I!$I$2:$J$5,1),0,Main!$H$9)))*(DAY(BD15)-DAY(BC15)+1)/DAY(EOMONTH(BC15,0)),0)) ->  | BH15: =IF(BC15="","",IF(BE15=VLOOKUP(BE15,I!$I$2:$J$5,1),0,ROUND(BF15*VLOOKUP(BC15,$AD$4:$AE$7,2)%,0))) ->  | BI15: =IF(BC15="","",IF(OR(BU15=3,BE15=VLOOKUP(BE15,I!$I$2:$J$5,1)),0,ROUND(MIN(ROUND(BE15*VLOOKUP(BC15,$B$1:$G$4,2)%,0),VLOOKUP(BC15,$B$2:$H$4,7,TRUE))*(DAY(BD15)-DAY(BC15)+1)/DAY(EOMONTH(BC15,0)),0))) ->  | BJ15: =IF(BC15="","",IF(OR(BC15<DATE(2010,4,1),$I$2=VLOOKUP(BC15,$B$2:$G$4,5,TRUE),BE15=VLOOKUP(BE15,I!$I$2:$J$5,1)),0,ROUND(IF(BU15=3,0,IF(BU15=2,MIN(ROUND(BE15*$G$13%,0),$G$14)/2,MIN(ROUND(BE15*$G$13%,0),$G$14)))*(DAY(BD15)-DAY(BC15)+1)/DAY(EOMONTH(BC15,0)),0))) ->  | BL15: =IF(BC15="","",IF(BC15<DATE(2010,4,1),0,IF(OR(BU15=2,BU15=3,BE15=VLOOKUP(BE15,I!$I$2:$J$5,1)),0,ROUND(VLOOKUP(BC15,$B$1:$G$4,4)*(DAY(BD15)-DAY(BC15)+1)/DAY(EOMONTH(BC15,0)),0)))) ->  | BM15: =IF(BC15="","",IF(OR(BU15=2,BU15=3,BC15<DATE(2010,4,1),BE15=VLOOKUP(BE15,I!$I$2:$J$5,1)),0,ROUND(MIN(VLOOKUP(BB15,$A$27:$C$32,2,TRUE),ROUND(BF15*VLOOKUP(BB15,$A$27:$C$32,3,TRUE)%,0))*IF(BB15=$A$36,$C$36,IF(BB15=$A$37,$C$37,IF(BB15=$A$38,$C$38,IF(BB15=$A$39,$C$39,IF(BB15=$A$40,$C$40,IF(BB15=$A$41,$C$41,1))))))*(DAY(BD15)-DAY(BC15)+1)/DAY(EOMONTH(BC15,0)),0))) ->  | BN15: =IF(BC15="","",IF(OR(BU15=3,BE15=VLOOKUP(BE15,I!$I$2:$J$5,1)),0,ROUND(IF(BU15=2,VLOOKUP(BE15,$A$20:$E$23,IF($B$19=VLOOKUP(BC15,$B$2:$G$4,3,TRUE),2,IF($C$19=VLOOKUP(BC15,$B$2:$G$4,3,TRUE),3,IF($D$19=VLOOKUP(BC15,$B$2:$G$4,3,TRUE),4,5))),TRUE)/2,VLOOKUP(BE15,$A$20:$E$23,IF($B$19=VLOOKUP(BC15,$B$2:$G$4,3,TRUE),2,IF($C$19=VLOOKUP(BC15,$B$2:$G$4,3,TRUE),3,IF($D$19=VLOOKUP(BC15,$B$2:$G$4,3,TRUE),4,5))),TRUE))*(DAY(BD15)-DAY(BC15)+1)/DAY(EOMONTH(BC15,0)),0))) ->  | BO15: =IF(BC15="","",IF(OR(BB15<DATE(2010,4,1),BU15=3,BE15=VLOOKUP(BE15,I!$I$2:$J$5,1)),0,ROUND(IF(BU15=2,Main!$L$9/2,Main!$L$9)*(DAY(BD15)-DAY(BC15)+1)/DAY(EOMONTH(BC15,0)),0))) ->  | BQ15: =IF(BC15="","",IF(OR(BU15=3,BE15=VLOOKUP(BE15,I!$I$2:$J$5,1)),0,ROUND(IF(BU15=2,VLOOKUP(BF15,$A$11:$E$16,IF($B$10=VLOOKUP(BB15,$B$2:$G$4,6,TRUE),2,IF($B$10=VLOOKUP(BB15,$B$2:$G$4,6,TRUE),3,IF($D$10=VLOOKUP(BB15,$B$2:$G$4,6,TRUE),4,5))))/2,VLOOKUP(BF15,$A$11:$E$16,IF($B$10=VLOOKUP(BB15,$B$2:$G$4,6,TRUE),2,IF($B$10=VLOOKUP(BB15,$B$2:$G$4,6,TRUE),3,IF($D$10=VLOOKUP(BB15,$B$2:$G$4,6,TRUE),4,5)))))*(DAY(BD15)-DAY(BC15)+1)/DAY(EOMONTH(BC15,0)),0))) ->  | BR15: 0 | BS15: =IF(BC15="","",IF(BC15<=$AX$1,BR15-BT15,IF(AND(Main!$F$22=Main!$CA$24,BC15>$AX$1),ROUND(SUM(BF15,BH15)*10%,0),""))) ->  | BT15: =IF(BB15="","",IF(OR(Main!$H$10=Main!$BH$4,Main!$H$10=Main!$BH$5),0,LOOKUP(BR15*DAY(EOMONTH(BC15,0))/(DAY(BD15)-DAY(BC15)+1),$H$17:$I$22))) ->  | BU15: 1 | BV15: 0 | CB15: =IF(CA15="","",MIN(EOMONTH(CA15,0),VLOOKUP(CA15,I!$O$164:$P$202,2,TRUE)-1,LOOKUP(CA15,$E$47:$F$53)-1,IF(CA15<$B$2,$B$2-1,I!$Q$9),IF(CA15<$B$3,$B$3-1,I!$Q$9),IF(CA15<$B$4,$B$4-1,I!$Q$9),LOOKUP(CA15,$H$47:$I$53))) ->  | CC15: =IF(CA15="","",VLOOKUP(CA15,I!$P$164:$R$202,2)) ->  | CE15: =IF(CA15="","",ROUND(IF(CS15=3,0,IF(CS15=2,IF(CC15=VLOOKUP(CC15,I!$I$2:$J$5,1),0,Main!$H$9)/2,IF(CC15=VLOOKUP(CC15,I!$I$2:$J$5,1),0,Main!$H$9)))*(DAY(CB15)-DAY(CA15)+1)/DAY(EOMONTH(CA15,0)),0)) ->  | CF15: =IF(CA15="","",IF(CC15=VLOOKUP(CC15,I!$I$2:$J$5,1),0,ROUND(CD15*VLOOKUP(CA15,$BW$4:$BX$7,2)%,0))) ->  | CG15: =IF(CA15="","",IF(OR(CS15=3,CC15=VLOOKUP(CC15,I!$I$2:$J$5,1)),0,ROUND(MIN(ROUND(CC15*VLOOKUP(CA15,$B$1:$G$4,2)%,0),VLOOKUP(CA15,$B$2:$H$4,7,TRUE))*(DAY(CB15)-DAY(CA15)+1)/DAY(EOMONTH(CA15,0)),0))) ->  | CH15: =IF(CA15="","",IF(OR(CA15<DATE(2010,4,1),$I$2=VLOOKUP(CA15,$B$2:$G$4,5,TRUE),CC15=VLOOKUP(CC15,I!$I$2:$J$5,1)),0,ROUND(IF(CS15=3,0,IF(CS15=2,MIN(ROUND(CC15*$G$13%,0),$G$14)/2,MIN(ROUND(CC15*$G$13%,0),$G$14)))*(DAY(CB15)-DAY(CA15)+1)/DAY(EOMONTH(CA15,0)),0))) ->  | CJ15: =IF(CA15="","",IF(CA15<DATE(2010,4,1),0,IF(OR(CS15=2,CS15=3,CC15=VLOOKUP(CC15,I!$I$2:$J$5,1)),0,ROUND(VLOOKUP(CA15,$B$1:$G$4,4)*(DAY(CB15)-DAY(CA15)+1)/DAY(EOMONTH(CA15,0)),0)))) ->  | CK15: =IF(CA15="","",IF(OR(CS15=2,CS15=3,CA15<DATE(2010,4,1),CC15=VLOOKUP(CC15,I!$I$2:$J$5,1)),0,ROUND(MIN(VLOOKUP(BZ15,$A$27:$C$32,2,TRUE),ROUND(CD15*VLOOKUP(BZ15,$A$27:$C$32,3,TRUE)%,0))*IF(BZ15=$A$36,$C$36,IF(BZ15=$A$37,$C$37,IF(BZ15=$A$38,$C$38,IF(BZ15=$A$39,$C$39,IF(BZ15=$A$40,$C$40,IF(BZ15=$A$41,$C$41,1))))))*(DAY(CB15)-DAY(CA15)+1)/DAY(EOMONTH(CA15,0)),0))) ->  | CL15: =IF(CA15="","",IF(OR(CS15=3,CC15=VLOOKUP(CC15,I!$I$2:$J$5,1)),0,ROUND(IF(CS15=2,VLOOKUP(CC15,$A$20:$E$23,IF($B$19=VLOOKUP(CA15,$B$2:$G$4,3,TRUE),2,IF($C$19=VLOOKUP(CA15,$B$2:$G$4,3,TRUE),3,IF($D$19=VLOOKUP(CA15,$B$2:$G$4,3,TRUE),4,5))),TRUE)/2,VLOOKUP(CC15,$A$20:$E$23,IF($B$19=VLOOKUP(CA15,$B$2:$G$4,3,TRUE),2,IF($C$19=VLOOKUP(CA15,$B$2:$G$4,3,TRUE),3,IF($D$19=VLOOKUP(CA15,$B$2:$G$4,3,TRUE),4,5))),TRUE))*(DAY(CB15)-DAY(CA15)+1)/DAY(EOMONTH(CA15,0)),0))) ->  | CM15: =IF(CA15="","",IF(OR(BZ15<DATE(2010,4,1),CS15=3,CC15=VLOOKUP(CC15,I!$I$2:$J$5,1)),0,ROUND(IF(CS15=2,Main!$L$9/2,Main!$L$9)*(DAY(CB15)-DAY(CA15)+1)/DAY(EOMONTH(CA15,0)),0))) ->  | CO15: =IF(CA15="","",IF(OR(CS15=3,CC15=VLOOKUP(CC15,I!$I$2:$J$5,1)),0,ROUND(IF(CS15=2,VLOOKUP(CD15,$A$11:$E$16,IF($B$10=VLOOKUP(BZ15,$B$2:$G$4,6,TRUE),2,IF($B$10=VLOOKUP(BZ15,$B$2:$G$4,6,TRUE),3,IF($D$10=VLOOKUP(BZ15,$B$2:$G$4,6,TRUE),4,5))))/2,VLOOKUP(CD15,$A$11:$E$16,IF($B$10=VLOOKUP(BZ15,$B$2:$G$4,6,TRUE),2,IF($B$10=VLOOKUP(BZ15,$B$2:$G$4,6,TRUE),3,IF($D$10=VLOOKUP(BZ15,$B$2:$G$4,6,TRUE),4,5)))))*(DAY(CB15)-DAY(CA15)+1)/DAY(EOMONTH(CA15,0)),0))) ->  | CP15: 0 | CQ15: =IF(CA15="","",IF(Main!$F$22=Main!$CA$24,ROUND(SUM(CD15,CF15)*10%,0),"")) ->  | CR15: =IF(BZ15="","",IF(OR(Main!$H$10=Main!$BH$4,Main!$H$10=Main!$BH$5),0,LOOKUP(CP15*DAY(EOMONTH(CA15,0))/(DAY(CB15)-DAY(CA15)+1),$H$17:$I$22))) ->  | CS15: 1 | CW15: =IF(CV15="","",MIN(EOMONTH(CV15,0),VLOOKUP(CV15,I!$O$164:$P$202,2,TRUE)-1,LOOKUP(CV15,$E$47:$F$53)-1,IF(CV15<$B$2,$B$2-1,I!$Q$9),IF(CV15<$B$3,$B$3-1,I!$Q$9),IF(CV15<$B$4,$B$4-1,I!$Q$9),LOOKUP(CV15,$H$47:$I$53))) ->  | CX15: =IF(CV15="","",VLOOKUP(CV15,I!$P$164:$R$202,3)) ->  | CZ15: =IF(CV15="","",ROUND(IF(DN15=3,0,IF(DN15=2,IF(CX15=VLOOKUP(CX15,I!$I$2:$J$5,1),0,Main!$H$9)/2,IF(CX15=VLOOKUP(CX15,I!$I$2:$J$5,1),0,Main!$H$9)))*(DAY(CW15)-DAY(CV15)+1)/DAY(EOMONTH(CV15,0)),0)) ->  | DA15: =IF(CV15="","",IF(CX15=VLOOKUP(CX15,I!$I$2:$J$5,1),0,ROUND(CY15*VLOOKUP(CV15,$AD$4:$AE$7,2)%,0))) ->  | DB15: =IF(CV15="","",IF(OR(DN15=3,CX15=VLOOKUP(CX15,I!$I$2:$J$5,1)),0,ROUND(MIN(ROUND(CX15*VLOOKUP(CV15,$B$1:$G$4,2)%,0),VLOOKUP(CV15,$B$2:$H$4,7,TRUE))*(DAY(CW15)-DAY(CV15)+1)/DAY(EOMONTH(CV15,0)),0))) ->  | DC15: =IF(CV15="","",IF(OR(CV15<DATE(2010,4,1),$I$2=VLOOKUP(CV15,$B$2:$G$4,5,TRUE),CX15=VLOOKUP(CX15,I!$I$2:$J$5,1)),0,ROUND(IF(DN15=3,0,IF(DN15=2,MIN(ROUND(CX15*$G$13%,0),$G$14)/2,MIN(ROUND(CX15*$G$13%,0),$G$14)))*(DAY(CW15)-DAY(CV15)+1)/DAY(EOMONTH(CV15,0)),0))) ->  | DE15: =IF(CV15="","",IF(CV15<DATE(2010,4,1),0,IF(OR(DN15=2,DN15=3,CX15=VLOOKUP(CX15,I!$I$2:$J$5,1)),0,ROUND(VLOOKUP(CV15,$B$1:$G$4,4)*(DAY(CW15)-DAY(CV15)+1)/DAY(EOMONTH(CV15,0)),0)))) ->  | DF15: =IF(CV15="","",IF(OR(DN15=2,DN15=3,CV15<DATE(2010,4,1),CX15=VLOOKUP(CX15,I!$I$2:$J$5,1)),0,ROUND(MIN(VLOOKUP(CU15,$A$27:$C$32,2,TRUE),ROUND(CY15*VLOOKUP(CU15,$A$27:$C$32,3,TRUE)%,0))*IF(CU15=$A$36,$C$36,IF(CU15=$A$37,$C$37,IF(CU15=$A$38,$C$38,IF(CU15=$A$39,$C$39,IF(CU15=$A$40,$C$40,IF(CU15=$A$41,$C$41,1))))))*(DAY(CW15)-DAY(CV15)+1)/DAY(EOMONTH(CV15,0)),0))) ->  | DG15: =IF(CV15="","",IF(OR(DN15=3,CX15=VLOOKUP(CX15,I!$I$2:$J$5,1)),0,ROUND(IF(DN15=2,VLOOKUP(CX15,$A$20:$E$23,IF($B$19=VLOOKUP(CV15,$B$2:$G$4,3,TRUE),2,IF($C$19=VLOOKUP(CV15,$B$2:$G$4,3,TRUE),3,IF($D$19=VLOOKUP(CV15,$B$2:$G$4,3,TRUE),4,5))),TRUE)/2,VLOOKUP(CX15,$A$20:$E$23,IF($B$19=VLOOKUP(CV15,$B$2:$G$4,3,TRUE),2,IF($C$19=VLOOKUP(CV15,$B$2:$G$4,3,TRUE),3,IF($D$19=VLOOKUP(CV15,$B$2:$G$4,3,TRUE),4,5))),TRUE))*(DAY(CW15)-DAY(CV15)+1)/DAY(EOMONTH(CV15,0)),0))) ->  | DH15: =IF(CV15="","",IF(OR(CU15<DATE(2010,4,1),DN15=3,CX15=VLOOKUP(CX15,I!$I$2:$J$5,1)),0,ROUND(IF(DN15=2,Main!$L$9/2,Main!$L$9)*(DAY(CW15)-DAY(CV15)+1)/DAY(EOMONTH(CV15,0)),0))) ->  | DJ15: =IF(CV15="","",IF(OR(DN15=3,CX15=VLOOKUP(CX15,I!$I$2:$J$5,1)),0,ROUND(IF(DN15=2,VLOOKUP(CY15,$A$11:$E$16,IF($B$10=VLOOKUP(CU15,$B$2:$G$4,6,TRUE),2,IF($B$10=VLOOKUP(CU15,$B$2:$G$4,6,TRUE),3,IF($D$10=VLOOKUP(CU15,$B$2:$G$4,6,TRUE),4,5))))/2,VLOOKUP(CY15,$A$11:$E$16,IF($B$10=VLOOKUP(CU15,$B$2:$G$4,6,TRUE),2,IF($B$10=VLOOKUP(CU15,$B$2:$G$4,6,TRUE),3,IF($D$10=VLOOKUP(CU15,$B$2:$G$4,6,TRUE),4,5)))))*(DAY(CW15)-DAY(CV15)+1)/DAY(EOMONTH(CV15,0)),0))) ->  | DK15: 0 | DL15: =IF(CV15="","",IF(CX15=VLOOKUP(CX15,I!$I$2:$J$5,1),"",IF(Main!$F$22=Main!$CA$24,ROUND(SUM(CY15,DA15)*10%,0),""))) ->  | DM15: =IF(CU15="","",IF(OR(Main!$H$10=Main!$BH$4,Main!$H$10=Main!$BH$5),0,LOOKUP(DK15*DAY(EOMONTH(CV15,0))/(DAY(CW15)-DAY(CV15)+1),$H$17:$I$22))) ->  | DN15: 1
A16: 28451 | B16: 675 | C16: 725 | D16: 850 | E16: 0 | H16: Gross Salary | I16: ProfessionTAX | M16: =IF(L16="","",MIN(EOMONTH(L16,0),VLOOKUP(L16,I!$O$164:$P$202,2,TRUE)-1,LOOKUP(L16,$E$47:$F$53)-1,IF(L16<$B$2,$B$2-1,I!$Q$9),IF(L16<$B$3,$B$3-1,I!$Q$9),IF(L16<$B$4,$B$4-1,I!$Q$9),LOOKUP(L16,$H$47:$I$53))) ->  | N16: =IF(L16="","",VLOOKUP(L16,'Advance Tax'!$A$3:$C$14,3)) ->  | P16: =IF(L16="","",ROUND(IF(AB16=3,0,IF(AB16=2,IF(N16=VLOOKUP(N16,I!$I$2:$J$5,1),0,Main!$H$9)/2,IF(N16=VLOOKUP(N16,I!$I$2:$J$5,1),0,Main!$H$9)))*(DAY(M16)-DAY(L16)+1)/DAY(EOMONTH(L16,0)),0)) ->  | Q16: =IF(L16="","",IF(N16=VLOOKUP(N16,I!$I$2:$J$5,1),0,ROUND(O16*VLOOKUP(L16,$H$9:$I$12,2)%,0))) ->  | R16: =IF(L16="","",IF(OR(AB16=3,N16=VLOOKUP(N16,I!$I$2:$J$5,1)),0,ROUND(MIN(ROUND(N16*VLOOKUP(L16,$B$1:$G$4,2)%,0),VLOOKUP(L16,$B$2:$H$4,7,TRUE))*(DAY(M16)-DAY(L16)+1)/DAY(EOMONTH(L16,0)),0))) ->  | S16: =IF(L16="","",IF(OR(L16<DATE(2010,4,1),$I$2=VLOOKUP(L16,$B$2:$G$4,5,TRUE),N16=VLOOKUP(N16,I!$I$2:$J$5,1)),0,ROUND(IF(AB16=3,0,IF(AB16=2,MIN(ROUND(N16*$G$13%,0),$G$14)/2,MIN(ROUND(N16*$G$13%,0),$G$14)))*(DAY(M16)-DAY(L16)+1)/DAY(EOMONTH(L16,0)),0))) ->  | U16: =IF(L16="","",IF(L16<DATE(2010,4,1),0,IF(OR(AB16=2,AB16=3,N16=VLOOKUP(N16,I!$I$2:$J$5,1)),0,ROUND(VLOOKUP(L16,$B$1:$G$4,4)*(DAY(M16)-DAY(L16)+1)/DAY(EOMONTH(L16,0)),0)))) ->  | V16: =IF(L16="","",IF(OR(AB16=2,AB16=3,L16<DATE(2010,4,1),N16=VLOOKUP(N16,I!$I$2:$J$5,1)),0,ROUND(MIN(VLOOKUP(K16,$A$27:$C$32,2,TRUE),ROUND(O16*VLOOKUP(K16,$A$27:$C$32,3,TRUE)%,0))*IF(K16=$A$36,$C$36,IF(K16=$A$37,$C$37,IF(K16=$A$38,$C$38,IF(K16=$A$39,$C$39,IF(K16=$A$40,$C$40,IF(K16=$A$41,$C$41,1))))))*(DAY(M16)-DAY(L16)+1)/DAY(EOMONTH(L16,0)),0))) ->  | W16: =IF(L16="","",IF(OR(AB16=3,N16=VLOOKUP(N16,I!$I$2:$J$5,1)),0,ROUND(IF(AB16=2,VLOOKUP(N16,$A$20:$E$23,IF($B$19=VLOOKUP(L16,$B$2:$G$4,3,TRUE),2,IF($C$19=VLOOKUP(L16,$B$2:$G$4,3,TRUE),3,IF($D$19=VLOOKUP(L16,$B$2:$G$4,3,TRUE),4,5))),TRUE)/2,VLOOKUP(N16,$A$20:$E$23,IF($B$19=VLOOKUP(L16,$B$2:$G$4,3,TRUE),2,IF($C$19=VLOOKUP(L16,$B$2:$G$4,3,TRUE),3,IF($D$19=VLOOKUP(L16,$B$2:$G$4,3,TRUE),4,5))),TRUE))*(DAY(M16)-DAY(L16)+1)/DAY(EOMONTH(L16,0)),0))) ->  | X16: =IF(L16="","",IF(OR(K16<DATE(2010,4,1),AB16=3,N16=VLOOKUP(N16,I!$I$2:$J$5,1)),0,ROUND(IF(AB16=2,Main!$L$9/2,Main!$L$9)*(DAY(M16)-DAY(L16)+1)/DAY(EOMONTH(L16,0)),0))) ->  | Z16: =IF(L16="","",IF(OR(AB16=3,N16=VLOOKUP(N16,I!$I$2:$J$5,1)),0,ROUND(IF(AB16=2,VLOOKUP(O16,$A$11:$E$16,IF($B$10=VLOOKUP(K16,$B$2:$G$4,6,TRUE),2,IF($B$10=VLOOKUP(K16,$B$2:$G$4,6,TRUE),3,IF($D$10=VLOOKUP(K16,$B$2:$G$4,6,TRUE),4,5))))/2,VLOOKUP(O16,$A$11:$E$16,IF($B$10=VLOOKUP(K16,$B$2:$G$4,6,TRUE),2,IF($B$10=VLOOKUP(K16,$B$2:$G$4,6,TRUE),3,IF($D$10=VLOOKUP(K16,$B$2:$G$4,6,TRUE),4,5)))))*(DAY(M16)-DAY(L16)+1)/DAY(EOMONTH(L16,0)),0))) ->  | AA16: 0 | AB16: 1 | AI16: =IF(AH16="","",MIN(EOMONTH(AH16,0),VLOOKUP(AH16,I!$O$164:$P$202,2,TRUE)-1,LOOKUP(AH16,$E$47:$F$53)-1,IF(AH16<$B$2,$B$2-1,I!$Q$9),IF(AH16<$B$3,$B$3-1,I!$Q$9),IF(AH16<$B$4,$B$4-1,I!$Q$9),LOOKUP(AH16,$H$47:$I$53))) ->  | AJ16: =IF(AH16="","",VLOOKUP(AH16,I!$P$164:$R$202,2)) ->  | AL16: =IF(AH16="","",ROUND(IF(AZ16=3,0,IF(AZ16=2,IF(AJ16=VLOOKUP(AJ16,I!$I$2:$J$5,1),0,Main!$H$9)/2,IF(AJ16=VLOOKUP(AJ16,I!$I$2:$J$5,1),0,Main!$H$9)))*(DAY(AI16)-DAY(AH16)+1)/DAY(EOMONTH(AH16,0)),0)) ->  | AM16: =IF(AH16="","",IF(AJ16=VLOOKUP(AJ16,I!$I$2:$J$5,1),0,ROUND(AK16*VLOOKUP(AH16,$AD$4:$AE$7,2)%,0))) ->  | AN16: =IF(AH16="","",IF(OR(AZ16=3,AJ16=VLOOKUP(AJ16,I!$I$2:$J$5,1)),0,ROUND(MIN(ROUND(AJ16*VLOOKUP(AH16,$B$1:$G$4,2)%,0),VLOOKUP(AH16,$B$2:$H$4,7,TRUE))*(DAY(AI16)-DAY(AH16)+1)/DAY(EOMONTH(AH16,0)),0))) ->  | AO16: =IF(AH16="","",IF(OR(AH16<DATE(2010,4,1),$I$2=VLOOKUP(AH16,$B$2:$G$4,5,TRUE),AJ16=VLOOKUP(AJ16,I!$I$2:$J$5,1)),0,ROUND(IF(AZ16=3,0,IF(AZ16=2,MIN(ROUND(AJ16*$G$13%,0),$G$14)/2,MIN(ROUND(AJ16*$G$13%,0),$G$14)))*(DAY(AI16)-DAY(AH16)+1)/DAY(EOMONTH(AH16,0)),0))) ->  | AQ16: =IF(AH16="","",IF(AH16<DATE(2010,4,1),0,IF(OR(AZ16=2,AZ16=3,AJ16=VLOOKUP(AJ16,I!$I$2:$J$5,1)),0,ROUND(VLOOKUP(AH16,$B$1:$G$4,4)*(DAY(AI16)-DAY(AH16)+1)/DAY(EOMONTH(AH16,0)),0)))) ->  | AR16: =IF(AH16="","",IF(OR(AZ16=2,AZ16=3,AH16<DATE(2010,4,1),AJ16=VLOOKUP(AJ16,I!$I$2:$J$5,1)),0,ROUND(MIN(VLOOKUP(AG16,$A$27:$C$32,2,TRUE),ROUND(AK16*VLOOKUP(AG16,$A$27:$C$32,3,TRUE)%,0))*IF(AG16=$A$36,$C$36,IF(AG16=$A$37,$C$37,IF(AG16=$A$38,$C$38,IF(AG16=$A$39,$C$39,IF(AG16=$A$40,$C$40,IF(AG16=$A$41,$C$41,1))))))*(DAY(AI16)-DAY(AH16)+1)/DAY(EOMONTH(AH16,0)),0))) ->  | AS16: =IF(AH16="","",IF(OR(AZ16=3,AJ16=VLOOKUP(AJ16,I!$I$2:$J$5,1)),0,ROUND(IF(AZ16=2,VLOOKUP(AJ16,$A$20:$E$23,IF($B$19=VLOOKUP(AH16,$B$2:$G$4,3,TRUE),2,IF($C$19=VLOOKUP(AH16,$B$2:$G$4,3,TRUE),3,IF($D$19=VLOOKUP(AH16,$B$2:$G$4,3,TRUE),4,5))),TRUE)/2,VLOOKUP(AJ16,$A$20:$E$23,IF($B$19=VLOOKUP(AH16,$B$2:$G$4,3,TRUE),2,IF($C$19=VLOOKUP(AH16,$B$2:$G$4,3,TRUE),3,IF($D$19=VLOOKUP(AH16,$B$2:$G$4,3,TRUE),4,5))),TRUE))*(DAY(AI16)-DAY(AH16)+1)/DAY(EOMONTH(AH16,0)),0))) ->  | AT16: =IF(AH16="","",IF(OR(AG16<DATE(2010,4,1),AZ16=3,AJ16=VLOOKUP(AJ16,I!$I$2:$J$5,1)),0,ROUND(IF(AZ16=2,Main!$L$9/2,Main!$L$9)*(DAY(AI16)-DAY(AH16)+1)/DAY(EOMONTH(AH16,0)),0))) ->  | AV16: =IF(AH16="","",IF(OR(AZ16=3,AJ16=VLOOKUP(AJ16,I!$I$2:$J$5,1)),0,ROUND(IF(AZ16=2,VLOOKUP(AK16,$A$11:$E$16,IF($B$10=VLOOKUP(AG16,$B$2:$G$4,6,TRUE),2,IF($B$10=VLOOKUP(AG16,$B$2:$G$4,6,TRUE),3,IF($D$10=VLOOKUP(AG16,$B$2:$G$4,6,TRUE),4,5))))/2,VLOOKUP(AK16,$A$11:$E$16,IF($B$10=VLOOKUP(AG16,$B$2:$G$4,6,TRUE),2,IF($B$10=VLOOKUP(AG16,$B$2:$G$4,6,TRUE),3,IF($D$10=VLOOKUP(AG16,$B$2:$G$4,6,TRUE),4,5)))))*(DAY(AI16)-DAY(AH16)+1)/DAY(EOMONTH(AH16,0)),0))) ->  | AW16: 0 | AX16: =IF(AH16="","",IF(AH16<=$AX$1,AW16-AY16,IF(AND(Main!$F$22=Main!$CA$24,AH16>$AX$1),ROUND(SUM(AK16,AM16)*10%,0),""))) ->  | AY16: =IF(AG16="","",IF(OR(Main!$H$10=Main!$BH$4,Main!$H$10=Main!$BH$5),0,LOOKUP(AW16*DAY(EOMONTH(AH16,0))/(DAY(AI16)-DAY(AH16)+1),$H$17:$I$22))) ->  | AZ16: 1 | BD16: =IF(BC16="","",MIN(EOMONTH(BC16,0),VLOOKUP(BC16,I!$O$164:$P$202,2,TRUE)-1,LOOKUP(BC16,$E$47:$F$53)-1,IF(BC16<$B$2,$B$2-1,I!$Q$9),IF(BC16<$B$3,$B$3-1,I!$Q$9),IF(BC16<$B$4,$B$4-1,I!$Q$9),LOOKUP(BC16,$H$47:$I$53))) ->  | BE16: =IF(BC16="","",VLOOKUP(BC16,I!$P$164:$R$202,3)) ->  | BG16: =IF(BC16="","",ROUND(IF(BU16=3,0,IF(BU16=2,IF(BE16=VLOOKUP(BE16,I!$I$2:$J$5,1),0,Main!$H$9)/2,IF(BE16=VLOOKUP(BE16,I!$I$2:$J$5,1),0,Main!$H$9)))*(DAY(BD16)-DAY(BC16)+1)/DAY(EOMONTH(BC16,0)),0)) ->  | BH16: =IF(BC16="","",IF(BE16=VLOOKUP(BE16,I!$I$2:$J$5,1),0,ROUND(BF16*VLOOKUP(BC16,$AD$4:$AE$7,2)%,0))) ->  | BI16: =IF(BC16="","",IF(OR(BU16=3,BE16=VLOOKUP(BE16,I!$I$2:$J$5,1)),0,ROUND(MIN(ROUND(BE16*VLOOKUP(BC16,$B$1:$G$4,2)%,0),VLOOKUP(BC16,$B$2:$H$4,7,TRUE))*(DAY(BD16)-DAY(BC16)+1)/DAY(EOMONTH(BC16,0)),0))) ->  | BJ16: =IF(BC16="","",IF(OR(BC16<DATE(2010,4,1),$I$2=VLOOKUP(BC16,$B$2:$G$4,5,TRUE),BE16=VLOOKUP(BE16,I!$I$2:$J$5,1)),0,ROUND(IF(BU16=3,0,IF(BU16=2,MIN(ROUND(BE16*$G$13%,0),$G$14)/2,MIN(ROUND(BE16*$G$13%,0),$G$14)))*(DAY(BD16)-DAY(BC16)+1)/DAY(EOMONTH(BC16,0)),0))) ->  | BL16: =IF(BC16="","",IF(BC16<DATE(2010,4,1),0,IF(OR(BU16=2,BU16=3,BE16=VLOOKUP(BE16,I!$I$2:$J$5,1)),0,ROUND(VLOOKUP(BC16,$B$1:$G$4,4)*(DAY(BD16)-DAY(BC16)+1)/DAY(EOMONTH(BC16,0)),0)))) ->  | BM16: =IF(BC16="","",IF(OR(BU16=2,BU16=3,BC16<DATE(2010,4,1),BE16=VLOOKUP(BE16,I!$I$2:$J$5,1)),0,ROUND(MIN(VLOOKUP(BB16,$A$27:$C$32,2,TRUE),ROUND(BF16*VLOOKUP(BB16,$A$27:$C$32,3,TRUE)%,0))*IF(BB16=$A$36,$C$36,IF(BB16=$A$37,$C$37,IF(BB16=$A$38,$C$38,IF(BB16=$A$39,$C$39,IF(BB16=$A$40,$C$40,IF(BB16=$A$41,$C$41,1))))))*(DAY(BD16)-DAY(BC16)+1)/DAY(EOMONTH(BC16,0)),0))) ->  | BN16: =IF(BC16="","",IF(OR(BU16=3,BE16=VLOOKUP(BE16,I!$I$2:$J$5,1)),0,ROUND(IF(BU16=2,VLOOKUP(BE16,$A$20:$E$23,IF($B$19=VLOOKUP(BC16,$B$2:$G$4,3,TRUE),2,IF($C$19=VLOOKUP(BC16,$B$2:$G$4,3,TRUE),3,IF($D$19=VLOOKUP(BC16,$B$2:$G$4,3,TRUE),4,5))),TRUE)/2,VLOOKUP(BE16,$A$20:$E$23,IF($B$19=VLOOKUP(BC16,$B$2:$G$4,3,TRUE),2,IF($C$19=VLOOKUP(BC16,$B$2:$G$4,3,TRUE),3,IF($D$19=VLOOKUP(BC16,$B$2:$G$4,3,TRUE),4,5))),TRUE))*(DAY(BD16)-DAY(BC16)+1)/DAY(EOMONTH(BC16,0)),0))) ->  | BO16: =IF(BC16="","",IF(OR(BB16<DATE(2010,4,1),BU16=3,BE16=VLOOKUP(BE16,I!$I$2:$J$5,1)),0,ROUND(IF(BU16=2,Main!$L$9/2,Main!$L$9)*(DAY(BD16)-DAY(BC16)+1)/DAY(EOMONTH(BC16,0)),0))) ->  | BQ16: =IF(BC16="","",IF(OR(BU16=3,BE16=VLOOKUP(BE16,I!$I$2:$J$5,1)),0,ROUND(IF(BU16=2,VLOOKUP(BF16,$A$11:$E$16,IF($B$10=VLOOKUP(BB16,$B$2:$G$4,6,TRUE),2,IF($B$10=VLOOKUP(BB16,$B$2:$G$4,6,TRUE),3,IF($D$10=VLOOKUP(BB16,$B$2:$G$4,6,TRUE),4,5))))/2,VLOOKUP(BF16,$A$11:$E$16,IF($B$10=VLOOKUP(BB16,$B$2:$G$4,6,TRUE),2,IF($B$10=VLOOKUP(BB16,$B$2:$G$4,6,TRUE),3,IF($D$10=VLOOKUP(BB16,$B$2:$G$4,6,TRUE),4,5)))))*(DAY(BD16)-DAY(BC16)+1)/DAY(EOMONTH(BC16,0)),0))) ->  | BR16: 0 | BS16: =IF(BC16="","",IF(BC16<=$AX$1,BR16-BT16,IF(AND(Main!$F$22=Main!$CA$24,BC16>$AX$1),ROUND(SUM(BF16,BH16)*10%,0),""))) ->  | BT16: =IF(BB16="","",IF(OR(Main!$H$10=Main!$BH$4,Main!$H$10=Main!$BH$5),0,LOOKUP(BR16*DAY(EOMONTH(BC16,0))/(DAY(BD16)-DAY(BC16)+1),$H$17:$I$22))) ->  | BU16: 1 | BV16: 0 | CB16: =IF(CA16="","",MIN(EOMONTH(CA16,0),VLOOKUP(CA16,I!$O$164:$P$202,2,TRUE)-1,LOOKUP(CA16,$E$47:$F$53)-1,IF(CA16<$B$2,$B$2-1,I!$Q$9),IF(CA16<$B$3,$B$3-1,I!$Q$9),IF(CA16<$B$4,$B$4-1,I!$Q$9),LOOKUP(CA16,$H$47:$I$53))) ->  | CC16: =IF(CA16="","",VLOOKUP(CA16,I!$P$164:$R$202,2)) ->  | CE16: =IF(CA16="","",ROUND(IF(CS16=3,0,IF(CS16=2,IF(CC16=VLOOKUP(CC16,I!$I$2:$J$5,1),0,Main!$H$9)/2,IF(CC16=VLOOKUP(CC16,I!$I$2:$J$5,1),0,Main!$H$9)))*(DAY(CB16)-DAY(CA16)+1)/DAY(EOMONTH(CA16,0)),0)) ->  | CF16: =IF(CA16="","",IF(CC16=VLOOKUP(CC16,I!$I$2:$J$5,1),0,ROUND(CD16*VLOOKUP(CA16,$BW$4:$BX$7,2)%,0))) ->  | CG16: =IF(CA16="","",IF(OR(CS16=3,CC16=VLOOKUP(CC16,I!$I$2:$J$5,1)),0,ROUND(MIN(ROUND(CC16*VLOOKUP(CA16,$B$1:$G$4,2)%,0),VLOOKUP(CA16,$B$2:$H$4,7,TRUE))*(DAY(CB16)-DAY(CA16)+1)/DAY(EOMONTH(CA16,0)),0))) ->  | CH16: =IF(CA16="","",IF(OR(CA16<DATE(2010,4,1),$I$2=VLOOKUP(CA16,$B$2:$G$4,5,TRUE),CC16=VLOOKUP(CC16,I!$I$2:$J$5,1)),0,ROUND(IF(CS16=3,0,IF(CS16=2,MIN(ROUND(CC16*$G$13%,0),$G$14)/2,MIN(ROUND(CC16*$G$13%,0),$G$14)))*(DAY(CB16)-DAY(CA16)+1)/DAY(EOMONTH(CA16,0)),0))) ->  | CJ16: =IF(CA16="","",IF(CA16<DATE(2010,4,1),0,IF(OR(CS16=2,CS16=3,CC16=VLOOKUP(CC16,I!$I$2:$J$5,1)),0,ROUND(VLOOKUP(CA16,$B$1:$G$4,4)*(DAY(CB16)-DAY(CA16)+1)/DAY(EOMONTH(CA16,0)),0)))) ->  | CK16: =IF(CA16="","",IF(OR(CS16=2,CS16=3,CA16<DATE(2010,4,1),CC16=VLOOKUP(CC16,I!$I$2:$J$5,1)),0,ROUND(MIN(VLOOKUP(BZ16,$A$27:$C$32,2,TRUE),ROUND(CD16*VLOOKUP(BZ16,$A$27:$C$32,3,TRUE)%,0))*IF(BZ16=$A$36,$C$36,IF(BZ16=$A$37,$C$37,IF(BZ16=$A$38,$C$38,IF(BZ16=$A$39,$C$39,IF(BZ16=$A$40,$C$40,IF(BZ16=$A$41,$C$41,1))))))*(DAY(CB16)-DAY(CA16)+1)/DAY(EOMONTH(CA16,0)),0))) ->  | CL16: =IF(CA16="","",IF(OR(CS16=3,CC16=VLOOKUP(CC16,I!$I$2:$J$5,1)),0,ROUND(IF(CS16=2,VLOOKUP(CC16,$A$20:$E$23,IF($B$19=VLOOKUP(CA16,$B$2:$G$4,3,TRUE),2,IF($C$19=VLOOKUP(CA16,$B$2:$G$4,3,TRUE),3,IF($D$19=VLOOKUP(CA16,$B$2:$G$4,3,TRUE),4,5))),TRUE)/2,VLOOKUP(CC16,$A$20:$E$23,IF($B$19=VLOOKUP(CA16,$B$2:$G$4,3,TRUE),2,IF($C$19=VLOOKUP(CA16,$B$2:$G$4,3,TRUE),3,IF($D$19=VLOOKUP(CA16,$B$2:$G$4,3,TRUE),4,5))),TRUE))*(DAY(CB16)-DAY(CA16)+1)/DAY(EOMONTH(CA16,0)),0))) ->  | CM16: =IF(CA16="","",IF(OR(BZ16<DATE(2010,4,1),CS16=3,CC16=VLOOKUP(CC16,I!$I$2:$J$5,1)),0,ROUND(IF(CS16=2,Main!$L$9/2,Main!$L$9)*(DAY(CB16)-DAY(CA16)+1)/DAY(EOMONTH(CA16,0)),0))) ->  | CO16: =IF(CA16="","",IF(OR(CS16=3,CC16=VLOOKUP(CC16,I!$I$2:$J$5,1)),0,ROUND(IF(CS16=2,VLOOKUP(CD16,$A$11:$E$16,IF($B$10=VLOOKUP(BZ16,$B$2:$G$4,6,TRUE),2,IF($B$10=VLOOKUP(BZ16,$B$2:$G$4,6,TRUE),3,IF($D$10=VLOOKUP(BZ16,$B$2:$G$4,6,TRUE),4,5))))/2,VLOOKUP(CD16,$A$11:$E$16,IF($B$10=VLOOKUP(BZ16,$B$2:$G$4,6,TRUE),2,IF($B$10=VLOOKUP(BZ16,$B$2:$G$4,6,TRUE),3,IF($D$10=VLOOKUP(BZ16,$B$2:$G$4,6,TRUE),4,5)))))*(DAY(CB16)-DAY(CA16)+1)/DAY(EOMONTH(CA16,0)),0))) ->  | CP16: 0 | CQ16: =IF(CA16="","",IF(Main!$F$22=Main!$CA$24,ROUND(SUM(CD16,CF16)*10%,0),"")) ->  | CR16: =IF(BZ16="","",IF(OR(Main!$H$10=Main!$BH$4,Main!$H$10=Main!$BH$5),0,LOOKUP(CP16*DAY(EOMONTH(CA16,0))/(DAY(CB16)-DAY(CA16)+1),$H$17:$I$22))) ->  | CS16: 1 | CW16: =IF(CV16="","",MIN(EOMONTH(CV16,0),VLOOKUP(CV16,I!$O$164:$P$202,2,TRUE)-1,LOOKUP(CV16,$E$47:$F$53)-1,IF(CV16<$B$2,$B$2-1,I!$Q$9),IF(CV16<$B$3,$B$3-1,I!$Q$9),IF(CV16<$B$4,$B$4-1,I!$Q$9),LOOKUP(CV16,$H$47:$I$53))) ->  | CX16: =IF(CV16="","",VLOOKUP(CV16,I!$P$164:$R$202,3)) ->  | CZ16: =IF(CV16="","",ROUND(IF(DN16=3,0,IF(DN16=2,IF(CX16=VLOOKUP(CX16,I!$I$2:$J$5,1),0,Main!$H$9)/2,IF(CX16=VLOOKUP(CX16,I!$I$2:$J$5,1),0,Main!$H$9)))*(DAY(CW16)-DAY(CV16)+1)/DAY(EOMONTH(CV16,0)),0)) ->  | DA16: =IF(CV16="","",IF(CX16=VLOOKUP(CX16,I!$I$2:$J$5,1),0,ROUND(CY16*VLOOKUP(CV16,$AD$4:$AE$7,2)%,0))) ->  | DB16: =IF(CV16="","",IF(OR(DN16=3,CX16=VLOOKUP(CX16,I!$I$2:$J$5,1)),0,ROUND(MIN(ROUND(CX16*VLOOKUP(CV16,$B$1:$G$4,2)%,0),VLOOKUP(CV16,$B$2:$H$4,7,TRUE))*(DAY(CW16)-DAY(CV16)+1)/DAY(EOMONTH(CV16,0)),0))) ->  | DC16: =IF(CV16="","",IF(OR(CV16<DATE(2010,4,1),$I$2=VLOOKUP(CV16,$B$2:$G$4,5,TRUE),CX16=VLOOKUP(CX16,I!$I$2:$J$5,1)),0,ROUND(IF(DN16=3,0,IF(DN16=2,MIN(ROUND(CX16*$G$13%,0),$G$14)/2,MIN(ROUND(CX16*$G$13%,0),$G$14)))*(DAY(CW16)-DAY(CV16)+1)/DAY(EOMONTH(CV16,0)),0))) ->  | DE16: =IF(CV16="","",IF(CV16<DATE(2010,4,1),0,IF(OR(DN16=2,DN16=3,CX16=VLOOKUP(CX16,I!$I$2:$J$5,1)),0,ROUND(VLOOKUP(CV16,$B$1:$G$4,4)*(DAY(CW16)-DAY(CV16)+1)/DAY(EOMONTH(CV16,0)),0)))) ->  | DF16: =IF(CV16="","",IF(OR(DN16=2,DN16=3,CV16<DATE(2010,4,1),CX16=VLOOKUP(CX16,I!$I$2:$J$5,1)),0,ROUND(MIN(VLOOKUP(CU16,$A$27:$C$32,2,TRUE),ROUND(CY16*VLOOKUP(CU16,$A$27:$C$32,3,TRUE)%,0))*IF(CU16=$A$36,$C$36,IF(CU16=$A$37,$C$37,IF(CU16=$A$38,$C$38,IF(CU16=$A$39,$C$39,IF(CU16=$A$40,$C$40,IF(CU16=$A$41,$C$41,1))))))*(DAY(CW16)-DAY(CV16)+1)/DAY(EOMONTH(CV16,0)),0))) ->  | DG16: =IF(CV16="","",IF(OR(DN16=3,CX16=VLOOKUP(CX16,I!$I$2:$J$5,1)),0,ROUND(IF(DN16=2,VLOOKUP(CX16,$A$20:$E$23,IF($B$19=VLOOKUP(CV16,$B$2:$G$4,3,TRUE),2,IF($C$19=VLOOKUP(CV16,$B$2:$G$4,3,TRUE),3,IF($D$19=VLOOKUP(CV16,$B$2:$G$4,3,TRUE),4,5))),TRUE)/2,VLOOKUP(CX16,$A$20:$E$23,IF($B$19=VLOOKUP(CV16,$B$2:$G$4,3,TRUE),2,IF($C$19=VLOOKUP(CV16,$B$2:$G$4,3,TRUE),3,IF($D$19=VLOOKUP(CV16,$B$2:$G$4,3,TRUE),4,5))),TRUE))*(DAY(CW16)-DAY(CV16)+1)/DAY(EOMONTH(CV16,0)),0))) ->  | DH16: =IF(CV16="","",IF(OR(CU16<DATE(2010,4,1),DN16=3,CX16=VLOOKUP(CX16,I!$I$2:$J$5,1)),0,ROUND(IF(DN16=2,Main!$L$9/2,Main!$L$9)*(DAY(CW16)-DAY(CV16)+1)/DAY(EOMONTH(CV16,0)),0))) ->  | DJ16: =IF(CV16="","",IF(OR(DN16=3,CX16=VLOOKUP(CX16,I!$I$2:$J$5,1)),0,ROUND(IF(DN16=2,VLOOKUP(CY16,$A$11:$E$16,IF($B$10=VLOOKUP(CU16,$B$2:$G$4,6,TRUE),2,IF($B$10=VLOOKUP(CU16,$B$2:$G$4,6,TRUE),3,IF($D$10=VLOOKUP(CU16,$B$2:$G$4,6,TRUE),4,5))))/2,VLOOKUP(CY16,$A$11:$E$16,IF($B$10=VLOOKUP(CU16,$B$2:$G$4,6,TRUE),2,IF($B$10=VLOOKUP(CU16,$B$2:$G$4,6,TRUE),3,IF($D$10=VLOOKUP(CU16,$B$2:$G$4,6,TRUE),4,5)))))*(DAY(CW16)-DAY(CV16)+1)/DAY(EOMONTH(CV16,0)),0))) ->  | DK16: 0 | DL16: =IF(CV16="","",IF(CX16=VLOOKUP(CX16,I!$I$2:$J$5,1),"",IF(Main!$F$22=Main!$CA$24,ROUND(SUM(CY16,DA16)*10%,0),""))) ->  | DM16: =IF(CU16="","",IF(OR(Main!$H$10=Main!$BH$4,Main!$H$10=Main!$BH$5),0,LOOKUP(DK16*DAY(EOMONTH(CV16,0))/(DAY(CW16)-DAY(CV16)+1),$H$17:$I$22))) ->  | DN16: 1
